Workbook

Sheet PI vs gap
A1: Measurement | B1: Hall
A2: Type | B2: Gap dependence
A4: PS type | B4: HXR
A5: PS serial no | B5: 16309
A7: Measurement date | B7: ='DF raw data'!B2 -> 16. aug 2017
C11: Nominal gap [mm] | D11: Encoder [counts] | E11: Encoder [mm] | F11: PI [T^2mm^3] | H11: Encoder offset
C12: 10 | D12: =' 10 mm'!B3 -> 3133014 | E12: =(D12-$H$12)*-0.00025+10 -> 10.00325 | F12: =' 10 mm'!Q3 -> 700.1401953 | H12: 3133027
C13: 12 | D13: =' 12 mm'!B3 -> 3124983 | E13: =(D13-$H$12)*-0.00025+10 -> 12.011 | F13: =' 12 mm'!Q3 -> 536.0426175
C14: 15 | D14: =' 15 mm'!B3 -> 3112965 | E14: 15.0155 | F14: =' 15 mm'!Q3 -> 364.7719151
C15: 20 | D15: =' 20 mm'!B3 -> 3092953 | E15: 20.0185 | F15: =' 20 mm'!Q3 -> 199.188677
C16: 30 | D16: =' 30 mm'!B3 -> 3052940 | E16: 30.02175 | F16: =' 30 mm'!Q3 -> 66.66078067
C17: 100 | D17: =' 100 mm'!B3 -> 2772997 | E17: 100.0075 | F17: =' 100 mm'!Q3 -> 0.3696641734
A41: Measuring series at 10 mm gap:
A42: Reference magnet
A43: Tref | B43: 20.96 | C43: degC
A44: Hall ref field | B44: -0.505285 | C44: T
A45: NMR ref field | B45: 0.5064795 | C45: T
A47: Measuring series at larger gaps:
A48: Reference magnet
A49: Tref | B49: 20.985 | C49: degC
A50: Hall ref field | B50: -0.50524 | C50: T
A51: NMR ref field | B51: 0.506462 | C51: T
A53: Offset from Faro | B53: 0.4716666667

Sheet 10 mm
A1: dz | B1: ='DF raw data'!B7 -> 0.50015 | C1: mm | F1: T_coeff | G1: -0.0008 | H1: /degC | L1: Hallref | M1: ='PI vs gap'!B44 -> -0.505285 | N1: T | P1: IBy total | Q1: =L1203*1000 -> -1.672939386 | R1: muTm | X1: DF ref | Y1: 18
A2: Tref | B2: ='DF raw data'!B8 -> 21.88 | C2: degC | F2: Tcorr | G2: 20 | H2: degC | L2: NMRref | M2: ='PI vs gap'!B45 -> 0.5064795 | N2: T | P2: JBy total | Q2: =M1203 -> -0.4408746305 | R2: muTm^2
A3: Encoder | B3: ='DF raw data'!B9 -> 3133014 | P3: PI total | Q3: =N1203 -> 700.1401953 | R3: T^2mm^3
A5: z [mm] | B5: Bx | C5: By | D5: Bz | F5: Bx_corr | G5: By_corr | H5: Bz_corr | J5: Ix | K5: Jx | L5: Iy | M5: Jy | N5: PI
A6: ='[1]PI vs x'!B53 -> -0.068 | B6: ='DF raw data'!A11 -> -1.0090482e-05 | C6: ='DF raw data'!B11 -> 1.5813026e-05 | D6: ='DF raw data'!C11 -> 1.0022995e-06 | F6: =(1-$G$1*($B$2-$G$2))*B6 -> -1.010565808e-05 | G6: =(1-$G$1*($B$2-$G$2))*C6*$M$2/$M$1 -> -1.58742472e-05 | H6: =(1-$G$1*($B$2-$G$2))*D6 -> 1.003806958e-06 | J6: =F6*$B$1 -> -5.054344891e-06 | K6: =J6*$B$1 -> -2.527930597e-06 | L6: =G6*$B$1 -> -7.939504739e-06 | M6: =L6*$B$1 -> -3.970943295e-06 | N6: =(J6^2+L6)^2*$B$1 -> 3.152712022e-11
A7: =A6+$B$1 -> 0.43215 | B7: ='DF raw data'!A12 -> -1.0100624e-05 | C7: ='DF raw data'!B12 -> 1.6050126e-05 | D7: ='DF raw data'!C12 -> 8.313873e-07 | F7: =(1-$G$1*($B$2-$G$2))*B7 -> -1.011581534e-05 | G7: =(1-$G$1*($B$2-$G$2))*C7*$M$2/$M$1 -> -1.611226515e-05 | H7: =(1-$G$1*($B$2-$G$2))*D7 -> 8.326377065e-07 | J7: =F7*$B$1+J6 -> -1.011376993e-05 | K7: =J7*$B$1+K6 -> -7.586332629e-06 | L7: =G7*$B$1+L6 -> -1.599805415e-05 | M7: =L7*$B$1+M6 -> -1.197237008e-05 | N7: =(J7^2+L7^2)*$B$1+N6 -> 2.106938936e-10
A8: =A7+$B$1 -> 0.9323 | B8: ='DF raw data'!A13 -> -9.5201776e-06 | C8: ='DF raw data'!B13 -> 3.3774182e-07 | D8: ='DF raw data'!C13 -> 1.3680765e-06 | F8: -9.534495947e-06 | G8: -3.390494104e-07 | H8: 1.370134087e-06 | J8: =F8*$B$1+J7 -> -1.488244808e-05 | K8: =J8*$B$1+K7 -> -1.502978904e-05 | L8: =G8*$B$1+L7 -> -1.616762972e-05 | M8: =L8*$B$1+M7 -> -2.005861008e-05 | N8: =(J8^2+L8^2)*$B$1+N7 -> 4.522060813e-10
A9: 1.43245 | B9: ='DF raw data'!A14 -> -9.5819214e-06 | C9: ='DF raw data'!B14 -> 1.3324408e-06 | D9: ='DF raw data'!C14 -> -3.3203905e-06 | F9: -9.59633261e-06 | G9: -1.337599435e-06 | H9: -3.325384367e-06 | J9: -1.968205384e-05 | K9: -2.487376826e-05 | L9: -1.683663007e-05 | M9: -2.847945062e-05 | N9: 7.877343874e-10
A10: 1.9326 | B10: ='DF raw data'!A15 -> -9.6750391e-06 | C10: ='DF raw data'!B15 -> 4.9239002e-06 | D10: ='DF raw data'!C15 -> 2.5767731e-06 | F10: -9.689590359e-06 | G10: -4.942963414e-06 | H10: 2.580648567e-06 | J10: -2.452830245e-05 | K10: -3.714159873e-05 | L10: -1.930885323e-05 | M10: -3.813677356e-05 | N10: 1.275115275e-09
A11: 2.43275 | B11: ='DF raw data'!A16 -> -9.5304513e-06 | C11: ='DF raw data'!B16 -> 1.1996809e-06 | D11: ='DF raw data'!C16 -> 3.6529455e-06 | F11: =(1-$G$1*($B$2-$G$2))*B11 -> -9.544785099e-06 | G11: -1.204325546e-06 | H11: =(1-$G$1*($B$2-$G$2))*D11 -> 3.65843953e-06 | J11: -2.930212672e-05 | K11: -5.179705741e-05 | L11: -1.991119665e-05 | M11: -4.809535856e-05 | N11: 1.902838727e-09
A12: 2.9329 | B12: ='DF raw data'!A17 -> -9.6464591e-06 | C12: ='DF raw data'!B17 -> 3.9398747e-06 | D12: ='DF raw data'!C17 -> 9.21842e-07 | F12: -9.660967374e-06 | G12: -3.955128192e-06 | H12: 9.232284504e-07 | J12: -3.413405955e-05 | K12: -6.88692073e-05 | L12: -2.188935401e-05 | M12: -5.904331897e-05 | N12: 2.725224289e-09
A13: 3.43305 | B13: ='DF raw data'!A18 -> -9.8551191e-06 | C13: ='DF raw data'!B18 -> 9.3502131e-06 | D13: ='DF raw data'!C18 -> -4.5469642e-07 | F13: -9.869941199e-06 | G13: -9.386413085e-06 | H13: -4.553802834e-07 | J13: -3.907051064e-05 | K13: -8.84103232e-05 | L13: -2.658396852e-05 | M13: -7.233929082e-05 | N13: 3.842165362e-09
A14: 3.9332 | B14: ='DF raw data'!A19 -> -9.987818e-06 | C14: ='DF raw data'!B19 -> 1.4105824e-05 | D14: ='DF raw data'!C19 -> 6.9602174e-06 | F14: -1.000283968e-05 | G14: -1.416043565e-05 | H14: 6.970685567e-06 | J14: -4.407343091e-05 | K14: -0.0001104536497 | L14: -3.366631041e-05 | M14: -8.917749597e-05 | N14: 5.38057063e-09
A15: 4.43335 | B15: ='DF raw data'!A20 -> -9.2936916e-06 | C15: ='DF raw data'!B20 -> -5.5012988e-06 | D15: ='DF raw data'!C20 -> 2.9580624e-06 | F15: -9.307669312e-06 | G15: 5.522597452e-06 | H15: 2.962511326e-06 | J15: -4.872866172e-05 | K15: -0.0001348252898 | L15: -3.090418329e-05 | M15: -0.0001046342232 | N15: 7.045845571e-09
A16: 4.9335 | B16: ='DF raw data'!A21 -> -9.7328975e-06 | C16: ='DF raw data'!B21 -> 5.5571459e-06 | D16: ='DF raw data'!C21 -> -2.9234579e-06 | F16: -9.747535778e-06 | G16: -5.578660767e-06 | H16: -2.927854781e-06 | J16: -5.360389173e-05 | K16: -0.0001616352763 | L16: -3.369435048e-05 | M16: -0.0001214864526 | N16: 9.050790106e-09
A17: 5.43365 | B17: ='DF raw data'!A22 -> -9.6452659e-06 | C17: ='DF raw data'!B22 -> 2.7988058e-06 | D17: ='DF raw data'!C22 -> -4.9975424e-06 | F17: -9.65977238e-06 | G17: -2.809641567e-06 | H17: -5.005058704e-06 | J17: -5.843522689e-05 | K17: -0.000190861655 | L17: -3.509959271e-05 | M17: -0.0001390415139 | N17: 1.137481568e-08
A18: 5.9338 | B18: ='DF raw data'!A23 -> -9.6676176e-06 | C18: ='DF raw data'!B23 -> 3.2187008e-06 | D18: ='DF raw data'!C23 -> -5.6981007e-06 | F18: -9.682157697e-06 | G18: -3.231162219e-06 | H18: -5.706670643e-06 | J18: -6.327775806e-05 | K18: -0.0002225100257 | L18: -3.671565849e-05 | M18: -0.0001574048505 | N18: 1.405167562e-08
A19: 6.43395 | B19: ='DF raw data'!A24 -> -9.3451617e-06 | C19: ='DF raw data'!B24 -> -4.7814592e-06 | D19: ='DF raw data'!C24 -> -1.0332515e-06 | F19: -9.359216823e-06 | G19: 4.799970944e-06 | H19: -1.03480551e-06 | J19: -6.795877036e-05 | K19: -0.0002564996047 | L19: -3.431495302e-05 | M19: -0.0001745674743 | N19: 1.695050024e-08
A20: 6.9341 | B20: ='DF raw data'!A25 -> -9.1188067e-06 | C20: ='DF raw data'!B25 -> -1.0270653e-05 | D20: ='DF raw data'!C25 -> 2.382505e-06 | F20: -9.132521385e-06 | G20: 1.031041653e-05 | H20: 2.386088288e-06 | J20: -7.252640093e-05 | K20: -0.0002927736841 | L20: -2.91581982e-05 | M20: -0.0001891509471 | N20: 2.000655646e-08
A21: 7.43425 | B21: ='DF raw data'!A26 -> -9.4978113e-06 | C21: ='DF raw data'!B26 -> 5.1386547e-07 | D21: ='DF raw data'!C26 -> 4.61538e-06 | F21: -9.512096008e-06 | G21: -5.15854935e-07 | H21: 4.622321532e-06 | J21: -7.728387575e-05 | K21: -0.0003314272146 | L21: -2.941620304e-05 | M21: -0.0002038634611 | N21: 2.34266374e-08
A22: 7.9344 | B22: ='DF raw data'!A27 -> -9.4895313e-06 | C22: ='DF raw data'!B27 -> 1.057848e-06 | D22: ='DF raw data'!C27 -> 6.5818531e-06 | F22: -9.503803555e-06 | G22: -1.06194353e-06 | H22: 6.591752207e-06 | J22: -8.203720309e-05 | K22: -0.0003724581217 | L22: -2.99473341e-05 | M22: -0.0002188416202 | N22: 2.72412542e-08
A23: 8.43455 | B23: ='DF raw data'!A28 -> -8.4918956e-06 | C23: ='DF raw data'!B28 -> 2.6173448e-06 | D23: ='DF raw data'!C28 -> 3.5977791e-06 | F23: -8.504667411e-06 | G23: -2.627478028e-06 | H23: 3.60319016e-06 | J23: -8.62908125e-05 | K23: -0.0004156164716 | L23: -3.126146723e-05 | M23: -0.000234477043 | N23: 3.145420953e-08
A24: 8.9347 | B24: ='DF raw data'!A29 -> -4.9434252e-06 | C24: ='DF raw data'!B29 -> -3.9311271e-06 | D24: ='DF raw data'!C29 -> 7.3445626e-06 | F24: -4.950860112e-06 | G24: 3.946346725e-06 | H24: 7.355608822e-06 | J24: -8.876698518e-05 | K24: -0.0004600132792 | L24: -2.928770192e-05 | M24: -0.0002491252872 | N24: 3.582419371e-08
A25: 9.43485 | B25: ='DF raw data'!A30 -> 2.0342705e-07 | C25: ='DF raw data'!B30 -> -2.9433659e-06 | D25: ='DF raw data'!C30 -> 7.6193755e-06 | F25: 2.037330043e-07 | G25: 2.954761341e-06 | H25: 7.630835041e-06 | J25: -8.866508812e-05 | K25: -0.000504359123 | L25: -2.780987803e-05 | M25: -0.0002630343977 | N25: 4.014293252e-08
A26: 9.935 | B26: ='DF raw data'!A31 -> 4.9298164e-06 | C26: ='DF raw data'!B31 -> 1.7035023e-06 | D26: ='DF raw data'!C31 -> 1.2218188e-05 | F26: 4.937230844e-06 | G26: -1.710097525e-06 | H26: 1.223656415e-05 | J26: -8.619573212e-05 | K26: -0.0005474699185 | L26: -2.866518331e-05 | M26: -0.0002773712891 | N26: 4.426986872e-08
A27: 10.43515 | B27: ='DF raw data'!A32 -> 3.0047581e-06 | C27: ='DF raw data'!B32 -> 3.7733575e-06 | D27: ='DF raw data'!C32 -> 8.1410908e-06 | F27: 3.009277256e-06 | G27: -3.78796631e-06 | H27: 8.153335001e-06 | J27: -8.46906421e-05 | K27: -0.0005898279431 | L27: -3.055973466e-05 | M27: -0.0002926557404 | N27: 4.83242858e-08
A28: 10.9353 | B28: ='DF raw data'!A33 -> -3.0390743e-06 | C28: ='DF raw data'!B33 -> 1.708706e-06 | D28: ='DF raw data'!C33 -> -1.678236e-06 | F28: -3.043645068e-06 | G28: -1.715321371e-06 | H28: -1.680760067e-06 | J28: -8.621292118e-05 | K28: -0.0006329473356 | L28: -3.141765265e-05 | M28: -0.0003083692794 | N28: 5.25354171e-08
A29: 11.43545 | B29: ='DF raw data'!A34 -> -5.6933582e-06 | C29: ='DF raw data'!B34 -> 1.9398017e-06 | D29: ='DF raw data'!C34 -> -1.6297781e-06 | F29: -5.701921011e-06 | G29: -1.947311774e-06 | H29: -1.632229286e-06 | J29: -8.906473697e-05 | K29: -0.0006774930638 | L29: -3.239160063e-05 | M29: -0.0003245699384 | N29: 5.702763594e-08
A30: 11.9356 | B30: ='DF raw data'!A35 -> -3.7582299e-06 | C30: ='DF raw data'!B35 -> -2.0576763e-06 | D30: ='DF raw data'!C35 -> 1.8721767e-07 | F30: -3.763882278e-06 | G30: 2.065642733e-06 | H30: 1.874992454e-07 | J30: -9.094724269e-05 | K30: -0.0007229803273 | L30: -3.135846942e-05 | M30: -0.0003402538769 | N30: 6.165640143e-08
A31: 12.43575 | B31: ='DF raw data'!A36 -> 2.1416636e-07 | C31: ='DF raw data'!B36 -> -2.4307392e-06 | D31: ='DF raw data'!C36 -> 3.5716148e-06 | F31: 2.144884662e-07 | G31: 2.440149972e-06 | H31: 3.576986509e-06 | J31: -9.083996628e-05 | K31: -0.0007684139364 | L31: -3.013802841e-05 | M31: -0.0003553274118 | N31: 6.623787558e-08
A32: 12.9359 | B32: ='DF raw data'!A37 -> 5.6374906e-06 | C32: ='DF raw data'!B37 -> -5.6622112e-06 | D32: ='DF raw data'!C37 -> 7.2353505e-06 | F32: 5.645969386e-06 | G32: 5.684132835e-06 | H32: 7.246232467e-06 | J32: -8.80161347e-05 | K32: -0.0008124352062 | L32: -2.729510937e-05 | M32: -0.0003689790607 | N32: 7.048508084e-08
A33: 13.43605 | B33: ='DF raw data'!A38 -> 4.6976697e-06 | C33: ='DF raw data'!B38 -> 2.4336155e-06 | D33: ='DF raw data'!C38 -> 6.456401e-06 | F33: 4.704734995e-06 | G33: -2.443037408e-06 | H33: 6.466111427e-06 | J33: -8.566306149e-05 | K33: -0.0008552795864 | L33: -2.851699453e-05 | M33: -0.0003832418356 | N33: 7.456199309e-08
A34: 13.9362 | B34: ='DF raw data'!A39 -> 3.2717654e-07 | C34: ='DF raw data'!B39 -> 5.9907838e-06 | D34: ='DF raw data'!C39 -> 5.7249781e-06 | F34: 3.276686135e-07 | G34: -6.013977526e-06 | H34: 5.733588467e-06 | J34: -8.549917803e-05 | K34: -0.0008980420003 | L34: -3.152488539e-05 | M34: -0.000399009007 | N34: 7.87152026e-08
A35: 14.43635 | B35: ='DF raw data'!A40 -> -1.0224991e-06 | C35: ='DF raw data'!B40 -> -4.7977373e-06 | D35: ='DF raw data'!C40 -> 5.3994663e-06 | F35: -1.024036939e-06 | G35: 4.816312066e-06 | H35: 5.407587097e-06 | J35: -8.601135011e-05 | K35: -0.000941060577 | L35: -2.911600691e-05 | M35: -0.0004135713778 | N35: 8.283928655e-08
A36: 14.9365 | B36: ='DF raw data'!A41 -> 1.0612915e-06 | C36: ='DF raw data'!B41 -> -2.8026006e-06 | D36: ='DF raw data'!C41 -> 2.1486267e-06 | F36: 1.062887682e-06 | G36: 2.813451058e-06 | H36: 2.151858235e-06 | J36: -8.547974683e-05 | K36: -0.0009838132724 | L36: -2.770885936e-05 | M36: -0.0004274299639 | N36: 8.687778174e-08
A37: 15.43665 | B37: ='DF raw data'!A42 -> 3.3178135e-06 | C37: ='DF raw data'!B42 -> 1.7079052e-06 | D37: ='DF raw data'!C42 -> 2.1503583e-06 | F37: 3.322803492e-06 | G37: -1.714517471e-06 | H37: 2.153592439e-06 | J37: -8.381784667e-05 | K37: -0.001025734768 | L37: -2.856637528e-05 | M37: -0.0004417174364 | N37: 9.079969257e-08
A38: 15.9368 | B38: ='DF raw data'!A43 -> 6.3542452e-06 | C38: ='DF raw data'!B43 -> 7.4345994e-06 | D38: ='DF raw data'!C43 -> 2.4915862e-06 | F38: 6.363801985e-06 | G38: -7.463382956e-06 | H38: 2.495333546e-06 | J38: -8.06349911e-05 | K38: -0.001066064359 | L38: -3.229918626e-05 | M38: -0.0004578718745 | N38: 9.457344397e-08
A39: 16.43695 | B39: ='DF raw data'!A44 -> 6.8208233e-06 | C39: ='DF raw data'!B44 -> 3.4417913e-06 | D39: ='DF raw data'!C44 -> 4.1288804e-06 | F39: 6.831081818e-06 | G39: -3.455116429e-06 | H39: 4.135090236e-06 | J39: -7.721842553e-05 | K39: -0.001104685155 | L39: -3.402726274e-05 | M39: -0.0004748906099 | N39: 9.813478197e-08
A40: 16.9371 | B40: ='DF raw data'!A45 -> 6.2656677e-06 | C40: ='DF raw data'!B45 -> -5.3072954e-06 | D40: ='DF raw data'!C45 -> -3.6425627e-07 | F40: 6.275091264e-06 | G40: 5.327842954e-06 | H40: -3.648041114e-07 | J40: -7.407993864e-05 | K40: -0.001141736236 | L40: -3.136254209e-05 | M40: -0.0004905765853 | N40: 1.013714759e-07
A41: 17.43725 | B41: ='DF raw data'!A46 -> 1.5317986e-06 | C41: ='DF raw data'!B46 -> 5.7450111e-06 | D41: ='DF raw data'!C46 -> -7.089875e-06 | F41: 1.534102425e-06 | G41: -5.7672533e-06 | H41: -7.100538172e-06 | J41: -7.331265731e-05 | K41: -0.001178403562 | L41: -3.424703383e-05 | M41: -0.0005077052393 | N41: 1.046462605e-07
A42: 17.9374 | B42: ='DF raw data'!A47 -> -1.9194063e-06 | C42: ='DF raw data'!B47 -> 1.3077571e-06 | D42: ='DF raw data'!C47 -> -4.7053836e-06 | F42: -1.922293087e-06 | G42: -1.31282017e-06 | H42: -4.712460497e-06 | J42: -7.42740922e-05 | K42: -0.001215551749 | L42: -3.490364084e-05 | M42: -0.0005251622953 | N42: 1.080147232e-07
A43: 18.43755 | B43: ='DF raw data'!A48 -> -1.8031948e-06 | C43: ='DF raw data'!B48 -> -9.9959252e-06 | D43: ='DF raw data'!C48 -> -2.9573348e-06 | F43: -1.805906805e-06 | G43: 1.00346251e-05 | H43: -2.961782632e-06 | J43: -7.517731648e-05 | K43: -0.001253151684 | L43: -2.988482309e-05 | M43: -0.0005401091895 | N43: 1.112880707e-07
A44: 18.9377 | B44: ='DF raw data'!A49 -> -4.4251792e-07 | C44: ='DF raw data'!B49 -> -1.1885522e-05 | D44: ='DF raw data'!C49 -> 2.2541644e-07 | F44: -4.43183467e-07 | G44: 1.193153761e-05 | H44: 2.257554663e-07 | J44: -7.53989747e-05 | K44: -0.001290862481 | L44: -2.391726456e-05 | M44: -0.0005520714094 | N44: 1.144175297e-07
A45: 19.43785 | B45: ='DF raw data'!A50 -> -7.503078e-06 | C45: ='DF raw data'!B50 -> -2.8947989e-06 | D45: ='DF raw data'!C50 -> -1.0928852e-06 | F45: -7.514362629e-06 | G45: 2.90600631e-06 | H45: -1.094528899e-06 | J45: -7.915728316e-05 | K45: -0.001330452996 | L45: -2.24638255e-05 | M45: -0.0005633066917 | N45: 1.178037948e-07
A46: 19.938 | B46: ='DF raw data'!A51 -> -1.1392704e-05 | C46: ='DF raw data'!B51 -> -1.176458e-07 | D46: ='DF raw data'!C51 -> -6.9216185e-08 | F46: -1.140983863e-05 | G46: 1.181012737e-07 | H46: -6.932028614e-08 | J46: -8.486391395e-05 | K46: -0.001372897683 | L46: -2.240475715e-05 | M46: -0.000574512431 | N46: 1.216568789e-07
A47: 20.43815 | B47: ='DF raw data'!A52 -> -6.4786668e-06 | C47: ='DF raw data'!B52 -> 1.2343718e-06 | D47: ='DF raw data'!C52 -> -2.0883381e-06 | F47: -6.488410715e-06 | G47: -1.239150754e-06 | H47: -2.091478961e-06 | J47: -8.810909257e-05 | K47: -0.001416965445 | L47: -2.30245184e-05 | M47: -0.0005860281439 | N47: 1.258047932e-07
A48: 20.9383 | B48: ='DF raw data'!A53 -> -3.8980593e-06 | C48: ='DF raw data'!B53 -> -3.2343705e-06 | D48: ='DF raw data'!C53 -> -3.6100901e-06 | F48: -3.903921981e-06 | G48: 3.246892585e-06 | H48: -3.615519676e-06 | J48: -9.006163915e-05 | K48: -0.001462009774 | L48: -2.140058507e-05 | M48: -0.0005967316465 | N48: 1.300906205e-07
A49: 21.43845 | B49: ='DF raw data'!A54 -> -1.0091078e-05 | C49: ='DF raw data'!B54 -> -5.526249e-06 | D49: ='DF raw data'!C54 -> 1.7469793e-06 | F49: -1.010625498e-05 | G49: 5.547644248e-06 | H49: 1.749606757e-06 | J49: -9.511628258e-05 | K49: -0.001509582183 | L49: -1.86259308e-05 | M49: -0.0006060474058 | N49: 1.347890459e-07
A50: 21.9386 | B50: ='DF raw data'!A55 -> -1.3886262e-05 | C50: ='DF raw data'!B55 -> 1.0981761e-05 | D50: ='DF raw data'!C55 -> -1.34945e-06 | F50: -1.390714694e-05 | G50: -1.102427763e-05 | H50: -1.351479573e-06 | J50: -0.0001020719421 | K50: -0.001560633465 | L50: -2.413972326e-05 | M50: -0.0006181208884 | N50: 1.402913999e-07
A51: 22.43875 | B51: ='DF raw data'!A56 -> -9.9880945e-06 | C51: ='DF raw data'!B56 -> -1.3143534e-06 | D51: ='DF raw data'!C56 -> -1.0609852e-05 | F51: -1.000311659e-05 | G51: 1.319442008e-06 | H51: -1.062580922e-05 | J51: -0.0001070750009 | K51: -0.001614187026 | L51: -2.347980434e-05 | M51: -0.0006298643125 | N51: 1.463013808e-07
A52: 22.9389 | B52: ='DF raw data'!A57 -> -3.5055068e-06 | C52: ='DF raw data'!B57 -> 4.1202684e-06 | D52: ='DF raw data'!C57 -> -4.8790171e-06 | F52: -3.510779082e-06 | G52: -4.136220299e-06 | H52: -4.886355142e-06 | J52: -0.000108830917 | K52: -0.001668618809 | L52: -2.554853492e-05 | M52: -0.0006426424123 | N52: 1.525517035e-07
A53: 23.43905 | B53: ='DF raw data'!A58 -> 2.4745736e-06 | C53: ='DF raw data'!B58 -> 1.0937403e-06 | D53: ='DF raw data'!C58 -> -4.2029569e-07 | F53: 2.478295359e-06 | G53: -1.09797479e-06 | H53: -4.209278147e-07 | J53: -0.0001075913976 | K53: -0.001722430647 | L53: -2.609768701e-05 | M53: -0.0006556951704 | N53: 1.586820411e-07
A54: 23.9392 | B54: ='DF raw data'!A59 -> 3.4653058e-07 | C54: ='DF raw data'!B59 -> 4.5417646e-06 | D54: ='DF raw data'!C59 -> 2.1210144e-07 | F54: 3.47051762e-07 | G54: -4.55934835e-06 | H54: 2.124204406e-07 | J54: -0.0001074178197 | K54: -0.00177615567 | L54: -2.837804509e-05 | M54: -0.0006698884497 | N54: 1.648558434e-07
A55: 24.43935 | B55: ='DF raw data'!A60 -> -5.1689799e-06 | C55: ='DF raw data'!B60 -> 3.3185047e-06 | D55: ='DF raw data'!C60 -> 6.0546809e-06 | F55: -5.176754046e-06 | G55: -3.331352516e-06 | H55: 6.06378714e-06 | J55: -0.0001100069732 | K55: -0.001831175657 | L55: -3.004422105e-05 | M55: -0.0006849150669 | N55: 1.713598887e-07
A56: 24.9395 | B56: ='DF raw data'!A61 -> -1.9479135e-06 | C56: ='DF raw data'!B61 -> -6.424747e-06 | D56: ='DF raw data'!C61 -> 3.0017181e-06 | F56: -1.950843162e-06 | G56: 6.449620844e-06 | H56: 3.006232684e-06 | J56: -0.0001109826874 | K56: -0.001886683648 | L56: -2.681844319e-05 | M56: -0.0006983283112 | N56: 1.77880037e-07
A57: 25.43965 | B57: ='DF raw data'!A62 -> 2.4660899e-06 | C57: ='DF raw data'!B62 -> -1.0481068e-05 | D57: ='DF raw data'!C62 -> 6.2431718e-06 | F57: 2.469798899e-06 | G57: 1.052164617e-05 | H57: 6.25256153e-06 | J57: -0.0001097474175 | K57: -0.001941573819 | L57: -2.155604186e-05 | M57: -0.0007091095656 | N57: 1.841364927e-07
A58: 25.9398 | B58: ='DF raw data'!A63 -> 2.1880901e-06 | C58: ='DF raw data'!B63 -> -4.1571529e-06 | D58: ='DF raw data'!C63 -> 1.2452794e-05 | F58: 2.191380988e-06 | G58: 4.1732476e-06 | H58: 1.2471523e-05 | J58: -0.0001086513983 | K58: -0.001995915816 | L58: -1.946879207e-05 | M58: -0.0007188468819 | N58: 1.902304004e-07
A59: 26.43995 | B59: ='DF raw data'!A64 -> 3.776257e-06 | C59: ='DF raw data'!B64 -> -1.7788133e-06 | D59: ='DF raw data'!C64 -> 8.7424778e-06 | F59: 3.781936491e-06 | G59: 1.785700096e-06 | H59: 8.755626487e-06 | J59: -0.0001067598628 | K59: -0.002049311761 | L59: -1.857567417e-05 | M59: -0.0007281375053 | N59: 1.961035238e-07
A60: 26.9401 | B60: ='DF raw data'!A65 -> 5.138811e-06 | C60: ='DF raw data'!B65 -> -7.0114274e-06 | D60: ='DF raw data'!C65 -> 1.0439871e-05 | F60: 5.146539772e-06 | G60: 7.038572617e-06 | H60: 1.045557257e-05 | J60: -0.0001041858209 | K60: -0.0021014203 | L60: -1.505533207e-05 | M60: -0.0007356674297 | N60: 2.016458602e-07
A61: 27.44025 | B61: ='DF raw data'!A66 -> -5.4791747e-07 | C61: ='DF raw data'!B66 -> -4.1458339e-08 | D61: ='DF raw data'!C66 -> 9.9765821e-06 | F61: -5.487415379e-07 | G61: 4.161884777e-08 | H61: 9.991586879e-06 | J61: -0.000104460274 | K61: -0.002153666106 | L61: -1.50345164e-05 | M61: -0.0007431869431 | N61: 2.072165236e-07
A62: 27.9404 | B62: ='DF raw data'!A67 -> -7.1438203e-06 | C62: ='DF raw data'!B67 -> 4.0458877e-07 | D62: ='DF raw data'!C67 -> 3.8021026e-06 | F62: -7.154564606e-06 | G62: -4.061551629e-07 | H62: 3.807820962e-06 | J62: -0.0001080386295 | K62: -0.002207701626 | L62: -1.523765491e-05 | M62: -0.0007508080562 | N62: 2.131705751e-07
A63: 28.44055 | B63: ='DF raw data'!A68 -> -5.9179088e-06 | C63: ='DF raw data'!B68 -> -3.7591399e-06 | D63: ='DF raw data'!C68 -> 3.5137127e-06 | F63: -5.926809335e-06 | G63: 3.773693665e-06 | H63: 3.518997324e-06 | J63: -0.0001110029232 | K63: -0.002263219738 | L63: -1.335024202e-05 | M63: -0.0007574851797 | N63: 2.19422389e-07
A64: 28.9407 | B64: ='DF raw data'!A69 -> -2.7027213e-06 | C64: ='DF raw data'!B69 -> -5.4312495e-06 | D64: ='DF raw data'!C69 -> 8.3034756e-06 | F64: -2.706786193e-06 | G64: 5.452276951e-06 | H64: 8.315964027e-06 | J64: -0.0001123567223 | K64: -0.002319414953 | L64: -1.062328571e-05 | M64: -0.0007627984161 | N64: 2.257927432e-07
A65: 29.44085 | B65: ='DF raw data'!A70 -> -3.5193893e-06 | C65: ='DF raw data'!B70 -> 3.3012925e-06 | D65: ='DF raw data'!C70 -> 6.4164487e-07 | F65: -3.524682462e-06 | G65: -3.314073678e-06 | H65: 6.426099039e-07 | J65: -0.0001141195922 | K65: -0.002376491867 | L65: -1.228081966e-05 | M65: -0.000768940668 | N65: 2.323817692e-07
A66: 29.941 | B66: ='DF raw data'!A71 -> -2.8434965e-06 | C66: ='DF raw data'!B71 -> 2.5713125e-06 | D66: ='DF raw data'!C71 -> -1.6348422e-06 | F66: -2.847773119e-06 | G66: -2.581267511e-06 | H66: -1.637301003e-06 | J66: -0.0001155439059 | K66: -0.002434281152 | L66: -1.35718406e-05 | M66: -0.0007757286241 | N66: 2.39151094e-07
A67: 30.44115 | B67: ='DF raw data'!A72 -> -2.7276982e-07 | C67: ='DF raw data'!B72 -> -5.1194302e-06 | D67: ='DF raw data'!C72 -> 5.8447113e-06 | F67: -2.731800658e-07 | G67: 5.139250421e-06 | H67: 5.853501746e-06 | J67: -0.0001156805369 | K67: -0.002492138772 | L67: -1.10014445e-05 | M67: -0.0007812309965 | N67: 2.459046286e-07
A68: 30.9413 | B68: ='DF raw data'!A73 -> 1.8906431e-07 | C68: ='DF raw data'!B73 -> 8.6606615e-06 | D68: ='DF raw data'!C73 -> 1.1756711e-06 | F68: 1.893486627e-07 | G68: -8.694191839e-06 | H68: 1.177439309e-06 | J68: -0.0001155858342 | K68: -0.002549949027 | L68: -1.534984455e-05 | M68: -0.0007889082213 | N68: 2.527045194e-07
A69: 31.44145 | B69: ='DF raw data'!A74 -> 3.5774779e-06 | C69: ='DF raw data'!B74 -> 9.2879027e-06 | D69: ='DF raw data'!C74 -> -2.3713073e-07 | F69: 3.582858427e-06 | G69: -9.323861446e-06 | H69: -2.374873746e-07 | J69: -0.0001137938676 | K69: -0.00260686303 | L69: -2.001317385e-05 | M69: -0.0007989178102 | N69: 2.593813075e-07
A70: 31.9416 | B70: ='DF raw data'!A75 -> 4.8351708e-06 | C70: ='DF raw data'!B75 -> 4.570185e-06 | D70: ='DF raw data'!C75 -> -6.9062589e-06 | F70: 4.842442897e-06 | G70: -4.587878781e-06 | H70: -6.916645913e-06 | J70: -0.0001113719198 | K70: -0.002662565696 | L70: -2.230780143e-05 | M70: -0.0008100750571 | N70: 2.65833914e-07
A71: 32.44175 | B71: ='DF raw data'!A76 -> 7.2667024e-07 | C71: ='DF raw data'!B76 -> 6.5950758e-06 | D71: ='DF raw data'!C76 -> 3.064124e-07 | F71: 7.27763152e-07 | G71: =(1-$G$1*($B$2-$G$2))*C71*$M$2/$M$1 -> -6.620609084e-06 | H71: 3.068732442e-07 | J71: -0.000111007929 | K71: -0.002718086311 | L71: -2.561909906e-05 | M71: -0.0008228884495 | N71: 2.723254101e-07
A72: =A71+$B$1 -> 32.9419 | B72: ='DF raw data'!A77 -> -4.3589766e-06 | C72: ='DF raw data'!B77 -> 7.7610957e-06 | D72: ='DF raw data'!C77 -> 5.8785154e-06 | F72: -4.365532501e-06 | G72: -7.791143309e-06 | H72: 5.887356687e-06 | J72: =F72*$B$1+J71 -> -0.0001131913501 | K72: =J72*$B$1+K71 -> -0.002774698965 | L72: =G72*$B$1+L71 -> -2.951583938e-05 | M72: =L72*$B$1+M71 -> -0.0008376507965 | N72: =(J72^2+L72^2)*$B$1+N71 -> 2.791691959e-07
A73: 33.44205 | B73: ='DF raw data'!A78 -> -2.6634748e-06 | C73: ='DF raw data'!B78 -> 6.1394217e-06 | D73: ='DF raw data'!C78 -> 2.5671834e-06 | F73: -2.667480666e-06 | G73: -6.163190888e-06 | H73: 2.571044444e-06 | J73: -0.0001145254905 | K73: -0.002831978889 | L73: -3.259835931e-05 | M73: -0.000853954866 | N73: 2.862606932e-07
A74: 33.9422 | B74: ='DF raw data'!A79 -> 2.0559878e-06 | C74: ='DF raw data'!B79 -> 4.4139415e-06 | D74: ='DF raw data'!C79 -> -2.5013069e-06 | F74: 2.059080006e-06 | G74: -4.431030374e-06 | H74: -2.505068866e-06 | J74: -0.0001134956417 | K74: -0.002888743734 | L74: -3.481453915e-05 | M74: -0.0008713673577 | N74: 2.933094636e-07
A75: 34.44235 | B75: ='DF raw data'!A80 -> 7.5955963e-06 | C75: ='DF raw data'!B80 -> 1.2883498e-05 | D75: ='DF raw data'!C80 -> 8.3824125e-07 | F75: =(1-$G$1*($B$2-$G$2))*B75 -> 7.607020077e-06 | G75: -1.293337734e-05 | H75: =(1-$G$1*($B$2-$G$2))*D75 -> 8.395019648e-07 | J75: -0.0001096909906 | K75: -0.002943605683 | L75: -4.128316782e-05 | M75: -0.0008920151341 | N75: 3.001797308e-07
A76: 34.9425 | B76: ='DF raw data'!A81 -> 8.790279e-06 | C76: ='DF raw data'!B81 -> -7.0617298e-06 | D76: ='DF raw data'!C81 -> 5.4267512e-06 | F76: 8.80349958e-06 | G76: 7.089069766e-06 | H76: 5.434913034e-06 | J76: -0.0001052879203 | K76: -0.002996265437 | L76: -3.773756958e-05 | M76: -0.0009108895795 | N76: 3.064364424e-07
A77: 35.44265 | B77: ='DF raw data'!A82 -> 4.6655537e-06 | C77: ='DF raw data'!B82 -> -8.3621107e-06 | D77: ='DF raw data'!C82 -> -3.0785959e-06 | F77: 4.672570693e-06 | G77: 8.394485179e-06 | H77: -3.083226108e-06 | J77: -0.000102950934 | K77: -0.003047756346 | L77: -3.353906782e-05 | M77: -0.0009276641443 | N77: 3.123000829e-07
A78: 35.9428 | B78: ='DF raw data'!A83 -> 3.0102296e-06 | C78: ='DF raw data'!B83 -> -2.2603526e-06 | D78: ='DF raw data'!C83 -> -4.0441591e-06 | F78: 3.014756985e-06 | G78: 2.269103708e-06 | H78: -4.050241515e-06 | J78: -0.0001014431033 | K78: -0.003098493114 | L78: -3.24041756e-05 | M78: -0.0009438710927 | N78: 3.179721509e-07
A79: 36.44295 | B79: ='DF raw data'!A84 -> 3.2321755e-06 | C79: ='DF raw data'!B84 -> -2.8913291e-06 | D79: ='DF raw data'!C84 -> 8.5980719e-07 | F79: 3.237036692e-06 | G79: 2.902523077e-06 | H79: 8.6110034e-07 | J79: -9.982409943e-05 | K79: -0.003148420138 | L79: -3.095247868e-05 | M79: -0.0009593519749 | N79: 3.234352427e-07
A80: 36.9431 | B80: ='DF raw data'!A85 -> 2.5389804e-06 | C80: ='DF raw data'!B85 -> -5.303159e-06 | D80: ='DF raw data'!C85 -> 7.3521369e-07 | F80: 2.542799027e-06 | G80: 5.32369054e-06 | H80: 7.363194514e-07 | J80: -9.85523185e-05 | K80: -0.00319771108 | L80: -2.828983486e-05 | M80: -0.0009735011358 | N80: 3.286932568e-07
A81: 37.44325 | B81: ='DF raw data'!A86 -> -1.7615472e-06 | C81: ='DF raw data'!B86 -> -8.4135439e-07 | D81: ='DF raw data'!C86 -> 2.0993102e-06 | F81: -1.764196567e-06 | G81: 8.446117506e-07 | H81: 2.102467563e-06 | J81: -9.943468141e-05 | K81: -0.003247443336 | L81: -2.786740229e-05 | M81: -0.0009874390171 | N81: 3.340267803e-07
A82: 37.9434 | B82: ='DF raw data'!A87 -> -5.5601936e-06 | C82: ='DF raw data'!B87 -> -2.6442221e-06 | D82: ='DF raw data'!C87 -> 5.7545913e-06 | F82: -5.568556131e-06 | G82: 2.654459385e-06 | H82: 5.763246205e-06 | J82: -0.0001022197948 | K82: -0.003298568566 | L82: -2.653977443e-05 | M82: -0.001000712885 | N82: 3.396050763e-07
A83: 38.44355 | B83: ='DF raw data'!A88 -> -4.8025918e-06 | C83: ='DF raw data'!B88 -> -3.5405865e-06 | D83: ='DF raw data'!C88 -> 1.9220897e-07 | F83: -4.809814898e-06 | G83: 3.554294121e-06 | H83: 1.924980523e-07 | J83: -0.0001046254237 | K83: -0.003350896972 | L83: -2.476209422e-05 | M83: -0.001013097647 | N83: 3.453866306e-07
A84: 38.9437 | B84: ='DF raw data'!A89 -> -1.94624e-06 | C84: ='DF raw data'!B89 -> -8.7176941e-06 | D84: ='DF raw data'!C89 -> -1.305867e-06 | F84: -1.949167145e-06 | G84: 8.751445244e-06 | H84: -1.307831024e-06 | J84: -0.0001056002996 | K84: -0.003403712962 | L84: -2.038505889e-05 | M84: -0.001023293234 | N84: 3.511718526e-07
A85: 39.44385 | B85: ='DF raw data'!A90 -> -2.2627733e-06 | C85: ='DF raw data'!B90 -> -2.0682173e-06 | D85: ='DF raw data'!C90 -> -3.3354954e-06 | F85: -2.266176511e-06 | G85: 2.076224544e-06 | H85: -3.340511985e-06 | J85: -0.0001067337278 | K85: -0.003457095836 | L85: -1.934663518e-05 | M85: -0.001032969453 | N85: 3.57056808e-07
A86: 39.944 | B86: ='DF raw data'!A91 -> -5.5664655e-06 | C86: ='DF raw data'!B91 -> 1.425573e-06 | D86: ='DF raw data'!C91 -> -5.1153547e-06 | F86: -5.574837464e-06 | G86: -1.431092203e-06 | H86: -5.123048193e-06 | J86: -0.0001095219828 | K86: -0.003511873255 | L86: -2.006239595e-05 | M86: -0.001043003661 | N86: 3.632574499e-07
A87: 40.44415 | B87: ='DF raw data'!A92 -> -3.0489405e-06 | C87: ='DF raw data'!B92 -> -1.1361286e-05 | D87: ='DF raw data'!C92 -> -4.4452245e-06 | F87: -3.053526107e-06 | G87: 1.140527199e-05 | H87: -4.451910118e-06 | J87: -0.0001110492039 | K87: -0.003567414515 | L87: -1.435804916e-05 | M87: -0.001050184839 | N87: 3.695283702e-07
A88: 40.9443 | B88: ='DF raw data'!A93 -> 2.269866e-07 | C88: ='DF raw data'!B93 -> -2.9693847e-06 | D88: ='DF raw data'!C93 -> -2.9862204e-06 | F88: 2.273279878e-07 | G88: 2.980880874e-06 | H88: -2.990711675e-06 | J88: -0.0001109355058 | K88: -0.003622898908 | L88: -1.286716159e-05 | M88: -0.00105662035 | N88: 3.757663662e-07
A89: 41.44445 | B89: ='DF raw data'!A94 -> 3.9546053e-06 | C89: ='DF raw data'!B94 -> -3.6238443e-06 | D89: ='DF raw data'!C94 -> -3.4449113e-06 | F89: 3.960553026e-06 | G89: 3.637874259e-06 | H89: -3.450092447e-06 | J89: -0.0001089546352 | K89: -0.003677392569 | L89: -1.104767878e-05 | M89: -0.001062145847 | N89: 3.81764747e-07
A90: 41.9446 | B90: ='DF raw data'!A95 -> 4.5191759e-06 | C90: ='DF raw data'!B95 -> -5.212295e-06 | D90: ='DF raw data'!C95 -> -6.4763299e-08 | F90: 4.525972741e-06 | G90: 5.232474754e-06 | H90: -6.4860703e-08 | J90: -0.0001066909699 | K90: -0.003730754057 | L90: -8.430656531e-06 | M90: -0.001066362439 | N90: 3.874934846e-07
A91: 42.44475 | B91: ='DF raw data'!A96 -> 1.7542101e-06 | C91: ='DF raw data'!B96 -> -1.1030709e-07 | D91: ='DF raw data'!C96 -> 2.1936212e-06 | F91: 1.756848432e-06 | G91: 1.107341514e-07 | H91: 2.196920406e-06 | J91: -0.0001058122822 | K91: -0.00378367607 | L91: -8.375272846e-06 | M91: -0.001070551332 | N91: 3.931283667e-07
A92: 42.9449 | B92: ='DF raw data'!A97 -> -1.7852523e-06 | C92: ='DF raw data'!B97 -> -1.0363518e-05 | D92: ='DF raw data'!C97 -> 2.7546048e-07 | F92: -1.787937319e-06 | G92: 1.040364106e-05 | H92: 2.758747726e-07 | J92: -0.000106706519 | K92: -0.003837045336 | L92: -3.171891768e-06 | M92: -0.001072137754 | N92: 3.988282472e-07
A93: 43.44505 | B93: ='DF raw data'!A98 -> 4.9551306e-07 | C93: ='DF raw data'!B98 -> -2.3537514e-06 | D93: ='DF raw data'!C98 -> -4.6831483e-06 | F93: 4.962583116e-07 | G93: 2.362864108e-06 | H93: -4.690191755e-06 | J93: -0.0001064583154 | K93: -0.003890290462 | L93: -1.990105284e-06 | M93: -0.001073133105 | N93: 4.044986145e-07
A94: 43.9452 | B94: ='DF raw data'!A99 -> 6.8048162e-06 | C94: ='DF raw data'!B99 -> 4.3308164e-06 | D94: ='DF raw data'!C99 -> 8.3855412e-08 | F94: 6.815050644e-06 | G94: -4.34758345e-06 | H94: 8.398153054e-08 | J94: -0.0001030497678 | K94: -0.003941830803 | L94: -4.164549146e-06 | M94: -0.001075216004 | N94: 4.098185091e-07
A95: 44.44535 | B95: ='DF raw data'!A100 -> 3.1879958e-06 | C95: ='DF raw data'!B100 -> -1.9449308e-06 | D95: ='DF raw data'!C100 -> 3.2881726e-06 | F95: 3.192790546e-06 | G95: 1.952460732e-06 | H95: 3.293118012e-06 | J95: -0.0001014528936 | K95: -0.003992572468 | L95: -3.188025912e-06 | M95: -0.001076810495 | N95: 4.149714811e-07
A96: 44.9455 | B96: ='DF raw data'!A101 -> -2.4419946e-06 | C96: ='DF raw data'!B101 -> 1.1010781e-06 | D96: ='DF raw data'!C101 -> 1.6675112e-06 | F96: -2.44566736e-06 | G96: -1.105340999e-06 | H96: 1.670019137e-06 | J96: -0.0001026760942 | K96: -0.004043925917 | L96: -3.740862212e-06 | M96: -0.001078681488 | N96: 4.202512517e-07
A97: 45.44565 | B97: ='DF raw data'!A102 -> 5.9189101e-06 | C97: ='DF raw data'!B102 -> -9.7731026e-06 | D97: ='DF raw data'!C102 -> -1.7118145e-07 | F97: 5.927812141e-06 | G97: 9.81093983e-06 | H97: -1.714389069e-07 | J97: -9.971129893e-05 | K97: -0.004093796523 | L97: 1.166079344e-06 | M97: -0.001078098273 | N97: 4.252245947e-07
A98: 45.9458 | B98: ='DF raw data'!A103 -> 1.3496237e-05 | C98: ='DF raw data'!B103 -> 1.9548788e-06 | D98: ='DF raw data'!C103 -> -6.9578309e-06 | F98: 1.351653534e-05 | G98: -1.962447246e-06 | H98: -6.968295478e-06 | J98: -9.295100378e-05 | K98: -0.004140285967 | L98: 1.845613539e-07 | M98: -0.001078005965 | N98: 4.295458523e-07
A99: 46.44595 | B99: ='DF raw data'!A104 -> 6.2852255e-06 | C99: ='DF raw data'!B104 -> -4.0878325e-07 | D99: ='DF raw data'!C104 -> -8.6688742e-06 | F99: 6.294678479e-06 | G99: 4.103658821e-07 | H99: -8.681912187e-06 | J99: -8.980272034e-05 | K99: -0.004185200798 | L99: 3.898058498e-07 | M99: -0.001077811003 | N99: 4.335794023e-07
A100: 46.9461 | B100: ='DF raw data'!A105 -> -7.6892411e-06 | C100: ='DF raw data'!B105 -> -5.5159753e-06 | D100: ='DF raw data'!C105 -> -6.4345149e-06 | F100: -7.700805719e-06 | G100: 5.537330773e-06 | H100: -6.44419241e-06 | J100: -9.365427832e-05 | K100: -0.004232041985 | L100: 3.159301836e-06 | M100: -0.001076230878 | N100: 4.379712719e-07
A101: 47.44625 | B101: ='DF raw data'!A106 -> -8.2595452e-06 | C101: ='DF raw data'!B106 -> -9.4775623e-06 | D101: ='DF raw data'!C106 -> -1.9016516e-06 | F101: -8.271967556e-06 | G101: 9.514255326e-06 | H101: -1.904511684e-06 | J101: -9.779150289e-05 | K101: -0.004280952405 | L101: 7.917856637e-06 | M101: -0.001072270762 | N101: 4.427856511e-07
A102: 47.9464 | B102: ='DF raw data'!A107 -> 1.0977965e-08 | C102: ='DF raw data'!B107 -> 1.1051543e-05 | D102: ='DF raw data'!C107 -> -5.3354379e-06 | F102: 1.099447586e-08 | G102: -1.10943298e-05 | H102: -5.343462399e-06 | J102: -9.7786004e-05 | K102: -0.004329860075 | L102: 2.369027588e-06 | M102: -0.001071085893 | N102: 4.475709437e-07
A103: 48.44655 | B103: ='DF raw data'!A108 -> 2.2372174e-06 | C103: ='DF raw data'!B108 -> -6.0811726e-06 | D103: ='DF raw data'!C108 -> -1.0293988e-05 | F103: 2.240582175e-06 | G103: 6.104716272e-06 | H103: -1.030947016e-05 | J103: -9.666537683e-05 | K103: -0.004378207263 | L103: 5.422301432e-06 | M103: -0.001068373929 | N103: 4.522591479e-07
A104: 48.9467 | B104: ='DF raw data'!A109 -> -2.1942919e-06 | C104: ='DF raw data'!B109 -> -5.020492e-07 | D104: ='DF raw data'!C109 -> -1.0419106e-05 | F104: -2.197592115e-06 | G104: 5.039929175e-07 | H104: -1.043477634e-05 | J104: -9.776450252e-05 | K104: -0.004427104179 | L104: 5.674373489e-06 | M104: -0.001065535891 | N104: 4.570556347e-07
A105: 49.44685 | B105: ='DF raw data'!A110 -> -5.2057526e-06 | C105: ='DF raw data'!B110 -> -8.116338e-06 | D105: ='DF raw data'!C110 -> -1.5722107e-06 | F105: -5.213582052e-06 | G105: 8.147760953e-06 | H105: -1.574575305e-06 | J105: -0.0001003720756 | K105: -0.004477305273 | L105: 9.74947613e-06 | M105: -0.001060659691 | N105: 4.62141963e-07
A106: 49.947 | B106: ='DF raw data'!A111 -> -3.7761142e-06 | C106: ='DF raw data'!B111 -> 4.7090185e-07 | D106: ='DF raw data'!C111 -> -7.5598873e-06 | F106: -3.781793476e-06 | G106: -4.727249785e-07 | H106: -7.57125737e-06 | J106: -0.0001022635396 | K106: -0.004528452382 | L106: 9.513042732e-06 | M106: -0.001055901743 | N106: 4.6741771e-07
A107: 50.44715 | B107: ='DF raw data'!A112 -> -5.8482112e-07 | C107: ='DF raw data'!B112 -> -1.030954e-06 | D107: ='DF raw data'!C112 -> -1.0774769e-05 | F107: -5.85700691e-07 | G107: 1.034945408e-06 | H107: -1.079097425e-05 | J107: -0.0001025564778 | K107: -0.004579746005 | L107: 1.003067068e-05 | M107: -0.001050884903 | N107: 4.727285255e-07
A108: 50.9473 | B108: ='DF raw data'!A113 -> -1.2792006e-07 | C108: ='DF raw data'!B113 -> 1.9803633e-06 | D108: ='DF raw data'!C113 -> -8.6556902e-06 | F108: -1.281124518e-07 | G108: -1.988030411e-06 | H108: -8.668708358e-06 | J108: -0.0001026205532 | K108: -0.004631071674 | L108: 9.036357268e-06 | M108: -0.001046365368 | N108: 4.780364343e-07
A109: 51.44745 | B109: ='DF raw data'!A114 -> 3.2118901e-06 | C109: ='DF raw data'!B114 -> -2.8557042e-06 | D109: ='DF raw data'!C114 -> -6.005117e-06 | F109: 3.216720783e-06 | G109: 2.866760253e-06 | H109: -6.014148696e-06 | J109: -0.0001010117103 | K109: -0.004681592681 | L109: 1.047016741e-05 | M109: -0.001041128714 | N109: 4.831944763e-07
A110: 51.9476 | B110: ='DF raw data'!A115 -> 6.8934519e-06 | C110: ='DF raw data'!B115 -> -9.7111933e-06 | D110: ='DF raw data'!C115 -> -1.0063442e-05 | F110: 6.903819652e-06 | G110: 9.748790844e-06 | H110: -1.007857742e-05 | J110: -9.755876494e-05 | K110: -0.004730386698 | L110: 1.534602515e-05 | M110: -0.0010334534 | N110: 4.880725458e-07
A111: 52.44775 | B111: ='DF raw data'!A116 -> 3.4943719e-06 | C111: ='DF raw data'!B116 -> 4.680997e-07 | D111: ='DF raw data'!C116 -> -1.7437233e-05 | F111: 3.499627435e-06 | G111: -4.699119798e-07 | H111: -1.74634586e-05 | J111: -9.580842628e-05 | K111: -0.004778305282 | L111: 1.511099867e-05 | M111: -0.001025895634 | N111: 4.927777553e-07
A112: 52.9479 | B112: ='DF raw data'!A117 -> -1.9976374e-06 | C112: ='DF raw data'!B117 -> 2.8537775e-06 | D112: ='DF raw data'!C117 -> -9.328287e-07 | F112: -2.000641847e-06 | G112: -2.864826093e-06 | H112: -9.342316744e-07 | J112: -9.68090473e-05 | K112: -0.004826724327 | L112: 1.36781559e-05 | M112: -0.001019054504 | N112: 4.97558731e-07
A113: 53.44805 | B113: ='DF raw data'!A118 -> -2.6335474e-07 | C113: ='DF raw data'!B118 -> 1.0360925e-05 | D113: ='DF raw data'!C118 -> 9.3714116e-06 | F113: -2.637508255e-07 | G113: -1.040103802e-05 | H113: 9.385506203e-06 | J113: -9.694096227e-05 | K113: -0.004875209349 | L113: 8.476076734e-06 | M113: -0.001014815194 | N113: 5.022948484e-07
A114: 53.9482 | B114: ='DF raw data'!A119 -> 4.5166439e-06 | C114: ='DF raw data'!B119 -> 1.8526134e-05 | D114: ='DF raw data'!C119 -> 2.6871785e-06 | F114: 4.523436932e-06 | G114: -1.859785919e-05 | H114: 2.691220016e-06 | J114: -9.467856529e-05 | K114: -0.004922562834 | L114: -8.256425373e-07 | M114: -0.001015228139 | N114: 5.067785493e-07
A115: 54.44835 | B115: ='DF raw data'!A120 -> -1.290167e-06 | C115: ='DF raw data'!B120 -> 7.9112675e-07 | D115: ='DF raw data'!C120 -> -2.0745938e-07 | F115: -1.292107411e-06 | G115: -7.941896509e-07 | H115: -2.077713989e-07 | J115: -9.532481281e-05 | K115: -0.004970239539 | L115: -1.222856491e-06 | M115: -0.001015839751 | N115: 5.113240702e-07
A116: 54.9485 | B116: ='DF raw data'!A121 -> -8.9917248e-06 | C116: ='DF raw data'!B121 -> 7.8266085e-06 | D116: ='DF raw data'!C121 -> 3.6032361e-06 | F116: -9.005248354e-06 | G116: -7.856909746e-06 | H116: 3.608655367e-06 | J116: -9.982878778e-05 | K116: -0.005020168907 | L116: -5.152489901e-06 | M116: -0.001018416769 | N116: 5.163217366e-07
A117: 55.44865 | B117: ='DF raw data'!A122 -> -4.1741382e-06 | C117: ='DF raw data'!B122 -> 1.4368276e-05 | D117: ='DF raw data'!C122 -> 8.3707055e-06 | F117: -4.180416104e-06 | G117: -1.442390376e-05 | H117: 8.383295041e-06 | J117: -0.0001019196229 | K117: -0.005071144006 | L117: -1.236660536e-05 | M117: -0.001024601927 | N117: 5.215935889e-07
A118: 55.9488 | B118: ='DF raw data'!A123 -> 4.2712695e-06 | C118: ='DF raw data'!B123 -> 5.7292668e-06 | D118: ='DF raw data'!C123 -> 7.5251373e-06 | F118: 4.277693489e-06 | G118: -5.751448045e-06 | H118: 7.536455106e-06 | J118: -9.978013449e-05 | K118: -0.005121049041 | L118: -1.52431921e-05 | M118: -0.001032225809 | N118: 5.266893323e-07
A119: 56.44895 | B119: ='DF raw data'!A124 -> 8.4394323e-06 | C119: ='DF raw data'!B124 -> 3.4668756e-06 | D119: ='DF raw data'!C124 -> -1.2072996e-07 | F119: 8.452125206e-06 | G119: -3.480297844e-06 | H119: -1.209115379e-07 | J119: -9.555280407e-05 | K119: -0.005168839776 | L119: -1.698386307e-05 | M119: -0.001040720288 | N119: 5.314001401e-07
A120: 56.9491 | B120: ='DF raw data'!A125 -> 7.0429728e-06 | C120: ='DF raw data'!B125 -> -1.3658563e-06 | D120: ='DF raw data'!C125 -> -5.7466168e-06 | F120: 7.053565431e-06 | G120: 1.371144305e-06 | H120: -5.755259712e-06 | J120: -9.202496332e-05 | K120: -0.005214866061 | L120: -1.629808525e-05 | M120: -0.001048871776 | N120: 5.357685609e-07
A121: 57.44925 | B121: ='DF raw data'!A126 -> 1.6977486e-06 | C121: ='DF raw data'!B126 -> 1.0410959e-05 | D121: ='DF raw data'!C126 -> -3.8301296e-06 | F121: 1.700302014e-06 | G121: -1.045126573e-05 | H121: -3.835890115e-06 | J121: -9.117455727e-05 | K121: -0.005260467016 | L121: -2.15252858e-05 | M121: -0.001059637647 | N121: 5.401579463e-07
A122: 57.9494 | B122: ='DF raw data'!A127 -> 9.1698018e-07 | C122: ='DF raw data'!B127 -> 7.0205747e-06 | D122: ='DF raw data'!C127 -> 1.5107071e-07 | F122: 9.183593182e-07 | G122: -7.047755331e-06 | H122: 1.512979203e-07 | J122: -9.071523986e-05 | K122: -0.005305838243 | L122: -2.505022063e-05 | M122: -0.001072166515 | N122: 5.445876589e-07
A123: 58.44955 | B123: ='DF raw data'!A128 -> 1.6426114e-06 | C123: ='DF raw data'!B128 -> -3.6535985e-06 | D123: ='DF raw data'!C128 -> 5.9340891e-06 | F123: 1.645081888e-06 | G123: 3.667743655e-06 | H123: 5.94301397e-06 | J123: -8.989245215e-05 | K123: -0.005350797953 | L123: -2.321579864e-05 | M123: -0.001083777897 | N123: 5.48898765e-07
A124: 58.9497 | B124: ='DF raw data'!A129 -> -1.0162476e-07 | C124: ='DF raw data'!B129 -> 5.0702697e-06 | D124: ='DF raw data'!C129 -> -1.3910903e-07 | F124: -1.017776036e-07 | G124: -5.089899593e-06 | H124: -1.3931825e-07 | J124: -8.994335622e-05 | K124: -0.005395783123 | L124: -2.576151192e-05 | M124: -0.001096662517 | N124: 5.532768094e-07
A125: 59.44985 | B125: ='DF raw data'!A130 -> 2.5519316e-06 | C125: ='DF raw data'!B130 -> 4.0797067e-06 | D125: ='DF raw data'!C130 -> -2.4854598e-06 | F125: 2.555769705e-06 | G125: -4.095501561e-06 | H125: -2.489197932e-06 | J125: -8.8665088e-05 | K125: -0.005440128966 | L125: -2.780987703e-05 | M125: -0.001110571627 | N125: 5.575955482e-07
A126: 59.95 | B126: ='DF raw data'!A131 -> 3.5448961e-06 | C126: ='DF raw data'!B131 -> 5.4009024e-06 | D126: ='DF raw data'!C131 -> 6.167691e-06 | F126: 3.550227624e-06 | G126: -5.42181236e-06 | H126: 6.176967207e-06 | J126: -8.688944165e-05 | K126: -0.005483586721 | L126: -3.052159648e-05 | M126: -0.001125837003 | N126: 5.618374919e-07
A127: 60.45015 | B127: ='DF raw data'!A132 -> 4.4235262e-06 | C127: ='DF raw data'!B132 -> 2.1851743e-06 | D127: ='DF raw data'!C132 -> 1.0739823e-06 | F127: 4.430179183e-06 | G127: -2.193634351e-06 | H127: 1.075597569e-06 | J127: -8.467368753e-05 | K127: -0.005525936265 | L127: -3.16187427e-05 | M127: -0.001141651118 | N127: 5.659234064e-07
A128: 60.9503 | B128: ='DF raw data'!A133 -> 7.5124176e-06 | C128: ='DF raw data'!B133 -> 1.454394e-06 | D128: ='DF raw data'!C133 -> 2.0709631e-06 | F128: 7.523716276e-06 | G128: -1.460024785e-06 | H128: 2.074077829e-06 | J128: -8.091070084e-05 | K128: -0.005566403753 | L128: -3.23489741e-05 | M128: -0.001157830457 | N128: 5.697210442e-07
A129: 61.45045 | B129: ='DF raw data'!A134 -> 6.0791704e-06 | C129: ='DF raw data'!B134 -> 9.8839218e-06 | D129: ='DF raw data'!C134 -> 8.2097031e-06 | F129: 6.088313472e-06 | G129: -9.922188074e-06 | H129: 8.222050493e-06 | J129: -7.786563086e-05 | K129: -0.005605348248 | L129: -3.731155646e-05 | M129: -0.001176491832 | N129: 5.734497668e-07
A130: 61.9506 | B130: ='DF raw data'!A135 -> 1.9854633e-08 | C130: ='DF raw data'!B135 -> -3.6074334e-06 | D130: ='DF raw data'!C135 -> 6.9318703e-06 | F130: 1.988449437e-08 | G130: 3.621399823e-06 | H130: 6.942295833e-06 | J130: -7.785568563e-05 | K130: -0.005644287769 | L130: -3.550031334e-05 | M130: -0.001194247314 | N130: 5.771117551e-07
A131: 62.45075 | B131: ='DF raw data'!A136 -> -3.6747892e-06 | C131: ='DF raw data'!B136 -> 3.6221845e-06 | D131: ='DF raw data'!C136 -> 8.0246173e-06 | F131: -3.680316083e-06 | G131: -3.636208033e-06 | H131: 8.036686324e-06 | J131: -7.969639572e-05 | K131: -0.005684147921 | L131: -3.731896279e-05 | M131: -0.001212912393 | N131: 5.80985027e-07
A132: 62.9509 | B132: ='DF raw data'!A137 -> -3.2939717e-08 | C132: ='DF raw data'!B137 -> 4.2215397e-06 | D132: ='DF raw data'!C137 -> 5.7770885e-06 | F132: -3.298925833e-08 | G132: -4.237883677e-06 | H132: 5.785777241e-06 | J132: -7.971289529e-05 | K132: -0.005724016326 | L132: -3.943854031e-05 | M132: -0.001232637579 | N132: 5.849409855e-07
A133: 63.45105 | B133: ='DF raw data'!A138 -> 8.0566297e-06 | C133: ='DF raw data'!B138 -> -5.0404406e-06 | D133: ='DF raw data'!C138 -> 2.954861e-06 | F133: 8.068746871e-06 | G133: 5.059955008e-06 | H133: 2.959305111e-06 | J133: -7.567731155e-05 | K133: -0.005761866333 | L133: -3.690780381e-05 | M133: -0.001251097017 | N133: 5.884866696e-07
A134: 63.9512 | B134: ='DF raw data'!A139 -> 5.5156038e-06 | C134: ='DF raw data'!B139 -> -1.8550007e-06 | D134: ='DF raw data'!C139 -> 7.3313931e-06 | F134: 5.523899268e-06 | G134: 1.862182461e-06 | H134: 7.342419515e-06 | J134: -7.291453333e-05 | K134: -0.005798334537 | L134: -3.597643326e-05 | M134: -0.00126909063 | N134: 5.917930777e-07
A135: 64.45135 | B135: ='DF raw data'!A140 -> -9.7644227e-07 | C135: ='DF raw data'!B140 -> -1.9007656e-06 | D135: ='DF raw data'!C140 -> -7.8501034e-07 | F135: -9.779108392e-07 | G135: =(1-$G$1*($B$2-$G$2))*C135*$M$2/$M$1 -> 1.908124543e-06 | H135: -7.861909956e-07 | J135: -7.340363543e-05 | K135: -0.005835047365 | L135: -3.502208477e-05 | M135: -0.001286606926 | N135: 5.951013899e-07
A136: =A135+$B$1 -> 64.9515 | B136: ='DF raw data'!A141 -> 5.0166271e-08 | C136: ='DF raw data'!B141 -> -1.5930826e-06 | D136: ='DF raw data'!C141 -> -6.2462423e-06 | F136: 5.024172107e-08 | G136: 1.599250327e-06 | H136: -6.255636648e-06 | J136: =F136*$B$1+J135 -> -7.337850704e-05 | K136: =J136*$B$1+K135 -> -0.005871747626 | L136: =G136*$B$1+L135 -> -3.422221972e-05 | M136: =L136*$B$1+M135 -> -0.001303723169 | N136: =(J136^2+L136^2)*$B$1+N135 -> 5.983801561e-07
A137: 65.45165 | B137: ='DF raw data'!A142 -> 8.8834202e-07 | C137: ='DF raw data'!B142 -> -2.4044539e-06 | D137: ='DF raw data'!C142 -> -2.0878724e-06 | F137: 8.896780864e-07 | G137: 2.413762906e-06 | H137: -2.09101256e-06 | J137: -7.293353454e-05 | K137: -0.005908225333 | L137: -3.30149762e-05 | M137: -0.001320235609 | N137: 6.01585762e-07
A138: 65.9518 | B138: ='DF raw data'!A143 -> 2.7023489e-07 | C138: ='DF raw data'!B143 -> 8.5996853e-06 | D138: ='DF raw data'!C143 -> -2.6432026e-06 | F138: 2.706413233e-07 | G138: -8.632979565e-06 | H138: -2.647177977e-06 | J138: -7.279817328e-05 | K138: -0.005944635339 | L138: -3.733276093e-05 | M138: -0.00133890759 | N138: 6.049334205e-07
A139: 66.45195 | B139: ='DF raw data'!A144 -> 1.9779604e-06 | C139: ='DF raw data'!B144 -> 2.5629065e-06 | D139: ='DF raw data'!C144 -> -2.6231064e-06 | F139: =(1-$G$1*($B$2-$G$2))*B139 -> 1.980935252e-06 | G139: -2.572828966e-06 | H139: =(1-$G$1*($B$2-$G$2))*D139 -> -2.627051552e-06 | J139: -7.180740852e-05 | K139: -0.005980549815 | L139: -3.861956134e-05 | M139: -0.001358223163 | N139: 6.082583049e-07
A140: 66.9521 | B140: ='DF raw data'!A145 -> 3.1865261e-06 | C140: ='DF raw data'!B145 -> 1.9380668e-06 | D140: ='DF raw data'!C145 -> 5.9127851e-06 | F140: 3.191318635e-06 | G140: -1.945570157e-06 | H140: 5.921677929e-06 | J140: -7.02112705e-05 | K140: -0.006015665982 | L140: -3.959263825e-05 | M140: -0.001378025421 | N140: 6.115078793e-07
A141: 67.45225 | B141: ='DF raw data'!A146 -> 1.7323822e-06 | C141: ='DF raw data'!B146 -> 6.2620416e-06 | D141: ='DF raw data'!C146 -> 9.0359754e-06 | F141: 1.734987703e-06 | G141: -6.286285519e-06 | H141: 9.049565507e-06 | J141: -6.93435164e-05 | K141: -0.006050348141 | L141: -4.273672395e-05 | M141: -0.001399400194 | N141: 6.148263499e-07
A142: 67.9524 | B142: ='DF raw data'!A147 -> 1.5460886e-06 | C142: ='DF raw data'!B147 -> -2.9238854e-06 | D142: ='DF raw data'!C147 -> 5.5581258e-06 | F142: 1.548413917e-06 | G142: 2.935205421e-06 | H142: 5.566485221e-06 | J142: -6.856907718e-05 | K142: -0.006084642965 | L142: -4.126868096e-05 | M142: -0.001420040725 | N142: 6.180297218e-07
A143: 68.45255 | B143: ='DF raw data'!A148 -> 7.8500887e-07 | C143: ='DF raw data'!B148 -> -1.195784e-05 | D143: ='DF raw data'!C148 -> 2.3724497e-06 | F143: 7.861895233e-07 | G143: 1.200413559e-05 | H143: 2.376017864e-06 | J143: -6.817586449e-05 | K143: -0.006118741124 | L143: -3.526481255e-05 | M143: -0.001437678421 | N143: 6.209763833e-07
A144: 68.9527 | B144: ='DF raw data'!A149 -> 7.1531974e-07 | C144: ='DF raw data'!B149 -> -4.4169356e-06 | D144: ='DF raw data'!C149 -> 1.6525955e-06 | F144: 7.163955809e-07 | G144: 4.434036066e-06 | H144: 1.655081004e-06 | J144: -6.781755924e-05 | K144: -0.006152660076 | L144: -3.304712941e-05 | M144: -0.001454206942 | N144: 6.238229041e-07
A145: 69.45285 | B145: ='DF raw data'!A150 -> 3.4410973e-06 | C145: ='DF raw data'!B150 -> 5.8004485e-07 | D145: ='DF raw data'!C150 -> -3.7328209e-06 | F145: 3.44627271e-06 | G145: -5.82290533e-07 | H145: -3.738435063e-06 | J145: -6.609390594e-05 | K145: -0.006185716943 | L145: -3.333836202e-05 | M145: -0.001470881124 | N145: 6.265636514e-07
A146: 69.953 | B146: ='DF raw data'!A151 -> -7.0477256e-07 | C146: ='DF raw data'!B151 -> -1.4728647e-06 | D146: ='DF raw data'!C151 -> -5.7275101e-06 | F146: -7.058325379e-07 | G146: 1.478566996e-06 | H146: -5.736124275e-06 | J146: -6.644692809e-05 | K146: -0.006218950374 | L146: -3.259885673e-05 | M146: -0.001487185442 | N146: 6.29303413e-07
A147: 70.45315 | B147: ='DF raw data'!A152 -> -7.5820367e-06 | C147: ='DF raw data'!B152 -> 2.3087277e-06 | D147: ='DF raw data'!C152 -> 2.6955022e-06 | F147: -7.593440083e-06 | G147: -2.317666096e-06 | H147: 2.699556235e-06 | J147: -7.024478715e-05 | K147: -0.006254083305 | L147: -3.375803743e-05 | M147: -0.001504069525 | N147: 6.323412917e-07
A148: 70.9533 | B148: ='DF raw data'!A153 -> -4.0423124e-06 | C148: ='DF raw data'!B153 -> 6.0808475e-06 | D148: ='DF raw data'!C153 -> 1.2703749e-06 | F148: -4.048392038e-06 | G148: -6.104389914e-06 | H148: 1.272285544e-06 | J148: -7.226959042e-05 | K148: -0.00629022894 | L148: -3.681114805e-05 | M148: -0.00152248062 | N148: 6.356312555e-07
A149: 71.45345 | B149: ='DF raw data'!A154 -> 5.2567337e-08 | C149: ='DF raw data'!B154 -> -4.8373649e-06 | D149: ='DF raw data'!C154 -> 5.5207856e-06 | F149: 5.264639827e-08 | G149: 4.856093086e-06 | H149: 5.529088862e-06 | J149: -7.224325933e-05 | K149: -0.006326361406 | L149: -3.438237309e-05 | M149: -0.001539676964 | N149: 6.388328338e-07
A150: 71.9536 | B150: ='DF raw data'!A155 -> -2.3720436e-06 | C150: ='DF raw data'!B155 -> -1.5534355e-05 | D150: ='DF raw data'!C155 -> 5.2715404e-06 | F150: -2.375611154e-06 | G150: 1.559449731e-05 | H150: 5.279468797e-06 | J150: -7.343142125e-05 | K150: -0.006363088132 | L150: -2.658278526e-05 | M150: -0.001552972344 | N150: 6.418831576e-07
A151: 72.45375 | B151: ='DF raw data'!A156 -> -6.7272426e-06 | C151: ='DF raw data'!B156 -> -8.5108823e-06 | D151: ='DF raw data'!C156 -> -6.7379369e-06 | F151: -6.737360373e-06 | G151: 8.543832758e-06 | H151: -6.748070757e-06 | J151: -7.680111204e-05 | K151: -0.006401500208 | L151: -2.230958731e-05 | M151: -0.001564130484 | N151: 6.450821813e-07
A152: 72.9539 | B152: ='DF raw data'!A157 -> -9.2828795e-06 | C152: ='DF raw data'!B157 -> 4.5140118e-06 | D152: ='DF raw data'!C157 -> 2.8735303e-06 | F152: -9.296840951e-06 | G152: -4.531488103e-06 | H152: 2.87785209e-06 | J152: -8.145092704e-05 | K152: -0.006442237889 | L152: -2.457601108e-05 | M152: -0.001576422176 | N152: 6.48702384e-07
A153: 73.45405 | B153: ='DF raw data'!A158 -> -6.9447792e-06 | C153: ='DF raw data'!B158 -> -1.4527176e-06 | D153: ='DF raw data'!C158 -> 2.6075795e-06 | F153: -6.955224148e-06 | G153: 1.458341895e-06 | H153: 2.6115013e-06 | J153: -8.49295824e-05 | K153: -0.00648471542 | L153: -2.384662138e-05 | M153: -0.001588349064 | N153: 6.525943989e-07
A154: 73.9542 | B154: ='DF raw data'!A159 -> -1.5618949e-06 | C154: ='DF raw data'!B159 -> -4.2921811e-06 | D154: ='DF raw data'!C159 -> -3.2677417e-06 | F154: -1.56424399e-06 | G154: 4.30879857e-06 | H154: -3.272656384e-06 | J154: -8.571193903e-05 | K154: -0.006527584246 | L154: -2.169157578e-05 | M154: -0.001599198106 | N154: 6.565041019e-07
A155: 74.45435 | B155: ='DF raw data'!A160 -> -6.3308983e-07 | C155: ='DF raw data'!B160 -> 1.0514099e-05 | D155: ='DF raw data'!C160 -> 7.2643888e-07 | F155: -6.340419971e-07 | G155: -1.055480505e-05 | H155: 7.275314441e-07 | J155: -8.602905513e-05 | K155: -0.006570611678 | L155: -2.697056152e-05 | M155: -0.001612687432 | N155: 6.605695259e-07
A156: 74.9545 | B156: ='DF raw data'!A161 -> -6.9764151e-06 | C156: ='DF raw data'!B161 -> 8.5393767e-06 | D156: ='DF raw data'!C161 -> -3.5750199e-06 | F156: -6.986907628e-06 | G156: -8.572437476e-06 | H156: -3.58039673e-06 | J156: -8.952355698e-05 | K156: -0.006615386885 | L156: -3.125806613e-05 | M156: -0.001628321154 | N156: 6.650666416e-07
A157: 75.45465 | B157: ='DF raw data'!A162 -> -1.0299738e-05 | C157: ='DF raw data'!B162 -> 5.716191e-06 | D157: ='DF raw data'!C162 -> 1.5580008e-07 | F157: -1.031522881e-05 | G157: -5.738321621e-06 | H157: 1.560344033e-07 | J157: -9.468271867e-05 | K157: -0.006662742447 | L157: -3.412808769e-05 | M157: -0.001645390317 | N157: 6.701329328e-07
A158: 75.9548 | B158: ='DF raw data'!A163 -> -7.9432157e-06 | C158: ='DF raw data'!B163 -> 1.1883328e-05 | D158: ='DF raw data'!C163 -> 4.4593107e-06 | F158: -7.955162296e-06 | G158: -1.192933511e-05 | H158: 4.466017503e-06 | J158: -9.866149309e-05 | K158: -0.006712087992 | L158: -4.009454464e-05 | M158: -0.001665443603 | N158: 6.758054655e-07
A159: 76.45495 | B159: ='DF raw data'!A164 -> -3.8265075e-06 | C159: ='DF raw data'!B164 -> 1.0172658e-05 | D159: ='DF raw data'!C164 -> 2.0289663e-06 | F159: -3.832262567e-06 | G159: -1.021204214e-05 | H159: 2.032017865e-06 | J159: -0.0001005781992 | K159: -0.006762392179 | L159: -4.520209752e-05 | M159: -0.001688051432 | N159: 6.818868912e-07
A160: 76.9551 | B160: ='DF raw data'!A165 -> 4.7095817e-08 | C160: ='DF raw data'!B165 -> 2.0571439e-05 | D160: ='DF raw data'!C165 -> 2.2851964e-06 | F160: 4.716664911e-08 | G160: -2.065108272e-05 | H160: 2.288633335e-06 | J160: -0.0001005546088 | K160: -0.006812684566 | L160: -5.553073654e-05 | M160: -0.00171582513 | N160: 6.884863165e-07
A161: 77.45525 | B161: ='DF raw data'!A166 -> 1.7343176e-06 | C161: ='DF raw data'!B166 -> 1.4637933e-05 | D161: ='DF raw data'!C166 -> -1.0149597e-06 | F161: 1.736926014e-06 | G161: -1.469460475e-05 | H161: -1.016486199e-06 | J161: -9.968588527e-05 | K161: -0.006862542462 | L161: -6.28802431e-05 | M161: -0.001747274684 | N161: 6.954340005e-07
A162: 77.9554 | B162: ='DF raw data'!A167 -> 9.4418645e-08 | C162: ='DF raw data'!B167 -> -1.4499154e-06 | D162: ='DF raw data'!C167 -> 8.6511136e-09 | F162: 9.456065064e-08 | G162: 1.455528846e-06 | H162: 8.664124875e-09 | J162: -9.963859076e-05 | K162: -0.006912376703 | L162: -6.215226035e-05 | M162: -0.001778360137 | N162: 7.023314453e-07
A163: 78.45555 | B163: ='DF raw data'!A168 -> -1.4719204e-06 | C163: ='DF raw data'!B168 -> -1.9612089e-06 | D163: ='DF raw data'!C168 -> 4.658119e-06 | F163: -1.474134168e-06 | G163: 1.968801853e-06 | H163: 4.665124811e-06 | J163: -0.000100375879 | K163: -0.006962579699 | L163: -6.116756411e-05 | M163: -0.001808953094 | N163: 7.092419118e-07
A164: 78.9557 | B164: ='DF raw data'!A169 -> -5.9220415e-06 | C164: ='DF raw data'!B169 -> 1.7726176e-06 | D164: ='DF raw data'!C169 -> 6.3258994e-06 | F164: -5.93094825e-06 | G164: -1.779480409e-06 | H164: 6.335413553e-06 | J164: -0.0001033422427 | K164: -0.007014266322 | L164: -6.205757123e-05 | M164: -0.001839991188 | N164: 7.16509472e-07
A165: 79.45585 | B165: ='DF raw data'!A170 -> -9.6981912e-06 | C165: ='DF raw data'!B170 -> -6.9830076e-06 | D165: ='DF raw data'!C170 -> 1.2380777e-05 | F165: -9.71277728e-06 | G165: 7.010042788e-06 | H165: 1.239939769e-05 | J165: -0.0001082000883 | K165: -0.007068382596 | L165: -5.855149833e-05 | M165: -0.00186927572 | N165: 7.240795109e-07
A166: 79.956 | B166: ='DF raw data'!A171 -> -4.3660489e-06 | C166: ='DF raw data'!B171 -> -5.6124436e-06 | D166: ='DF raw data'!C171 -> 1.58533e-05 | F166: -4.372615438e-06 | G166: 5.634172556e-06 | H166: 1.587714336e-05 | J166: -0.0001103870519 | K166: -0.00712359268 | L166: -5.573356693e-05 | M166: -0.001897150864 | N166: 7.317275705e-07
A167: 80.45615 | B167: ='DF raw data'!A172 -> 1.5233876e-06 | C167: ='DF raw data'!B172 -> 4.7631206e-06 | D167: ='DF raw data'!C172 -> 1.2720942e-05 | F167: 1.525678775e-06 | G167: -4.781561345e-06 | H167: 1.27400743e-05 | J167: -0.0001096239837 | K167: -0.007178421115 | L167: -5.812506483e-05 | M167: -0.001926222115 | N167: 7.394278503e-07
A168: 80.9563 | B168: ='DF raw data'!A173 -> 3.4025871e-07 | C168: ='DF raw data'!B173 -> 1.0198009e-05 | D168: ='DF raw data'!C173 -> 6.6493449e-06 | F168: 3.407704591e-07 | G168: -1.023749128e-05 | H168: 6.659345515e-06 | J168: -0.0001094535473 | K168: -0.007233164307 | L168: -6.32453461e-05 | M168: -0.001957854275 | N168: 7.474202737e-07
A169: 81.45645 | B169: ='DF raw data'!A174 -> -1.6434002e-06 | C169: ='DF raw data'!B174 -> -2.4146624e-07 | D169: ='DF raw data'!C174 -> -1.6878039e-07 | F169: -1.645871874e-06 | G169: 2.424010929e-07 | H169: -1.690342357e-07 | J169: -0.0001102767301 | K169: -0.007288319214 | L169: -6.312410919e-05 | M169: -0.001989425798 | N169: 7.554955008e-07
A170: 81.9566 | B170: ='DF raw data'!A175 -> -1.5728583e-07 | C170: ='DF raw data'!B175 -> 3.0070855e-06 | D170: ='DF raw data'!C175 -> 2.8535069e-06 | F170: -1.575223879e-07 | G170: -3.018727636e-06 | H170: 2.857798574e-06 | J170: -0.000110355515 | K170: -0.007343513524 | L170: -6.463392582e-05 | M170: -0.002021752456 | N170: 7.636758962e-07
A171: 82.45675 | B171: ='DF raw data'!A176 -> -3.7456047e-07 | C171: ='DF raw data'!B176 -> 1.0648459e-05 | D171: ='DF raw data'!C176 -> 5.7922662e-06 | F171: -3.751238089e-07 | G171: -1.068968523e-05 | H171: 5.800977768e-06 | J171: -0.0001105431331 | K171: -0.007398801672 | L171: -6.998037189e-05 | M171: -0.002056753139 | N171: 7.722369821e-07
A172: 82.9569 | B172: ='DF raw data'!A177 -> -4.761599e-06 | C172: ='DF raw data'!B177 -> 1.0586015e-05 | D172: ='DF raw data'!C177 -> 1.2800228e-06 | F172: -4.768760445e-06 | G172: -1.062699948e-05 | H172: 1.281947954e-06 | J172: -0.0001129282287 | K172: -0.007455282726 | L172: -7.529546568e-05 | M172: -0.002094412166 | N172: 7.814508414e-07
A173: 83.45705 | B173: ='DF raw data'!A178 -> -2.7832225e-06 | C173: ='DF raw data'!B178 -> 1.5784204e-05 | D173: ='DF raw data'!C178 -> 4.7348512e-06 | F173: -2.787408467e-06 | G173: -1.584531362e-05 | H173: 4.741972416e-06 | J173: -0.000114322351 | K173: -0.00751246105 | L173: -8.322049928e-05 | M173: -0.002136034899 | N173: 7.914514664e-07
A174: 83.9572 | B174: ='DF raw data'!A179 -> 5.2044984e-06 | C174: ='DF raw data'!B179 -> 9.3360704e-06 | D174: ='DF raw data'!C179 -> 6.0177263e-07 | F174: 5.212325966e-06 | G174: -9.37221563e-06 | H174: 6.02677696e-07 | J174: -0.0001117154062 | K174: -0.00756833551 | L174: -8.790801293e-05 | M174: -0.002180002092 | N174: 8.01558573e-07
A175: 84.45735 | B175: ='DF raw data'!A180 -> 7.3367323e-06 | C175: ='DF raw data'!B180 -> 6.4162832e-06 | D175: ='DF raw data'!C180 -> -5.1691968e-06 | F175: 7.347766745e-06 | G175: -6.441124276e-06 | H175: -5.176971272e-06 | J175: -0.0001080404206 | K175: -0.007622371927 | L175: -9.112954124e-05 | M175: -0.002225580532 | N175: 8.115502325e-07
A176: 84.9575 | B176: ='DF raw data'!A181 -> 6.3768152e-06 | C176: ='DF raw data'!B181 -> 6.4731234e-06 | D176: ='DF raw data'!C181 -> 1.0886797e-06 | F176: 6.38640593e-06 | G176: -6.498184537e-06 | H176: 1.090317074e-06 | J176: -0.0001048462597 | K176: -0.007674810783 | L176: -9.437960823e-05 | M176: -0.002272784493 | N176: 8.215033418e-07
A177: 85.45765 | B177: ='DF raw data'!A182 -> 3.7935447e-06 | C177: ='DF raw data'!B182 -> -2.1271917e-06 | D177: ='DF raw data'!C182 -> 1.3131721e-06 | F177: 3.799250191e-06 | G177: 2.135427267e-06 | H177: 1.315147111e-06 | J177: -0.0001029460647 | K177: -0.007726299258 | L177: -9.331157428e-05 | M177: -0.002319454277 | N177: 8.311587087e-07
A178: 85.9578 | B178: ='DF raw data'!A183 -> -2.8800073e-06 | C178: ='DF raw data'!B183 -> 4.0053874e-06 | D178: ='DF raw data'!C183 -> 1.0703152e-06 | F178: -2.884338831e-06 | G178: -4.020894529e-06 | H178: 1.071924954e-06 | J178: -0.0001043886668 | K178: -0.007778509249 | L178: -9.532262468e-05 | M178: -0.002367129887 | N178: 8.411534044e-07
A179: 86.45795 | B179: ='DF raw data'!A184 -> -6.8142776e-06 | C179: ='DF raw data'!B184 -> 5.6309309e-06 | D179: ='DF raw data'!C184 -> 5.4582997e-06 | F179: -6.824526274e-06 | G179: -5.652731431e-06 | H179: 5.466508983e-06 | J179: -0.0001078019536 | K179: -0.007832426396 | L179: -9.814983831e-05 | M179: -0.002416219529 | N179: 8.517839186e-07
A180: 86.9581 | B180: ='DF raw data'!A185 -> -4.5251741e-06 | C180: ='DF raw data'!B185 -> 4.4519684e-06 | D180: ='DF raw data'!C185 -> 9.229625e-07 | F180: -4.531979962e-06 | G180: -4.469204498e-06 | H180: 9.243506356e-07 | J180: -0.0001100686234 | K180: -0.007887477218 | L180: -0.0001003851109 | M180: -0.002466427142 | N180: 8.628833836e-07
A181: 87.45825 | B181: ='DF raw data'!A186 -> -3.7361256e-06 | C181: ='DF raw data'!B186 -> 5.0686685e-06 | D181: ='DF raw data'!C186 -> 3.2672033e-06 | F181: -3.741744733e-06 | G181: -5.088292194e-06 | H181: 3.272117174e-06 | J181: -0.000111940057 | K181: -0.007943464038 | L181: -0.0001029300203 | M181: -0.002517907592 | N181: 8.744494351e-07
A182: 87.9584 | B182: ='DF raw data'!A187 -> -4.2892875e-06 | C182: ='DF raw data'!B187 -> 7.1829559e-06 | D182: ='DF raw data'!C187 -> 4.8600996e-06 | F182: -4.295738588e-06 | G182: -7.210765201e-06 | H182: 4.86740919e-06 | J182: -0.0001140885707 | K182: -0.008000525437 | L182: -0.0001065364845 | M182: -0.002571191815 | N182: 8.866362023e-07
A183: 88.45855 | B183: ='DF raw data'!A188 -> 3.7362625e-07 | C183: ='DF raw data'!B188 -> 4.1305425e-06 | D183: ='DF raw data'!C188 -> -3.200119e-06 | F183: 3.741881839e-07 | G183: -4.146534176e-06 | H183: -3.204931979e-06 | J183: -0.0001139014205 | K183: -0.008057493232 | L183: -0.0001086103736 | M183: -0.002625513293 | N183: 8.990247912e-07
A184: 88.9587 | B184: ='DF raw data'!A189 -> 1.4294929e-07 | C184: ='DF raw data'!B189 -> -7.0527894e-06 | D184: ='DF raw data'!C189 -> -7.7978111e-06 | F184: 1.431642857e-07 | G184: 7.080094753e-06 | H184: -7.809539008e-06 | J184: -0.0001138298168 | K184: -0.008114425215 | L184: -0.0001050692642 | M184: -0.002678063685 | N184: 9.110267794e-07
A185: 89.45885 | B185: ='DF raw data'!A190 -> -5.0567701e-06 | C185: ='DF raw data'!B190 -> -3.4822788e-06 | D185: ='DF raw data'!C190 -> -4.1286912e-06 | F185: -5.064375482e-06 | G185: 3.495760679e-06 | H185: -4.134900752e-06 | J185: -0.0001163627642 | K185: -0.008172624051 | L185: -0.0001033208595 | M185: -0.002729739613 | N185: 9.231381582e-07
A186: 89.959 | B186: ='DF raw data'!A191 -> -8.3331634e-06 | C186: ='DF raw data'!B191 -> -2.6101989e-06 | D186: ='DF raw data'!C191 -> -4.3847904e-06 | F186: -8.345696478e-06 | G186: 2.620304462e-06 | H186: -4.391385125e-06 | J186: -0.0001205368643 | K186: -0.008232910564 | L186: -0.0001020103142 | M186: -0.002780760072 | N186: 9.356095184e-07
A187: 90.45915 | B187: ='DF raw data'!A192 -> -1.1841586e-05 | C187: ='DF raw data'!B192 -> 4.509609e-06 | D187: ='DF raw data'!C192 -> -1.4045581e-06 | F187: -1.185939575e-05 | G187: -4.527068257e-06 | H187: -1.406670555e-06 | J187: -0.0001264683411 | K187: -0.008296163705 | L187: -0.0001042745274 | M187: -0.002832912977 | N187: 9.490472577e-07
A188: 90.9593 | B188: ='DF raw data'!A193 -> -1.6963613e-05 | C188: ='DF raw data'!B193 -> -2.5700365e-06 | D188: ='DF raw data'!C193 -> -1.813336e-06 | F188: -1.698912627e-05 | G188: 2.579986571e-06 | H188: -1.816063257e-06 | J188: -0.0001349654526 | K188: -0.008363666676 | L188: -0.0001029841471 | M188: -0.002884420498 | N188: 9.634622849e-07
A189: 91.45945 | B189: ='DF raw data'!A194 -> -1.5190812e-05 | C189: ='DF raw data'!B194 -> -5.3079621e-06 | D189: ='DF raw data'!C194 -> -9.5145006e-06 | F189: -1.521365898e-05 | G189: 5.328512235e-06 | H189: -9.528810409e-06 | J189: -0.0001425745642 | K189: -0.008434975344 | L189: -0.0001003190917 | M189: -0.002934595092 | N189: 9.786625569e-07
A190: 91.9596 | B190: ='DF raw data'!A195 -> -4.7981825e-06 | C190: ='DF raw data'!B195 -> 4.3813852e-06 | D190: ='DF raw data'!C195 -> -3.4827754e-06 | F190: -4.805398966e-06 | G190: -4.39834803e-06 | H190: -3.488013494e-06 | J190: -0.0001449779844 | K190: -0.008507486083 | L190: -0.0001025189255 | M190: -0.002985869932 | N190: 9.944316592e-07
A191: 92.45975 | B191: ='DF raw data'!A196 -> -7.4468846e-07 | C191: ='DF raw data'!B196 -> 4.0077894e-06 | D191: ='DF raw data'!C196 -> -3.3900651e-06 | F191: -7.458084714e-07 | G191: -4.023305829e-06 | H191: -3.395163758e-06 | J191: -0.0001453510006 | K191: -0.008580183386 | L191: -0.0001045311819 | M191: -0.003038151203 | N191: 1.010463308e-06
A192: 92.9599 | B192: ='DF raw data'!A197 -> -5.6177319e-06 | C192: ='DF raw data'!B197 -> 3.6248534e-06 | D192: ='DF raw data'!C197 -> -1.8378269e-06 | F192: -5.626180969e-06 | G192: -3.638887266e-06 | H192: -1.840590992e-06 | J192: -0.000148164935 | K192: -0.008654288078 | L192: -0.0001063511713 | M192: -0.003091342741 | N192: 1.027100007e-06
A193: 93.46005 | B193: ='DF raw data'!A198 -> -9.3158542e-06 | C193: ='DF raw data'!B198 -> 8.8582674e-06 | D193: ='DF raw data'!C198 -> 1.3120371e-06 | F193: -9.329865245e-06 | G193: -8.892562783e-06 | H193: 1.314010404e-06 | J193: -0.0001528312671 | K193: -0.008730726637 | L193: -0.0001107987866 | M193: -0.003146758754 | N193: 1.044922236e-06
A194: 93.9602 | B194: ='DF raw data'!A199 -> -8.9970654e-06 | C194: ='DF raw data'!B199 -> 2.0658299e-05 | D194: ='DF raw data'!C199 -> 4.4553963e-06 | F194: -9.010596986e-06 | G194: -2.073827901e-05 | H194: 4.462097216e-06 | J194: -0.0001573379172 | K194: -0.008809419196 | L194: -0.0001211710369 | M194: -0.003207362448 | N194: 1.064646972e-06
A195: 94.46035 | B195: ='DF raw data'!A200 -> -6.7265732e-06 | C195: ='DF raw data'!B200 -> 1.7595612e-05 | D195: ='DF raw data'!C200 -> 7.9699166e-06 | F195: -6.736689966e-06 | G195: -1.766373461e-05 | H195: 7.981903355e-06 | J195: -0.0001607072726 | K195: -0.008889796938 | L195: -0.0001300055537 | M195: -0.003272384726 | N195: 1.086017517e-06
A196: 94.9605 | B196: ='DF raw data'!A201 -> -6.9278262e-06 | C196: ='DF raw data'!B201 -> 1.1326137e-05 | D196: ='DF raw data'!C201 -> 7.3027113e-06 | F196: -6.938245651e-06 | G196: -1.136998691e-05 | H196: 7.313694578e-06 | J196: -0.0001641774362 | K196: -0.008971910283 | L196: -0.0001356922527 | M196: -0.003340251206 | N196: 1.108707631e-06
A197: 95.46065 | B197: ='DF raw data'!A202 -> -5.1292532e-06 | C197: ='DF raw data'!B202 -> 4.7814001e-06 | D197: ='DF raw data'!C202 -> -3.2009921e-06 | F197: -5.136967597e-06 | G197: -4.799911615e-06 | H197: -3.205806392e-06 | J197: -0.0001667466905 | K197: -0.00905530864 | L197: -0.0001380929285 | M197: -0.003409318384 | N197: 1.13215172e-06
A198: 95.9608 | B198: ='DF raw data'!A203 -> -3.8237135e-06 | C198: ='DF raw data'!B203 -> 5.4093084e-06 | D198: ='DF raw data'!C203 -> -4.8168513e-06 | F198: -3.829464365e-06 | G198: -5.430250905e-06 | H198: -4.824095844e-06 | J198: -0.0001686619971 | K198: -0.009139664938 | L198: -0.0001408088685 | M198: -0.00347974394 | N198: 1.156295964e-06
A199: 96.46095 | B199: ='DF raw data'!A204 -> -7.2726484e-06 | C199: ='DF raw data'!B204 -> 1.5974605e-05 | D199: ='DF raw data'!C204 -> -1.0821532e-07 | F199: -7.283586463e-06 | G199: =(1-$G$1*($B$2-$G$2))*C199*$M$2/$M$1 -> -1.603645177e-05 | H199: -1.083780758e-07 | J199: -0.0001723048829 | K199: -0.009225843225 | L199: -0.0001488294998 | M199: -0.003554181014 | N199: 1.182223336e-06
A200: =A199+$B$1 -> 96.9611 | B200: ='DF raw data'!A205 -> -1.0164435e-05 | C200: ='DF raw data'!B205 -> 1.3236413e-05 | D200: ='DF raw data'!C205 -> -6.087721e-07 | F200: -1.017972231e-05 | G200: -1.328765867e-05 | H200: -6.096876932e-07 | J200: =F200*$B$1+J199 -> -0.000177396271 | K200: =J200*$B$1+K199 -> -0.00931456797 | L200: =G200*$B$1+L199 -> -0.0001554753223 | M200: =L200*$B$1+M199 -> -0.003631941997 | N200: =(J200^2+L200^2)*$B$1+N199 -> 1.210052689e-06
A201: 97.46125 | B201: ='DF raw data'!A206 -> -7.7465756e-06 | C201: ='DF raw data'!B206 -> 4.7060134e-06 | D201: ='DF raw data'!C206 -> -2.9557123e-07 | F201: -7.75822645e-06 | G201: -4.72423305e-06 | H201: -2.960157691e-07 | J201: -0.000181276548 | K201: -0.009405233436 | L201: -0.0001578381475 | M201: -0.003710884746 | N201: 1.238948389e-06
... 1002 more rows

Sheet 12 mm
A1: dz | B1: ='DF raw data'!E7 -> 0.50025 | C1: mm | F1: T_coeff | G1: -0.0008 | H1: /degC | L1: Hallref | M1: ='[1]PI vs x'!B50 -> 0.505 | N1: T | P1: IBy total | Q1: =L1203*1000 -> 3.273554064 | R1: muTm | X1: DF ref | Y1: 19
A2: Tref | B2: ='DF raw data'!E8 -> 21.79 | C2: degC | F2: Tcorr | G2: 20 | H2: degC | L2: NMRref | M2: ='[1]PI vs x'!B51 -> 0.50627 | N2: T | P2: JBy total | Q2: =M1203 -> 0.9278051466 | R2: muTm^2
A3: Encoder | B3: ='DF raw data'!E9 -> 3124983 | P3: PI total | Q3: =N1203 -> 536.0426175 | R3: T^2mm^3
A5: z [mm] | B5: Bx | C5: By | D5: Bz | F5: Bx_corr | G5: By_corr | H5: Bz_corr | J5: Ix | K5: Jx | L5: Iy | M5: Jy | N5: PI
A6: ='[1]PI vs x'!B53 -> -0.068 | B6: ='DF raw data'!D11 -> 1.0866554e-05 | C6: ='DF raw data'!E11 -> -1.4887144e-05 | D6: ='DF raw data'!F11 -> 1.2205675e-06 | F6: =(1-$G$1*($B$2-$G$2))*B6 -> 1.088211491e-05 | G6: =(1-$G$1*($B$2-$G$2))*C6*$M$2/$M$1 -> -1.494595496e-05 | H6: =(1-$G$1*($B$2-$G$2))*D6 -> 1.222315353e-06 | J6: =F6*$B$1 -> 5.443777981e-06 | K6: =J6*$B$1 -> 2.723249935e-06 | L6: =G6*$B$1 -> -7.476713968e-06 | M6: =L6*$B$1 -> -3.740226163e-06 | N6: =(J6^2+L6)^2*$B$1 -> 2.796437951e-11
A7: =A6+$B$1 -> 0.43225 | B7: ='DF raw data'!D12 -> 1.0427203e-05 | C7: ='DF raw data'!E12 -> -3.0292038e-06 | D7: ='DF raw data'!F12 -> 7.6999657e-07 | F7: =(1-$G$1*($B$2-$G$2))*B7 -> 1.044213475e-05 | G7: =(1-$G$1*($B$2-$G$2))*C7*$M$2/$M$1 -> -3.041170526e-06 | H7: 7.710992051e-07 | J7: =F7*$B$1+J6 -> 1.066745589e-05 | K7: =J7*$B$1+K6 -> 8.059644745e-06 | L7: =G7*$B$1+L6 -> -8.998059524e-06 | M7: =L7*$B$1+M6 -> -8.24150544e-06 | N7: =(J7^2+L7^2)*$B$1+N6 -> 1.253929146e-10
A8: =A7+$B$1 -> 0.9325 | B8: ='DF raw data'!D13 -> 1.087028e-05 | C8: ='DF raw data'!E13 -> -1.5902791e-05 | D8: ='DF raw data'!F13 -> -3.5685259e-06 | F8: 1.088584624e-05 | G8: -1.596561422e-05 | H8: -3.573636029e-06 | J8: =F8*$B$1+J7 -> 1.611310047e-05 | K8: =J8*$B$1+K7 -> 1.612022326e-05 | L8: =G8*$B$1+L7 -> -1.698485804e-05 | M8: =L8*$B$1+M7 -> -1.673818067e-05 | N8: =(J8^2+L8^2)*$B$1+N7 -> 3.995886488e-10
A9: 1.43275 | B9: ='DF raw data'!D14 -> 1.0549948e-05 | C9: ='DF raw data'!E14 -> -6.4339979e-06 | D9: ='DF raw data'!F14 -> 7.7479871e-07 | F9: 1.056505553e-05 | G9: -6.459415105e-06 | H9: 7.759082218e-07 | J9: 2.13982695e-05 | K9: 2.682470758e-05 | L9: -2.021618045e-05 | M9: -2.685132494e-05 | N9: 8.330952385e-10
A10: 1.933 | B10: ='DF raw data'!D15 -> 1.0593342e-05 | C10: ='DF raw data'!E15 -> -8.1977723e-06 | D10: ='DF raw data'!F15 -> -2.8089451e-06 | F10: 1.060851167e-05 | G10: -8.230157212e-06 | H10: -2.812967509e-06 | J10: 2.670517746e-05 | K10: 4.01839726e-05 | L10: -2.433331659e-05 | M10: -3.902406657e-05 | N10: 1.486059957e-09
A11: 2.43325 | B11: ='DF raw data'!D16 -> 1.0563045e-05 | C11: ='DF raw data'!E16 -> -7.5250323e-06 | D11: ='DF raw data'!F16 -> -3.7929456e-06 | F11: 1.057817128e-05 | G11: -7.554759585e-06 | H11: -3.798377098e-06 | J11: 3.199690764e-05 | K11: 5.619042565e-05 | L11: -2.811258507e-05 | M11: -5.308738725e-05 | N11: 2.393573257e-09
A12: 2.9335 | B12: ='DF raw data'!D17 -> 1.0404837e-05 | C12: ='DF raw data'!E17 -> -2.3195046e-06 | D12: ='DF raw data'!F17 -> 1.5043589e-06 | F12: 1.041973673e-05 | G12: -2.328667693e-06 | H12: 1.506513142e-06 | J12: 3.720938094e-05 | K12: 7.480441847e-05 | L12: -2.927750109e-05 | M12: -6.773345717e-05 | N12: 3.514988734e-09
A13: 3.43375 | B13: ='DF raw data'!D18 -> 1.0386152e-05 | C13: ='DF raw data'!E18 -> -2.3907548e-06 | D13: ='DF raw data'!F18 -> -2.0759796e-06 | F13: 1.040102497e-05 | G13: -2.400199364e-06 | H13: -2.078952403e-06 | J13: 4.241249368e-05 | K13: 9.602126843e-05 | L13: -3.047820082e-05 | M13: -8.298017713e-05 | N13: 4.879540842e-09
A14: 3.934 | B14: ='DF raw data'!D19 -> 1.0346644e-05 | C14: ='DF raw data'!E19 -> -2.5792872e-06 | D14: ='DF raw data'!F19 -> -9.9211793e-06 | F14: 1.036146039e-05 | G14: -2.589476552e-06 | H14: -9.935386429e-06 | J14: 4.759581425e-05 | K14: 0.0001198310745 | L14: -3.177358646e-05 | M14: -9.887491376e-05 | N14: 6.517820738e-09
A15: 4.43425 | B15: ='DF raw data'!D20 -> 9.9971357e-06 | C15: ='DF raw data'!E20 -> 7.2090634e-06 | D15: ='DF raw data'!F20 -> -8.3535015e-06 | F15: 1.00114516e-05 | G15: 7.237542464e-06 | H15: -8.365463714e-06 | J15: 5.260404291e-05 | K15: 0.000146146247 | L15: -2.815300585e-05 | M15: -0.0001129584549 | N15: 8.298599216e-09
A16: 4.9345 | B16: ='DF raw data'!D21 -> 9.8498267e-06 | C16: ='DF raw data'!E21 -> 1.1202138e-05 | D16: ='DF raw data'!F21 -> -7.7604964e-06 | F16: 9.863931652e-06 | G16: 1.124639152e-05 | H16: -7.771609431e-06 | J16: 5.753847472e-05 | K16: 0.0001749298689 | L16: -2.252699849e-05 | M16: -0.0001242275859 | N16: 1.020862462e-08
A17: 5.43475 | B17: ='DF raw data'!D22 -> 9.937924e-06 | C17: ='DF raw data'!E22 -> 8.6436721e-06 | D17: ='DF raw data'!F22 -> -7.9375932e-06 | F17: 9.952155107e-06 | G17: 8.677818518e-06 | H17: -7.948959833e-06 | J17: 6.251704031e-05 | K17: 0.0002062040184 | L17: -1.818591978e-05 | M17: -0.0001333250923 | N17: 1.23292384e-08
A18: 5.935 | B18: ='DF raw data'!D23 -> 1.0385745e-05 | C18: ='DF raw data'!E23 -> -3.8843382e-06 | D18: ='DF raw data'!F23 -> -9.8431083e-06 | F18: 1.040061739e-05 | G18: -3.899683095e-06 | H18: -9.857203631e-06 | J18: 6.771994916e-05 | K18: 0.0002400809229 | L18: -2.013673624e-05 | M18: -0.0001433984946 | N18: 1.48262261e-08
A19: 6.43525 | B19: ='DF raw data'!D24 -> 1.0338029e-05 | C19: ='DF raw data'!E24 -> -2.3073628e-06 | D19: ='DF raw data'!F24 -> -8.4655803e-06 | F19: 1.035283306e-05 | G19: -2.316477928e-06 | H19: -8.477703011e-06 | J19: 7.289895389e-05 | K19: 0.0002765486246 | L19: -2.129555433e-05 | M19: -0.0001540515957 | N19: 1.77115471e-08
A20: 6.9355 | B20: ='DF raw data'!D25 -> 1.0104398e-05 | C20: ='DF raw data'!E25 -> 4.5892211e-06 | D20: ='DF raw data'!F25 -> -5.2046853e-06 | F20: 1.01188675e-05 | G20: 4.607350601e-06 | H20: -5.212138409e-06 | J20: 7.796091736e-05 | K20: 0.0003155485735 | L20: -1.899072719e-05 | M20: -0.0001635517069 | N20: 2.093243291e-08
A21: 7.43575 | B21: ='DF raw data'!D26 -> 1.0723305e-05 | C21: ='DF raw data'!E26 -> -1.1993375e-05 | D21: ='DF raw data'!F26 -> -3.56141e-06 | F21: 1.073866077e-05 | G21: -1.204075426e-05 | H21: -3.566509939e-06 | J21: 8.333293241e-05 | K21: 0.000357235873 | L21: -2.501411451e-05 | M21: -0.0001760650177 | N21: 2.471936721e-08
A22: 7.936 | B22: ='DF raw data'!D27 -> 8.1282187e-06 | C22: ='DF raw data'!E27 -> -9.7059001e-06 | D22: ='DF raw data'!F27 -> -3.252924e-06 | F22: 8.139858309e-06 | G22: -9.7442428e-06 | H22: -3.257582187e-06 | J22: 8.740489653e-05 | K22: 0.0004009601725 | L22: -2.988867197e-05 | M22: -0.0001910168259 | N22: 2.898797477e-08
A23: 8.43625 | B23: ='DF raw data'!D28 -> 4.918837e-06 | C23: ='DF raw data'!E28 -> -6.4259189e-07 | D23: ='DF raw data'!F28 -> -7.4120217e-06 | F23: =(1-$G$1*($B$2-$G$2))*B23 -> 4.925880775e-06 | G23: -6.451304189e-07 | H23: -7.422635715e-06 | J23: 8.986906839e-05 | K23: 0.0004459171739 | L23: -3.021139846e-05 | M23: -0.0002061300779 | N23: 3.348481109e-08
A24: 8.9365 | B24: ='DF raw data'!D29 -> 8.2898905e-06 | C24: ='DF raw data'!E29 -> 2.0545049e-06 | D24: ='DF raw data'!F29 -> -1.7888426e-05 | F24: 8.301761623e-06 | G24: 2.062621125e-06 | H24: -1.791404223e-05 | J24: 9.402202464e-05 | K24: 0.0004929516917 | L24: -2.917957224e-05 | M24: -0.000220727159 | N24: 3.833302826e-08
A25: 9.43675 | B25: ='DF raw data'!D30 -> 7.9750889e-06 | C25: ='DF raw data'!E30 -> -3.5949349e-06 | D25: ='DF raw data'!F30 -> -1.5327958e-05 | F25: 7.986509227e-06 | G25: -3.60913652e-06 | H25: -1.534990764e-05 | J25: 9.801727588e-05 | K25: 0.000541984834 | L25: -3.098504279e-05 | M25: -0.0002362274266 | N25: 4.361939975e-08
A26: 9.937 | B26: ='DF raw data'!D31 -> 3.6688859e-06 | C26: ='DF raw data'!E31 -> -1.0508597e-05 | D26: ='DF raw data'!F31 -> -5.3741423e-06 | F26: 3.674139745e-06 | G26: -1.055011072e-05 | H26: -5.381838072e-06 | J26: 9.985526429e-05 | K26: 0.00059193743 | L26: -3.626273567e-05 | M26: -0.0002543678601 | N26: 4.926525117e-08
A27: 10.43725 | B27: ='DF raw data'!D32 -> 2.5446923e-06 | C27: ='DF raw data'!E32 -> -4.0515224e-06 | D27: ='DF raw data'!F32 -> -1.831202e-06 | F27: 2.548336299e-06 | G27: -4.067527748e-06 | H27: -1.833824281e-06 | J27: 0.0001011300695 | K27: 0.0006425277472 | L27: -3.829751643e-05 | M27: -0.0002735261927 | N27: 5.511517003e-08
A28: 10.9375 | B28: ='DF raw data'!D33 -> 2.7369958e-06 | C28: ='DF raw data'!E33 -> 3.4420141e-06 | D28: ='DF raw data'!F33 -> -2.7317437e-08 | F28: 2.740915178e-06 | G28: 3.455611614e-06 | H28: -2.735655557e-08 | J28: 0.0001025012123 | K28: 0.0006938039787 | L28: -3.656884672e-05 | M28: -0.0002918197583 | N28: 6.104002051e-08
A29: 11.43775 | B29: ='DF raw data'!D34 -> 4.0682485e-06 | C29: ='DF raw data'!E34 -> -7.4081495e-06 | D29: ='DF raw data'!F34 -> -3.949739e-08 | F29: 4.074074232e-06 | G29: -7.437415045e-06 | H29: -3.955395026e-08 | J29: 0.000104539268 | K29: 0.0007460997475 | L29: -4.02894136e-05 | M29: -0.0003119745375 | N29: 6.731900614e-08
A30: 11.938 | B30: ='DF raw data'!D35 -> 3.5144901e-06 | C30: ='DF raw data'!E35 -> -1.7700515e-06 | D30: ='DF raw data'!F35 -> -3.2137211e-06 | F30: 3.51952285e-06 | G30: -1.777044005e-06 | H30: -3.218323149e-06 | J30: 0.0001062999093 | K30: 0.0007992762771 | L30: -4.117837986e-05 | M30: -0.000332574022 | N30: 7.381991981e-08
A31: 12.43825 | B31: ='DF raw data'!D36 -> 4.1672203e-07 | C31: ='DF raw data'!E36 -> 3.5697039e-06 | D31: ='DF raw data'!F36 -> -6.5259866e-07 | F31: 4.173187759e-07 | G31: 3.583805847e-06 | H31: -6.535331813e-07 | J31: 0.000106508673 | K31: 0.0008525572408 | L31: -3.938558098e-05 | M31: -0.0003522766589 | N31: 8.027080435e-08
A32: 12.9385 | B32: ='DF raw data'!D37 -> -3.700655e-06 | C32: ='DF raw data'!E37 -> -5.7337725e-06 | D32: ='DF raw data'!F37 -> -3.474084e-06 | F32: -3.705954338e-06 | G32: -5.756423497e-06 | H32: -3.479058888e-06 | J32: 0.0001046547693 | K32: 0.0009049107892 | L32: -4.226523184e-05 | M32: -0.0003734198411 | N32: 8.664347437e-08
A33: 13.43875 | B33: ='DF raw data'!D38 -> -6.9855901e-06 | C33: ='DF raw data'!E38 -> -2.0302343e-06 | D33: ='DF raw data'!F38 -> -4.7063404e-06 | F33: -6.995593465e-06 | G33: -2.038254645e-06 | H33: -4.713079879e-06 | J33: 0.0001011552237 | K33: 0.0009555136898 | L33: -4.328486872e-05 | M33: -0.0003950730967 | N33: 9.269948043e-08
A34: 13.939 | B34: ='DF raw data'!D39 -> -4.6454966e-06 | C34: ='DF raw data'!E39 -> -1.2751108e-05 | D34: ='DF raw data'!F39 -> -2.8018874e-06 | F34: -4.652148951e-06 | G34: -1.280148065e-05 | H34: -2.805899703e-06 | J34: 9.88279862e-05 | K34: 0.00100495239 | L34: -4.968880942e-05 | M34: -0.0004199299236 | N34: 9.882051374e-08
A35: 14.43925 | B35: ='DF raw data'!D40 -> 1.2568332e-06 | C35: ='DF raw data'!E40 -> -1.0024257e-05 | D35: ='DF raw data'!F40 -> 1.3987993e-06 | F35: 1.258632985e-06 | G35: -1.006385735e-05 | H35: 1.400802381e-06 | J35: 9.945761735e-05 | K35: 0.001054706063 | L35: -5.472325406e-05 | M35: -0.0004473052314 | N35: 1.052669614e-07
A36: 14.9395 | B36: ='DF raw data'!D41 -> 3.0506478e-06 | C36: ='DF raw data'!E41 -> 4.8670163e-06 | D36: ='DF raw data'!F41 -> 6.1217543e-06 | F36: 3.055016328e-06 | G36: 4.886243218e-06 | H36: 6.130520652e-06 | J36: 0.0001009858893 | K36: 0.001105224254 | L36: -5.227891089e-05 | M36: -0.0004734577566 | N36: 1.117358114e-07
A37: 15.43975 | B37: ='DF raw data'!D42 -> 1.3821107e-06 | C37: ='DF raw data'!E42 -> 9.9866165e-06 | D37: ='DF raw data'!F42 -> 4.0375417e-06 | F37: 1.384089883e-06 | G37: 1.002606816e-05 | H37: 4.04332346e-06 | J37: 0.0001016782802 | K37: 0.001156088814 | L37: -4.72633703e-05 | M37: -0.0004971012576 | N37: 1.180251039e-07
A38: 15.94 | B38: ='DF raw data'!D43 -> 4.557382e-06 | C38: ='DF raw data'!E43 -> 8.1243734e-06 | D38: ='DF raw data'!F43 -> 3.3779909e-06 | F38: 4.563908171e-06 | G38: 8.156468353e-06 | H38: 3.382828183e-06 | J38: 0.0001039613753 | K38: 0.001208095492 | L38: -4.3183097e-05 | M38: -0.0005187036019 | N38: 1.243646458e-07
A39: 16.44025 | B39: ='DF raw data'!D44 -> 7.4489058e-06 | C39: ='DF raw data'!E44 -> 1.6311404e-06 | D39: ='DF raw data'!F44 -> 8.1910512e-06 | F39: 7.459572633e-06 | G39: 1.637584143e-06 | H39: 8.202780785e-06 | J39: 0.0001076930265 | K39: 0.001261968928 | L39: -4.236389553e-05 | M39: -0.0005398961406 | N39: 1.310642377e-07
A40: 16.9405 | B40: ='DF raw data'!D45 -> 3.3617678e-06 | C40: ='DF raw data'!E45 -> 1.3143236e-05 | D40: ='DF raw data'!F45 -> 5.8734986e-06 | F40: 3.366581851e-06 | G40: 1.319515773e-05 | H40: 5.88190945e-06 | J40: 0.0001093771591 | K40: 0.001316684852 | L40: -3.576301788e-05 | M40: -0.0005577865903 | N40: 1.376887265e-07
A41: 17.44075 | B41: ='DF raw data'!D46 -> -1.4006084e-06 | C41: ='DF raw data'!E46 -> 8.9005198e-06 | D41: ='DF raw data'!F46 -> -8.6962592e-07 | F41: -1.402614071e-06 | G41: 8.935680883e-06 | H41: -8.708712243e-07 | J41: 0.0001086755014 | K41: 0.001371049772 | L41: -3.129294352e-05 | M41: -0.0005734408853 | N41: 1.440867304e-07
A42: 17.941 | B42: ='DF raw data'!D47 -> -3.3233239e-06 | C42: ='DF raw data'!E47 -> 9.0765097e-06 | D42: ='DF raw data'!F47 -> -3.4537259e-06 | F42: -3.3280829e-06 | G42: 9.112366023e-06 | H42: -3.458671635e-06 | J42: 0.0001070106279 | K42: 0.001424581838 | L42: -2.673448241e-05 | M42: -0.0005868148101 | N42: 1.501727754e-07
A43: 18.44125 | B43: ='DF raw data'!D48 -> 2.8608908e-06 | C43: ='DF raw data'!E48 -> 1.5700308e-06 | D43: ='DF raw data'!F48 -> -2.9705295e-06 | F43: 2.864987596e-06 | G43: 1.576233132e-06 | H43: -2.974783298e-06 | J43: 0.000108443838 | K43: 0.001478830868 | L43: -2.594597179e-05 | M43: -0.0005997942825 | N43: 1.563925134e-07
A44: 18.9415 | B44: ='DF raw data'!D49 -> 6.492583e-06 | C44: ='DF raw data'!E49 -> 1.0604725e-06 | D44: ='DF raw data'!F49 -> -8.1444506e-07 | F44: 6.501880379e-06 | G44: 1.064661847e-06 | H44: -8.156113453e-07 | J44: 0.0001116964036 | K44: 0.001534706994 | L44: -2.54133747e-05 | M44: -0.0006125073232 | N44: 1.62956757e-07
A45: 19.44175 | B45: ='DF raw data'!D50 -> 3.7759589e-06 | C45: ='DF raw data'!E50 -> 5.9934086e-06 | D45: ='DF raw data'!F50 -> 3.124482e-06 | F45: 3.781366073e-06 | G45: 6.017085278e-06 | H45: 3.128956258e-06 | J45: 0.000113588032 | K45: 0.001591529407 | L45: -2.240332779e-05 | M45: -0.0006237145879 | N45: 1.696621831e-07
A46: 19.942 | B46: ='DF raw data'!D51 -> 2.7632911e-06 | C46: ='DF raw data'!E51 -> 1.913339e-06 | D46: ='DF raw data'!F51 -> 4.7804169e-06 | F46: 2.767248133e-06 | G46: 1.920897555e-06 | H46: 4.787262457e-06 | J46: 0.0001149723479 | K46: 0.001649044324 | L46: -2.144239879e-05 | M46: -0.0006344411479 | N46: 1.765048113e-07
A47: 20.44225 | B47: ='DF raw data'!D52 -> 5.390028e-06 | C47: ='DF raw data'!E52 -> 2.6443865e-06 | D47: ='DF raw data'!F52 -> 6.4985761e-06 | F47: 5.39774652e-06 | G47: 2.654833024e-06 | H47: 6.507882061e-06 | J47: 0.0001176725706 | K47: 0.001707910028 | L47: -2.011431857e-05 | M47: -0.0006445033358 | N47: 1.83634084e-07
A48: 20.9425 | B48: ='DF raw data'!D53 -> 9.6099966e-06 | C48: ='DF raw data'!E53 -> -6.6944481e-06 | D48: ='DF raw data'!F53 -> 6.8162279e-07 | F48: 9.623758115e-06 | G48: -6.720894201e-06 | H48: 6.825988738e-07 | J48: 0.0001224868556 | K48: 0.001769184077 | L48: -2.347644589e-05 | M48: -0.0006562474279 | N48: 1.914150592e-07
A49: 21.44275 | B49: ='DF raw data'!D54 -> 1.2889329e-05 | C49: ='DF raw data'!E54 -> 1.4316669e-06 | D49: ='DF raw data'!F54 -> -4.4748631e-06 | F49: 1.290778652e-05 | G49: 1.437322632e-06 | H49: -4.481271104e-06 | J49: 0.0001289439758 | K49: 0.001833688301 | L49: -2.275742525e-05 | M49: -0.0006676318298 | N49: 1.9999157e-07
A50: 21.943 | B50: ='DF raw data'!D55 -> 8.7760845e-06 | C50: ='DF raw data'!E55 -> -1.2116589e-06 | D50: ='DF raw data'!F55 -> -8.9584847e-07 | F50: 8.788651853e-06 | G50: -1.216445501e-06 | H50: -8.97131325e-07 | J50: 0.0001333404989 | K50: 0.001900391886 | L50: -2.336595211e-05 | M50: -0.0006793206474 | N50: 2.091589796e-07
A51: 22.44325 | B51: ='DF raw data'!D56 -> -1.8977269e-07 | C51: ='DF raw data'!E56 -> -4.336523e-06 | D51: ='DF raw data'!F56 -> 1.2997735e-06 | F51: -1.900444445e-07 | G51: -4.353654229e-06 | H51: 1.301634776e-06 | J51: 0.0001332454291 | K51: 0.001967047911 | L51: -2.554386764e-05 | M51: -0.0006920989672 | N51: 2.183669981e-07
A52: 22.9435 | B52: ='DF raw data'!D57 -> -9.8457394e-06 | C52: ='DF raw data'!E57 -> -1.4478455e-05 | D52: ='DF raw data'!F57 -> 1.8811226e-06 | F52: -9.859838499e-06 | G52: -1.453565145e-05 | H52: 1.883816368e-06 | J52: 0.0001283130449 | K52: 0.002031236512 | L52: -3.281532728e-05 | M52: -0.0007085148346 | N52: 2.271419249e-07
A53: 23.44375 | B53: ='DF raw data'!D58 -> -1.0710211e-05 | C53: ='DF raw data'!E58 -> -6.4704241e-06 | D53: ='DF raw data'!F58 -> 2.1537237e-06 | F53: -1.072554802e-05 | G53: -6.495985205e-06 | H53: 2.156807832e-06 | J53: 0.0001229475895 | K53: 0.002092741044 | L53: -3.606494387e-05 | M53: -0.0007265563228 | N53: 2.353544241e-07
A54: 23.944 | B54: ='DF raw data'!D59 -> -5.215597e-06 | C54: ='DF raw data'!E59 -> 5.0942426e-06 | D54: ='DF raw data'!F59 -> -1.7829478e-06 | F54: -5.223065735e-06 | G54: 5.114367165e-06 | H54: -1.785500981e-06 | J54: 0.0001203347509 | K54: 0.002152938503 | L54: -3.35064817e-05 | M54: -0.0007433179403 | N54: 2.431598932e-07
A55: 24.44425 | B55: ='DF raw data'!D60 -> -1.2618996e-06 | C55: ='DF raw data'!E60 -> -1.3454002e-05 | D55: ='DF raw data'!F60 -> -2.4437647e-06 | F55: -1.26370664e-06 | G55: -1.35071514e-05 | H55: -2.447264171e-06 | J55: 0.0001197025816 | K55: 0.002212819719 | L55: -4.026343419e-05 | M55: -0.0007634597232 | N55: 2.511388067e-07
A56: 24.9445 | B56: ='DF raw data'!D61 -> -4.5814827e-06 | C56: ='DF raw data'!E61 -> -5.9171011e-06 | D56: ='DF raw data'!F61 -> -6.0559141e-06 | F56: -4.588043383e-06 | G56: -5.940476328e-06 | H56: -6.064586169e-06 | J56: 0.0001174074129 | K56: 0.002271552778 | L56: -4.323515747e-05 | M56: -0.0007850881107 | N56: 2.589696099e-07
A57: 25.44475 | B57: ='DF raw data'!D62 -> -7.0381225e-06 | C57: ='DF raw data'!E62 -> -2.406766e-06 | D57: ='DF raw data'!F62 -> -1.0910302e-05 | F57: -7.048201091e-06 | G57: -2.416273815e-06 | H57: -1.092592555e-05 | J57: 0.0001138815503 | K57: 0.002328522023 | L57: -4.444389845e-05 | M57: -0.0008073211709 | N57: 2.664454798e-07
A58: 25.945 | B58: ='DF raw data'!D63 -> -3.3709086e-06 | C58: ='DF raw data'!E63 -> -6.8356135e-06 | D58: ='DF raw data'!F63 -> -7.1054128e-06 | F58: -3.375735741e-06 | G58: -6.862617268e-06 | H58: -7.115587751e-06 | J58: 0.0001121928385 | K58: 0.002384646491 | L58: -4.787692273e-05 | M58: -0.0008312716015 | N58: 2.73888916e-07
A59: 26.44525 | B59: ='DF raw data'!D64 -> 3.6164845e-06 | C59: ='DF raw data'!E64 -> -8.2403358e-06 | D59: ='DF raw data'!F64 -> 2.240977e-06 | F59: 3.621663306e-06 | G59: -8.272888857e-06 | H59: 2.244186079e-06 | J59: 0.0001140045756 | K59: 0.00244167728 | L59: -5.201543539e-05 | M59: -0.0008572923231 | N59: 2.817441661e-07
A60: 26.9455 | B60: ='DF raw data'!D65 -> 7.8498115e-06 | C60: ='DF raw data'!E65 -> 6.0046164e-06 | D60: ='DF raw data'!F65 -> 8.4559979e-06 | F60: 7.86105243e-06 | G60: 6.028337353e-06 | H60: 8.468106889e-06 | J60: 0.0001179370671 | K60: 0.002500675298 | L60: -4.899975962e-05 | M60: -0.0008818044528 | N60: 2.899033077e-07
A61: 27.44575 | B61: ='DF raw data'!D66 -> 6.9647053e-06 | C61: ='DF raw data'!E66 -> 6.2478543e-06 | D61: ='DF raw data'!F66 -> 3.6420063e-06 | F61: 6.974678758e-06 | G61: 6.272536153e-06 | H61: 3.647221653e-06 | J61: 0.0001214261501 | K61: 0.002561418729 | L61: -4.586192341e-05 | M61: -0.00090474688 | N61: 2.983313326e-07
A62: 27.946 | B62: ='DF raw data'!D67 -> 2.6409386e-06 | C62: ='DF raw data'!E67 -> -7.4355025e-06 | D62: ='DF raw data'!F67 -> -3.7452614e-07 | F62: 2.644720424e-06 | G62: -7.464876101e-06 | H62: -3.750624614e-07 | J62: 0.0001227491715 | K62: 0.002622824002 | L62: -4.959622768e-05 | M62: -0.0009295573929 | N62: 3.070992868e-07
A63: 28.44625 | B63: ='DF raw data'!D68 -> 2.4302851e-06 | C63: ='DF raw data'!E68 -> -1.1578817e-05 | D63: ='DF raw data'!F68 -> 1.2895558e-07 | F63: 2.433765268e-06 | G63: -1.162455857e-05 | H63: 1.291402444e-07 | J63: 0.0001239666626 | K63: 0.002684838325 | L63: -5.541141311e-05 | M63: -0.0009572769523 | N63: 3.163229754e-07
A64: 28.9465 | B64: ='DF raw data'!D69 -> 1.5867292e-07 | C64: ='DF raw data'!E69 -> -7.822975e-06 | D64: ='DF raw data'!F69 -> 1.1902849e-06 | F64: 1.589001396e-07 | G64: -7.853879293e-06 | H64: 1.191989388e-06 | J64: 0.0001240461524 | K64: 0.002746892413 | L64: -5.934031622e-05 | M64: -0.0009869619455 | N64: 3.257820632e-07
A65: 29.44675 | B65: ='DF raw data'!D70 -> -5.8899764e-06 | C65: ='DF raw data'!E70 -> -6.030114e-06 | D65: ='DF raw data'!F70 -> 7.0734059e-06 | F65: -5.898410846e-06 | G65: -6.05393568e-06 | H65: 7.083535017e-06 | J65: 0.0001210954724 | K65: 0.002807470423 | L65: -6.236879755e-05 | M65: -0.001018161937 | N65: 3.350636918e-07
A66: 29.947 | B66: ='DF raw data'!D71 -> -7.5801959e-06 | C66: ='DF raw data'!E71 -> -2.1744693e-06 | D66: ='DF raw data'!F71 -> 7.2516959e-06 | F66: -7.591050741e-06 | G66: -2.183059438e-06 | H66: 7.262080329e-06 | J66: 0.0001172980492 | K66: 0.002866148772 | L66: -6.346087303e-05 | M66: -0.001049908238 | N66: 3.439611957e-07
A67: 30.44725 | B67: ='DF raw data'!D72 -> -7.3091373e-06 | C67: ='DF raw data'!E72 -> 8.844213e-06 | D67: ='DF raw data'!F72 -> -7.5468034e-07 | F67: -7.319603985e-06 | G67: 8.879151646e-06 | H67: -7.557610422e-07 | J67: 0.0001136364173 | K67: 0.00292299539 | L67: -5.901907742e-05 | M67: -0.001079432532 | N67: 3.521635383e-07
A68: 30.9475 | B68: ='DF raw data'!D73 -> -8.9844116e-06 | C68: ='DF raw data'!E73 -> 1.7464949e-07 | D68: ='DF raw data'!F73 -> -7.1577851e-06 | F68: -8.997277277e-06 | G68: 1.753394346e-07 | H68: -7.168035048e-06 | J68: 0.0001091355294 | K68: 0.002977590438 | L68: -5.893136387e-05 | M68: -0.001108912946 | N68: 3.598591189e-07
A69: 31.44775 | B69: ='DF raw data'!D74 -> -9.7897437e-06 | C69: ='DF raw data'!E74 -> 9.1650452e-07 | D69: ='DF raw data'!F74 -> -7.2345174e-06 | F69: -9.803762613e-06 | G69: 9.201251278e-07 | H69: -7.244877229e-06 | J69: 0.0001042311971 | K69: 0.003029732095 | L69: -5.847107127e-05 | M69: -0.0011381631 | N69: 3.670041939e-07
A70: 31.948 | B70: ='DF raw data'!D75 -> -8.6777009e-06 | C70: ='DF raw data'!E75 -> 6.6159796e-06 | D70: ='DF raw data'!F75 -> -5.338723e-06 | F70: -8.690127368e-06 | G70: 6.642115715e-06 | H70: -5.346368051e-06 | J70: 9.988396092e-05 | K70: 0.003079699046 | L70: -5.514835289e-05 | M70: -0.001165751063 | N70: 3.735165217e-07
A71: 32.44825 | B71: ='DF raw data'!D76 -> -4.8956003e-06 | C71: ='DF raw data'!E76 -> 2.4651938e-06 | D71: ='DF raw data'!F76 -> -5.4025622e-06 | F71: -4.9026108e-06 | G71: =(1-$G$1*($B$2-$G$2))*C71*$M$2/$M$1 -> 2.474932432e-06 | H71: -5.410298669e-06 | J71: 9.743142987e-05 | K71: 0.003128439119 | L71: -5.391026794e-05 | M71: -0.001192719675 | N71: 3.797192218e-07
A72: =A71+$B$1 -> 32.9485 | B72: ='DF raw data'!D77 -> 1.3165688e-06 | C72: ='DF raw data'!E77 -> 7.0210649e-06 | D72: ='DF raw data'!F77 -> -3.1937559e-06 | F72: 1.318454127e-06 | G72: 7.048801285e-06 | H72: -3.198329358e-06 | J72: =F72*$B$1+J71 -> 9.809098655e-05 | K72: =J72*$B$1+K71 -> 0.003177509135 | L72: =G72*$B$1+L71 -> -5.03841051e-05 | M72: =L72*$B$1+M71 -> -0.001217924324 | N72: =(J72^2+L72^2)*$B$1+N71 -> 3.858024617e-07
A73: 33.44875 | B73: ='DF raw data'!D78 -> 5.6669655e-06 | C73: ='DF raw data'!E78 -> -3.2404189e-06 | D73: ='DF raw data'!F78 -> 6.0608545e-06 | F73: 5.675080595e-06 | G73: -3.253220022e-06 | H73: 6.069533644e-06 | J73: 0.0001009299456 | K73: 0.00322799934 | L73: -5.201152841e-05 | M73: -0.001243943091 | N73: 3.922517112e-07
A74: 33.949 | B74: ='DF raw data'!D79 -> 5.2484525e-06 | C74: ='DF raw data'!E79 -> 1.0469963e-06 | D74: ='DF raw data'!F79 -> 5.8341066e-06 | F74: 5.255968284e-06 | G74: 1.051132409e-06 | H74: 5.842461041e-06 | J74: 0.0001035592437 | K74: 0.003279804852 | L74: -5.148569942e-05 | M74: -0.001269698812 | N74: 3.989427021e-07
A75: 34.44925 | B75: ='DF raw data'!D80 -> 3.6238914e-06 | C75: ='DF raw data'!E80 -> -2.3129667e-06 | D75: ='DF raw data'!F80 -> -2.8505344e-06 | F75: 3.629080812e-06 | G75: -2.322103966e-06 | H75: -2.854616365e-06 | J75: 0.0001053746914 | K75: 0.003332518541 | L75: -5.264733193e-05 | M75: -0.00129603564 | N75: 4.058839546e-07
A76: 34.9495 | B76: ='DF raw data'!D81 -> -6.0361458e-07 | C76: ='DF raw data'!E81 -> 4.6261803e-06 | D76: ='DF raw data'!F81 -> -3.0315603e-06 | F76: -6.044789561e-07 | G76: 4.644455807e-06 | H76: -3.035901494e-06 | J76: 0.0001050723008 | K76: 0.00338508096 | L76: -5.032394292e-05 | M76: -0.001321210192 | N76: 4.126736916e-07
A77: 35.44975 | B77: ='DF raw data'!D82 -> -5.6394651e-06 | C77: ='DF raw data'!E82 -> 8.0275058e-06 | D77: ='DF raw data'!F82 -> 3.450474e-06 | F77: -5.647540814e-06 | G77: 8.059218082e-06 | H77: 3.455415079e-06 | J77: 0.0001022471185 | K77: 0.003436230081 | L77: -4.629231907e-05 | M77: -0.001344367925 | N77: 4.18975567e-07
A78: 35.95 | B78: ='DF raw data'!D83 -> -5.8894379e-06 | C78: ='DF raw data'!E83 -> 6.6636135e-06 | D78: ='DF raw data'!F83 -> 2.524361e-06 | F78: -5.897871575e-06 | G78: 6.68993779e-06 | H78: 2.527975885e-06 | J78: 9.929670828e-05 | K78: 0.003485903259 | L78: -4.294567769e-05 | M78: -0.0013658515 | N78: 4.248305768e-07
A79: 36.45025 | B79: ='DF raw data'!D84 -> -2.8259685e-06 | C79: ='DF raw data'!E84 -> -1.4372843e-06 | D79: ='DF raw data'!F84 -> -1.8517638e-06 | F79: -2.830015287e-06 | G79: -1.442962224e-06 | H79: -1.854415526e-06 | J79: 9.788099313e-05 | K79: 0.003534868226 | L79: -4.366751954e-05 | M79: -0.001387696177 | N79: 4.305772192e-07
A80: 36.9505 | B80: ='DF raw data'!D85 -> 2.5745132e-07 | C80: ='DF raw data'!E85 -> -6.3040402e-06 | D80: ='DF raw data'!F85 -> -2.2448983e-06 | F80: 2.578199903e-07 | G80: -6.328944013e-06 | H80: -2.248112994e-06 | J80: 9.800996758e-05 | K80: 0.003583897712 | L80: -4.683357379e-05 | M80: -0.001411124672 | N80: 4.364798377e-07
A81: 37.45075 | B81: ='DF raw data'!D86 -> 3.72004e-07 | C81: ='DF raw data'!E86 -> -5.5397691e-06 | D81: ='DF raw data'!F86 -> -1.5625882e-06 | F81: 3.725367097e-07 | G81: -5.561653696e-06 | H81: -1.564825826e-06 | J81: 9.819632907e-05 | K81: 0.003633020426 | L81: -4.961579105e-05 | M81: -0.001435944971 | N81: 4.425349867e-07
A82: 37.951 | B82: ='DF raw data'!D87 -> -7.3068672e-06 | C82: ='DF raw data'!E87 -> -4.0442455e-07 | D82: ='DF raw data'!F87 -> -2.9146381e-07 | F82: -7.317330634e-06 | G82: -4.060222101e-07 | H82: -2.918811862e-07 | J82: 9.453583442e-05 | K82: 0.003680311977 | L82: -4.981890366e-05 | M82: -0.001460866878 | N82: 4.48247315e-07
A83: 38.45125 | B83: ='DF raw data'!D88 -> -1.283546e-05 | C83: ='DF raw data'!E88 -> 4.9154505e-06 | D83: ='DF raw data'!F88 -> 5.1282223e-06 | F83: -1.285384038e-05 | G83: 4.934868755e-06 | H83: 5.135565914e-06 | J83: 8.810570077e-05 | K83: 0.003724386854 | L83: -4.735023556e-05 | M83: -0.001484553833 | N83: 4.532521458e-07
A84: 38.9515 | B84: ='DF raw data'!D89 -> -7.4861468e-06 | C84: ='DF raw data'!E89 -> -2.437321e-06 | D84: ='DF raw data'!F89 -> 9.7666452e-06 | F84: -7.496866962e-06 | G84: -2.446949521e-06 | H84: 9.780631036e-06 | J84: 8.435539308e-05 | K84: 0.003766585639 | L84: -4.857432206e-05 | M84: -0.001508853138 | N84: 4.579921632e-07
A85: 39.45175 | B85: ='DF raw data'!D90 -> 3.2396918e-06 | C85: ='DF raw data'!E90 -> -3.5771893e-06 | D85: ='DF raw data'!F90 -> 8.0257269e-06 | F85: 3.244331039e-06 | G85: -3.591320817e-06 | H85: 8.037219741e-06 | J85: 8.597836968e-05 | K85: 0.003809596319 | L85: -5.03708803e-05 | M85: -0.001534051171 | N85: 4.629593984e-07
A86: 39.952 | B86: ='DF raw data'!D91 -> 8.022892e-06 | C86: ='DF raw data'!E91 -> -3.3015287e-06 | D86: ='DF raw data'!F91 -> 1.2650381e-06 | F86: 8.034380781e-06 | G86: -3.314571233e-06 | H86: 1.266849635e-06 | J86: 8.999756866e-05 | K86: 0.003854617603 | L86: -5.202899456e-05 | M86: -0.001560078675 | N86: 4.683653893e-07
A87: 40.45225 | B87: ='DF raw data'!D92 -> 5.2272794e-06 | C87: ='DF raw data'!E92 -> -2.7863664e-06 | D87: ='DF raw data'!F92 -> 2.5658921e-06 | F87: =(1-$G$1*($B$2-$G$2))*B87 -> 5.234764864e-06 | G87: -2.797373809e-06 | H87: 2.569566457e-06 | J87: 9.261625979e-05 | K87: 0.003900948886 | L87: -5.342838081e-05 | M87: -0.001586806223 | N87: 4.740844292e-07
A88: 40.9525 | B88: ='DF raw data'!D93 -> 7.2539392e-06 | C88: ='DF raw data'!E93 -> -3.0684312e-06 | D88: ='DF raw data'!F93 -> 7.0406641e-06 | F88: 7.264326841e-06 | G88: -3.080552892e-06 | H88: 7.050746331e-06 | J88: 9.625023929e-05 | K88: 0.003949098069 | L88: -5.496942739e-05 | M88: -0.001614304679 | N88: 4.802303739e-07
A89: 41.45275 | B89: ='DF raw data'!D94 -> 1.1115319e-05 | C89: ='DF raw data'!E94 -> -4.5353295e-06 | D89: ='DF raw data'!F94 -> 5.3358053e-06 | F89: 1.113123614e-05 | G89: -4.553246105e-06 | H89: 5.343446173e-06 | J89: 0.0001018186402 | K89: 0.004000032843 | L89: -5.724718876e-05 | M89: -0.001642942585 | N89: 4.87055923e-07
A90: 41.953 | B90: ='DF raw data'!D95 -> 9.0021049e-06 | C90: ='DF raw data'!E95 -> -3.0222657e-06 | D90: ='DF raw data'!F95 -> 9.7631357e-07 | F90: 9.014995914e-06 | G90: -3.034205018e-06 | H90: 9.77711651e-07 | J90: 0.0001063283919 | K90: 0.004053223621 | L90: -5.876504982e-05 | M90: -0.001672339801 | N90: 4.944391417e-07
A91: 42.45325 | B91: ='DF raw data'!D96 -> 2.056621e-06 | C91: ='DF raw data'!E96 -> -7.9572028e-06 | D91: ='DF raw data'!F96 -> -5.3606964e-06 | F91: 2.059566081e-06 | G91: -7.988637354e-06 | H91: -5.368372917e-06 | J91: 0.0001073586898 | K91: 0.004106929806 | L91: -6.276136565e-05 | M91: -0.001703736174 | N91: 5.021754466e-07
A92: 42.9535 | B92: ='DF raw data'!D97 -> -1.9217853e-06 | C92: ='DF raw data'!E97 -> -3.2277433e-06 | D92: ='DF raw data'!F97 -> -8.656516e-06 | F92: -1.924537297e-06 | G92: -3.240494347e-06 | H92: -8.668912131e-06 | J92: 0.00010639594 | K92: 0.004160154375 | L92: -6.438242295e-05 | M92: -0.001735943481 | N92: 5.099119091e-07
A93: 43.45375 | B93: ='DF raw data'!D98 -> -6.4085293e-07 | C93: ='DF raw data'!E98 -> 1.783114e-06 | D93: ='DF raw data'!F98 -> -5.4693701e-06 | F93: -6.417706314e-07 | G93: 1.790158108e-06 | H93: -5.477202238e-06 | J93: 0.0001060748943 | K93: 0.004213218341 | L93: -6.348689636e-05 | M93: -0.001767702801 | N93: 5.175569643e-07
A94: 43.954 | B94: ='DF raw data'!D99 -> 1.8984312e-07 | C94: ='DF raw data'!E99 -> 4.0248242e-06 | D94: ='DF raw data'!F99 -> -4.4353255e-06 | F94: 1.901149753e-07 | G94: 4.040724078e-06 | H94: -4.441676886e-06 | J94: 0.0001061699993 | K94: 0.004266329883 | L94: -6.146552414e-05 | M94: -0.00179845093 | N94: 5.250857666e-07
A95: 44.45425 | B95: ='DF raw data'!D100 -> -3.317183e-06 | C95: ='DF raw data'!E100 -> -2.81999e-06 | D95: ='DF raw data'!F100 -> -6.6217654e-06 | F95: -3.321933206e-06 | G95: -2.831130237e-06 | H95: -6.631247768e-06 | J95: 0.0001045082022 | K95: 0.004318610111 | L95: -6.288179704e-05 | M95: -0.001829907549 | N95: 5.32527528e-07
A96: 44.9545 | B96: ='DF raw data'!D101 -> -4.958421e-06 | C96: ='DF raw data'!E101 -> -5.4302254e-06 | D96: ='DF raw data'!F101 -> -5.9882332e-06 | F96: -4.965521459e-06 | G96: -5.451677249e-06 | H96: -5.99680835e-06 | J96: 0.0001020242001 | K96: 0.004369647717 | L96: -6.560899858e-05 | M96: -0.00186272845 | N96: 5.398879454e-07
A97: 45.45475 | B97: ='DF raw data'!D102 -> -4.6938235e-06 | C97: ='DF raw data'!E102 -> 5.348822e-06 | D97: ='DF raw data'!F102 -> -5.3031872e-06 | F97: -4.700545055e-06 | G97: 5.369952269e-06 | H97: -5.310781364e-06 | J97: 9.967275242e-05 | K97: 0.004419509012 | L97: -6.292267996e-05 | M97: -0.001894205521 | N97: 5.468383795e-07
A98: 45.955 | B98: ='DF raw data'!D103 -> -3.2002292e-06 | C98: ='DF raw data'!E103 -> 2.7524625e-06 | D98: ='DF raw data'!F103 -> 1.9989932e-06 | F98: -3.204811928e-06 | G98: 2.763335973e-06 | H98: 2.001855758e-06 | J98: 9.806954525e-05 | K98: 0.004468568302 | L98: -6.154032114e-05 | M98: -0.001924991067 | N98: 5.535441541e-07
A99: 46.45525 | B99: ='DF raw data'!D104 -> -2.7763028e-06 | C99: ='DF raw data'!E104 -> 4.580148e-06 | D99: ='DF raw data'!F104 -> 4.6870373e-06 | F99: -2.780278466e-06 | G99: 4.598241658e-06 | H99: 4.693749137e-06 | J99: 9.667871095e-05 | K99: 0.004516931827 | L99: -5.924005075e-05 | M99: -0.001954625902 | N99: 5.599754465e-07
A100: 46.9555 | B100: ='DF raw data'!D105 -> -1.4787668e-06 | C100: ='DF raw data'!E105 -> -1.8473058e-06 | D100: ='DF raw data'!F105 -> 5.9926933e-06 | F100: -1.480884394e-06 | G100: -1.854603494e-06 | H100: 6.001274837e-06 | J100: 9.593789853e-05 | K100: 0.004564924761 | L100: -6.016781615e-05 | M100: -0.001984724852 | N100: 5.663907758e-07
A101: 47.45575 | B101: ='DF raw data'!D106 -> 2.8971979e-06 | C101: ='DF raw data'!E106 -> -8.5533557e-06 | D101: ='DF raw data'!F106 -> 5.8606493e-06 | F101: 2.901346687e-06 | G101: -8.587145328e-06 | H101: 5.86904175e-06 | J101: 9.738929721e-05 | K101: 0.004613643757 | L101: -6.44635356e-05 | M101: -0.002016972736 | N101: 5.732142972e-07
A102: 47.956 | B102: ='DF raw data'!D107 -> 5.0915828e-06 | C102: ='DF raw data'!E107 -> 7.6544429e-06 | D102: ='DF raw data'!F107 -> -9.7550571e-07 | F102: 5.098873947e-06 | G102: 7.684681415e-06 | H102: -9.769026342e-07 | J102: 9.99400089e-05 | K102: 0.004663638746 | L102: -6.061927372e-05 | M102: -0.002047297527 | N102: 5.800490637e-07
A103: 48.45625 | B103: ='DF raw data'!D108 -> 4.4308968e-06 | C103: ='DF raw data'!E108 -> -1.5678368e-07 | D103: ='DF raw data'!F108 -> 4.2159459e-07 | F103: 4.437241844e-06 | G103: -1.574030465e-07 | H103: 4.221983135e-07 | J103: 0.0001021597391 | K103: 0.004714744155 | L103: -6.069801459e-05 | M103: -0.002077661709 | N103: 5.871130246e-07
A104: 48.9565 | B104: ='DF raw data'!D109 -> -1.315698e-06 | C104: ='DF raw data'!E109 -> 9.6836038e-06 | D104: ='DF raw data'!F109 -> 1.8167594e-06 | F104: -1.31758208e-06 | G104: 9.721858419e-06 | H104: 1.819360999e-06 | J104: 0.0001015006187 | K104: 0.00476551984 | L104: -5.583465492e-05 | M104: -0.002105592995 | N104: 5.938263217e-07
A105: 49.45675 | B105: ='DF raw data'!D110 -> -7.8883759e-06 | C105: ='DF raw data'!E110 -> 1.5345986e-05 | D105: ='DF raw data'!F110 -> 2.0115078e-06 | F105: -7.899672054e-06 | G105: 1.540660959e-05 | H105: 2.014388279e-06 | J105: 9.754880776e-05 | K105: 0.004814318631 | L105: -4.812749847e-05 | M105: -0.002129668776 | N105: 5.997452927e-07
A106: 49.957 | B106: ='DF raw data'!D111 -> -8.9920222e-06 | C106: ='DF raw data'!E111 -> -9.964408e-07 | D106: ='DF raw data'!F111 -> 3.3976942e-06 | F106: -9.004898776e-06 | G106: -1.000377192e-06 | H106: 3.402559698e-06 | J106: 9.304410714e-05 | K106: 0.004860863946 | L106: -4.862793716e-05 | M106: -0.002153994902 | N106: 6.052589892e-07
A107: 50.45725 | B107: ='DF raw data'!D112 -> -7.2016715e-06 | C107: ='DF raw data'!E112 -> -6.3325938e-06 | D107: ='DF raw data'!F112 -> 8.6078597e-07 | F107: -7.211984294e-06 | G107: -6.357610413e-06 | H107: 8.620186155e-07 | J107: 8.9436312e-05 | K107: 0.004905604461 | L107: -5.180833177e-05 | M107: -0.00217991202 | N107: 6.106031386e-07
A108: 50.9575 | B108: ='DF raw data'!D113 -> -1.5319686e-06 | C108: ='DF raw data'!E113 -> 8.6606178e-06 | D108: ='DF raw data'!F113 -> -2.8361571e-06 | F108: -1.534162379e-06 | G108: 8.694831161e-06 | H108: -2.840218477e-06 | J108: 8.866884727e-05 | K108: 0.004949961052 | L108: -4.745874248e-05 | M108: -0.002203653256 | N108: 6.156629155e-07
A109: 51.45775 | B109: ='DF raw data'!D114 -> 6.8964277e-06 | C109: ='DF raw data'!E114 -> 1.1526233e-05 | D109: ='DF raw data'!F114 -> -4.4669323e-06 | F109: 6.906303384e-06 | G109: 1.157176684e-05 | H109: -4.473328947e-06 | J109: 9.212372554e-05 | K109: 0.004996045945 | L109: -4.166996612e-05 | M109: -0.002224498656 | N109: 6.207770548e-07
A110: 51.958 | B110: ='DF raw data'!D115 -> 5.135646e-06 | C110: ='DF raw data'!E115 -> 7.4069362e-06 | D110: ='DF raw data'!F115 -> -2.5762745e-06 | F110: 5.143000245e-06 | G110: 7.436196951e-06 | H110: -2.579963725e-06 | J110: 9.469651141e-05 | K110: 0.005043417875 | L110: -3.795000859e-05 | M110: -0.002243483148 | N110: 6.259834729e-07
A111: 52.45825 | B111: ='DF raw data'!D116 -> -2.1869794e-06 | C111: ='DF raw data'!E116 -> 1.2865441e-05 | D111: ='DF raw data'!F116 -> -2.112682e-07 | F111: -2.190111155e-06 | G111: 1.291626532e-05 | H111: -2.115707361e-07 | J111: 9.360090831e-05 | K111: 0.005090241729 | L111: -3.148864687e-05 | M111: -0.002259235344 | N111: 6.308622435e-07
A112: 52.9585 | B112: ='DF raw data'!D117 -> -4.3692867e-06 | C112: ='DF raw data'!E117 -> 7.5348926e-06 | D112: ='DF raw data'!F117 -> 3.4998462e-07 | F112: -4.375543519e-06 | G112: 7.564658837e-06 | H112: 3.50485798e-07 | J112: 9.141204266e-05 | K112: 0.005135970604 | L112: -2.770442629e-05 | M112: -0.002273094483 | N112: 6.354263728e-07
A113: 53.45875 | B113: ='DF raw data'!D118 -> -2.716771e-06 | C113: ='DF raw data'!E118 -> 1.2598127e-06 | D113: ='DF raw data'!F118 -> -2.2740458e-06 | F113: -2.720661416e-06 | G113: 1.264789531e-06 | H113: -2.277302234e-06 | J113: 9.005103179e-05 | K113: 0.005181018632 | L113: -2.707171532e-05 | M113: -0.002286637109 | N113: 6.398496164e-07
A114: 53.959 | B114: ='DF raw data'!D119 -> 2.7941016e-07 | C114: ='DF raw data'!E119 -> -1.3657673e-06 | D114: ='DF raw data'!F119 -> -4.8164839e-06 | F114: 2.798102753e-07 | G114: -1.371162699e-06 | H114: -4.823381105e-06 | J114: 9.019100688e-05 | K114: 0.005226136684 | L114: -2.775763946e-05 | M114: -0.002300522868 | N114: 6.443042948e-07
A115: 54.45925 | B115: ='DF raw data'!D120 -> -1.3399269e-06 | C115: ='DF raw data'!E120 -> 3.9519728e-06 | D115: ='DF raw data'!F120 -> -1.8858177e-07 | F115: -1.341845675e-06 | G115: 3.967584882e-06 | H115: -1.888518191e-07 | J115: 8.951974858e-05 | K115: 0.005270918938 | L115: -2.577285513e-05 | M115: -0.002313415738 | N115: 6.48645477e-07
A116: 54.9595 | B116: ='DF raw data'!D121 -> -3.2427499e-06 | C116: ='DF raw data'!E121 -> 5.2569635e-07 | D116: ='DF raw data'!F121 -> 4.5165325e-06 | F116: -3.247393518e-06 | G116: 5.277730886e-07 | H116: 4.523000175e-06 | J116: 8.789523997e-05 | K116: 0.005314888532 | L116: -2.550883664e-05 | M116: -0.002326176534 | N116: 6.52835708e-07
A117: 55.45975 | B117: ='DF raw data'!D122 -> -2.432412e-06 | C117: ='DF raw data'!E122 -> 2.9395273e-06 | D117: ='DF raw data'!F122 -> -4.8833664e-07 | F117: -2.435895214e-06 | G117: 2.951139764e-06 | H117: -4.890359381e-07 | J117: 8.667668339e-05 | K117: 0.005358248543 | L117: -2.403252897e-05 | M117: -0.002338198807 | N117: 6.568829356e-07
A118: 55.96 | B118: ='DF raw data'!D123 -> 8.4617818e-07 | C118: ='DF raw data'!E123 -> -2.2913516e-06 | D118: ='DF raw data'!F123 -> -2.2130878e-06 | F118: 8.473899072e-07 | G118: -2.300403476e-06 | H118: -2.216256942e-06 | J118: 8.710059019e-05 | K118: 0.005401820613 | L118: -2.518330581e-05 | M118: -0.002350796755 | N118: 6.609953466e-07
A119: 56.46025 | B119: ='DF raw data'!D124 -> 3.7606067e-06 | C119: ='DF raw data'!E124 -> -6.6875095e-06 | D119: ='DF raw data'!F124 -> 1.7094827e-06 | F119: 3.765991889e-06 | G119: -6.71392819e-06 | H119: 1.711930679e-06 | J119: 8.898452763e-05 | K119: 0.005446335123 | L119: -2.854194839e-05 | M119: -0.002365074865 | N119: 6.653639743e-07
A120: 56.9605 | B120: ='DF raw data'!D125 -> 3.1925581e-06 | C120: ='DF raw data'!E125 -> -2.4369203e-06 | D120: ='DF raw data'!F125 -> 1.4175131e-06 | F120: 3.197129843e-06 | G120: -2.446547239e-06 | H120: 1.419542979e-06 | J120: 9.058389184e-05 | K120: 0.005491649715 | L120: -2.976583364e-05 | M120: -0.002379965223 | N120: 6.699119703e-07
A121: 57.46075 | B121: ='DF raw data'!D126 -> 5.1808297e-06 | C121: ='DF raw data'!E126 -> -3.6775266e-06 | D121: ='DF raw data'!F126 -> 6.2744601e-07 | F121: 5.188248648e-06 | G121: -3.692054495e-06 | H121: 6.283445127e-07 | J121: 9.317931322e-05 | K121: 0.005538262666 | L121: -3.161278391e-05 | M121: -0.002395779518 | N121: 6.74755267e-07
A122: 57.961 | B122: ='DF raw data'!D127 -> 4.0880682e-06 | C122: ='DF raw data'!E127 -> 9.0236131e-07 | D122: ='DF raw data'!F127 -> 4.6752044e-07 | F122: 4.093922314e-06 | G122: 9.059260457e-07 | H122: 4.681899293e-07 | J122: 9.522729786e-05 | K122: 0.005585900122 | L122: -3.11595944e-05 | M122: -0.002411367106 | N122: 6.797773561e-07
A123: 58.46125 | B123: ='DF raw data'!D128 -> 1.8486305e-06 | C123: ='DF raw data'!E128 -> -1.4304054e-07 | D123: ='DF raw data'!F128 -> 1.9366237e-06 | F123: 1.851277739e-06 | G123: -1.436056149e-07 | H123: 1.939396945e-06 | J123: 9.615339955e-05 | K123: 0.00563400086 | L123: -3.123143311e-05 | M123: -0.00242699063 | N123: 6.848903507e-07
A124: 58.9615 | B124: ='DF raw data'!D129 -> 3.6464614e-06 | C124: ='DF raw data'!E129 -> -7.0322798e-08 | D124: ='DF raw data'!F129 -> -1.7615129e-06 | F124: 3.651683133e-06 | G124: -7.060060489e-08 | H124: -1.764035386e-06 | J124: 9.798015404e-05 | K124: 0.005683015432 | L124: -3.126675106e-05 | M124: -0.002442631822 | N124: 6.901818552e-07
A125: 59.46175 | B125: ='DF raw data'!D130 -> 7.4097187e-08 | C125: ='DF raw data'!E130 -> 5.6092108e-07 | D125: ='DF raw data'!F130 -> -5.6197932e-06 | F125: 7.420329417e-08 | G125: 5.631369722e-07 | H125: -5.627840744e-06 | J125: 9.801727424e-05 | K125: 0.005732048573 | L125: -3.098504179e-05 | M125: -0.002458132089 | N125: 6.954682265e-07
A126: 59.962 | B126: ='DF raw data'!D131 -> -5.0261019e-06 | C126: ='DF raw data'!E131 -> -7.98168e-07 | D126: ='DF raw data'!F131 -> -1.7198507e-06 | F126: -5.033299278e-06 | G126: -8.01321125e-07 | H126: -1.722313526e-06 | J126: 9.549936627e-05 | K126: 0.005779822131 | L126: -3.138590269e-05 | M126: -0.002473832887 | N126: 7.005233548e-07
A127: 60.46225 | B127: ='DF raw data'!D132 -> -4.4865023e-06 | C127: ='DF raw data'!E132 -> -6.3615475e-06 | D127: ='DF raw data'!F132 -> 4.220823e-06 | F127: -4.492926971e-06 | G127: -6.386678493e-06 | H127: 4.226867219e-06 | J127: 9.325177955e-05 | K127: 0.005826471334 | L127: -3.45808386e-05 | M127: -0.002491131952 | N127: 7.054716921e-07
A128: 60.9625 | B128: ='DF raw data'!D133 -> -2.4210138e-07 | C128: ='DF raw data'!E133 -> -3.5031369e-06 | D128: ='DF raw data'!F133 -> 7.0869828e-06 | F128: -2.424480692e-07 | G128: -3.516975877e-06 | H128: 7.097131359e-06 | J128: 9.313049491e-05 | K128: 0.005873059864 | L128: -3.634020578e-05 | M128: -0.00250931114 | N128: 7.104711404e-07
A129: 61.46275 | B129: ='DF raw data'!D134 -> 1.2062944e-06 | C129: ='DF raw data'!E134 -> 1.0740821e-06 | D129: ='DF raw data'!F134 -> 4.1632557e-06 | F129: 1.208021814e-06 | G129: 1.078325211e-06 | H129: 4.169217482e-06 | J129: 9.373480782e-05 | K129: 0.005919950702 | L129: -3.58007736e-05 | M129: -0.002527220477 | N129: 7.155076122e-07
A130: 61.963 | B130: ='DF raw data'!D135 -> -3.2500364e-07 | C130: ='DF raw data'!E135 -> -9.3461804e-06 | D130: ='DF raw data'!F135 -> -9.1195744e-07 | F130: -3.254690452e-07 | G130: -9.383102044e-06 | H130: -9.132633631e-07 | J130: 9.357199193e-05 | K130: 0.005966760091 | L130: -4.049467039e-05 | M130: -0.002547477935 | N130: 7.20707979e-07
A131: 62.46325 | B131: ='DF raw data'!D136 -> -3.3494155e-06 | C131: ='DF raw data'!E136 -> 1.7344131e-06 | D131: ='DF raw data'!F136 -> 1.3847253e-07 | F131: -3.354211863e-06 | G131: 1.741264817e-06 | H131: 1.386708227e-07 | J131: 9.189404745e-05 | K131: 0.006012730088 | L131: -3.962360267e-05 | M131: -0.002567299643 | N131: 7.257177556e-07
A132: 62.9635 | B132: ='DF raw data'!D137 -> -3.7376315e-06 | C132: ='DF raw data'!E137 -> -1.8969406e-06 | D132: ='DF raw data'!F137 -> -2.7449627e-07 | F132: -3.742983788e-06 | G132: -1.904434374e-06 | H132: -2.748893487e-07 | J132: 9.002161981e-05 | K132: 0.006057763403 | L132: -4.057629597e-05 | M132: -0.002587597935 | N132: 7.305953571e-07
A133: 63.46375 | B133: ='DF raw data'!D138 -> -1.730544e-06 | C133: ='DF raw data'!E138 -> -9.5932874e-06 | D133: ='DF raw data'!F138 -> 8.4633592e-07 | F133: -1.733022139e-06 | G133: -9.631185229e-06 | H133: 8.47547873e-07 | J133: 8.915467548e-05 | K133: 0.00610236303 | L133: -4.539429638e-05 | M133: -0.002610306432 | N133: 7.356024586e-07
A134: 63.964 | B134: ='DF raw data'!D139 -> -1.9977463e-06 | C134: ='DF raw data'!E139 -> -4.5318602e-06 | D134: ='DF raw data'!F139 -> 2.4003059e-06 | F134: -2.000607073e-06 | G134: -4.5497631e-06 | H134: 2.403743138e-06 | J134: 8.815387179e-05 | K134: 0.006146462004 | L134: -4.767031537e-05 | M134: -0.002634153507 | N134: 7.406267515e-07
A135: 64.46425 | B135: ='DF raw data'!D140 -> -4.5436332e-06 | C135: ='DF raw data'!E140 -> 2.4936867e-07 | D135: ='DF raw data'!F140 -> 1.941484e-06 | F135: -4.550139683e-06 | G135: =(1-$G$1*($B$2-$G$2))*C135*$M$2/$M$1 -> 2.503537891e-07 | H135: 1.944264205e-06 | J135: 8.587766442e-05 | K135: 0.006189422306 | L135: -4.754507588e-05 | M135: -0.002657937931 | N135: 7.454469141e-07
A136: =A135+$B$1 -> 64.9645 | B136: ='DF raw data'!D141 -> -2.0220334e-06 | C136: ='DF raw data'!E141 -> 2.7720762e-06 | D136: ='DF raw data'!F141 -> 3.8741528e-06 | F136: -2.024928952e-06 | G136: 2.783027156e-06 | H136: 3.879700587e-06 | J136: =F136*$B$1+J135 -> 8.486469371e-05 | K136: =J136*$B$1+K135 -> 0.006231875869 | L136: =G136*$B$1+L135 -> -4.615286655e-05 | M136: =L136*$B$1+M135 -> -0.002681025903 | N136: =(J136^2+L136^2)*$B$1+N135 -> 7.501152988e-07
A137: 65.46475 | B137: ='DF raw data'!D142 -> 3.937223e-06 | C137: ='DF raw data'!E142 -> -1.5768489e-06 | D137: ='DF raw data'!F142 -> 1.5662482e-06 | F137: 3.942861103e-06 | G137: -1.583078167e-06 | H137: 1.568491067e-06 | J137: 8.683710998e-05 | K137: 0.006275316133 | L137: -4.69448014e-05 | M137: -0.002704510039 | N137: 7.549899839e-07
A138: 65.965 | B138: ='DF raw data'!D143 -> 3.3642863e-08 | C138: ='DF raw data'!E143 -> -2.9301282e-07 | D138: ='DF raw data'!F143 -> 4.4961926e-08 | F138: 3.369103958e-08 | G138: -2.941703533e-07 | H138: 4.502631148e-08 | J138: 8.685396392e-05 | K138: 0.006318764829 | L138: -4.709196012e-05 | M138: -0.002728067792 | N138: 7.598730561e-07
A139: 66.46525 | B139: ='DF raw data'!D144 -> -3.7787552e-06 | C139: ='DF raw data'!E144 -> 2.0874613e-06 | D139: ='DF raw data'!F144 -> 4.4815934e-06 | F139: -3.784166377e-06 | G139: 2.095707717e-06 | H139: 4.488011042e-06 | J139: 8.496093469e-05 | K139: 0.006361266536 | L139: -4.604358234e-05 | M139: -0.002751101095 | N139: 7.645445767e-07
A140: 66.9655 | B140: ='DF raw data'!D145 -> 2.8424681e-06 | C140: ='DF raw data'!E145 -> -4.055792e-06 | D140: ='DF raw data'!F145 -> 4.5883462e-06 | F140: 2.846538514e-06 | G140: -4.071814215e-06 | H140: 4.594916712e-06 | J140: 8.638491558e-05 | K140: 0.00640448059 | L140: -4.80805074e-05 | M140: -0.002775153368 | N140: 7.694340646e-07
A141: 67.46575 | B141: ='DF raw data'!D146 -> 6.7471688e-06 | C141: ='DF raw data'!E146 -> -9.2357022e-06 | D141: ='DF raw data'!F146 -> 6.2214494e-06 | F141: 6.756830746e-06 | G141: -9.272187405e-06 | H141: 6.230358516e-06 | J141: 8.976502016e-05 | K141: 0.006449385541 | L141: -5.271891915e-05 | M141: -0.002801526008 | N141: 7.748552955e-07
A142: 67.966 | B142: ='DF raw data'!D147 -> 3.2653904e-06 | C142: ='DF raw data'!E147 -> -1.6919238e-07 | D142: ='DF raw data'!F147 -> 9.8688142e-06 | F142: 3.270066439e-06 | G142: -1.698607665e-07 | H142: 9.882946342e-06 | J142: 9.14008709e-05 | K142: 0.006495108827 | L142: -5.280389199e-05 | M142: -0.002827941155 | N142: 7.804292662e-07
A143: 68.46625 | B143: ='DF raw data'!D148 -> 2.2429147e-06 | C143: ='DF raw data'!E148 -> 4.0409686e-06 | D143: ='DF raw data'!F148 -> 4.0928367e-07 | F143: 2.246126554e-06 | G143: 4.056932256e-06 | H143: 4.098697642e-07 | J143: 9.25244957e-05 | K143: 0.006541394206 | L143: -5.077441163e-05 | M143: -0.002853341054 | N143: 7.860014625e-07
A144: 68.9665 | B144: ='DF raw data'!D149 -> 1.3134984e-06 | C144: ='DF raw data'!E149 -> 1.8250101e-06 | D144: ='DF raw data'!F149 -> -5.363956e-06 | F144: 1.31537933e-06 | G144: 1.832219716e-06 | H144: -5.371637185e-06 | J144: 9.318251421e-05 | K144: 0.006588008759 | L144: -4.985784372e-05 | M144: -0.00287828244 | N144: 7.915886475e-07
A145: 69.46675 | B145: ='DF raw data'!D150 -> 2.2758311e-06 | C145: ='DF raw data'!E150 -> -6.0294465e-06 | D145: ='DF raw data'!F150 -> -7.0945571e-06 | F145: 2.27909009e-06 | G145: -6.053265544e-06 | H145: -7.104716506e-06 | J145: 9.432262903e-05 | K145: 0.006635193654 | L145: -5.288598981e-05 | M145: -0.002904738657 | N145: 7.97438414e-07
A146: 69.967 | B146: ='DF raw data'!D151 -> 8.9710657e-06 | C146: ='DF raw data'!E151 -> -1.5076002e-06 | D146: ='DF raw data'!F151 -> -4.9903792e-06 | F146: 8.983912266e-06 | G146: -1.513555903e-06 | H146: -4.997525423e-06 | J146: 9.881683114e-05 | K146: 0.006684626774 | L146: -5.364314615e-05 | M146: -0.002931573641 | N146: 8.037627512e-07
A147: 70.46725 | B147: ='DF raw data'!D152 -> 7.5240082e-06 | C147: ='DF raw data'!E152 -> 1.0916337e-05 | D147: ='DF raw data'!F152 -> -2.242308e-06 | F147: 7.53478258e-06 | G147: 1.095946147e-05 | H147: -2.245518985e-06 | J147: 0.0001025861061 | K147: 0.006735945473 | L147: -4.816067555e-05 | M147: -0.002955666019 | N147: 8.10187642e-07
A148: 70.9675 | B148: ='DF raw data'!D153 -> -9.8202258e-07 | C148: ='DF raw data'!E153 -> 6.9474856e-07 | D148: ='DF raw data'!F153 -> -8.4073436e-06 | F148: -9.834288363e-07 | G148: 6.974931314e-07 | H148: -8.419382916e-06 | J148: 0.0001020941459 | K148: 0.00678701807 | L148: -4.781175461e-05 | M148: -0.002979583849 | N148: 8.165454085e-07
A149: 71.46775 | B149: ='DF raw data'!D154 -> -5.4079005e-06 | C149: ='DF raw data'!E154 -> -7.4556497e-06 | D149: ='DF raw data'!F154 -> -8.0710342e-06 | F149: -5.415644614e-06 | G149: -7.485102892e-06 | H149: -8.082591921e-06 | J149: 9.938496964e-05 | K149: 0.006836735401 | L149: -5.155617733e-05 | M149: -0.003005374827 | N149: 8.228162482e-07
A150: 71.968 | B150: ='DF raw data'!D155 -> -6.4124192e-06 | C150: ='DF raw data'!E155 -> -2.9300675e-06 | D150: ='DF raw data'!F155 -> -6.2278305e-06 | F150: -6.421601784e-06 | G150: -2.941642593e-06 | H150: -6.236748753e-06 | J150: 9.617256334e-05 | K150: 0.006884845726 | L150: -5.302773404e-05 | M150: -0.00303190195 | N150: 8.288498147e-07
A151: 72.46825 | B151: ='DF raw data'!D156 -> -5.1710099e-06 | C151: ='DF raw data'!E156 -> -3.7503776e-06 | D151: ='DF raw data'!F156 -> -7.7643526e-06 | F151: =(1-$G$1*($B$2-$G$2))*B151 -> -5.178414786e-06 | G151: -3.76519329e-06 | H151: -7.775471153e-06 | J151: 9.358206135e-05 | K151: 0.006931660152 | L151: -5.491127198e-05 | M151: -0.003059371314 | N151: 8.347391829e-07
A152: 72.9685 | B152: ='DF raw data'!D157 -> -3.9736638e-06 | C152: ='DF raw data'!E157 -> -6.6680291e-06 | D152: ='DF raw data'!F157 -> -5.3270232e-06 | F152: -3.979354087e-06 | G152: -6.694370834e-06 | H152: -5.334651497e-06 | J152: 9.159138946e-05 | K152: 0.006977478744 | L152: -5.826013099e-05 | M152: -0.003088515945 | N152: 8.406337415e-07
A153: 73.46875 | B153: ='DF raw data'!D158 -> -6.9756511e-06 | C153: ='DF raw data'!E158 -> 1.0443279e-06 | D153: ='DF raw data'!F158 -> -2.064731e-06 | F153: -6.985640232e-06 | G153: 1.048453468e-06 | H153: -2.067687695e-06 | J153: 8.809682294e-05 | K153: 0.00702154918 | L153: -5.773564214e-05 | M153: -0.0031173982 | N153: 8.461837424e-07
A154: 73.969 | B154: ='DF raw data'!D159 -> -8.692311e-06 | C154: ='DF raw data'!E159 -> 1.4448761e-06 | D154: ='DF raw data'!F159 -> -4.3149921e-08 | F154: -8.704758389e-06 | G154: 1.450584015e-06 | H154: -4.321171169e-08 | J154: 8.374226755e-05 | K154: 0.007063441249 | L154: -5.700998749e-05 | M154: -0.003145917446 | N154: 8.513177612e-07
A155: 74.46925 | B155: ='DF raw data'!D160 -> -5.7973243e-06 | C155: ='DF raw data'!E160 -> -3.3901244e-06 | D155: ='DF raw data'!F160 -> 3.1715429e-06 | F155: -5.805626068e-06 | G155: -3.403516926e-06 | H155: 3.176084549e-06 | J155: 8.083800311e-05 | K155: 0.007103880461 | L155: -5.871259683e-05 | M155: -0.003175288423 | N155: 8.563112325e-07
A156: 74.9695 | B156: ='DF raw data'!D161 -> -6.0344187e-06 | C156: ='DF raw data'!E161 -> 4.7278518e-06 | D156: ='DF raw data'!F161 -> 5.8417609e-06 | F156: -6.043059988e-06 | G156: 4.746528955e-06 | H156: 5.850126302e-06 | J156: 7.781496235e-05 | K156: 0.007142807395 | L156: -5.633814572e-05 | M156: -0.00320347158 | N156: 8.609281173e-07
A157: 75.46975 | B157: ='DF raw data'!D162 -> -8.5882502e-06 | C157: ='DF raw data'!E162 -> -1.3417502e-06 | D157: ='DF raw data'!F162 -> 4.3605214e-06 | F157: -8.600548574e-06 | G157: -1.347050721e-06 | H157: 4.366765667e-06 | J157: 7.351253793e-05 | K157: 0.007179582043 | L157: -5.701200785e-05 | M157: -0.003231991837 | N157: 8.652575121e-07
A158: 75.97 | B158: ='DF raw data'!D163 -> -5.0033427e-06 | C158: ='DF raw data'!E163 -> -6.5652907e-06 | D158: ='DF raw data'!F163 -> -2.2645288e-06 | F158: -5.010507487e-06 | G158: -6.591226571e-06 | H158: -2.267771605e-06 | J158: 7.100603156e-05 | K158: 0.00721510281 | L158: -6.030926894e-05 | M158: -0.003262161549 | N158: 8.695992141e-07
A159: 76.47025 | B159: ='DF raw data'!D164 -> 2.5062461e-06 | C159: ='DF raw data'!E164 -> 1.3110547e-05 | D159: ='DF raw data'!F164 -> -3.8167673e-06 | F159: 2.509835044e-06 | G159: 1.31623396e-05 | H159: -3.822232911e-06 | J159: 7.226157654e-05 | K159: 0.007251251664 | L159: -5.372480855e-05 | M159: -0.003289037384 | N159: 8.736552863e-07
A160: 76.9705 | B160: ='DF raw data'!D165 -> 5.2710807e-06 | C160: ='DF raw data'!E165 -> 1.762719e-05 | D160: ='DF raw data'!F165 -> -4.4675435e-06 | F160: 5.278628888e-06 | G160: 1.769682538e-05 | H160: -4.473941022e-06 | J160: 7.490221064e-05 | K160: 0.007288721494 | L160: -4.487197166e-05 | M160: -0.003311484588 | N160: 8.774691098e-07
A161: 77.47075 | B161: ='DF raw data'!D166 -> 6.7868809e-06 | C161: ='DF raw data'!E166 -> 1.2671705e-05 | D161: ='DF raw data'!F166 -> -4.5269007e-06 | F161: 6.796599713e-06 | G161: 1.272176397e-05 | H161: -4.533383222e-06 | J161: 7.830220965e-05 | K161: 0.007327892175 | L161: -3.850790923e-05 | M161: -0.00333074817 | N161: 8.812780609e-07
A162: 77.971 | B162: ='DF raw data'!D167 -> 1.1690702e-05 | C162: ='DF raw data'!E167 -> 2.3991472e-06 | D162: ='DF raw data'!F167 -> -1.4563592e-06 | F162: 1.170744309e-05 | G162: 2.408624918e-06 | H162: -1.458444706e-06 | J162: 8.415885805e-05 | K162: 0.007369992643 | L162: -3.730299462e-05 | M162: -0.003349408993 | N162: 8.855172928e-07
A163: 78.47125 | B163: ='DF raw data'!D168 -> 7.6472925e-06 | C163: ='DF raw data'!E168 -> -1.185774e-06 | D163: ='DF raw data'!F168 -> -2.1828052e-06 | F163: 7.658243423e-06 | G163: -1.190458344e-06 | H163: -2.185930977e-06 | J163: 8.798989432e-05 | K163: 0.007414009588 | L163: -3.78985214e-05 | M163: -0.003368367728 | N163: 8.901088472e-07
A164: 78.9715 | B164: ='DF raw data'!D169 -> -1.6107235e-06 | C164: ='DF raw data'!E169 -> -5.8726696e-06 | D164: ='DF raw data'!F169 -> -1.684315e-06 | F164: -1.613030056e-06 | G164: -5.895869304e-06 | H164: -1.686726939e-06 | J164: 8.718297604e-05 | K164: 0.007457622872 | L164: -4.084793002e-05 | M164: -0.003388801905 | N164: 8.947458769e-07
A165: 79.47175 | B165: ='DF raw data'!D170 -> -2.8281659e-06 | C165: ='DF raw data'!E170 -> -5.8048886e-06 | D165: ='DF raw data'!F170 -> -2.7101084e-06 | F165: -2.832215834e-06 | G165: -5.827820538e-06 | H165: -2.713989275e-06 | J165: 8.576616007e-05 | K165: 0.007500527393 | L165: -4.376329725e-05 | M165: -0.003410694494 | N165: 8.993837248e-07
A166: 79.972 | B166: ='DF raw data'!D171 -> 3.1051156e-06 | C166: ='DF raw data'!E171 -> -6.6567486e-07 | D166: ='DF raw data'!F171 -> -3.3757858e-06 | F166: 3.109562126e-06 | G166: -6.683045771e-07 | H166: -3.380619925e-06 | J166: 8.732171852e-05 | K166: 0.007544210083 | L166: -4.409761661e-05 | M166: -0.003432754327 | N166: 9.041709584e-07
A167: 80.47225 | B167: ='DF raw data'!D172 -> 4.9474752e-06 | C167: ='DF raw data'!E172 -> 4.148244e-06 | D167: ='DF raw data'!F172 -> -4.0994964e-06 | F167: 4.954559984e-06 | G167: 4.164631442e-06 | H167: -4.105366879e-06 | J167: 8.980023715e-05 | K167: 0.007589132652 | L167: -4.201425973e-05 | M167: -0.003453771961 | N167: 9.090880561e-07
A168: 80.9725 | B168: ='DF raw data'!D173 -> -1.0957604e-06 | C168: ='DF raw data'!E173 -> 4.721981e-06 | D168: ='DF raw data'!F173 -> -6.2587096e-06 | F168: -1.097329529e-06 | G168: 4.740634963e-06 | H168: -6.267672072e-06 | J168: 8.925129806e-05 | K168: 0.007633780614 | L168: -3.964275709e-05 | M168: -0.00347360325 | N168: 9.138591116e-07
A169: 81.47275 | B169: ='DF raw data'!D174 -> -1.1081939e-05 | C169: ='DF raw data'!E174 -> 1.2075093e-06 | D169: ='DF raw data'!F174 -> -1.0032458e-05 | F169: -1.109780834e-05 | G169: 1.212279508e-06 | H169: -1.004682448e-05 | J169: 8.369961944e-05 | K169: 0.007675651348 | L169: -3.903631427e-05 | M169: -0.003493131166 | N169: 9.18125974e-07
A170: 81.973 | B170: ='DF raw data'!D175 -> -1.2816498e-05 | C170: ='DF raw data'!E175 -> -4.175743e-06 | D170: ='DF raw data'!F175 -> -8.7722474e-06 | F170: -1.283485123e-05 | G170: -4.192239075e-06 | H170: -8.784809258e-06 | J170: 7.727898511e-05 | K170: 0.007714310161 | L170: -4.113348186e-05 | M170: -0.00351370819 | N170: 9.219598924e-07
A171: 82.47325 | B171: ='DF raw data'!D176 -> -4.1951293e-06 | C171: ='DF raw data'!E176 -> 3.8956664e-06 | D171: ='DF raw data'!F176 -> -6.6486427e-06 | F171: -4.201136725e-06 | G171: 3.911056046e-06 | H171: -6.658163556e-06 | J171: 7.517736646e-05 | K171: 0.007751917638 | L171: -3.917697608e-05 | M171: -0.003533306473 | N171: 9.25554925e-07
A172: 82.9735 | B172: ='DF raw data'!D177 -> 8.4150702e-07 | C172: ='DF raw data'!E177 -> 5.0902399e-06 | D172: ='DF raw data'!F177 -> 6.0474503e-07 | F172: 8.427120581e-07 | G172: 5.110348652e-06 | H172: 6.056110249e-07 | J172: 7.559893317e-05 | K172: 0.007789736004 | L172: -3.662052416e-05 | M172: -0.00355162589 | N172: 9.290848198e-07
A173: 83.47375 | B173: ='DF raw data'!D178 -> -4.4512576e-06 | C173: ='DF raw data'!E178 -> 4.3083569e-06 | D173: ='DF raw data'!F178 -> 4.5591842e-06 | F173: -4.457631801e-06 | G173: 4.32537686e-06 | H173: 4.565712952e-06 | J173: 7.336900286e-05 | K173: 0.007826438848 | L173: -3.445675439e-05 | M173: -0.003568862881 | N173: 9.323716016e-07
A174: 83.974 | B174: ='DF raw data'!D179 -> -8.042437e-06 | C174: ='DF raw data'!E179 -> 3.5975902e-06 | D174: ='DF raw data'!F179 -> 5.3879157e-06 | F174: -8.05395377e-06 | G174: 3.61180231e-06 | H174: 5.395631195e-06 | J174: 6.934001249e-05 | K174: 0.007861126189 | L174: -3.264995028e-05 | M174: -0.003585196019 | N174: 9.353100984e-07
A175: 84.47425 | B175: ='DF raw data'!D180 -> -2.7733779e-06 | C175: ='DF raw data'!E180 -> -7.0080018e-06 | D175: ='DF raw data'!F180 -> 4.8902257e-06 | F175: -2.777349377e-06 | G175: -7.03568658e-06 | H175: 4.897228503e-06 | J175: 6.795064346e-05 | K175: 0.007895118499 | L175: -3.61695525e-05 | M175: -0.003603289837 | N175: 9.382743431e-07
A176: 84.9745 | B176: ='DF raw data'!D181 -> -6.3271841e-07 | C176: ='DF raw data'!E181 -> -3.3839867e-06 | D176: ='DF raw data'!F181 -> -1.2410636e-06 | F176: -6.336244628e-07 | G176: -3.39735498e-06 | H176: -1.242840803e-06 | J176: 6.763367283e-05 | K176: 0.007928952244 | L176: -3.786907932e-05 | M176: -0.003622233844 | N176: 9.412800356e-07
A177: 85.47475 | B177: ='DF raw data'!D182 -> -2.0050222e-06 | C177: ='DF raw data'!E182 -> -2.6050386e-06 | D177: ='DF raw data'!F182 -> -2.1119229e-06 | F177: -2.007893392e-06 | G177: -2.615329682e-06 | H177: -2.114947174e-06 | J177: 6.662922416e-05 | K177: 0.007962283513 | L177: -3.9177398e-05 | M177: -0.003641832338 | N177: 9.442686902e-07
A178: 85.975 | B178: ='DF raw data'!D183 -> -1.0545057e-06 | C178: ='DF raw data'!E183 -> -9.797297e-06 | D178: ='DF raw data'!F183 -> 3.3516956e-06 | F178: -1.056015752e-06 | G178: -9.836000759e-06 | H178: 3.356495228e-06 | J178: 6.610095228e-05 | K178: 0.007995350514 | L178: -4.409785738e-05 | M178: -0.003663892291 | N178: 9.474272471e-07
A179: 86.47525 | B179: ='DF raw data'!D184 -> -1.6194692e-06 | C179: ='DF raw data'!E184 -> -4.506509e-06 | D179: ='DF raw data'!F184 -> 1.1549529e-06 | F179: -1.62178828e-06 | G179: -4.524311751e-06 | H179: 1.156606793e-06 | J179: 6.528965269e-05 | K179: 0.008028011663 | L179: -4.636114433e-05 | M179: -0.003687084453 | N179: 9.506348974e-07
A180: 86.9755 | B180: ='DF raw data'!D185 -> 4.7132082e-07 | C180: ='DF raw data'!E185 -> -3.2744431e-06 | D180: ='DF raw data'!F185 -> -1.2276176e-06 | F180: 4.719957514e-07 | G180: -3.287378633e-06 | H180: -1.229375548e-06 | J180: 6.552576856e-05 | K180: 0.008060790929 | L180: -4.800565549e-05 | M180: -0.003711099283 | N180: 9.539356316e-07
A181: 87.47575 | B181: ='DF raw data'!D186 -> 2.7687045e-06 | C181: ='DF raw data'!E186 -> 2.4229701e-07 | D181: ='DF raw data'!F186 -> -3.5553419e-06 | F181: 2.772669285e-06 | G181: 2.432541929e-07 | H181: -3.56043315e-06 | J181: 6.691279637e-05 | K181: 0.008094264055 | L181: -4.788396758e-05 | M181: -0.003735053237 | N181: 9.573224225e-07
A182: 87.976 | B182: ='DF raw data'!D187 -> -3.6831054e-06 | C182: ='DF raw data'!E187 -> 8.9008597e-07 | D182: ='DF raw data'!F187 -> -1.1875807e-05 | F182: -3.688379607e-06 | G182: 8.936022126e-07 | H182: -1.189281316e-05 | J182: 6.506768448e-05 | K182: 0.008126814164 | L182: -4.743694307e-05 | M182: -0.003758783568 | N182: 9.60566077e-07
A183: 88.47625 | B183: ='DF raw data'!D188 -> -5.9804893e-06 | C183: ='DF raw data'!E188 -> 4.6159141e-08 | D183: ='DF raw data'!F188 -> -1.2993452e-05 | F183: -5.989053361e-06 | G183: 4.634149051e-08 | H183: -1.301205862e-05 | J183: 6.207166053e-05 | K183: 0.008157865513 | L183: -4.741376074e-05 | M183: -0.003782502302 | N183: 9.636180802e-07
A184: 88.9765 | B184: ='DF raw data'!D189 -> 3.1419611e-06 | C184: ='DF raw data'!E189 -> 5.9136191e-06 | D184: ='DF raw data'!F189 -> -8.6521213e-06 | F184: 3.146460388e-06 | G184: 5.936980573e-06 | H184: -8.664511138e-06 | J184: 6.364567734e-05 | K184: 0.008189704263 | L184: -4.444378621e-05 | M184: -0.003804735306 | N184: 9.666325979e-07
A185: 89.47675 | B185: ='DF raw data'!D190 -> 6.7085189e-06 | C185: ='DF raw data'!E190 -> 2.8577365e-06 | D185: ='DF raw data'!F190 -> -1.507742e-06 | F185: 6.718125499e-06 | G185: 2.869025853e-06 | H185: -1.509901087e-06 | J185: 6.700641962e-05 | K185: 0.008223224224 | L185: -4.300855603e-05 | M185: -0.003826250336 | N185: 9.698039808e-07
A186: 89.977 | B186: ='DF raw data'!D191 -> 1.944353e-06 | C186: ='DF raw data'!E191 -> 7.8202929e-06 | D186: ='DF raw data'!F191 -> 1.3681966e-06 | F186: 1.947137313e-06 | G186: 7.851186598e-06 | H186: 1.370155858e-06 | J186: 6.798047506e-05 | K186: 0.008257231457 | L186: -3.908099993e-05 | M186: -0.003845800606 | N186: 9.728798528e-07
A187: 90.47725 | B187: ='DF raw data'!D192 -> -1.6116694e-06 | C187: ='DF raw data'!E192 -> -4.1442545e-06 | D187: ='DF raw data'!F192 -> -9.5361958e-07 | F187: -1.613977311e-06 | G187: -4.160626182e-06 | H187: -9.549851632e-07 | J187: 6.717308291e-05 | K187: 0.008290834791 | L187: -4.116235318e-05 | M187: -0.003866392073 | N187: 9.759846856e-07
A188: 90.9775 | B188: ='DF raw data'!D193 -> -3.8945013e-06 | C188: ='DF raw data'!E193 -> -8.2223232e-06 | D188: ='DF raw data'!F193 -> -3.1831039e-06 | F188: -3.900078226e-06 | G188: -8.254805099e-06 | H188: -3.187662105e-06 | J188: 6.522206878e-05 | K188: 0.008323462131 | L188: -4.529181943e-05 | M188: -0.003889049306 | N188: 9.791388955e-07
A189: 91.47775 | B189: ='DF raw data'!D194 -> -1.7244031e-06 | C189: ='DF raw data'!E194 -> -2.9719633e-06 | D189: ='DF raw data'!F194 -> 2.2281276e-06 | F189: -1.726872445e-06 | G189: -2.983703901e-06 | H189: 2.231318279e-06 | J189: 6.435820084e-05 | K189: 0.008355657321 | L189: -4.678441731e-05 | M189: -0.003912453211 | N189: 9.823058581e-07
A190: 91.978 | B190: ='DF raw data'!D195 -> 1.0926876e-06 | C190: ='DF raw data'!E195 -> 3.8438966e-06 | D190: ='DF raw data'!F195 -> 3.4951192e-06 | F190: 1.094252329e-06 | G190: 3.859081732e-06 | H190: 3.500124211e-06 | J190: 6.490560057e-05 | K190: 0.008388126348 | L190: -4.485391167e-05 | M190: -0.00393489138 | N190: 9.854197194e-07
A191: 92.47825 | B191: ='DF raw data'!D196 -> 9.9778003e-07 | C191: ='DF raw data'!E196 -> 1.1732378e-05 | D191: ='DF raw data'!F196 -> -2.3585778e-06 | F191: 9.99208851e-07 | G191: 1.17787262e-05 | H191: -2.361955283e-06 | J191: 6.54054548e-05 | K191: 0.008420845427 | L191: -3.896160389e-05 | M191: -0.003954381923 | N191: 9.883191084e-07
A192: 92.9785 | B192: ='DF raw data'!D197 -> 6.8738768e-07 | C192: ='DF raw data'!E197 -> 1.6166563e-05 | D192: ='DF raw data'!F197 -> 5.4644588e-06 | F192: 6.883720192e-07 | G192: 1.623042824e-05 | H192: 5.472283905e-06 | J192: 6.57498129e-05 | K192: 0.008453736771 | L192: -3.084233216e-05 | M192: -0.003969810799 | N192: 9.909575707e-07
A193: 93.47875 | B193: ='DF raw data'!D198 -> 1.5606772e-06 | C193: ='DF raw data'!E198 -> 1.2164548e-05 | D193: ='DF raw data'!F198 -> 8.941377e-06 | F193: 1.56291209e-06 | G193: 1.221260347e-05 | H193: 8.954181052e-06 | J193: 6.653165967e-05 | K193: 0.008487019233 | L193: -2.473297727e-05 | M193: -0.003982183471 | N193: 9.934779212e-07
A194: 93.979 | B194: ='DF raw data'!D199 -> 3.4488173e-06 | C194: ='DF raw data'!E199 -> -1.1352051e-06 | D194: ='DF raw data'!F199 -> 2.6341115e-06 | F194: 3.453756006e-06 | G194: -1.139689674e-06 | H194: 2.637883548e-06 | J194: 6.825940111e-05 | K194: 0.008521165999 | L194: -2.530310703e-05 | M194: -0.00399484135 | N194: 9.961290426e-07
A195: 94.47925 | B195: ='DF raw data'!D200 -> 3.2469677e-06 | C195: ='DF raw data'!E200 -> 1.0169679e-05 | D195: ='DF raw data'!F200 -> 2.459605e-06 | F195: 3.251617358e-06 | G195: 1.020985384e-05 | H195: 2.463127154e-06 | J195: 6.98860227e-05 | K195: 0.008556126482 | L195: -2.019562765e-05 | M195: -0.004004944213 | N195: 9.987763253e-07
A196: 94.9795 | B196: ='DF raw data'!D201 -> 4.8224451e-06 | C196: ='DF raw data'!E201 -> 5.7631132e-06 | D196: ='DF raw data'!F201 -> -3.5437406e-08 | F196: 4.829350841e-06 | G196: 5.785880106e-06 | H196: -3.548815237e-08 | J196: 7.230190545e-05 | K196: 0.00859229551 | L196: -1.730124113e-05 | M196: -0.004013599159 | N196: 1.001541156e-06
A197: 95.47975 | B197: ='DF raw data'!D202 -> 6.693836e-06 | C197: ='DF raw data'!E202 -> -5.3438248e-07 | D197: ='DF raw data'!F202 -> -4.8035035e-06 | F197: 6.703421573e-06 | G197: -5.364935327e-07 | H197: -4.810382117e-06 | J197: 7.56552921e-05 | K197: 0.00863014207 | L197: -1.756962202e-05 | M197: -0.004022388362 | N197: 1.004558872e-06
A198: 95.98 | B198: ='DF raw data'!D203 -> 5.4886173e-06 | C198: ='DF raw data'!E203 -> -1.6316876e-06 | D198: ='DF raw data'!F203 -> -4.6358509e-06 | F198: 5.496477e-06 | G198: -1.638133505e-06 | H198: -4.642489438e-06 | J198: 7.840490472e-05 | K198: 0.008669364123 | L198: -1.83890983e-05 | M198: -0.004031587509 | N198: 1.007803237e-06
A199: 96.48025 | B199: ='DF raw data'!D204 -> 2.0405266e-06 | C199: ='DF raw data'!E204 -> 1.1373265e-06 | D199: ='DF raw data'!F204 -> -1.2119743e-06 | F199: 2.043448634e-06 | G199: =(1-$G$1*($B$2-$G$2))*C199*$M$2/$M$1 -> 1.141819455e-06 | H199: -1.213709847e-06 | J199: 7.942713989e-05 | K199: 0.00870909755 | L199: -1.781790312e-05 | M199: -0.004040500915 | N199: 1.011117968e-06
A200: =A199+$B$1 -> 96.9805 | B200: ='DF raw data'!D205 -> -2.5084708e-07 | C200: ='DF raw data'!E205 -> 5.1942527e-07 | D200: ='DF raw data'!F205 -> 7.5668322e-06 | F200: -2.51206293e-07 | G200: 5.21477235e-07 | H200: 7.577667904e-06 | J200: =F200*$B$1+J199 -> 7.930147395e-05 | K200: =J200*$B$1+K199 -> 0.008748768112 | L200: =G200*$B$1+L199 -> -1.755703413e-05 | M200: =L200*$B$1+M199 -> -0.004049283821 | N200: =(J200^2+L200^2)*$B$1+N199 -> 1.014418104e-06
A201: 97.48075 | B201: ='DF raw data'!D206 -> -2.5631173e-06 | C201: ='DF raw data'!E206 -> -5.1770417e-07 | D201: ='DF raw data'!F206 -> 9.468491e-06 | F201: -2.566787684e-06 | G201: -5.197493359e-07 | H201: 9.482049879e-06 | J201: 7.801743841e-05 | K201: 0.008787796336 | L201: -1.781703874e-05 | M201: -0.004058196795 | N201: 1.017621789e-06
... 1002 more rows

Sheet 15 mm
A1: dz | B1: ='DF raw data'!H7 -> 0.50017 | C1: mm | F1: T_coeff | G1: -0.0008 | H1: /degC | L1: Hallref | M1: ='[1]PI vs x'!B50 -> 0.505 | N1: T | P1: IBy total | Q1: =L1203*1000 -> 2.896802749 | R1: muTm | X1: DF ref | Y1: 20
A2: Tref | B2: ='DF raw data'!H8 -> 21.85 | C2: degC | F2: Tcorr | G2: 20 | H2: degC | L2: NMRref | M2: ='[1]PI vs x'!B51 -> 0.50627 | N2: T | P2: JBy total | Q2: =M1203 -> 0.7470175197 | R2: muTm^2
A3: Encoder | B3: ='DF raw data'!H9 -> 3112965 | P3: PI total | Q3: =N1203 -> 364.7719151 | R3: T^2mm^3
A5: z [mm] | B5: Bx | C5: By | D5: Bz | F5: Bx_corr | G5: By_corr | H5: Bz_corr | J5: Ix | K5: Jx | L5: Iy | M5: Jy | N5: PI
A6: ='[1]PI vs x'!B53 -> -0.068 | B6: ='DF raw data'!G11 -> 5.5447672e-06 | C6: ='DF raw data'!H11 -> 1.5834774e-05 | D6: ='DF raw data'!I11 -> 8.8316265e-06 | F6: =(1-$G$1*($B$2-$G$2))*B6 -> 5.552973455e-06 | G6: =(1-$G$1*($B$2-$G$2))*C6*$M$2/$M$1 -> 1.589809051e-05 | H6: =(1-$G$1*($B$2-$G$2))*D6 -> 8.844697307e-06 | J6: =F6*$B$1 -> 2.777430733e-06 | K6: =J6*$B$1 -> 1.38918753e-06 | L6: =G6*$B$1 -> 7.951747929e-06 | M6: =L6*$B$1 -> 3.977225762e-06 | N6: =(J6^2+L6)^2*$B$1 -> 3.162595807e-11
A7: =A6+$B$1 -> 0.43217 | B7: ='DF raw data'!G12 -> 5.7732468e-06 | C7: ='DF raw data'!H12 -> 1.0152377e-05 | D7: ='DF raw data'!I12 -> 1.1887718e-05 | F7: =(1-$G$1*($B$2-$G$2))*B7 -> 5.781791205e-06 | G7: =(1-$G$1*($B$2-$G$2))*C7*$M$2/$M$1 -> 1.019297203e-05 | H7: 1.190531182e-05 | J7: =F7*$B$1+J6 -> 5.66930924e-06 | K7: =J7*$B$1+K6 -> 4.224805933e-06 | L7: =G7*$B$1+L6 -> 1.304996675e-05 | M7: =L7*$B$1+M6 -> 1.050442763e-05 | N7: =(J7^2+L7^2)*$B$1+N6 -> 1.32881723e-10
A8: =A7+$B$1 -> 0.93234 | B8: ='DF raw data'!G13 -> 6.098322e-06 | C8: ='DF raw data'!H13 -> 6.9679413e-07 | D8: ='DF raw data'!I13 -> 7.8128178e-06 | F8: 6.107347517e-06 | G8: 6.995803125e-07 | H8: 7.82438077e-06 | J8: =F8*$B$1+J7 -> 8.724021248e-06 | K8: =J8*$B$1+K7 -> 8.58829964e-06 | L8: =G8*$B$1+L7 -> 1.339987583e-05 | M8: =L8*$B$1+M7 -> 1.720664352e-05 | N8: =(J8^2+L8^2)*$B$1+N7 -> 2.607577956e-10
A9: 1.43251 | B9: ='DF raw data'!G14 -> 5.8753722e-06 | C9: ='DF raw data'!H14 -> 6.1815849e-06 | D9: ='DF raw data'!I14 -> 3.7512186e-06 | F9: 5.884067751e-06 | G9: 6.206302421e-06 | H9: 3.756770404e-06 | J9: 1.166705541e-05 | K9: 1.442381075e-05 | L9: 1.650408211e-05 | M9: 2.546149028e-05 | N9: 4.650796957e-10
A10: 1.93268 | B10: ='DF raw data'!G15 -> 5.922564e-06 | C10: ='DF raw data'!H15 -> 4.1793769e-06 | D10: ='DF raw data'!I15 -> -5.3485883e-07 | F10: 5.931329395e-06 | G10: 4.196088446e-06 | H10: -5.356504211e-07 | J10: 1.463372844e-05 | K10: 2.17431627e-05 | L10: 1.860283967e-05 | M10: 3.476607259e-05 | N10: 7.452807576e-10
A11: 2.43285 | B11: ='DF raw data'!G16 -> 5.862159e-06 | C11: ='DF raw data'!H16 -> 6.2836566e-06 | D11: ='DF raw data'!I16 -> 2.6827588e-06 | F11: 5.870834995e-06 | G11: 6.308782263e-06 | H11: 2.686729283e-06 | J11: 1.757014398e-05 | K11: 3.053122161e-05 | L11: 2.17583033e-05 | M11: 4.564892315e-05 | N11: 1.136480581e-09
A12: 2.93302 | B12: ='DF raw data'!G17 -> 5.9405211e-06 | C12: ='DF raw data'!H17 -> 3.5552043e-06 | D12: ='DF raw data'!I17 -> -2.7995296e-07 | F12: 5.949313071e-06 | G12: 3.569420046e-06 | H12: -2.803672904e-07 | J12: 2.05458119e-05 | K12: 4.080762035e-05 | L12: 2.354362012e-05 | M12: 5.742473563e-05 | N12: 1.624862792e-09
A13: 3.43319 | B13: ='DF raw data'!G18 -> 6.4046981e-06 | C13: ='DF raw data'!H18 -> -8.9914856e-06 | D13: ='DF raw data'!I18 -> 3.6075332e-07 | F13: 6.414177053e-06 | G13: -9.027438716e-06 | H13: 3.612872349e-07 | J13: 2.375399083e-05 | K13: 5.268865394e-05 | L13: 1.90283661e-05 | M13: 6.69421535e-05 | N13: 2.088185667e-09
A14: 3.93336 | B14: ='DF raw data'!G19 -> 6.5859858e-06 | C14: ='DF raw data'!H19 -> -1.379193e-05 | D14: ='DF raw data'!I19 -> 5.1549841e-07 | F14: 6.595733059e-06 | G14: -1.384707805e-05 | H14: 5.162613476e-07 | J14: 2.705297864e-05 | K14: 6.621974227e-05 | L14: 1.210247307e-05 | M14: 7.299544746e-05 | N14: 2.527501737e-09
A15: 4.43353 | B15: ='DF raw data'!G20 -> 6.3638508e-06 | C15: ='DF raw data'!H20 -> -7.632797e-06 | D15: ='DF raw data'!I20 -> 5.8344131e-07 | F15: 6.373269299e-06 | G15: -7.6633173e-06 | H15: 5.843048031e-07 | J15: 3.024069674e-05 | K15: 8.134523156e-05 | L15: 8.269511658e-06 | M15: 7.71316091e-05 | N15: 3.019111109e-09
A16: 4.9337 | B16: ='DF raw data'!G21 -> 6.3034313e-06 | C16: ='DF raw data'!H21 -> -6.9248326e-06 | D16: ='DF raw data'!I21 -> -5.1597049e-06 | F16: 6.312760378e-06 | G16: -6.952522052e-06 | H16: -5.167341263e-06 | J16: 3.33981501e-05 | K16: 9.80499843e-05 | L16: 4.792068703e-06 | M16: 7.952845811e-05 | N16: 3.588504813e-09
A17: 5.43387 | B17: ='DF raw data'!G22 -> 6.3751286e-06 | C17: ='DF raw data'!H22 -> -9.0229742e-06 | D17: ='DF raw data'!I22 -> -6.2573122e-06 | F17: 6.38456379e-06 | G17: -9.059053225e-06 | H17: -6.266573022e-06 | J17: 3.659151737e-05 | K17: 0.0001163519635 | L17: 2.610020517e-07 | M17: 7.96590035e-05 | N17: 4.258236077e-09
A18: 5.93404 | B18: ='DF raw data'!G23 -> 6.2578547e-06 | C18: ='DF raw data'!H23 -> -4.6023997e-06 | D18: ='DF raw data'!I23 -> 8.2437737e-07 | F18: 6.267116325e-06 | G18: -4.620802733e-06 | H18: 8.255974485e-07 | J18: 3.972614094e-05 | K18: 0.0001362217875 | L18: -2.050184851e-06 | M18: 7.863356254e-05 | N18: 5.049689846e-09
A19: 6.43421 | B19: ='DF raw data'!G24 -> 5.886126e-06 | C19: ='DF raw data'!H24 -> 6.1685091e-06 | D19: ='DF raw data'!I24 -> 4.8166225e-06 | F19: 5.894837466e-06 | G19: 6.193174337e-06 | H19: 4.823751101e-06 | J19: 4.26745618e-05 | K19: 0.000157566323 | L19: 1.047455157e-06 | M19: 7.915746819e-05 | N19: 5.961107316e-09
A20: 6.93438 | B20: ='DF raw data'!G25 -> 6.0844395e-06 | C20: ='DF raw data'!H25 -> 1.8656853e-07 | D20: ='DF raw data'!I25 -> 1.6692179e-06 | F20: 6.09344447e-06 | G20: 1.87314538e-07 | H20: 1.671688342e-06 | J20: 4.572231992e-05 | K20: 0.0001804352558 | L20: 1.141144269e-06 | M20: 7.972823432e-05 | N20: 7.007379303e-09
A21: 7.43455 | B21: ='DF raw data'!G26 -> 6.0443781e-06 | C21: ='DF raw data'!H26 -> 1.4355803e-06 | D21: ='DF raw data'!I26 -> 2.6415623e-06 | F21: 6.05332378e-06 | G21: 1.441320573e-06 | H21: 2.645471812e-06 | J21: 4.875001088e-05 | K21: 0.0002048185487 | L21: 1.86204958e-06 | M21: 8.065957566e-05 | N21: 8.197799302e-09
A22: 7.93472 | B22: ='DF raw data'!G27 -> 6.6786961e-06 | C22: ='DF raw data'!H27 -> 7.5163903e-06 | D22: ='DF raw data'!I27 -> 2.8782929e-06 | F22: 6.68858057e-06 | G22: 7.546445139e-06 | H22: 2.882552773e-06 | J22: 5.209543822e-05 | K22: 0.0002308751241 | L22: 5.636555045e-06 | M22: 8.347881139e-05 | N22: 9.57111879e-09
A23: 8.43489 | B23: ='DF raw data'!G28 -> 8.2204861e-06 | C23: ='DF raw data'!H28 -> 5.9745057e-06 | D23: ='DF raw data'!I28 -> -2.9602265e-06 | F23: =(1-$G$1*($B$2-$G$2))*B23 -> 8.232652419e-06 | G23: 5.9983952e-06 | H23: -2.964607635e-06 | J23: 5.621316398e-05 | K23: 0.0002589912623 | L23: 8.636772372e-06 | M23: 8.779866583e-05 | N23: 1.118892548e-08
A24: 8.93506 | B24: ='DF raw data'!G29 -> 7.0344759e-06 | C24: ='DF raw data'!H29 -> -7.0020869e-06 | D24: ='DF raw data'!I29 -> -4.388206e-06 | F24: 7.044886924e-06 | G24: -7.030085259e-06 | H24: -4.394700545e-06 | J24: 5.973680507e-05 | K24: 0.0002888698201 | L24: 5.120534629e-06 | M24: 9.035980364e-05 | N24: 1.298688946e-08
A25: 9.43523 | B25: ='DF raw data'!G30 -> 3.427871e-06 | C25: ='DF raw data'!H30 -> -2.2505422e-07 | D25: ='DF raw data'!I30 -> -1.7098096e-06 | F25: 3.432944249e-06 | G25: -2.259541158e-07 | H25: -1.712340118e-06 | J25: 6.14538608e-05 | K25: 0.0003196071976 | L25: 5.007519158e-06 | M25: 9.286441449e-05 | N25: 1.488836186e-08
A26: 9.9354 | B26: ='DF raw data'!G31 -> 2.2381209e-06 | C26: ='DF raw data'!H31 -> -7.503907e-06 | D26: ='DF raw data'!I31 -> 9.8083956e-07 | F26: 2.241433319e-06 | G26: -7.533911923e-06 | H26: 9.822912025e-07 | J26: 6.25749585e-05 | K26: 0.0003509053146 | L26: 1.239282432e-06 | M26: 9.348426639e-05 | N26: 1.684760841e-08
A27: 10.43557 | B27: ='DF raw data'!G32 -> 2.8002978e-07 | C27: ='DF raw data'!H32 -> 3.2328442e-06 | D27: ='DF raw data'!I32 -> -1.6331355e-06 | F27: 2.804442241e-07 | G27: 3.245770965e-06 | H27: -1.635552541e-06 | J27: 6.271522829e-05 | K27: 0.0003822735904 | L27: 2.862719695e-06 | M27: 9.49161129e-05 | N27: 1.881897596e-08
A28: 10.93574 | B28: ='DF raw data'!G33 -> 9.1976108e-07 | C28: ='DF raw data'!H33 -> -8.0572931e-07 | D28: ='DF raw data'!I33 -> -2.3381467e-06 | F28: 9.211223264e-07 | G28: -8.089510778e-07 | H28: -2.341607157e-06 | J28: 6.317594604e-05 | K28: 0.0004138723033 | L28: 2.458106635e-06 | M28: 9.614558409e-05 | N28: 2.081827671e-08
A29: 11.43591 | B29: ='DF raw data'!G34 -> 1.8499777e-06 | C29: ='DF raw data'!H34 -> -3.4445186e-06 | D29: ='DF raw data'!I34 -> -9.9088675e-07 | F29: 1.852715667e-06 | G29: -3.458291761e-06 | H29: -9.923532624e-07 | J29: 6.410261884e-05 | K29: 0.0004459345102 | L29: 7.283728447e-07 | M29: 9.650989434e-05 | N29: 2.287381349e-08
A30: 11.93608 | B30: ='DF raw data'!G35 -> -7.3656702e-07 | C30: ='DF raw data'!H35 -> -6.129073e-06 | D30: ='DF raw data'!I35 -> -1.0386752e-06 | F30: -7.376571392e-07 | G30: -6.153580549e-06 | H30: -1.040212439e-06 | J30: 6.373366487e-05 | K30: 0.0004778121773 | L30: -2.349463538e-06 | M30: 9.533476316e-05 | N30: 2.490825497e-08
A31: 12.43625 | B31: ='DF raw data'!G36 -> -5.1667957e-06 | C31: ='DF raw data'!H36 -> 4.0845098e-06 | D31: ='DF raw data'!I36 -> 3.9767183e-08 | F31: -5.174442558e-06 | G31: 4.100842013e-06 | H31: 3.982603843e-08 | J31: 6.114556393e-05 | K31: 0.000508395354 | L31: -2.983453889e-07 | M31: 9.518553975e-05 | N31: 2.677832508e-08
A32: 12.93642 | B32: ='DF raw data'!G37 -> -5.9061058e-06 | C32: ='DF raw data'!H37 -> 9.3527487e-06 | D32: ='DF raw data'!I37 -> 3.6850074e-06 | F32: -5.914846837e-06 | G32: 9.390146353e-06 | H32: 3.690461211e-06 | J32: 5.818713499e-05 | K32: 0.0005374988133 | L32: 4.398324112e-06 | M32: 9.738544952e-05 | N32: 2.848144791e-08
A33: 13.43659 | B33: ='DF raw data'!G38 -> -3.1422751e-06 | C33: ='DF raw data'!H38 -> 4.9054875e-06 | D33: ='DF raw data'!I38 -> 5.6170652e-06 | F33: -3.146925667e-06 | G33: 4.925102452e-06 | H33: 5.625378456e-06 | J33: 5.661313718e-05 | K33: 0.0005658150062 | L33: 6.861712606e-06 | M33: 0.0001008174723 | N33: 3.010806598e-08
A34: 13.93676 | B34: ='DF raw data'!G39 -> -3.3871838e-06 | C34: ='DF raw data'!H39 -> -2.5596294e-06 | D34: ='DF raw data'!I39 -> 4.2715369e-06 | F34: -3.392196832e-06 | G34: -2.569864266e-06 | H34: 4.277858775e-06 | J34: 5.491646209e-05 | K34: 0.000593282573 | L34: 5.576343596e-06 | M34: 0.0001036065921 | N34: 3.163204066e-08
A35: 14.43693 | B35: ='DF raw data'!G40 -> -7.4918717e-06 | C35: ='DF raw data'!H40 -> 7.481699e-06 | D35: ='DF raw data'!I40 -> 3.6066017e-06 | F35: -7.50295967e-06 | G35: 7.511615123e-06 | H35: 3.611939471e-06 | J35: 5.116370675e-05 | K35: 0.0006188731242 | L35: 9.333428132e-06 | M35: 0.0001082748928 | N35: 3.298491937e-08
A36: 14.9371 | B36: ='DF raw data'!G41 -> -1.1309814e-05 | C36: ='DF raw data'!H41 -> 8.0204782e-06 | D36: ='DF raw data'!I41 -> -1.6887817e-07 | F36: -1.132655252e-05 | G36: 8.052548671e-06 | H36: -1.691281097e-07 | J36: 4.549850498e-05 | K36: 0.0006416301114 | L36: 1.33610714e-05 | M36: 0.0001149576999 | N36: 3.410961773e-08
A37: 15.43727 | B37: ='DF raw data'!G42 -> -1.1779259e-05 | C37: ='DF raw data'!H42 -> -1.7297127e-06 | D37: ='DF raw data'!I42 -> 1.0985063e-06 | F37: -1.17966923e-05 | G37: -1.736629083e-06 | H37: 1.100132089e-06 | J37: 3.959815339e-05 | K37: 0.0006614359198 | L37: 1.249246163e-05 | M37: 0.0001212060545 | N37: 3.497194849e-08
A38: 15.93744 | B38: ='DF raw data'!G43 -> -5.3741751e-06 | C38: ='DF raw data'!H43 -> 5.4145121e-06 | D38: ='DF raw data'!I43 -> 1.6819945e-06 | F38: -5.382128879e-06 | G38: 5.436162424e-06 | H38: 1.684483852e-06 | J38: 3.690617398e-05 | K38: 0.0006798952809 | L38: 1.521146699e-05 | M38: 0.0001288143739 | N38: 3.576894658e-08
A39: 16.43761 | B39: ='DF raw data'!G44 -> 1.8765422e-07 | C39: ='DF raw data'!H44 -> -1.125361e-05 | D39: ='DF raw data'!I44 -> -1.9577888e-06 | F39: 1.879319482e-07 | G39: -1.129860839e-05 | H39: -1.960686327e-06 | J39: 3.700017191e-05 | K39: 0.0006984016568 | L39: 9.560242035e-06 | M39: 0.0001335961202 | N39: 3.649940033e-08
A40: 16.93778 | B40: ='DF raw data'!G45 -> -2.0502557e-06 | C40: ='DF raw data'!H45 -> -5.106087e-06 | D40: ='DF raw data'!I45 -> 2.054087e-06 | F40: -2.053290078e-06 | G40: -5.126504064e-06 | H40: 2.057127049e-06 | J40: 3.597317781e-05 | K40: 0.0007163943612 | L40: 6.996118498e-06 | M40: 0.0001370953687 | N40: 3.717113624e-08
A41: 17.43795 | B41: ='DF raw data'!G46 -> -4.5938141e-06 | C41: ='DF raw data'!H46 -> -4.472975e-06 | D41: ='DF raw data'!I46 -> 7.0729989e-06 | F41: -4.600612945e-06 | G41: -4.490860519e-06 | H41: 7.083466938e-06 | J41: 3.367208923e-05 | K41: 0.0007332361301 | L41: 4.749924792e-06 | M41: 0.0001394711386 | N41: 3.774951851e-08
A42: 17.93812 | B42: ='DF raw data'!G47 -> -2.7212882e-06 | C42: ='DF raw data'!H47 -> -1.101531e-05 | D42: ='DF raw data'!I47 -> 3.1686764e-06 | F42: -2.725315707e-06 | G42: -1.105935553e-05 | H42: 3.173366041e-06 | J42: 3.230896807e-05 | K42: 0.0007493961066 | L42: -7.816330616e-07 | M42: 0.0001390801892 | N42: 3.827193626e-08
A43: 18.43829 | B43: ='DF raw data'!G48 -> 2.2021486e-06 | C43: ='DF raw data'!H48 -> -4.9733271e-06 | D43: ='DF raw data'!I48 -> -1.308686e-06 | F43: 2.20540778e-06 | G43: -4.993213314e-06 | H43: -1.310622855e-06 | J43: 3.341204688e-05 | K43: 0.0007661078101 | L43: -3.279088565e-06 | M43: 0.0001374400875 | N43: 3.883568652e-08
A44: 18.93846 | B44: ='DF raw data'!G49 -> 5.4309567e-06 | C44: ='DF raw data'!H49 -> 1.2992375e-05 | D44: ='DF raw data'!I49 -> -1.2139498e-08 | F44: 5.438994516e-06 | G44: 1.304432597e-05 | H44: -1.215746446e-08 | J44: 3.613246877e-05 | K44: 0.000784180187 | L44: 3.245291954e-06 | M44: 0.0001390632852 | N44: 3.949395386e-08
A45: 19.43863 | B45: ='DF raw data'!G50 -> 5.2146133e-06 | C45: ='DF raw data'!H50 -> 2.2404131e-06 | D45: ='DF raw data'!I50 -> 7.6839751e-06 | F45: 5.222330928e-06 | G45: 2.249371556e-06 | H45: 7.695347383e-06 | J45: 3.874452203e-05 | K45: 0.0008035590346 | L45: 4.370360125e-06 | M45: 0.0001412492082 | N45: 4.025433132e-08
A46: 19.9388 | B46: ='DF raw data'!G51 -> 3.5115736e-06 | C46: ='DF raw data'!H51 -> -2.4550229e-06 | D46: ='DF raw data'!I51 -> 2.7899773e-06 | F46: 3.516770729e-06 | G46: -2.464839489e-06 | H46: 2.794106466e-06 | J46: 4.050350525e-05 | K46: 0.0008238176728 | L46: 3.137521358e-06 | M46: 0.0001428185023 | N46: 4.107980087e-08
A47: 20.43897 | B47: ='DF raw data'!G52 -> 1.7831189e-07 | C47: ='DF raw data'!H52 -> -4.1478754e-07 | D47: ='DF raw data'!I52 -> -3.4713626e-06 | F47: 1.785757916e-07 | G47: -4.164460985e-07 | H47: -3.476500217e-06 | J47: 4.05928235e-05 | K47: 0.0008441209854 | L47: 2.929227512e-06 | M47: 0.000144283614 | N47: 4.19082613e-08
A48: 20.93914 | B48: ='DF raw data'!G53 -> -3.0223964e-06 | C48: ='DF raw data'!H53 -> -4.378775e-06 | D48: ='DF raw data'!I53 -> -3.1415143e-06 | F48: -3.026869547e-06 | G48: -4.396283854e-06 | H48: -3.146163741e-06 | J48: 3.907887416e-05 | K48: 0.0008636670658 | L48: 7.303382174e-07 | M48: 0.0001446489072 | N48: 4.267236691e-08
A49: 21.43931 | B49: ='DF raw data'!G54 -> -1.6067133e-06 | C49: ='DF raw data'!H54 -> 7.5525491e-06 | D49: ='DF raw data'!I54 -> 1.989069e-06 | F49: -1.609091236e-06 | G49: 7.582748522e-06 | H49: 1.992012822e-06 | J49: 3.8274055e-05 | K49: 0.0008828105999 | L49: 4.523001546e-06 | M49: 0.0001469111769 | N49: 4.341529983e-08
A50: 21.93948 | B50: ='DF raw data'!G55 -> 4.2659158e-06 | C50: ='DF raw data'!H55 -> 2.8403015e-06 | D50: ='DF raw data'!I55 -> 3.2388893e-06 | F50: 4.272229355e-06 | G50: 2.851658654e-06 | H50: 3.243682856e-06 | J50: 4.041089595e-05 | K50: 0.0009030229178 | L50: 5.949315655e-06 | M50: 0.0001498868461 | N50: 4.42498009e-08
A51: 22.43965 | B51: ='DF raw data'!G56 -> 6.3285333e-06 | C51: ='DF raw data'!H56 -> 2.1480812e-06 | D51: ='DF raw data'!I56 -> 8.185857e-07 | F51: 6.337899529e-06 | G51: 2.15667046e-06 | H51: 8.197972068e-07 | J51: 4.358092316e-05 | K51: 0.0009248207881 | L51: 7.028017519e-06 | M51: 0.0001534020497 | N51: 4.522447712e-08
A52: 22.93982 | B52: ='DF raw data'!G57 -> 6.3559055e-06 | C52: ='DF raw data'!H57 -> 8.2451697e-06 | D52: ='DF raw data'!I57 -> -3.1021805e-06 | F52: 6.36531224e-06 | G52: 8.278138617e-06 | H52: -3.106771727e-06 | J52: 4.676466138e-05 | K52: 0.0009482110688 | L52: 1.116849411e-05 | M52: 0.0001589881954 | N52: 4.638070452e-08
A53: 23.43999 | B53: ='DF raw data'!G58 -> 6.2562394e-06 | C53: ='DF raw data'!H58 -> 8.5637271e-07 | D53: ='DF raw data'!I58 -> 4.2716097e-06 | F53: 6.265498634e-06 | G53: 8.597969792e-07 | H53: 4.277931682e-06 | J53: 4.989847584e-05 | K53: 0.0009731687894 | L53: 1.159853877e-05 | M53: 0.0001647894365 | N53: 4.769334266e-08
A54: 23.94016 | B54: ='DF raw data'!G59 -> 2.9205039e-06 | C54: ='DF raw data'!H59 -> -1.4121094e-05 | D54: ='DF raw data'!I59 -> 8.6834152e-06 | F54: 2.924826246e-06 | G54: -1.417755823e-05 | H54: 8.696266654e-06 | J54: 5.136138618e-05 | K54: 0.000998858214 | L54: 4.507349465e-06 | M54: 0.0001670438775 | N54: 4.902294866e-08
A55: 24.44033 | B55: ='DF raw data'!G60 -> 1.2860764e-06 | C55: ='DF raw data'!H60 -> -1.0118279e-05 | D55: ='DF raw data'!I60 -> 8.6999171e-06 | F55: 1.287979793e-06 | G55: -1.015873768e-05 | H55: 8.712792977e-06 | J55: 5.200559503e-05 | K55: 0.001024869852 | L55: -5.737463609e-07 | M55: 0.0001667569068 | N55: 5.037586405e-08
A56: 24.9405 | B56: ='DF raw data'!G61 -> 1.4396719e-06 | C56: ='DF raw data'!H61 -> 4.2446916e-07 | D56: ='DF raw data'!I61 -> 4.1611315e-06 | F56: 1.441802614e-06 | G56: 4.261664311e-07 | H56: 4.167289975e-06 | J56: 5.272674145e-05 | K56: 0.001051242187 | L56: -3.605906971e-07 | M56: 0.0001665765501 | N56: 5.176645633e-08
A57: 25.44067 | B57: ='DF raw data'!G62 -> 2.1294618e-06 | C57: ='DF raw data'!H62 -> -7.5418002e-06 | D57: ='DF raw data'!I62 -> -8.2026272e-06 | F57: 2.132613403e-06 | G57: -7.571956642e-06 | H57: -8.214767088e-06 | J57: 5.379341069e-05 | K57: 0.001078148037 | L57: -4.147856251e-06 | M57: 0.0001645019169 | N57: 5.322241907e-08
A58: 25.94084 | B58: ='DF raw data'!G63 -> 4.2113752e-06 | C58: ='DF raw data'!H63 -> -2.9672494e-06 | D58: ='DF raw data'!I63 -> -1.3421191e-05 | F58: 4.217608035e-06 | G58: -2.979114165e-06 | H58: -1.344105436e-05 | J58: 5.59029317e-05 | K58: 0.001106109006 | L58: -5.637919783e-06 | M58: 0.0001616819985 | N58: 5.48014177e-08
A59: 26.44101 | B59: ='DF raw data'!G64 -> 2.8280556e-06 | C59: ='DF raw data'!H64 -> 4.1314765e-06 | D59: ='DF raw data'!I64 -> -3.9991314e-06 | F59: 2.832241122e-06 | G59: 4.147996512e-06 | H59: -4.005050114e-06 | J59: 5.731953374e-05 | K59: 0.001134778517 | L59: -3.563216367e-06 | M59: 0.0001598997846 | N59: 5.645109113e-08
A60: 26.94118 | B60: ='DF raw data'!G65 -> 2.1881351e-06 | C60: ='DF raw data'!H65 -> 6.4561777e-06 | D60: ='DF raw data'!I65 -> 4.3209261e-06 | F60: 2.19137354e-06 | G60: 6.481993201e-06 | H60: 4.327321071e-06 | J60: 5.841559305e-05 | K60: 0.001163996245 | L60: -3.211178277e-07 | M60: 0.0001597391711 | N60: 5.815791356e-08
A61: 27.44135 | B61: ='DF raw data'!G66 -> 4.4457338e-06 | C61: ='DF raw data'!H66 -> 6.6644575e-06 | D61: ='DF raw data'!I66 -> 1.4156362e-06 | F61: 4.452313486e-06 | G61: 6.691105823e-06 | H61: 1.417731342e-06 | J61: 6.064250668e-05 | K61: 0.001194327807 | L61: 3.025572572e-06 | M61: 0.0001612524717 | N61: 6.000187415e-08
A62: 27.94152 | B62: ='DF raw data'!G67 -> 6.5855929e-06 | C62: ='DF raw data'!H67 -> -3.8793578e-06 | D62: ='DF raw data'!I67 -> -3.0103433e-06 | F62: 6.595339577e-06 | G62: -3.894869697e-06 | H62: -3.014798608e-06 | J62: 6.394129768e-05 | K62: 0.001226309326 | L62: 1.077475595e-06 | M62: 0.0001617913927 | N62: 6.204739464e-08
A63: 28.44169 | B63: ='DF raw data'!G68 -> 7.3076881e-06 | C63: ='DF raw data'!H68 -> -5.7010384e-06 | D63: ='DF raw data'!I68 -> -4.0281479e-06 | F63: 7.318503478e-06 | G63: -5.723834421e-06 | H63: -4.034109559e-06 | J63: 6.760179357e-05 | K63: 0.001260121715 | L63: -1.785414667e-06 | M63: 0.0001608983818 | N63: 6.433476718e-08
A64: 28.94186 | B64: ='DF raw data'!G69 -> 6.488197e-06 | C64: ='DF raw data'!H69 -> -5.4141015e-07 | D64: ='DF raw data'!I69 -> -9.5727182e-07 | F64: 6.497799532e-06 | G64: -5.435750183e-07 | H64: -9.586885823e-07 | J64: 7.085179796e-05 | K64: 0.001295559659 | L64: -2.057294584e-06 | M64: 0.0001598693848 | N64: 6.684772617e-08
A65: 29.44203 | B65: ='DF raw data'!G70 -> 5.6049685e-06 | C65: ='DF raw data'!H70 -> 1.0530446e-06 | D65: ='DF raw data'!I70 -> 2.4564765e-06 | F65: 5.613263853e-06 | G65: 1.057255276e-06 | H65: 2.460112085e-06 | J65: 7.365938414e-05 | K65: 0.001332401873 | L65: -1.528487212e-06 | M65: 0.0001591048813 | N65: 6.956266951e-08
A66: 29.9422 | B66: ='DF raw data'!G71 -> 4.8139846e-06 | C66: ='DF raw data'!H71 -> 3.0477809e-06 | D66: ='DF raw data'!I71 -> -4.9703553e-06 | F66: 4.821109297e-06 | G66: 3.059967676e-06 | H66: -4.977711426e-06 | J66: 7.607075838e-05 | K66: 0.001370450184 | L66: 2.016820041e-09 | M66: 0.0001591058901 | N66: 7.24570334e-08
A67: 30.44237 | B67: ='DF raw data'!G72 -> 2.3148968e-06 | C67: ='DF raw data'!H72 -> 4.5976708e-06 | D67: ='DF raw data'!I72 -> -5.6035528e-06 | F67: 2.318322847e-06 | G67: 4.616054924e-06 | H67: -5.611846058e-06 | J67: 7.723031391e-05 | K67: 0.00140907847 | L67: 2.310829012e-06 | M67: 0.0001602616974 | N67: 7.544297893e-08
A68: 30.94254 | B68: ='DF raw data'!G73 -> 3.6783822e-06 | C68: ='DF raw data'!H73 -> -2.1058434e-06 | D68: ='DF raw data'!I73 -> 3.3531655e-06 | F68: 3.683826206e-06 | G68: -2.11426377e-06 | H68: 3.358128185e-06 | J68: 7.907285327e-05 | K68: 0.001448628339 | L68: 1.253337702e-06 | M68: 0.0001608885794 | N68: 7.857108562e-08
A69: 31.44271 | B69: ='DF raw data'!G74 -> 6.7366418e-06 | C69: ='DF raw data'!H74 -> 1.7475329e-06 | D69: ='DF raw data'!I74 -> 5.6412941e-06 | F69: 6.74661203e-06 | G69: 1.754520539e-06 | H69: 5.649643215e-06 | J69: 8.244730621e-05 | K69: 0.001489866009 | L69: 2.13089624e-06 | M69: 0.0001619543897 | N69: 8.197329148e-08
A70: 31.94288 | B70: ='DF raw data'!G75 -> 6.6163557e-06 | C70: ='DF raw data'!H75 -> -8.0861828e-06 | D70: ='DF raw data'!I75 -> 9.0337971e-07 | F70: 6.626147906e-06 | G70: -8.118515996e-06 | H70: 9.04716712e-07 | J70: 8.576150661e-05 | K70: 0.001532761341 | L70: -1.929741906e-06 | M70: 0.0001609891907 | N70: 8.565392243e-08
A71: 32.44305 | B71: ='DF raw data'!G76 -> 1.4880716e-06 | C71: ='DF raw data'!H76 -> -9.0483254e-06 | D71: ='DF raw data'!I76 -> 2.0217526e-06 | F71: 1.490273946e-06 | G71: =(1-$G$1*($B$2-$G$2))*C71*$M$2/$M$1 -> -9.084505794e-06 | H71: 2.024744794e-06 | J71: 8.650689692e-05 | K71: 0.001576029496 | L71: -6.473539169e-06 | M71: 0.0001577513206 | N71: 8.94178767e-08
A72: =A71+$B$1 -> 32.94322 | B72: ='DF raw data'!G77 -> -4.5976849e-06 | C72: ='DF raw data'!H77 -> 7.618195e-06 | D72: ='DF raw data'!I77 -> 4.1657881e-06 | F72: -4.604489474e-06 | G72: 7.648656912e-06 | H72: 4.171953466e-06 | J72: =F72*$B$1+J71 -> 8.420386942e-05 | K72: =J72*$B$1+K71 -> 0.001618145745 | L72: =G72*$B$1+L71 -> -2.647910441e-06 | M72: =L72*$B$1+M71 -> 0.0001564269153 | N72: =(J72^2+L72^2)*$B$1+N71 -> 9.296773477e-08
A73: 33.44339 | B73: ='DF raw data'!G78 -> -4.1639505e-06 | C73: ='DF raw data'!H78 -> 1.658537e-06 | D73: ='DF raw data'!I78 -> 1.6381932e-06 | F73: -4.170113147e-06 | G73: 1.665168782e-06 | H73: 1.640617726e-06 | J73: 8.211810393e-05 | K73: 0.001659218757 | L73: -1.815042971e-06 | M73: 0.0001555190852 | N73: 9.63422204e-08
A74: 33.94356 | B74: ='DF raw data'!G79 -> -1.8542851e-06 | C74: ='DF raw data'!H79 -> -2.9735204e-06 | D74: ='DF raw data'!I79 -> 1.6606905e-06 | F74: -1.857029442e-06 | G74: -2.98541024e-06 | H74: 1.663148322e-06 | J74: 8.118927352e-05 | K74: 0.001699827196 | L74: -3.308255611e-06 | M74: 0.000153864395 | N74: 9.964466419e-08
A75: 34.44373 | B75: ='DF raw data'!G80 -> -2.1617234e-06 | C75: ='DF raw data'!H80 -> -3.4319767e-06 | D75: ='DF raw data'!I80 -> 3.5504895e-06 | F75: -2.164922751e-06 | G75: -3.445699711e-06 | H75: 3.555744224e-06 | J75: 8.01064441e-05 | K75: 0.001739894036 | L75: -5.031691235e-06 | M75: 0.000151347694 | N75: 1.028669395e-07
A76: 34.9439 | B76: ='DF raw data'!G81 -> -2.9250732e-06 | C76: ='DF raw data'!H81 -> 5.4331917e-06 | D76: ='DF raw data'!I81 -> 1.2296191e-06 | F76: -2.929402308e-06 | G76: 5.454916716e-06 | H76: 1.231438936e-06 | J76: 7.864124495e-05 | K76: 0.001779228028 | L76: -2.303305541e-06 | M76: 0.0001501956497 | N76: 1.059628671e-07
A77: 35.44407 | B77: ='DF raw data'!G82 -> -1.7859929e-06 | C77: ='DF raw data'!H82 -> -1.9263165e-07 | D77: ='DF raw data'!I82 -> 2.0953562e-06 | F77: -1.788636169e-06 | G77: -1.934019018e-07 | H77: 2.098457327e-06 | J77: 7.77466228e-05 | K77: 0.001818114556 | L77: -2.400039371e-06 | M77: 0.000148995222 | N77: 1.089890444e-07
A78: 35.94424 | B78: ='DF raw data'!G83 -> 7.8458834e-07 | C78: ='DF raw data'!H83 -> -3.4246997e-07 | D78: ='DF raw data'!I83 -> 3.4915251e-06 | F78: 7.857495307e-07 | G78: -3.438393613e-07 | H78: 3.496692557e-06 | J78: 7.813963114e-05 | K78: 0.001857197656 | L78: -2.572017504e-06 | M78: 0.000147708776 | N78: 1.120462922e-07
A79: 36.44441 | B79: ='DF raw data'!G84 -> 1.5488113e-06 | C79: ='DF raw data'!H84 -> 3.8167218e-06 | D79: ='DF raw data'!I84 -> 6.5858881e-06 | F79: 1.551103541e-06 | G79: 3.831983243e-06 | H79: 6.595635214e-06 | J79: 7.89154466e-05 | K79: 0.001896668795 | L79: -6.553744455e-07 | M79: 0.0001473809774 | N79: 1.151613895e-07
A80: 36.94458 | B80: ='DF raw data'!G85 -> -6.376431e-07 | C80: ='DF raw data'!H85 -> -1.1067613e-05 | D80: ='DF raw data'!I85 -> 4.7152539e-06 | F80: -6.385868118e-07 | G80: -1.111186766e-05 | H80: 4.722232476e-06 | J80: 7.859604463e-05 | K80: 0.001935980178 | L80: -6.213197295e-06 | M80: 0.0001442733225 | N80: 1.182704173e-07
A81: 37.44475 | B81: ='DF raw data'!G86 -> -5.3978147e-07 | C81: ='DF raw data'!H86 -> -1.1068413e-05 | D81: ='DF raw data'!I86 -> -4.6401869e-06 | F81: -5.405803466e-07 | G81: -1.111267086e-05 | H81: -4.647054377e-06 | J81: 7.832566256e-05 | K81: 0.001975156325 | L81: -1.177142188e-05 | M81: 0.0001383856104 | N81: 1.214082217e-07
A82: 37.94492 | B82: ='DF raw data'!G87 -> 1.7626662e-06 | C82: ='DF raw data'!H87 -> -5.5369228e-06 | D82: ='DF raw data'!I87 -> -6.5684753e-07 | F82: 1.765274946e-06 | G82: -5.559062593e-06 | H82: -6.578196643e-07 | J82: 7.920860013e-05 | K82: 0.00201477409 | L82: -1.455189822e-05 | M82: 0.0001311071875 | N82: 1.246522043e-07
A83: 38.44509 | B83: ='DF raw data'!G88 -> 3.5545236e-07 | C83: ='DF raw data'!H88 -> -2.9681835e-06 | D83: ='DF raw data'!I88 -> 2.740137e-06 | F83: 3.559784295e-07 | G83: -2.980052e-06 | H83: 2.744192403e-06 | J83: 7.938664986e-05 | K83: 0.002054480911 | L83: -1.604243083e-05 | M83: 0.0001230832448 | N83: 1.279331193e-07
A84: 38.94526 | B84: ='DF raw data'!G89 -> -1.2490709e-06 | C84: ='DF raw data'!H89 -> -1.7090317e-06 | D84: ='DF raw data'!I89 -> -1.7316956e-06 | F84: -1.250919525e-06 | G84: -1.715865389e-06 | H84: -1.734258509e-06 | J84: 7.876097744e-05 | K84: 0.002093874789 | L84: -1.690065522e-05 | M84: 0.0001146300441 | N84: 1.311786843e-07
A85: 39.44543 | B85: ='DF raw data'!G90 -> 1.0220174e-06 | C85: ='DF raw data'!H90 -> 4.917496e-06 | D85: ='DF raw data'!I90 -> -3.2856656e-06 | F85: 1.023529986e-06 | G85: 4.937158969e-06 | H85: -3.290528385e-06 | J85: 7.927291644e-05 | K85: 0.002133524724 | L85: -1.443123642e-05 | M85: 0.0001074119726 | N85: 1.344260159e-07
A86: 39.9456 | B86: ='DF raw data'!G91 -> 3.2343014e-06 | C86: ='DF raw data'!H91 -> 9.7925954e-07 | D86: ='DF raw data'!I91 -> -1.3623971e-06 | F86: 3.239088166e-06 | G86: 9.831751812e-07 | H86: -1.364413448e-06 | J86: 8.089301116e-05 | K86: 0.002173984981 | L86: -1.393948169e-05 | M86: 0.000100439862 | N86: 1.377961556e-07
A87: 40.44577 | B87: ='DF raw data'!G92 -> 1.2288147e-06 | C87: ='DF raw data'!H92 -> 3.6131116e-06 | D87: ='DF raw data'!I92 -> 5.4824022e-07 | F87: =(1-$G$1*($B$2-$G$2))*B87 -> 1.230633346e-06 | G87: 3.627558892e-06 | H87: 5.490516155e-07 | J87: 8.150853705e-05 | K87: 0.002214753106 | L87: -1.212508555e-05 | M87: 9.4375258e-05 | N87: 1.411926397e-07
A88: 40.94594 | B88: ='DF raw data'!G93 -> -1.4347679e-06 | C88: ='DF raw data'!H93 -> -3.2099535e-06 | D88: ='DF raw data'!I93 -> -1.5864789e-08 | F88: -1.436891356e-06 | G88: -3.222788735e-06 | H88: -1.588826889e-08 | J88: 8.07898471e-05 | K88: 0.002255161764 | L88: -1.37370278e-05 | M88: 8.750440881e-05 | N88: 1.44551634e-07
A89: 41.44611 | B89: ='DF raw data'!G94 -> -1.3795579e-06 | C89: ='DF raw data'!H94 -> -8.9546602e-06 | D89: ='DF raw data'!I94 -> -1.4384888e-07 | F89: -1.381599646e-06 | G89: -8.990466067e-06 | H89: -1.440617763e-07 | J89: 8.00988124e-05 | K89: 0.002295224787 | L89: -1.823378921e-05 | M89: 7.838441446e-05 | N89: 1.479269266e-07
A90: 41.94628 | B90: ='DF raw data'!G95 -> 4.4410262e-07 | C90: ='DF raw data'!H95 -> -4.4949902e-06 | D90: ='DF raw data'!I95 -> 2.2125867e-07 | F90: 4.447598919e-07 | G90: -4.512963749e-06 | H90: 2.215861328e-07 | J90: 8.032126796e-05 | K90: 0.002335399075 | L90: -2.049103829e-05 | M90: 6.813541184e-05 | N90: 1.513637891e-07
A91: 42.44645 | B91: ='DF raw data'!G96 -> -2.4041947e-07 | C91: ='DF raw data'!H96 -> -1.7482591e-06 | D91: ='DF raw data'!I96 -> -1.9044411e-07 | F91: -2.407752908e-07 | G91: -1.755249642e-06 | H91: -1.907259673e-07 | J91: 8.020083938e-05 | K91: 0.002375513129 | L91: -2.13689615e-05 | M91: 5.744729836e-05 | N91: 1.548093638e-07
A92: 42.94662 | B92: ='DF raw data'!G97 -> -2.9951698e-06 | C92: ='DF raw data'!H97 -> -1.2803296e-06 | D92: ='DF raw data'!I97 -> -4.8009969e-08 | F92: -2.999602651e-06 | G92: -1.285449092e-06 | H92: -4.808102375e-08 | J92: 7.870052812e-05 | K92: 0.002414876772 | L92: -2.201190457e-05 | M92: 4.643760405e-05 | N92: 1.581496476e-07
A93: 43.44679 | B93: ='DF raw data'!G98 -> -2.9700677e-06 | C93: ='DF raw data'!H98 -> -6.2373488e-07 | D93: ='DF raw data'!I98 -> -4.2467177e-06 | F93: -2.9744634e-06 | G93: -6.262289297e-07 | H93: -4.253002842e-06 | J93: 7.721279076e-05 | K93: 0.002453496294 | L93: -2.23251255e-05 | M93: 3.527124603e-05 | N93: 1.61380859e-07
A94: 43.94696 | B94: ='DF raw data'!G99 -> -3.0420779e-08 | C94: ='DF raw data'!H99 -> 1.5602011e-06 | D94: ='DF raw data'!I99 -> -5.953832e-06 | F94: -3.046580175e-08 | G94: 1.566439679e-06 | H94: -5.962643671e-06 | J94: 7.719755268e-05 | K94: 0.002492108194 | L94: -2.154163936e-05 | M94: 2.449676428e-05 | N94: 1.645937032e-07
A95: 44.44713 | B95: ='DF raw data'!G100 -> 3.5663761e-06 | C95: ='DF raw data'!H100 -> 5.6916401e-06 | D95: ='DF raw data'!I100 -> -7.3276346e-06 | F95: 3.571654337e-06 | G95: 5.714398541e-06 | H95: -7.338479499e-06 | J95: 7.898398703e-05 | K95: 0.002531613615 | L95: -1.868346864e-05 | M95: 1.515185376e-05 | N95: 1.678885942e-07
A96: 44.9473 | B96: ='DF raw data'!G101 -> 5.7993384e-06 | C96: ='DF raw data'!H101 -> 3.7808297e-06 | D96: ='DF raw data'!I101 -> -7.5943858e-06 | F96: 5.807921421e-06 | G96: 3.795947625e-06 | H96: -7.605625491e-06 | J96: 8.188893509e-05 | K96: 0.002572572003 | L96: -1.678484952e-05 | M96: 6.756575579e-06 | N96: 1.713835465e-07
A97: 45.44747 | B97: ='DF raw data'!G102 -> 3.8611397e-06 | C97: ='DF raw data'!H102 -> -3.7115726e-07 | D97: ='DF raw data'!I102 -> -3.6079905e-06 | F97: 3.866854187e-06 | G97: -3.726413596e-07 | H97: -3.613330326e-06 | J97: 8.382301955e-05 | K97: 0.002614497763 | L97: -1.697123355e-05 | M97: -1.731926305e-06 | N97: 1.750419506e-07
A98: 45.94764 | B98: ='DF raw data'!G103 -> -3.9867155e-07 | C98: ='DF raw data'!H103 -> -9.0913522e-07 | D98: ='DF raw data'!I103 -> 2.8874897e-06 | F98: -3.992615839e-07 | G98: -9.12770464e-07 | H98: 2.891763185e-06 | J98: 8.362332088e-05 | K98: 0.00265632364 | L98: -1.742777395e-05 | M98: -1.0448776e-05 | N98: 1.786914846e-07
A99: 46.44781 | B99: ='DF raw data'!G104 -> -1.2736928e-06 | C99: ='DF raw data'!H104 -> 1.1213594e-06 | D99: ='DF raw data'!I104 -> 5.7323309e-06 | F99: -1.275577865e-06 | G99: 1.125843238e-06 | H99: 5.74081475e-06 | J99: 8.29853151e-05 | K99: 0.002697830405 | L99: -1.686466094e-05 | M99: -1.888397347e-05 | N99: 1.822781933e-07
A100: 46.94798 | B100: ='DF raw data'!G105 -> -1.4439793e-06 | C100: ='DF raw data'!H105 -> 9.9771878e-06 | D100: ='DF raw data'!I105 -> 6.561208e-06 | F100: -1.446116389e-06 | G100: 1.001708232e-05 | H100: 6.570918588e-06 | J100: 8.226201106e-05 | K100: 0.002738975395 | L100: -1.185441688e-05 | M100: -2.481319715e-05 | N100: 1.857331504e-07
A101: 47.44815 | B101: ='DF raw data'!G106 -> 8.7798981e-08 | C101: ='DF raw data'!H106 -> 4.2101983e-06 | D101: ='DF raw data'!I106 -> 3.9158735e-06 | F101: 8.792892349e-08 | G101: 4.227033087e-06 | H101: 3.921668993e-06 | J101: 8.230599047e-05 | K101: 0.002780142382 | L101: -9.740181737e-06 | M101: -2.968494385e-05 | N101: 1.891688918e-07
A102: 47.94832 | B102: ='DF raw data'!G107 -> 3.2050666e-06 | C102: ='DF raw data'!H107 -> 6.0684383e-06 | D102: ='DF raw data'!I107 -> -7.0005217e-07 | F102: 3.209810099e-06 | G102: 6.092703396e-06 | H102: -7.010882472e-07 | J102: 8.391144119e-05 | K102: 0.002822112367 | L102: -6.692794279e-06 | M102: -3.303247877e-05 | N102: 1.927130581e-07
A103: 48.44849 | B103: ='DF raw data'!G108 -> 4.2728061e-07 | C103: ='DF raw data'!H108 -> 4.9899468e-06 | D103: ='DF raw data'!I108 -> 1.7015523e-06 | F103: 4.279129853e-07 | G103: 5.009899469e-06 | H103: 1.704070597e-06 | J103: 8.412547043e-05 | K103: 0.002864189404 | L103: -4.186992862e-06 | M103: -3.512668699e-05 | N103: 1.96261577e-07
A104: 48.94866 | B104: ='DF raw data'!G109 -> -3.2091557e-06 | C104: ='DF raw data'!H109 -> -2.4308722e-06 | D104: ='DF raw data'!I109 -> 3.1847126e-06 | F104: -3.21390525e-06 | G104: -2.440592221e-06 | H104: 3.189425975e-06 | J104: 8.251797144e-05 | K104: 0.002905462418 | L104: -5.407703873e-06 | M104: -3.783145823e-05 | N104: 1.99681969e-07
A105: 49.44883 | B105: ='DF raw data'!G110 -> -1.760709e-07 | C105: ='DF raw data'!H110 -> -7.9684996e-06 | D105: ='DF raw data'!I110 -> -1.0851684e-07 | F105: -1.763314849e-07 | G105: -8.000362231e-06 | H105: -1.086774449e-07 | J105: 8.242977572e-05 | K105: 0.002946691319 | L105: -9.40924505e-06 | M105: -4.253768033e-05 | N105: 2.031247401e-07
A106: 49.949 | B106: ='DF raw data'!G111 -> 1.3995523e-06 | C106: ='DF raw data'!H111 -> -4.2165275e-06 | D106: ='DF raw data'!I111 -> -6.7774267e-06 | F106: 1.401623637e-06 | G106: -4.233387595e-06 | H106: -6.787457292e-06 | J106: 8.313082582e-05 | K106: 0.002988270864 | L106: -1.152665852e-05 | M106: -4.830296913e-05 | N106: 2.066477365e-07
A107: 50.44917 | B107: ='DF raw data'!G112 -> -3.8034268e-06 | C107: ='DF raw data'!H112 -> 3.4108361e-06 | D107: ='DF raw data'!I112 -> -5.2537393e-06 | F107: -3.809055872e-06 | G107: 3.424474579e-06 | H107: -5.261514834e-06 | J107: 8.122565034e-05 | K107: 0.003028897497 | L107: -9.813839074e-06 | M107: -5.321155701e-05 | N107: 2.099958333e-07
A108: 50.94934 | B108: ='DF raw data'!G113 -> -5.8007063e-06 | C108: ='DF raw data'!H113 -> -3.9173838e-06 | D108: ='DF raw data'!I113 -> -3.038152e-06 | F108: -5.809291345e-06 | G108: -3.933047747e-06 | H108: -3.042648465e-06 | J108: 7.832001709e-05 | K108: 0.00306807082 | L108: -1.178103157e-05 | M108: -5.910407557e-05 | N108: 2.131333086e-07
A109: 51.44951 | B109: ='DF raw data'!G114 -> -2.4996771e-06 | C109: ='DF raw data'!H114 -> -4.7164795e-06 | D109: ='DF raw data'!I114 -> -1.7723683e-06 | F109: -2.503376622e-06 | G109: -4.73533869e-06 | H109: -1.774991405e-06 | J109: 7.70679032e-05 | K109: 0.003106617873 | L109: -1.414950592e-05 | M109: -6.618123395e-05 | N109: 2.162041875e-07
A110: 51.94968 | B110: ='DF raw data'!G115 -> -1.9032086e-06 | C110: ='DF raw data'!H115 -> 4.9798768e-07 | D110: ='DF raw data'!I115 -> 4.1885912e-07 | F110: -1.906025349e-06 | G110: 4.999789203e-07 | H110: 4.194790315e-07 | J110: 7.61145665e-05 | K110: 0.003144688096 | L110: -1.389943146e-05 | M110: -7.313331258e-05 | N110: 2.191985159e-07
A111: 52.44985 | B111: ='DF raw data'!G116 -> -2.2183303e-06 | C111: ='DF raw data'!H116 -> 2.0920418e-06 | D111: ='DF raw data'!I116 -> -1.6922309e-06 | F111: -2.221613429e-06 | G111: 2.100406983e-06 | H111: -1.694735402e-06 | J111: 7.500338212e-05 | K111: 0.003182202538 | L111: -1.28488709e-05 | M111: -7.955993234e-05 | N111: 2.220948007e-07
A112: 52.95002 | B112: ='DF raw data'!G117 -> -2.0573279e-06 | C112: ='DF raw data'!H117 -> -2.3210616e-06 | D112: ='DF raw data'!I117 -> -2.5057266e-06 | F112: -2.060372745e-06 | G112: -2.330342535e-06 | H112: -2.509435075e-06 | J112: 7.397284548e-05 | K112: 0.003219201536 | L112: -1.401443833e-05 | M112: -8.656953396e-05 | N112: 2.249299575e-07
A113: 53.45019 | B113: ='DF raw data'!G118 -> -1.736531e-06 | C113: ='DF raw data'!H118 -> -9.2051023e-06 | D113: ='DF raw data'!I118 -> -9.8982446e-07 | F113: -1.739101066e-06 | G113: -9.241909578e-06 | H113: -9.912894002e-07 | J113: 7.31029993e-05 | K113: 0.003255765463 | L113: -1.863696424e-05 | M113: -9.589118436e-05 | N113: 2.277766175e-07
A114: 53.95036 | B114: ='DF raw data'!G119 -> -1.0947333e-06 | C114: ='DF raw data'!H119 -> -5.667614e-07 | D114: ='DF raw data'!I119 -> -4.9661644e-06 | F114: -1.096353505e-06 | G114: -5.690276371e-07 | H114: -4.973514323e-06 | J114: 7.255463617e-05 | K114: 0.003292055115 | L114: -1.892157479e-05 | M114: -0.0001053551884 | N114: 2.305886739e-07
A115: 54.45053 | B115: ='DF raw data'!G120 -> -2.7102724e-06 | C115: ='DF raw data'!H120 -> 5.1803472e-06 | D115: ='DF raw data'!I120 -> -4.0499758e-06 | F115: -2.714283603e-06 | G115: 5.201061199e-06 | H115: -4.055969764e-06 | J115: 7.119703294e-05 | K115: 0.003327665735 | L115: -1.632016001e-05 | M115: -0.0001135180429 | N115: 2.332572635e-07
A116: 54.9507 | B116: ='DF raw data'!G121 -> -7.2474431e-06 | C116: ='DF raw data'!H121 -> -8.0292762e-07 | D116: ='DF raw data'!I121 -> 1.3611393e-06 | F116: -7.258169316e-06 | G116: -8.061381851e-07 | H116: 1.363153786e-06 | J116: 6.756671439e-05 | K116: 0.003361460579 | L116: -1.672336615e-05 | M116: -0.0001218825689 | N116: 2.35680553e-07
A117: 55.45087 | B117: ='DF raw data'!G122 -> -8.7804729e-06 | C117: ='DF raw data'!H122 -> -5.0617891e-06 | D117: ='DF raw data'!I122 -> -1.5161381e-06 | F117: -8.793468e-06 | G117: -5.082029036e-06 | H117: -1.518381984e-06 | J117: 6.31684855e-05 | K117: 0.00339305556 | L117: -1.926524461e-05 | M117: -0.0001315184663 | N117: 2.378619981e-07
A118: 55.95104 | B118: ='DF raw data'!G123 -> -5.3470794e-06 | C118: ='DF raw data'!H123 -> 4.4070034e-06 | D118: ='DF raw data'!I123 -> -7.6176834e-06 | F118: -5.354993078e-06 | G118: 4.424625127e-06 | H118: -7.628957571e-06 | J118: 6.049007861e-05 | K118: 0.003423310883 | L118: -1.705217986e-05 | M118: -0.0001400474551 | N118: 2.398375828e-07
A119: 56.45121 | B119: ='DF raw data'!G124 -> -1.5646583e-06 | C119: ='DF raw data'!H124 -> 1.3575252e-06 | D119: ='DF raw data'!I124 -> -7.6739852e-06 | F119: -1.566973994e-06 | G119: 1.362953364e-06 | H119: -7.685342698e-06 | J119: 5.970632523e-05 | K119: 0.003453174196 | L119: -1.637047148e-05 | M119: -0.0001482354738 | N119: 2.417546532e-07
A120: 56.95138 | B120: ='DF raw data'!G125 -> -6.0299499e-07 | C120: ='DF raw data'!H125 -> 2.9971469e-07 | D120: ='DF raw data'!I125 -> -3.2254641e-07 | F120: -6.038874226e-07 | G120: 3.009131212e-07 | H120: -3.230237787e-07 | J120: 5.940427886e-05 | K120: 0.003482886434 | L120: -1.621996376e-05 | M120: -0.0001563482131 | N120: 2.436512756e-07
A121: 57.45155 | B121: ='DF raw data'!G126 -> -3.9500446e-07 | C121: ='DF raw data'!H126 -> 5.6722934e-06 | D121: ='DF raw data'!I126 -> 3.3145593e-06 | F121: -3.955890666e-07 | G121: 5.694974482e-06 | H121: 3.319464848e-06 | J121: 5.920641708e-05 | K121: 0.003512499707 | L121: -1.337150838e-05 | M121: -0.0001630362404 | N121: 2.454940004e-07
A122: 57.95172 | B122: ='DF raw data'!G127 -> -3.3463948e-06 | C122: ='DF raw data'!H127 -> 9.8180089e-06 | D122: ='DF raw data'!I127 -> -2.4289943e-06 | F122: -3.351347464e-06 | G122: 9.85726693e-06 | H122: -2.432589212e-06 | J122: 5.753017361e-05 | K122: 0.003541274574 | L122: -8.441199176e-06 | M122: -0.000167258275 | N122: 2.471850626e-07
A123: 58.45189 | B123: ='DF raw data'!G128 -> -3.6269412e-06 | C123: ='DF raw data'!H128 -> 5.0546587e-06 | D123: ='DF raw data'!I128 -> -2.111326e-06 | F123: -3.632309073e-06 | G123: 5.074870124e-06 | H123: -2.114450762e-06 | J123: 5.571340159e-05 | K123: 0.003569140746 | L123: -5.902901386e-06 | M123: -0.0001702107292 | N123: 2.487550098e-07
A124: 58.95206 | B124: ='DF raw data'!G129 -> 3.579531e-06 | C124: ='DF raw data'!H129 -> 9.7955935e-06 | D124: ='DF raw data'!I129 -> 3.0074848e-06 | F124: 3.584828706e-06 | G124: 9.8347619e-06 | H124: 3.011935878e-06 | J124: 5.750642536e-05 | K124: 0.003597903735 | L124: -9.838485259e-07 | M124: -0.0001707028207 | N124: 2.504095506e-07
A125: 59.45223 | B125: ='DF raw data'!G130 -> 7.8805242e-06 | C125: ='DF raw data'!H130 -> 1.1930962e-05 | D125: ='DF raw data'!I130 -> -2.7675446e-06 | F125: 7.892187376e-06 | G125: 1.197866883e-05 | H125: -2.771640566e-06 | J125: 6.145386072e-05 | K125: 0.003628641113 | L125: 5.007522262e-06 | M125: -0.0001681982083 | N125: 2.523110231e-07
A126: 59.9524 | B126: ='DF raw data'!G131 -> 6.3716507e-06 | C126: ='DF raw data'!H131 -> -4.7730528e-06 | D126: ='DF raw data'!I131 -> -9.5727046e-06 | F126: 6.381080743e-06 | G126: -4.792138202e-06 | H126: -9.586872203e-06 | J126: 6.464548587e-05 | K126: 0.003660974845 | L126: 2.610638497e-06 | M126: -0.0001668924453 | N126: 2.544046618e-07
A127: 60.45257 | B127: ='DF raw data'!G132 -> 2.7927526e-06 | C127: ='DF raw data'!H132 -> -1.3758638e-06 | D127: ='DF raw data'!I132 -> -1.025302e-06 | F127: 2.796885874e-06 | G127: -1.381365292e-06 | H127: -1.026819447e-06 | J127: 6.604440428e-05 | K127: 0.003694008275 | L127: 1.919721019e-06 | M127: -0.0001659322584 | N127: 2.565881783e-07
A128: 60.95274 | B128: ='DF raw data'!G133 -> -1.0790973e-07 | C128: ='DF raw data'!H133 -> -5.8415371e-06 | D128: ='DF raw data'!I133 -> 3.5875678e-06 | F128: -1.080694364e-07 | G128: -5.864894915e-06 | H128: 3.5928774e-06 | J128: 6.599035119e-05 | K128: 0.003727014669 | L128: -1.013723471e-06 | M128: -0.0001664392925 | N128: 2.587667958e-07
A129: 61.45291 | B129: ='DF raw data'!G134 -> -4.5575071e-06 | C129: ='DF raw data'!H134 -> -4.4884528e-06 | D129: ='DF raw data'!I134 -> -1.462296e-06 | F129: -4.564252211e-06 | G129: -4.506400208e-06 | H129: -1.464460198e-06 | J129: 6.370744916e-05 | K129: 0.003758879224 | L129: -3.267689663e-06 | M129: -0.0001680736928 | N129: 2.60802146e-07
A130: 61.95308 | B130: ='DF raw data'!G135 -> -6.0576349e-06 | C130: ='DF raw data'!H135 -> 6.306143e-07 | D130: ='DF raw data'!I135 -> -3.2524581e-06 | F130: -6.0666002e-06 | G130: 6.331358576e-07 | H130: -3.257271738e-06 | J130: 6.067311774e-05 | K130: 0.003789226097 | L130: -2.951014101e-06 | M130: -0.0001695497015 | N130: 2.626477412e-07
A131: 62.45325 | B131: ='DF raw data'!G136 -> -3.1671734e-06 | C131: ='DF raw data'!H136 -> -6.9774032e-06 | D131: ='DF raw data'!I136 -> -1.4879074e-06 | F131: -3.171860817e-06 | G131: -7.005302859e-06 | H131: -1.490109503e-06 | J131: 5.908664812e-05 | K131: 0.003818779466 | L131: -6.454856432e-06 | M131: -0.0001727782271 | N131: 2.644147903e-07
A132: 62.95342 | B132: ='DF raw data'!G137 -> -3.9448132e-06 | C132: ='DF raw data'!H137 -> 1.8059743e-06 | D132: ='DF raw data'!I137 -> 7.9215943e-07 | F132: -3.950651524e-06 | G132: 1.813195621e-06 | H132: 7.93331826e-07 | J132: 5.711065074e-05 | K132: 0.0038473445 | L132: -5.547950379e-06 | M132: -0.0001755531454 | N132: 2.660615531e-07
A133: 63.45359 | B133: ='DF raw data'!G138 -> -5.512753e-06 | C133: ='DF raw data'!H138 -> 6.7535871e-06 | D133: ='DF raw data'!I138 -> 3.3577494e-06 | F133: -5.520911874e-06 | G133: 6.780591814e-06 | H133: 3.362718869e-06 | J133: 5.434925625e-05 | K133: 0.003874528368 | L133: -2.156501771e-06 | M133: -0.0001766317629 | N133: 2.675413021e-07
A134: 63.95376 | B134: ='DF raw data'!G139 -> -4.7984722e-06 | C134: ='DF raw data'!H139 -> 2.0612204e-06 | D134: ='DF raw data'!I139 -> 1.6059171e-06 | F134: -4.805573939e-06 | G134: 2.069462341e-06 | H134: 1.608293857e-06 | J134: 5.194565234e-05 | K134: 0.003900510025 | L134: -1.121418792e-06 | M134: -0.000177192663 | N134: 2.688915653e-07
A135: 64.45393 | B135: ='DF raw data'!G140 -> -4.7427384e-06 | C135: ='DF raw data'!H140 -> 8.3294954e-06 | D135: ='DF raw data'!I140 -> -1.2788691e-06 | F135: -4.749757653e-06 | G135: =(1-$G$1*($B$2-$G$2))*C135*$M$2/$M$1 -> 8.362801499e-06 | H135: -1.280761826e-06 | J135: 4.956996605e-05 | K135: 0.003925303435 | L135: 3.061403634e-06 | M135: -0.0001756614407 | N135: 2.701252614e-07
A136: =A135+$B$1 -> 64.9541 | B136: ='DF raw data'!G141 -> -3.1207237e-06 | C136: ='DF raw data'!H141 -> 6.2552367e-06 | D136: ='DF raw data'!I141 -> -4.0409245e-06 | F136: -3.125342371e-06 | G136: 6.280248723e-06 | H136: -4.046905068e-06 | J136: =F136*$B$1+J135 -> 4.800676356e-05 | K136: =J136*$B$1+K135 -> 0.003949314977 | L136: =G136*$B$1+L135 -> 6.202595638e-06 | M136: =L136*$B$1+M135 -> -0.0001725590884 | N136: =(J136^2+L136^2)*$B$1+N135 -> 2.712972205e-07
A137: 65.45427 | B137: ='DF raw data'!G142 -> 2.6375565e-06 | C137: ='DF raw data'!H142 -> 1.4577292e-06 | D137: ='DF raw data'!I142 -> -7.8503535e-07 | F137: 2.641460084e-06 | G137: 1.463558037e-06 | H137: -7.861972023e-07 | J137: 4.932794265e-05 | K137: 0.003973987335 | L137: 6.934623462e-06 | M137: -0.0001690905978 | N137: 2.725383098e-07
A138: 65.95444 | B138: ='DF raw data'!G143 -> 7.9610982e-06 | C138: ='DF raw data'!H143 -> 1.967154e-06 | D138: ='DF raw data'!I143 -> 6.9987987e-06 | F138: 7.972880625e-06 | G138: 1.97501981e-06 | H138: 7.009156922e-06 | J138: 5.331573835e-05 | K138: 0.004000654267 | L138: 7.92246912e-06 | M138: -0.0001651280164 | N138: 2.739914705e-07
A139: 66.45461 | B139: ='DF raw data'!G144 -> 7.4663476e-06 | C139: ='DF raw data'!H144 -> 8.333498e-06 | D139: ='DF raw data'!I144 -> 5.7541733e-06 | F139: 7.477397794e-06 | G139: 8.366820104e-06 | H139: 5.762689476e-06 | J139: 5.70557084e-05 | K139: 0.004029191821 | L139: 1.210730153e-05 | M139: -0.0001590723074 | N139: 2.756930191e-07
A140: 66.95478 | B140: ='DF raw data'!G145 -> 5.4559132e-06 | C140: ='DF raw data'!H145 -> -4.3960537e-07 | D140: ='DF raw data'!I145 -> 3.244812e-06 | F140: 5.463987952e-06 | G140: -4.413631644e-07 | H140: 3.249614322e-06 | J140: 5.978863126e-05 | K140: 0.004059096301 | L140: 1.188654492e-05 | M140: -0.0001531270143 | N140: 2.77551636e-07
A141: 67.45495 | B141: ='DF raw data'!G146 -> 3.5576304e-06 | C141: ='DF raw data'!H146 -> -6.3282796e-06 | D141: ='DF raw data'!I146 -> 2.9838525e-06 | F141: 3.562895693e-06 | G141: -6.353583691e-06 | H141: 2.988268602e-06 | J141: 6.15706848e-05 | K141: 0.00408989211 | L141: 8.708672963e-06 | M141: -0.0001487711973 | N141: 2.794856885e-07
A142: 67.95512 | B142: ='DF raw data'!G147 -> 1.5595506e-06 | C142: ='DF raw data'!H147 -> 5.1619345e-06 | D142: ='DF raw data'!I147 -> 2.4607984e-06 | F142: 1.561858735e-06 | G142: 5.182574874e-06 | H142: 2.464440382e-06 | J142: 6.235187968e-05 | K142: 0.00412107865 | L142: 1.130084144e-05 | M142: -0.0001431188554 | N142: 2.814941041e-07
A143: 68.45529 | B143: ='DF raw data'!G148 -> 2.2984095e-06 | C143: ='DF raw data'!H148 -> 3.5628798e-07 | D143: ='DF raw data'!I148 -> 3.8164403e-06 | F143: 2.301811146e-06 | G143: 3.577126237e-07 | H143: 3.822088632e-06 | J143: 6.350317656e-05 | K143: 0.004152841034 | L143: 1.147975856e-05 | M143: -0.0001373770246 | N143: 2.835770312e-07
A144: 68.95546 | B144: ='DF raw data'!G149 -> 4.7515859e-06 | C144: ='DF raw data'!H149 -> 2.2183974e-06 | D144: ='DF raw data'!I149 -> 6.1397845e-06 | F144: 4.758618247e-06 | G144: 2.227267825e-06 | H144: 6.148871381e-06 | J144: 6.588329465e-05 | K144: 0.004185793881 | L144: 1.259377111e-05 | M144: -0.0001310779981 | N144: 2.858274018e-07
A145: 69.45563 | B145: ='DF raw data'!G150 -> 4.7559806e-06 | C145: ='DF raw data'!H150 -> 7.2860948e-06 | D145: ='DF raw data'!I150 -> 5.8096016e-06 | F145: 4.763019451e-06 | G145: 7.315228785e-06 | H145: 5.81819981e-06 | J145: 6.826561409e-05 | K145: 0.004219938293 | L145: 1.625262909e-05 | M145: -0.0001229489206 | N145: 2.8829041e-07
A146: 69.9558 | B146: ='DF raw data'!G151 -> 3.7909267e-06 | C146: ='DF raw data'!H151 -> 2.8272257e-06 | D146: ='DF raw data'!I151 -> 5.5206765e-08 | F146: 3.796537272e-06 | G146: 2.83853057e-06 | H146: 5.528847101e-08 | J146: 7.016452814e-05 | K146: 0.004255032485 | L146: 1.767237693e-05 | M146: -0.0001141097279 | N146: 2.909089869e-07
A147: 70.45597 | B147: ='DF raw data'!G152 -> 3.3684701e-06 | C147: ='DF raw data'!H152 -> 5.8497512e-06 | D147: ='DF raw data'!I152 -> -6.825288e-06 | F147: 3.373455436e-06 | G147: 5.87314186e-06 | H147: -6.835389426e-06 | J147: 7.185182934e-05 | K147: 0.004290970615 | L147: 2.060994629e-05 | M147: -0.000103801251 | N147: 2.937036644e-07
A148: 70.95614 | B148: ='DF raw data'!G153 -> 2.2797103e-06 | C148: ='DF raw data'!H153 -> -2.7679091e-06 | D148: ='DF raw data'!I153 -> -3.2201092e-06 | F148: 2.283084271e-06 | G148: -2.778976788e-06 | H148: -3.224874962e-06 | J148: 7.29937596e-05 | K148: 0.004327479904 | L148: 1.921998547e-05 | M148: -9.418799088e-05 | N148: 2.965533814e-07
A149: 71.45631 | B149: ='DF raw data'!G154 -> 2.5875561e-06 | C149: ='DF raw data'!H154 -> -4.2677639e-06 | D149: ='DF raw data'!I154 -> -3.8697503e-06 | F149: 2.591385683e-06 | G149: -4.284828867e-06 | H149: -3.87547753e-06 | J149: 7.428989298e-05 | K149: 0.004364637479 | L149: 1.707684261e-05 | M149: -8.564666651e-05 | N149: 2.994596726e-07
A150: 71.95648 | B150: ='DF raw data'!G155 -> 5.8476071e-06 | C150: ='DF raw data'!H155 -> -6.7911387e-06 | D150: ='DF raw data'!I155 -> -9.9296922e-06 | F150: 5.856261559e-06 | G150: -6.818293567e-06 | H150: -9.944388144e-06 | J150: 7.721901932e-05 | K150: 0.004403260116 | L150: 1.366653672e-05 | M150: -7.881107484e-05 | N150: 3.025354936e-07
A151: 72.45665 | B151: ='DF raw data'!G156 -> 7.2724433e-06 | C151: ='DF raw data'!H156 -> -1.3732019e-05 | D151: ='DF raw data'!I156 -> -7.3999722e-06 | F151: =(1-$G$1*($B$2-$G$2))*B151 -> 7.283206516e-06 | G151: -1.378692749e-05 | H151: -7.410924159e-06 | J151: 8.086186072e-05 | K151: 0.004443704793 | L151: 6.7707292e-06 | M151: -7.542455922e-05 | N151: 3.058288546e-07
A152: 72.95682 | B152: ='DF raw data'!G157 -> 4.3895925e-06 | C152: ='DF raw data'!H157 -> -7.5047074e-06 | D152: ='DF raw data'!I157 -> -5.724552e-06 | F152: 4.396089097e-06 | G152: -7.534715524e-06 | H152: -5.733024337e-06 | J152: 8.306065261e-05 | K152: 0.00448524924 | L152: 3.002090537e-06 | M152: -7.392300359e-05 | N152: 3.092840713e-07
A153: 73.45699 | B153: ='DF raw data'!G158 -> 1.7067287e-06 | C153: ='DF raw data'!H158 -> -1.4768677e-06 | D153: ='DF raw data'!I158 -> -6.2479262e-06 | F153: 1.709254658e-06 | G153: -1.482773064e-06 | H153: -6.257173131e-06 | J153: 8.391557051e-05 | K153: 0.004527221291 | L153: 2.260451933e-06 | M153: -7.279239335e-05 | N153: 3.128087355e-07
A154: 73.95716 | B154: ='DF raw data'!G159 -> 3.4424738e-07 | C154: ='DF raw data'!H159 -> 4.653577e-06 | D154: ='DF raw data'!I159 -> -2.0767216e-06 | F154: 3.447568661e-07 | G154: 4.67218467e-06 | H154: -2.079795148e-06 | J154: 8.408800755e-05 | K154: 0.004569279589 | L154: 4.597338539e-06 | M154: -7.049294253e-05 | N154: 3.163559054e-07
A155: 74.45733 | B155: ='DF raw data'!G160 -> -1.6525883e-07 | C155: ='DF raw data'!H160 -> 1.0294477e-05 | D155: ='DF raw data'!I160 -> 3.5684029e-06 | F155: -1.655034131e-07 | G155: 1.033564022e-05 | H155: 3.573684136e-06 | J155: 8.400522771e-05 | K155: 0.004611296484 | L155: 9.766915709e-06 | M155: -6.56078243e-05 | N155: 3.199332568e-07
A156: 74.9575 | B156: ='DF raw data'!G161 -> 2.8750947e-07 | C156: ='DF raw data'!H161 -> 1.3914891e-05 | D156: ='DF raw data'!I161 -> 6.1712603e-06 | F156: 2.87934984e-07 | G156: 1.397053071e-05 | H156: 6.180393765e-06 | J156: 8.414924415e-05 | K156: 0.004653385412 | L156: 1.675455606e-05 | M156: -5.7227698e-05 | N156: 3.236154135e-07
A157: 75.45767 | B157: ='DF raw data'!G162 -> 1.2184682e-06 | C157: ='DF raw data'!H162 -> 1.4177742e-05 | D157: ='DF raw data'!I162 -> 4.0046548e-06 | F157: 1.220271533e-06 | G157: 1.423443274e-05 | H157: 4.010581689e-06 | J157: 8.475958736e-05 | K157: 0.004695779614 | L157: 2.387419228e-05 | M157: -4.528654324e-05 | N157: 3.274938141e-07
A158: 75.95784 | B158: ='DF raw data'!G163 -> 2.1272645e-06 | C158: ='DF raw data'!H163 -> 4.8543848e-06 | D158: ='DF raw data'!I163 -> -1.6105801e-06 | F158: 2.130412851e-06 | G158: 4.873795414e-06 | H158: -1.612963759e-06 | J158: 8.582515596e-05 | K158: 0.004738706783 | L158: 2.631191853e-05 | M158: -3.212611095e-05 | N158: 3.315243212e-07
A159: 76.45801 | B159: ='DF raw data'!G164 -> -8.0552127e-08 | C159: ='DF raw data'!H164 -> -4.8260235e-06 | D159: ='DF raw data'!I164 -> -7.8194753e-06 | F159: -8.067134415e-08 | G159: -4.84532071e-06 | H159: -7.831048123e-06 | J159: 8.578480657e-05 | K159: 0.004781613769 | L159: 2.388843447e-05 | M159: -2.017783268e-05 | N159: 3.354905144e-07
A160: 76.95818 | B160: ='DF raw data'!G165 -> -2.2157255e-06 | C160: ='DF raw data'!H165 -> -7.9887814e-06 | D160: ='DF raw data'!I165 -> -9.5718315e-06 | F160: -2.219004774e-06 | G160: -8.020725129e-06 | H160: -9.585997811e-06 | J160: 8.467492696e-05 | K160: 0.004823965628 | L160: 1.987670839e-05 | M160: -1.023609945e-05 | N160: 3.392742639e-07
A161: 77.45835 | B161: ='DF raw data'!G166 -> 1.5813202e-06 | C161: ='DF raw data'!H166 -> -5.3211716e-06 | D161: ='DF raw data'!I166 -> -5.3766739e-06 | F161: 1.583660554e-06 | G161: -5.342448696e-06 | H161: -5.384631377e-06 | J161: 8.546702645e-05 | K161: 0.00486671367 | L161: 1.720457582e-05 | M161: -1.630886757e-06 | N161: 3.43075861e-07
A162: 77.95852 | B162: ='DF raw data'!G167 -> 5.6805948e-06 | C162: ='DF raw data'!H167 -> 8.302211e-07 | D162: ='DF raw data'!I167 -> 2.3237634e-07 | F162: 5.68900208e-06 | G162: 8.335408001e-07 | H162: 2.32720257e-07 | J162: 8.831249463e-05 | K162: 0.004910884931 | L162: 1.762148792e-05 | M162: 7.182852858e-06 | N162: 3.471320464e-07
A163: 78.45869 | B163: ='DF raw data'!G168 -> 7.6159995e-06 | C163: ='DF raw data'!H168 -> -8.117338e-07 | D163: ='DF raw data'!I168 -> -2.9684047e-06 | F163: 7.627271179e-06 | G163: -8.149795772e-07 | H163: -2.972797939e-06 | J163: 9.212742685e-05 | K163: 0.004956964306 | L163: 1.721385959e-05 | M163: 1.579270901e-05 | N163: 3.515254295e-07
A164: 78.95886 | B164: ='DF raw data'!G169 -> 1.0888522e-05 | C164: ='DF raw data'!H169 -> -4.0157849e-07 | D164: ='DF raw data'!I169 -> -4.4349322e-06 | F164: 1.090463701e-05 | G164: -4.031842311e-07 | H164: -4.4414959e-06 | J164: 9.758159915e-05 | K164: 0.005005771694 | L164: 1.701219893e-05 | M164: 2.430170055e-05 | N164: 3.564328892e-07
A165: 79.45903 | B165: ='DF raw data'!G170 -> 1.0748081e-05 | C165: ='DF raw data'!H170 -> 1.3373143e-07 | D165: ='DF raw data'!I170 -> 2.0083648e-06 | F165: 1.076398816e-05 | G165: 1.342661649e-07 | H165: 2.01133718e-06 | J165: 0.0001029654231 | K165: 0.00505727191 | L165: 1.707935484e-05 | M165: 3.284428146e-05 | N165: 3.618815324e-07
A166: 79.9592 | B166: ='DF raw data'!G171 -> 5.5295459e-06 | C166: ='DF raw data'!H171 -> 5.3646104e-06 | D166: ='DF raw data'!I171 -> -2.2931228e-07 | F166: 5.537729628e-06 | G166: 5.386061189e-06 | H166: -2.296516622e-07 | J166: 0.0001057352293 | K166: 0.005110157499 | L166: 1.977330107e-05 | M166: 4.273429345e-05 | N166: 3.676689606e-07
A167: 80.45937 | B167: ='DF raw data'!G172 -> -1.4635953e-06 | C167: ='DF raw data'!H172 -> -3.5372507e-06 | D167: ='DF raw data'!I172 -> -2.1041374e-06 | F167: -1.465761421e-06 | G167: -3.551394657e-06 | H167: -2.107251523e-06 | J167: 0.0001050020994 | K167: 0.0051626764 | L167: 1.7997e-05 | M167: 5.173585294e-05 | N167: 3.733455564e-07
A168: 80.95954 | B168: ='DF raw data'!G173 -> -7.9450328e-06 | C168: ='DF raw data'!H173 -> -5.6779554e-06 | D168: ='DF raw data'!I173 -> 1.4029324e-06 | F168: -7.956791449e-06 | G168: -5.700659122e-06 | H168: 1.40500874e-06 | J168: 0.0001010223511 | K168: 0.005213204749 | L168: 1.514570133e-05 | M168: 5.931127838e-05 | N168: 3.785647842e-07
A169: 81.45971 | B169: ='DF raw data'!G174 -> -8.697978e-06 | C169: ='DF raw data'!H174 -> -6.3721086e-07 | D169: ='DF raw data'!I174 -> 4.3788282e-06 | F169: -8.710851007e-06 | G169: -6.397587944e-07 | H169: 4.385308866e-06 | J169: 9.666544471e-05 | K169: 0.005261553904 | L169: 1.482571317e-05 | M169: 6.672665533e-05 | N169: 3.833484151e-07
A170: 81.95988 | B170: ='DF raw data'!G175 -> -4.1341045e-06 | C170: ='DF raw data'!H175 -> 5.4041743e-07 | D170: ='DF raw data'!I175 -> 2.6208695e-06 | F170: -4.140222975e-06 | G170: 5.425783288e-07 | H170: 2.624748387e-06 | J170: 9.459462939e-05 | K170: 0.0053088673 | L170: 1.509709457e-05 | M170: 7.427776913e-05 | N170: 3.879380081e-07
A171: 82.46005 | B171: ='DF raw data'!G176 -> -4.2012616e-06 | C171: ='DF raw data'!H176 -> 5.0168992e-06 | D171: ='DF raw data'!I176 -> -2.5193035e-06 | F171: -4.207479467e-06 | G171: 5.03695964e-06 | H171: -2.523032069e-06 | J171: 9.249017438e-05 | K171: 0.005355128111 | L171: 1.761643068e-05 | M171: 8.308897926e-05 | N171: 3.923719006e-07
A172: 82.96022 | B172: ='DF raw data'!G177 -> -8.2982806e-06 | C172: ='DF raw data'!H177 -> 8.1196149e-06 | D172: ='DF raw data'!I177 -> -2.3301577e-06 | F172: -8.310562055e-06 | G172: 8.152081777e-06 | H172: -2.333606333e-06 | J172: 8.833348056e-05 | K172: 0.005399309868 | L172: 2.169385742e-05 | M172: 9.393959592e-05 | N172: 3.965100207e-07
A173: 83.46039 | B173: ='DF raw data'!G178 -> -4.2500542e-06 | C173: ='DF raw data'!H178 -> 7.9429565e-06 | D173: ='DF raw data'!I178 -> 2.1192504e-06 | F173: -4.25634428e-06 | G173: 7.974716995e-06 | H173: 2.122386891e-06 | J173: 8.620458484e-05 | K173: 0.005442426815 | L173: 2.568257162e-05 | M173: 0.0001067852478 | N173: 4.005568086e-07
A174: 83.96056 | B174: ='DF raw data'!G179 -> 4.2461543e-06 | C174: ='DF raw data'!H179 -> 3.2999581e-06 | D174: ='DF raw data'!I179 -> 2.6568127e-06 | F174: 4.252438608e-06 | G174: 3.313153225e-06 | H174: 2.660744783e-06 | J174: 8.833152706e-05 | K174: 0.005486607595 | L174: 2.733971147e-05 | M174: 0.0001204597513 | N174: 4.048332213e-07
A175: 84.46073 | B175: ='DF raw data'!G180 -> 6.411974e-06 | C175: ='DF raw data'!H180 -> 2.5358206e-06 | D175: ='DF raw data'!I180 -> 3.5620146e-06 | F175: 6.421463722e-06 | G175: 2.545960265e-06 | H175: 3.567286382e-06 | J175: 9.154335057e-05 | K175: 0.005532394832 | L175: 2.861312441e-05 | M175: 0.0001347711777 | N175: 4.094342331e-07
A176: 84.9609 | B176: ='DF raw data'!G181 -> 3.8918442e-06 | C176: ='DF raw data'!H181 -> 5.405172e-06 | D176: ='DF raw data'!I181 -> 3.2504727e-06 | F176: 3.897604129e-06 | G176: 5.426784977e-06 | H176: 3.2552834e-06 | J176: 9.349281523e-05 | K176: 0.005579157134 | L176: 3.132743945e-05 | M176: 0.0001504402231 | N176: 4.142970434e-07
A177: 85.46107 | B177: ='DF raw data'!G182 -> 3.4114564e-06 | C177: ='DF raw data'!H182 -> 6.9449216e-06 | D177: ='DF raw data'!I182 -> 8.1116414e-06 | F177: 3.416505355e-06 | G177: 6.972691379e-06 | H177: 8.123646629e-06 | J177: 9.520164871e-05 | K177: 0.005626774142 | L177: 3.48149705e-05 | M177: 0.0001678536269 | N177: 4.194365082e-07
A178: 85.96124 | B178: ='DF raw data'!G183 -> 5.6911449e-06 | C178: ='DF raw data'!H183 -> 9.0425301e-06 | D178: ='DF raw data'!I183 -> 9.8122364e-06 | F178: 5.699567794e-06 | G178: 9.078687321e-06 | H178: 9.82675851e-06 | J178: 9.805240154e-05 | K178: 0.005675817012 | L178: 3.935585754e-05 | M178: 0.0001875382461 | N178: 4.250199845e-07
A179: 86.46141 | B179: ='DF raw data'!G184 -> 6.1257524e-06 | C179: ='DF raw data'!H184 -> 7.0224428e-06 | D179: ='DF raw data'!I184 -> -3.6061422e-07 | F179: 6.134818514e-06 | G179: 7.050522553e-06 | H179: -3.61147929e-07 | J179: 0.0001011208537 | K179: 0.005726394629 | L179: 4.28823174e-05 | M179: 0.0002089866948 | N179: 4.310541955e-07
A180: 86.96158 | B180: ='DF raw data'!G185 -> 4.4730332e-06 | C180: ='DF raw data'!H185 -> 2.3374143e-06 | D180: ='DF raw data'!I185 -> -2.98431e-06 | F180: 4.479653289e-06 | G180: 2.346760623e-06 | H180: -2.988726779e-06 | J180: 0.0001033614419 | K180: 0.005778092922 | L180: 4.405609667e-05 | M180: 0.0002310222327 | N180: 4.373686053e-07
A181: 87.46175 | B181: ='DF raw data'!G186 -> 3.995905e-06 | C181: ='DF raw data'!H186 -> -5.3820781e-07 | D181: ='DF raw data'!I186 -> -1.5209982e-07 | F181: 4.001818939e-06 | G181: -5.403598735e-07 | H181: -1.523249277e-07 | J181: 0.0001053630317 | K181: 0.005830792349 | L181: 4.378582487e-05 | M181: 0.0002529225887 | N181: 4.438801019e-07
A182: 87.96192 | B182: ='DF raw data'!G187 -> 1.2474993e-06 | C182: ='DF raw data'!H187 -> 6.8638678e-07 | D182: ='DF raw data'!I187 -> 9.7685233e-07 | F182: 1.249345599e-06 | G182: 6.89131348e-07 | H182: 9.782980714e-07 | J182: 0.0001059879169 | K182: 0.005883804326 | L182: 4.413050769e-05 | M182: 0.0002749953448 | N182: 4.504728128e-07
A183: 88.46209 | B183: ='DF raw data'!G188 -> -4.9385781e-06 | C183: ='DF raw data'!H188 -> 1.4520783e-05 | D183: ='DF raw data'!I188 -> 2.888421e-06 | F183: -4.945887196e-06 | G183: 1.457884542e-05 | H183: 2.892695863e-06 | J183: 0.0001035141325 | K183: 0.005935578989 | L183: 5.142240881e-05 | M183: 0.000300715291 | N183: 4.571548038e-07
A184: 88.96226 | B184: ='DF raw data'!G189 -> -5.1922179e-06 | C184: ='DF raw data'!H189 -> 1.2253455e-05 | D184: ='DF raw data'!I189 -> 9.5657851e-06 | F184: -5.199902382e-06 | G184: 1.230245134e-05 | H184: 9.579942462e-06 | J184: 0.0001009132973 | K184: 0.005986052793 | L184: 5.757572589e-05 | M184: 0.0003295129418 | N184: 4.639063274e-07
A185: 89.46243 | B185: ='DF raw data'!G190 -> 5.9942977e-07 | C185: ='DF raw data'!H190 -> 2.8212214e-06 | D185: ='DF raw data'!I190 -> 7.0849169e-06 | F185: 6.003169261e-07 | G185: 2.832502261e-06 | H185: 7.095402577e-06 | J185: 0.0001012135578 | K185: 0.006036676779 | L185: 5.899245855e-05 | M185: 0.0003590191998 | N185: 4.707708078e-07
A186: 89.9626 | B186: ='DF raw data'!G191 -> 3.5275953e-06 | C186: ='DF raw data'!H191 -> 4.0815744e-06 | D186: ='DF raw data'!I191 -> -3.1771228e-06 | F186: 3.532816141e-06 | G186: 4.097894875e-06 | H186: -3.181824942e-06 | J186: 0.0001029805665 | K186: 0.006088184568 | L186: 6.104210263e-05 | M186: 0.0003895506283 | N186: 4.779388118e-07
A187: 90.46277 | B187: ='DF raw data'!G192 -> 3.5392077e-06 | C187: ='DF raw data'!H192 -> 9.4601573e-06 | D187: ='DF raw data'!I192 -> 2.2190766e-06 | F187: 3.544445727e-06 | G187: 9.497984434e-06 | H187: 2.222360833e-06 | J187: 0.0001047533919 | K187: 0.006140579073 | L187: 6.57927095e-05 | M187: 0.0004224581678 | N187: 4.855923899e-07
A188: 90.96294 | B188: ='DF raw data'!G193 -> 4.3309919e-06 | C188: ='DF raw data'!H193 -> 8.8402548e-06 | D188: ='DF raw data'!I193 -> 6.9747734e-06 | F188: 4.337401768e-06 | G188: 8.875603208e-06 | H188: 6.985096065e-06 | J188: 0.0001069228301 | K188: 0.006194058664 | L188: 7.023201996e-05 | M188: 0.0004575861172 | N188: 4.937776861e-07
A189: 91.46311 | B189: ='DF raw data'!G194 -> 4.3831897e-06 | C189: ='DF raw data'!H194 -> 3.3026267e-06 | D189: ='DF raw data'!I194 -> 5.3405352e-06 | F189: 4.389676821e-06 | G189: 3.315832495e-06 | H189: 5.348439192e-06 | J189: 0.0001091184148 | K189: 0.006248636422 | L189: 7.18904999e-05 | M189: 0.0004935435885 | N189: 5.023181251e-07
A190: 91.96328 | B190: ='DF raw data'!G195 -> 4.6320274e-06 | C190: ='DF raw data'!H195 -> 1.757807e-06 | D190: ='DF raw data'!I195 -> 7.2162916e-06 | F190: 4.638882801e-06 | G190: 1.76483572e-06 | H190: 7.226971712e-06 | J190: 0.0001114386448 | K190: 0.006304374689 | L190: 7.277321778e-05 | M190: 0.0005299425689 | N190: 5.111783929e-07
A191: 92.46345 | B191: ='DF raw data'!G196 -> 6.4065025e-06 | C191: ='DF raw data'!H196 -> 6.2573713e-06 | D191: ='DF raw data'!I196 -> 7.342675e-06 | F191: 6.415984124e-06 | G191: 6.282391859e-06 | H191: 7.353542159e-06 | J191: 0.0001146477276 | K191: 0.006361718043 | L191: 7.591548172e-05 | M191: 0.0005679132154 | N191: 5.206352381e-07
A192: 92.96362 | B192: ='DF raw data'!G197 -> 4.6833666e-06 | C192: ='DF raw data'!H197 -> 1.1138671e-05 | D192: ='DF raw data'!I197 -> 4.3589939e-06 | F192: 4.690297983e-06 | G192: 1.118320979e-05 | H192: 4.365445211e-06 | J192: 0.0001169936739 | K192: 0.006420234769 | L192: 8.150898776e-05 | M192: 0.0006086815658 | N192: 5.308043118e-07
A193: 93.46379 | B193: ='DF raw data'!G198 -> 2.5492409e-06 | C193: ='DF raw data'!H198 -> 1.0804702e-05 | D193: ='DF raw data'!I198 -> 2.3744183e-06 | F193: 2.553013777e-06 | G193: 1.084790539e-05 | H193: 2.377932439e-06 | J193: 0.0001182706148 | K193: 0.006479390182 | L193: 8.69347846e-05 | M193: 0.000652163737 | N193: 5.415807721e-07
A194: 93.96396 | B194: ='DF raw data'!G199 -> 3.6850615e-06 | C194: ='DF raw data'!H199 -> 8.5158936e-06 | D194: ='DF raw data'!I199 -> -6.4527876e-07 | F194: 3.690515391e-06 | G194: 8.549945026e-06 | H194: -6.462337726e-07 | J194: 0.0001201164999 | K194: 0.006539468852 | L194: 9.12112106e-05 | M194: 0.0006977848482 | N194: 5.529583684e-07
A195: 94.46413 | B195: ='DF raw data'!G200 -> 3.5759149e-07 | C195: ='DF raw data'!H200 -> 7.7213344e-06 | D195: ='DF raw data'!I200 -> 2.1609126e-06 | F195: 3.581207254e-07 | G195: 7.752208723e-06 | H195: 2.164110751e-06 | J195: 0.0001202956211 | K195: 0.006599637113 | L195: 9.508863284e-05 | M195: 0.0007453453297 | N195: 5.647188079e-07
A196: 94.9643 | B196: ='DF raw data'!G201 -> -6.4690757e-06 | C196: ='DF raw data'!H201 -> 7.7158638e-06 | D196: ='DF raw data'!I201 -> 5.9729323e-06 | F196: -6.478649932e-06 | G196: 7.746716248e-06 | H196: 5.98177224e-06 | J196: 0.0001170551948 | K196: 0.006658184609 | L196: 9.896330791e-05 | M196: 0.0007948438074 | N196: 5.764706296e-07
A197: 95.46447 | B197: ='DF raw data'!G202 -> -8.5189458e-06 | C197: ='DF raw data'!H202 -> 3.2932867e-06 | D197: ='DF raw data'!I202 -> 7.6360857e-07 | F197: -8.53155384e-06 | G197: 3.306455149e-06 | H197: 7.647387107e-07 | J197: 0.0001127879675 | K197: 0.006714597767 | L197: 0.0001006170976 | M197: 0.0008451694611 | N197: 5.878969762e-07
A198: 95.96464 | B198: ='DF raw data'!G203 -> -6.1374667e-06 | C198: ='DF raw data'!H203 -> 1.5884877e-06 | D198: ='DF raw data'!I203 -> 2.2464342e-06 | F198: -6.146550151e-06 | G198: 1.594839385e-06 | H198: 2.249758923e-06 | J198: 0.0001097136475 | K198: 0.006769473242 | L198: 0.0001014147884 | M198: 0.0008958940958 | N198: 5.990617928e-07
A199: 96.46481 | B199: ='DF raw data'!G204 -> -3.3798351e-06 | C199: ='DF raw data'!H204 -> 7.6216643e-06 | D199: ='DF raw data'!I204 -> 5.5224923e-06 | F199: -3.384837256e-06 | G199: =(1-$G$1*($B$2-$G$2))*C199*$M$2/$M$1 -> 7.652140085e-06 | H199: 5.530665589e-06 | J199: 0.0001080206535 | K199: 0.006823501933 | L199: 0.0001052421593 | M199: 0.0009485330666 | N199: 6.104378462e-07
A200: =A199+$B$1 -> 96.96498 | B200: ='DF raw data'!G205 -> -2.2698005e-06 | C200: ='DF raw data'!H205 -> 8.0978662e-06 | D200: ='DF raw data'!I205 -> 1.4280199e-06 | F200: -2.273159805e-06 | G200: 8.130246113e-06 | H200: 1.430133369e-06 | J200: =F200*$B$1+J199 -> 0.0001068836871 | K200: =J200*$B$1+K199 -> 0.006876961946 | L200: =G200*$B$1+L199 -> 0.0001093086645 | M200: =L200*$B$1+M199 -> 0.001003205981 | N200: =(J200^2+L200^2)*$B$1+N199 -> 6.221280729e-07
A201: 97.46515 | B201: ='DF raw data'!G206 -> -1.8639621e-06 | C201: ='DF raw data'!H206 -> -1.6000215e-06 | D201: ='DF raw data'!I206 -> -3.7472232e-06 | F201: -1.866720764e-06 | G201: -1.606419304e-06 | H201: -3.75276909e-06 | J201: 0.0001059500094 | K201: 0.006929954963 | L201: 0.0001085051818 | M201: 0.001057477018 | N201: 6.336313722e-07
... 1002 more rows

Sheet 20 mm
A1: dz | B1: ='DF raw data'!K7 -> 0.50015 | C1: mm | F1: T_coeff | G1: -0.0008 | H1: /degC | L1: Hallref | M1: ='[1]PI vs x'!B50 -> 0.505 | N1: T | P1: IBy total | Q1: =L1203*1000 -> 1.208310639 | R1: muTm | X1: DF ref | Y1: 21
A2: Tref | B2: ='DF raw data'!K8 -> 21.82 | C2: degC | F2: Tcorr | G2: 20 | H2: degC | L2: NMRref | M2: ='[1]PI vs x'!B51 -> 0.50627 | N2: T | P2: JBy total | Q2: =M1203 -> 0.2592585212 | R2: muTm^2
A3: Encoder | B3: ='DF raw data'!K9 -> 3092953 | P3: PI total | Q3: =N1203 -> 199.188677 | R3: T^2mm^3
A5: z [mm] | B5: Bx | C5: By | D5: Bz | F5: Bx_corr | G5: By_corr | H5: Bz_corr | J5: Ix | K5: Jx | L5: Iy | M5: Jy | N5: PI
A6: ='[1]PI vs x'!B53 -> -0.068 | B6: ='DF raw data'!J11 -> 1.0176081e-05 | C6: ='DF raw data'!K11 -> 1.1541542e-06 | D6: ='DF raw data'!L11 -> 3.6723038e-06 | F6: =(1-$G$1*($B$2-$G$2))*B6 -> 1.019089737e-05 | G6: =(1-$G$1*($B$2-$G$2))*C6*$M$2/$M$1 -> 1.158741401e-06 | H6: =(1-$G$1*($B$2-$G$2))*D6 -> 3.677650674e-06 | J6: =F6*$B$1 -> 5.096977322e-06 | K6: =J6*$B$1 -> 2.549253207e-06 | L6: =G6*$B$1 -> 5.795445117e-07 | M6: =L6*$B$1 -> 2.898591875e-07 | N6: =(J6^2+L6)^2*$B$1 -> 1.680013622e-13
A7: =A6+$B$1 -> 0.43215 | B7: ='DF raw data'!J12 -> 1.0332543e-05 | C7: ='DF raw data'!K12 -> -3.0458664e-06 | D7: ='DF raw data'!L12 -> 4.0560526e-06 | F7: =(1-$G$1*($B$2-$G$2))*B7 -> 1.034758718e-05 | G7: =(1-$G$1*($B$2-$G$2))*C7*$M$2/$M$1 -> -3.057972236e-06 | H7: 4.061958213e-06 | J7: =F7*$B$1+J6 -> 1.027232305e-05 | K7: =J7*$B$1+K6 -> 7.686955581e-06 | L7: =G7*$B$1+L6 -> -9.499003021e-07 | M7: =L7*$B$1+M6 -> -1.852334486e-07 | N7: =(J7^2+L7^2)*$B$1+N6 -> 5.339543053e-11
A8: =A7+$B$1 -> 0.9323 | B8: ='DF raw data'!J13 -> 1.0325602e-05 | C8: ='DF raw data'!K13 -> -2.5472486e-06 | D8: ='DF raw data'!L13 -> 5.7245607e-06 | F8: 1.034063608e-05 | G8: -2.557372673e-06 | H8: 5.73289566e-06 | J8: =F8*$B$1+J7 -> 1.544419218e-05 | K8: =J8*$B$1+K7 -> 1.54113683e-05 | L8: =G8*$B$1+L7 -> -2.228970244e-06 | M8: =L8*$B$1+M7 -> -1.300052916e-06 | N8: =(J8^2+L8^2)*$B$1+N7 -> 1.751776445e-10
A9: 1.43245 | B9: ='DF raw data'!J14 -> 1.0527393e-05 | C9: ='DF raw data'!K14 -> -8.8160577e-06 | D9: ='DF raw data'!L14 -> 6.0315944e-07 | F9: 1.054272088e-05 | G9: -8.851097237e-06 | H9: 6.040376401e-07 | J9: 2.071713403e-05 | K9: 2.577304289e-05 | L9: -6.655846528e-06 | M9: -4.628974557e-06 | N9: 4.119986373e-10
A10: 1.9326 | B10: ='DF raw data'!J15 -> 1.0465315e-05 | C10: ='DF raw data'!K15 -> -8.2666047e-06 | D10: ='DF raw data'!L15 -> -6.7333631e-06 | F10: 1.04805525e-05 | G10: -8.299460429e-06 | H10: -6.743166877e-06 | J10: 2.595898237e-05 | K10: 3.875642792e-05 | L10: -1.080682166e-05 | M10: -1.003400641e-05 | N10: 8.074453157e-10
A11: 2.43275 | B11: ='DF raw data'!J16 -> 9.7954171e-06 | C11: ='DF raw data'!K16 -> 9.9664849e-06 | D11: ='DF raw data'!L16 -> -6.6746024e-06 | F11: 9.809679227e-06 | G11: 1.000609682e-05 | H11: -6.684320621e-06 | J11: 3.086529343e-05 | K11: 5.419370443e-05 | L11: -5.802272334e-06 | M11: -1.293601292e-05 | N11: 1.300759617e-09
A12: 2.9329 | B12: ='DF raw data'!J17 -> 1.0326271e-05 | C12: ='DF raw data'!K17 -> -2.8774807e-06 | D12: ='DF raw data'!L17 -> 3.6725658e-06 | F12: 1.034130605e-05 | G12: -2.888917285e-06 | H12: 3.677913056e-06 | J12: 3.603749765e-05 | K12: 7.221785888e-05 | L12: -7.247164314e-06 | M12: -1.656068215e-05 | N12: 1.976573614e-09
A13: 3.43305 | B13: ='DF raw data'!J18 -> 1.0373739e-05 | C13: ='DF raw data'!K18 -> -3.7774475e-06 | D13: ='DF raw data'!L18 -> 5.9496497e-06 | F13: 1.038884316e-05 | G13: -3.792461015e-06 | H13: 5.95831239e-06 | J13: 4.123347756e-05 | K13: 9.284078269e-05 | L13: -9.14396369e-06 | M13: -2.113403559e-05 | N13: 2.868747058e-09
A14: 3.9332 | B14: ='DF raw data'!J19 -> 1.0282222e-05 | C14: ='DF raw data'!K19 -> -1.2503365e-06 | D14: ='DF raw data'!L19 -> 5.6700492e-06 | F14: 1.029719292e-05 | G14: -1.255305979e-06 | H14: 5.678304792e-06 | J14: 4.63836186e-05 | K14: 0.0001160395495 | L14: -9.771804976e-06 | M14: -2.602140385e-05 | N14: 3.992548221e-09
A15: 4.43335 | B15: ='DF raw data'!J20 -> 1.0287097e-05 | C15: ='DF raw data'!K20 -> -5.9934564e-07 | D15: ='DF raw data'!L20 -> 1.007487e-05 | F15: 1.030207501e-05 | G15: -6.017277471e-07 | H15: 1.008953901e-05 | J15: 5.153620142e-05 | K15: 0.0001418153807 | L15: -1.007275911e-05 | M15: -3.105929432e-05 | N15: 5.371682103e-09
A16: 4.9335 | B16: ='DF raw data'!J21 -> 1.0054863e-05 | C16: ='DF raw data'!K21 -> 4.5106481e-06 | D16: ='DF raw data'!L21 -> 2.8908951e-06 | F16: 1.006950288e-05 | G16: 4.52857573e-06 | H16: 2.895104243e-06 | J16: 5.657246328e-05 | K16: 0.0001701100982 | L16: -7.807791957e-06 | M16: -3.496436146e-05 | N16: 7.002873922e-09
A17: 5.43365 | B17: ='DF raw data'!J22 -> 9.8315932e-06 | C17: ='DF raw data'!K22 -> 9.4214356e-06 | D17: ='DF raw data'!L22 -> -3.7866878e-06 | F17: 9.845908e-06 | G17: 9.458881219e-06 | H17: -3.792201217e-06 | J17: 6.149689417e-05 | K17: 0.0002008677698 | L17: -3.076932515e-06 | M17: -3.650328926e-05 | N17: 8.899110376e-09
A18: 5.9338 | B18: ='DF raw data'!J23 -> 1.0208793e-05 | C18: ='DF raw data'!K23 -> 4.0883012e-07 | D18: ='DF raw data'!L23 -> 4.0802815e-06 | F18: 1.0223657e-05 | G18: 4.104550207e-07 | H18: 4.08622239e-06 | J18: 6.661025622e-05 | K18: 0.0002341828894 | L18: -2.871643437e-06 | M18: -3.793954173e-05 | N18: 1.112236344e-08
A19: 6.43395 | B19: ='DF raw data'!J24 -> 9.9827148e-06 | C19: ='DF raw data'!K24 -> 5.8347796e-06 | D19: ='DF raw data'!L24 -> -2.1192245e-07 | F19: 9.997249633e-06 | G19: 5.857970008e-06 | H19: -2.122310091e-07 | J19: 7.161038062e-05 | K19: 0.0002699988213 | L19: 5.822026286e-08 | M19: -3.791042286e-05 | N19: 1.368715765e-08
A20: 6.9341 | B20: ='DF raw data'!J25 -> 9.99846e-06 | C20: ='DF raw data'!K25 -> 4.4852973e-06 | D20: ='DF raw data'!L25 -> -5.584373e-06 | F20: 1.001301776e-05 | G20: 4.503124173e-06 | H20: -5.592503847e-06 | J20: 7.661839145e-05 | K20: 0.0003083195098 | L20: 2.310457818e-06 | M20: -3.675484738e-05 | N20: 1.662589706e-08
A21: 7.43425 | B21: ='DF raw data'!J26 -> 1.0336617e-05 | C21: ='DF raw data'!K26 -> -5.3153285e-06 | D21: ='DF raw data'!L26 -> -9.168175e-06 | F21: 1.035166711e-05 | G21: -5.336454343e-06 | H21: -9.181523863e-06 | J21: 8.179577776e-05 | K21: 0.000349229668 | L21: -3.585698216e-07 | M21: -3.693418608e-05 | N21: 1.997223958e-08
A22: 7.9344 | B22: ='DF raw data'!J27 -> 6.4461342e-06 | C22: ='DF raw data'!K27 -> 6.5046697e-07 | D22: ='DF raw data'!L27 -> -4.110133e-06 | F22: 6.455519771e-06 | G22: 6.530522595e-07 | H22: -4.116117354e-06 | J22: 8.502450597e-05 | K22: 0.0003917546747 | L22: -3.194573401e-08 | M22: -3.695016374e-05 | N22: 2.358790778e-08
A23: 8.43455 | B23: ='DF raw data'!J28 -> -1.9506849e-06 | C23: ='DF raw data'!K28 -> 2.8126542e-06 | D23: ='DF raw data'!L28 -> 5.4507518e-06 | F23: =(1-$G$1*($B$2-$G$2))*B23 -> -1.953525097e-06 | G23: 2.823833131e-06 | H23: 5.458688095e-06 | J23: 8.40474504e-05 | K23: 0.000433791007 | L23: 1.380394406e-06 | M23: -3.625975948e-05 | N23: 2.712190736e-08
A24: 8.9347 | B24: ='DF raw data'!J29 -> -4.0557647e-06 | C24: ='DF raw data'!K29 -> -7.2721718e-06 | D24: ='DF raw data'!L29 -> 3.1078235e-07 | F24: -4.061669893e-06 | G24: -7.301075142e-06 | H24: 3.112348491e-07 | J24: 8.20160062e-05 | K24: 0.0004748113125 | L24: -2.271238326e-06 | M24: -3.739571933e-05 | N24: 3.048880903e-08
A25: 9.43485 | B25: ='DF raw data'!J30 -> 3.1545585e-07 | C25: ='DF raw data'!K30 -> -5.4572952e-06 | D25: ='DF raw data'!L30 -> -3.0677182e-07 | F25: 3.159151537e-07 | G25: -5.478985291e-06 | H25: -3.072184798e-07 | J25: 8.217401116e-05 | K25: 0.0005159106442 | L25: -5.011552819e-06 | M25: -3.990224747e-05 | N25: 3.387866757e-08
A26: 9.935 | B26: ='DF raw data'!J31 -> 6.0190646e-06 | C26: ='DF raw data'!K31 -> 1.9647246e-06 | D26: ='DF raw data'!L31 -> 1.7403624e-06 | F26: 6.027828358e-06 | G26: 1.972533424e-06 | H26: 1.742896368e-06 | J26: 8.518882952e-05 | K26: 0.0005585178373 | L26: -4.024990227e-06 | M26: -4.191534633e-05 | N26: 3.751642718e-08
A27: 10.43515 | B27: ='DF raw data'!J32 -> 8.0570599e-06 | C27: ='DF raw data'!K32 -> 4.5039769e-06 | D27: ='DF raw data'!L32 -> 2.5536544e-06 | F27: 8.068790979e-06 | G27: 4.521878015e-06 | H27: 2.557372521e-06 | J27: 8.922443533e-05 | K27: 0.0006031434386 | L27: -1.763372938e-06 | M27: -4.279729731e-05 | N27: 4.149967646e-08
A28: 10.9353 | B28: ='DF raw data'!J33 -> 6.0678572e-06 | C28: ='DF raw data'!K33 -> 7.9750362e-07 | D28: ='DF raw data'!L33 -> -2.680684e-06 | F28: 6.076692e-06 | G28: 8.006733086e-07 | H28: -2.684587076e-06 | J28: 9.226369283e-05 | K28: 0.0006492891246 | L28: -1.362916183e-06 | M28: -4.347895983e-05 | N28: 4.575817691e-08
A29: 11.43545 | B29: ='DF raw data'!J34 -> 2.2914843e-07 | C29: ='DF raw data'!K34 -> -1.0369551e-05 | D29: ='DF raw data'!L34 -> 3.248683e-06 | F29: 2.294820701e-07 | G29: -1.041076492e-05 | H29: 3.253413082e-06 | J29: 9.237846829e-05 | K29: 0.0006954922155 | L29: -6.569860256e-06 | M29: -4.676487544e-05 | N29: 5.004793568e-08
A30: 11.9356 | B30: ='DF raw data'!J35 -> -4.5610655e-06 | C30: ='DF raw data'!K35 -> -6.3932871e-06 | D30: ='DF raw data'!L35 -> 1.9698462e-06 | F30: -4.567706411e-06 | G30: -6.418697303e-06 | H30: 1.972714296e-06 | J30: 9.009392993e-05 | K30: 0.0007405526946 | L30: -9.780171712e-06 | M30: -5.165642832e-05 | N30: 5.415545155e-08
A31: 12.43575 | B31: ='DF raw data'!J36 -> -4.3323821e-06 | C31: ='DF raw data'!K36 -> -1.9667073e-06 | D31: ='DF raw data'!L36 -> -8.096994e-06 | F31: -4.338690048e-06 | G31: -1.974524004e-06 | H31: -8.108783223e-06 | J31: 8.79239341e-05 | K31: 0.0007845278502 | L31: -1.076772989e-05 | M31: -5.704190843e-05 | N31: 5.807990964e-08
A32: 12.9359 | B32: ='DF raw data'!J37 -> -2.2588654e-06 | C32: ='DF raw data'!K37 -> -2.6565253e-06 | D32: ='DF raw data'!L37 -> -3.9664474e-06 | F32: -2.262154308e-06 | G32: -2.667083695e-06 | H32: -3.972222547e-06 | J32: 8.679251762e-05 | K32: 0.0008279371279 | L32: -1.21016718e-05 | M32: -6.309455958e-05 | N32: 6.192075733e-08
A33: 13.43605 | B33: ='DF raw data'!J38 -> -3.3452241e-06 | C33: ='DF raw data'!K38 -> -2.034622e-06 | D33: ='DF raw data'!L38 -> 3.705977e-06 | F33: -3.350094746e-06 | G33: -2.042708632e-06 | H33: 3.711372903e-06 | J33: 8.511696773e-05 | K33: 0.0008705083793 | L33: -1.312333252e-05 | M33: -6.965819434e-05 | N33: 6.563042993e-08
A34: 13.9362 | B34: ='DF raw data'!J39 -> -6.7218793e-06 | C34: ='DF raw data'!K39 -> 4.4420667e-06 | D34: ='DF raw data'!L39 -> 7.0880606e-06 | F34: -6.731666356e-06 | G34: 4.459721752e-06 | H34: 7.098380816e-06 | J34: 8.17501248e-05 | K34: 0.0009113957042 | L34: -1.089280269e-05 | M34: -7.510622961e-05 | N34: 6.903231821e-08
A35: 14.43635 | B35: ='DF raw data'!J40 -> -3.7730795e-06 | C35: ='DF raw data'!K40 -> 1.696269e-06 | D35: ='DF raw data'!L40 -> 2.2607535e-06 | F35: -3.778573104e-06 | G35: 1.703010843e-06 | H35: 2.264045157e-06 | J35: 7.986027147e-05 | K35: 0.000951337819 | L35: -1.004104182e-05 | M35: -8.012825667e-05 | N35: 7.227253273e-08
A36: 14.9365 | B36: ='DF raw data'!J41 -> 2.2993183e-06 | C36: ='DF raw data'!K41 -> -3.6987253e-06 | D36: ='DF raw data'!L41 -> -5.1335401e-06 | F36: 2.302666107e-06 | G36: -3.713425932e-06 | H36: -5.141014534e-06 | J36: 8.101194992e-05 | K36: 0.0009918559457 | L36: -1.18983118e-05 | M36: -8.607919732e-05 | N36: 7.562579133e-08
A37: 15.43665 | B37: ='DF raw data'!J42 -> 2.1267763e-06 | C37: ='DF raw data'!K42 -> 9.0046087e-06 | D37: ='DF raw data'!L42 -> -3.1236734e-06 | F37: 2.129872886e-06 | G37: 9.040397635e-06 | H37: -3.128221468e-06 | J37: 8.207720584e-05 | K37: 0.00103290686 | L37: -7.37675692e-06 | M37: -8.976868229e-05 | N37: 7.902235212e-08
A38: 15.9368 | B38: ='DF raw data'!J43 -> -2.8214765e-07 | C38: ='DF raw data'!K43 -> 1.5029513e-05 | D38: ='DF raw data'!L43 -> 3.0200755e-07 | F38: -2.82558457e-07 | G38: 1.5089248e-05 | H38: 3.02447273e-07 | J38: 8.193588423e-05 | K38: 0.001073887093 | L38: 1.701304657e-07 | M38: -8.968359154e-05 | N38: 8.238011819e-08
A39: 16.43695 | B39: ='DF raw data'!J44 -> 9.7080135e-07 | C39: ='DF raw data'!K44 -> -1.0096342e-06 | D39: ='DF raw data'!L44 -> -4.6154773e-06 | F39: 9.722148368e-07 | G39: -1.013647004e-06 | H39: -4.622197435e-06 | J39: 8.242213748e-05 | K39: 0.001115110525 | L39: -3.368450835e-07 | M39: -8.985206461e-05 | N39: 8.577789832e-08
A40: 16.9371 | B40: ='DF raw data'!J45 -> 9.8475664e-07 | C40: ='DF raw data'!K45 -> -7.9601705e-07 | D40: ='DF raw data'!L45 -> -3.1897537e-06 | F40: 9.861904457e-07 | G40: -7.991808302e-07 | H40: -3.194397981e-06 | J40: 8.291538063e-05 | K40: 0.001156580652 | L40: -7.365553757e-07 | M40: -9.022045278e-05 | N40: 8.921668108e-08
A41: 17.43725 | B41: ='DF raw data'!J46 -> -1.2064271e-06 | C41: ='DF raw data'!K46 -> 6.8769791e-06 | D41: ='DF raw data'!L46 -> -7.3178961e-07 | F41: -1.208183658e-06 | G41: 6.904311744e-06 | H41: -7.328550957e-07 | J41: 8.231110758e-05 | K41: 0.001197748553 | L41: 2.716636143e-06 | M41: -8.886172721e-05 | N41: 9.260894772e-08
A42: 17.9374 | B42: ='DF raw data'!J47 -> -1.6797572e-06 | C42: ='DF raw data'!K47 -> 7.4723312e-06 | D42: ='DF raw data'!L47 -> 2.8508919e-06 | F42: -1.682202926e-06 | G42: 7.502030078e-06 | H42: 2.855042799e-06 | J42: 8.146975378e-05 | K42: 0.00123849565 | L42: 6.468776486e-06 | M42: -8.562636865e-05 | N42: 9.594953252e-08
A43: 18.43755 | B43: ='DF raw data'!J48 -> 3.1853554e-06 | C43: ='DF raw data'!K48 -> 4.1594681e-06 | D43: ='DF raw data'!L48 -> -1.4034479e-06 | F43: 3.189993277e-06 | G43: 4.17599996e-06 | H43: -1.40549132e-06 | J43: 8.306522892e-05 | K43: 0.001280040724 | L43: 8.557402867e-06 | M43: -8.134638361e-05 | N43: 9.943710918e-08
A44: 18.9377 | B44: ='DF raw data'!J49 -> 3.9970905e-06 | C44: ='DF raw data'!K49 -> 4.1258445e-06 | D44: ='DF raw data'!L49 -> -8.7571416e-06 | F44: 4.002910264e-06 | G44: 4.142242723e-06 | H44: -8.769891998e-06 | J44: 8.506728449e-05 | K44: 0.001322587127 | L44: 1.062914556e-05 | M44: -7.603021645e-05 | N44: 1.031129224e-07
A45: 19.43785 | B45: ='DF raw data'!J50 -> 1.5365653e-06 | C45: ='DF raw data'!K50 -> -2.9793367e-07 | D45: ='DF raw data'!L50 -> -5.5447772e-06 | F45: 1.538802539e-06 | G45: -2.991178113e-07 | H45: -5.552850396e-06 | J45: 8.583691658e-05 | K45: 0.001365518461 | L45: 1.047954179e-05 | M45: -7.078887363e-05 | N45: 1.068529426e-07
A46: 19.938 | B46: ='DF raw data'!J51 -> 4.2463939e-06 | C46: ='DF raw data'!K51 -> 2.693904e-06 | D46: ='DF raw data'!L51 -> -3.1160191e-06 | F46: 4.25257665e-06 | G46: 2.704610957e-06 | H46: -3.120556024e-06 | J46: 8.796384279e-05 | K46: 0.001409513577 | L46: 1.183225296e-05 | M46: -6.487097231e-05 | N46: 1.107929442e-07
A47: 20.43815 | B47: ='DF raw data'!J52 -> 4.9006044e-06 | C47: ='DF raw data'!K52 -> -1.5509481e-06 | D47: ='DF raw data'!L52 -> -3.5820296e-06 | F47: 4.90773968e-06 | G47: -1.557112364e-06 | H47: -3.587245035e-06 | J47: 9.041844879e-05 | K47: 0.001454736364 | L47: 1.105346321e-05 | M47: -5.934258268e-05 | N47: 1.149430263e-07
A48: 20.9383 | B48: ='DF raw data'!J53 -> 2.9392388e-06 | C48: ='DF raw data'!K53 -> -8.0812742e-06 | D48: ='DF raw data'!L53 -> -2.2023626e-06 | F48: 2.943518332e-06 | G48: -8.11339333e-06 | H48: -2.20556924e-06 | J48: 9.189064949e-05 | K48: 0.001500695472 | L48: 6.995549539e-06 | M48: -5.584375858e-05 | N48: 1.191907148e-07
A49: 21.43845 | B49: ='DF raw data'!J54 -> 4.315079e-06 | C49: ='DF raw data'!K54 -> -9.6605181e-06 | D49: ='DF raw data'!L54 -> 1.2945936e-06 | F49: 4.321361755e-06 | G49: -9.698913956e-06 | H49: 1.296478528e-06 | J49: 9.405197857e-05 | K49: 0.001547735569 | L49: 2.144637724e-06 | M49: -5.477111802e-05 | N49: 1.236172294e-07
A50: 21.9386 | B50: ='DF raw data'!J55 -> 3.951965e-06 | C50: ='DF raw data'!K55 -> -2.7788788e-06 | D50: ='DF raw data'!L55 -> -2.5029178e-06 | F50: 3.957719061e-06 | G50: -2.78992349e-06 | H50: -2.506562048e-06 | J50: 9.603143176e-05 | K50: 0.00159576569 | L50: 7.4925749e-07 | M50: -5.439637689e-05 | N50: 1.282299115e-07
A51: 22.43875 | B51: ='DF raw data'!J56 -> 1.3803889e-07 | C51: ='DF raw data'!K56 -> 2.3393879e-06 | D51: ='DF raw data'!L56 -> -1.0824838e-05 | F51: 1.382398746e-07 | G51: 2.348685828e-06 | H51: -1.084059896e-05 | J51: 9.610057243e-05 | K51: 0.001643830391 | L51: 1.923952707e-06 | M51: -5.343411194e-05 | N51: 1.328508081e-07
A52: 22.9389 | B52: ='DF raw data'!J57 -> 1.8816639e-06 | C52: ='DF raw data'!K57 -> 1.5010833e-05 | D52: ='DF raw data'!L57 -> -4.4097569e-06 | F52: 1.884403603e-06 | G52: 1.507049375e-05 | H52: -4.416177506e-06 | J52: 9.704305689e-05 | K52: 0.001692366476 | L52: 9.461460157e-06 | M52: -4.870196265e-05 | N52: 1.376056712e-07
A53: 23.43905 | B53: ='DF raw data'!J58 -> 9.0303356e-06 | C53: ='DF raw data'!K58 -> 7.7407867e-06 | D53: ='DF raw data'!L58 -> 6.9247299e-06 | F53: 9.043483769e-06 | G53: 7.771552558e-06 | H53: 6.934812307e-06 | J53: 0.0001015661553 | K53: 0.001743164789 | L53: 1.334840217e-05 | M53: -4.20257593e-05 | N53: 1.428541772e-07
A54: 23.9392 | B54: ='DF raw data'!J59 -> 9.6981667e-06 | C54: ='DF raw data'!K59 -> -4.7732142e-06 | D54: ='DF raw data'!L59 -> 3.6014796e-06 | F54: 9.712287231e-06 | G54: -4.792185402e-06 | H54: 3.606723354e-06 | J54: 0.0001064237558 | K54: 0.00179639263 | L54: 1.095159064e-05 | M54: -3.654832124e-05 | N54: 1.485788706e-07
A55: 24.43935 | B55: ='DF raw data'!J60 -> 3.5869155e-06 | C55: ='DF raw data'!K60 -> 1.3773779e-06 | D55: ='DF raw data'!L60 -> -4.5811174e-07 | F55: 3.592138049e-06 | G55: 1.382852307e-06 | H55: -4.587787507e-07 | J55: 0.0001082203636 | K55: 0.001850519045 | L55: 1.164322422e-05 | M55: -3.072496265e-05 | N55: 1.545042536e-07
A56: 24.9395 | B56: ='DF raw data'!J61 -> -6.3846585e-07 | C56: ='DF raw data'!K61 -> 5.4573143e-06 | D56: ='DF raw data'!L61 -> 1.296791e-06 | F56: -6.393954563e-07 | G56: 5.479004467e-06 | H56: 1.298679128e-06 | J56: 0.00010790057 | K56: 0.001904485515 | L56: 1.438354831e-05 | M56: -2.353103096e-05 | N56: 1.604307407e-07
A57: 25.43965 | B57: ='DF raw data'!J62 -> -1.9394799e-06 | C57: ='DF raw data'!K62 -> 9.8763712e-07 | D57: ='DF raw data'!L62 -> -1.0598335e-06 | F57: -1.942303783e-06 | G57: 9.915624967e-07 | H57: -1.061376618e-06 | J57: 0.0001069291267 | K57: 0.001957966118 | L57: 1.487947829e-05 | M57: -1.60890599e-05 | N57: 1.662601075e-07
A58: 25.9398 | B58: ='DF raw data'!J63 -> -2.3184118e-06 | C58: ='DF raw data'!K63 -> 7.1371142e-07 | D58: ='DF raw data'!L63 -> 2.6962778e-06 | F58: -2.321787408e-06 | G58: 7.165480754e-07 | H58: 2.70020358e-06 | J58: 0.0001057678848 | K58: 0.002010865925 | L58: 1.523785981e-05 | M58: -8.467844315e-06 | N58: 1.719713393e-07
A59: 26.43995 | B59: ='DF raw data'!J64 -> -5.0434614e-06 | C59: ='DF raw data'!K64 -> 6.5476811e-06 | D59: ='DF raw data'!L64 -> -7.2499387e-07 | F59: -5.05080468e-06 | G59: 6.573704944e-06 | H59: -7.260494611e-07 | J59: 0.0001032417248 | K59: 0.002062502274 | L59: 1.852569834e-05 | M59: 7.977837076e-07 | N59: 1.774740172e-07
A60: 26.9401 | B60: ='DF raw data'!J65 -> -8.7493254e-06 | C60: ='DF raw data'!K65 -> -6.5725271e-07 | D60: ='DF raw data'!L65 -> -9.2360597e-06 | F60: -8.762064418e-06 | G60: -6.598649695e-07 | H60: -9.249507403e-06 | J60: 9.885937828e-05 | K60: 0.002111946792 | L60: 1.819566687e-05 | M60: 9.898346493e-06 | N60: 1.825276623e-07
A61: 27.44025 | B61: ='DF raw data'!J66 -> -9.1534903e-06 | C61: ='DF raw data'!K66 -> 4.8767724e-06 | D61: ='DF raw data'!L66 -> -9.324579e-06 | F61: -9.166817782e-06 | G61: 4.896155196e-06 | H61: -9.338155587e-06 | J61: 9.427459436e-05 | K61: 0.00215909823 | L61: 2.064447889e-05 | M61: 2.022368261e-05 | N61: 1.871860062e-07
A62: 27.9404 | B62: ='DF raw data'!J67 -> -5.8252922e-06 | C62: ='DF raw data'!K67 -> 6.2624135e-06 | D62: ='DF raw data'!L67 -> -2.2010238e-06 | F62: -5.833773825e-06 | G62: 6.287303545e-06 | H62: -2.204228491e-06 | J62: 9.135683238e-05 | K62: 0.00220479035 | L62: 2.378907376e-05 | M62: 3.212178785e-05 | N62: 1.916433385e-07
A63: 28.44055 | B63: ='DF raw data'!J68 -> 1.5391118e-06 | C63: ='DF raw data'!K68 -> -2.3257594e-06 | D63: ='DF raw data'!L68 -> -3.4670228e-07 | F63: 1.541352747e-06 | G63: -2.335003161e-06 | H63: -3.472070785e-07 | J63: 9.212773996e-05 | K63: 0.002250868039 | L63: 2.262122193e-05 | M63: 4.3435792e-05 | N63: 1.961443084e-07
A64: 28.9407 | B64: ='DF raw data'!J69 -> 3.6179547e-06 | C64: ='DF raw data'!K69 -> -2.6912171e-06 | D64: ='DF raw data'!L69 -> 2.484169e-06 | F64: 3.623222442e-06 | G64: -2.701913378e-06 | H64: 2.48778595e-06 | J64: 9.393989466e-05 | K64: 0.002297852077 | L64: 2.126985995e-05 | M64: 5.407391246e-05 | N64: 2.007842554e-07
A65: 29.44085 | B65: ='DF raw data'!J70 -> 1.6546925e-07 | C65: ='DF raw data'!K70 -> -7.0117217e-06 | D65: ='DF raw data'!L70 -> 1.0120682e-06 | F65: 1.657101732e-07 | G65: -7.03958988e-06 | H65: 1.013541771e-06 | J65: 9.402277461e-05 | K65: 0.002344877568 | L65: 1.774900908e-05 | M65: 6.295107935e-05 | N65: 2.053632834e-07
A66: 29.941 | B66: ='DF raw data'!J71 -> -1.1954113e-06 | C66: ='DF raw data'!K71 -> 8.1645021e-07 | D66: ='DF raw data'!L71 -> -1.2644771e-06 | F66: -1.197151819e-06 | G66: 8.196952021e-07 | H66: -1.266318179e-06 | J66: 9.342401913e-05 | K66: 0.002391603591 | L66: 1.815897963e-05 | M66: 7.203329301e-05 | N66: 2.0989354e-07
A67: 30.44115 | B67: ='DF raw data'!J72 -> -2.407038e-07 | C67: ='DF raw data'!K72 -> -3.347945e-06 | D67: ='DF raw data'!L72 -> 6.6595067e-06 | F67: -2.410542647e-07 | G67: -3.361251451e-06 | H67: 6.669202942e-06 | J67: 9.330345584e-05 | K67: 0.002438269315 | L67: 1.647784972e-05 | M67: 8.027468954e-05 | N67: 2.143834138e-07
A68: 30.9413 | B68: ='DF raw data'!J73 -> -1.7930294e-06 | C68: ='DF raw data'!K73 -> 3.4873954e-06 | D68: ='DF raw data'!L73 -> 8.3227033e-06 | F68: -1.795640051e-06 | G68: 3.501256099e-06 | H68: 8.334821156e-06 | J68: 9.240536646e-05 | K68: 0.002484485859 | L68: 1.822900295e-05 | M68: 8.939192537e-05 | N68: 2.188202686e-07
A69: 31.44145 | B69: ='DF raw data'!J74 -> -4.9490777e-06 | C69: ='DF raw data'!K74 -> 2.7850347e-06 | D69: ='DF raw data'!L74 -> 4.2545844e-06 | F69: -4.956283557e-06 | G69: 2.796103857e-06 | H69: 4.260779075e-06 | J69: 8.992648124e-05 | K69: 0.002529462588 | L69: 1.96274743e-05 | M69: 9.920860664e-05 | N69: 2.230575443e-07
A70: 31.9416 | B70: ='DF raw data'!J75 -> -8.2902125e-06 | C70: ='DF raw data'!K75 -> -3.6536271e-06 | D70: ='DF raw data'!L75 -> 1.0994524e-06 | F70: -8.302283049e-06 | G70: -3.668148489e-06 | H70: 1.101053203e-06 | J70: 8.577409438e-05 | K70: 0.002572362502 | L70: 1.779284983e-05 | M70: 0.0001081077005 | N70: 2.268955857e-07
A71: 32.44175 | B71: ='DF raw data'!J76 -> -8.3260684e-06 | C71: ='DF raw data'!K76 -> -3.3491465e-06 | D71: ='DF raw data'!L76 -> -7.3117843e-07 | F71: -8.338191156e-06 | G71: =(1-$G$1*($B$2-$G$2))*C71*$M$2/$M$1 -> -3.362457727e-06 | H71: -7.322430258e-07 | J71: 8.160374807e-05 | K71: 0.002613176616 | L71: 1.61111166e-05 | M71: 0.0001161656755 | N71: 2.303559934e-07
A72: =A71+$B$1 -> 32.9419 | B72: ='DF raw data'!J77 -> -8.7903036e-06 | C72: ='DF raw data'!K77 -> 3.0969875e-06 | D72: ='DF raw data'!L77 -> -1.422278e-06 | F72: -8.803102282e-06 | G72: 3.109296517e-06 | H72: -1.424348837e-06 | J72: =F72*$B$1+J71 -> 7.720087646e-05 | K72: =J72*$B$1+K71 -> 0.002651788635 | L72: =G72*$B$1+L71 -> 1.766623125e-05 | M72: =L72*$B$1+M71 -> 0.000125001441 | N72: =(J72^2+L72^2)*$B$1+N71 -> 2.334929698e-07
A73: 33.44205 | B73: ='DF raw data'!J78 -> -1.0510034e-05 | C73: ='DF raw data'!K78 -> 7.742874e-07 | D73: ='DF raw data'!L78 -> 2.5566521e-06 | F73: -1.052533661e-05 | G73: 7.773648154e-07 | H73: 2.560374585e-06 | J73: 7.193662936e-05 | K73: 0.00268776774 | L73: 1.805503027e-05 | M73: 0.0001340316644 | N73: 2.362442263e-07
A74: 33.9422 | B74: ='DF raw data'!J79 -> -9.6354206e-06 | C74: ='DF raw data'!K79 -> -5.9671206e-06 | D74: ='DF raw data'!L79 -> 3.1093921e-06 | F74: -9.649449772e-06 | G74: -5.990836999e-06 | H74: 3.113919375e-06 | J74: 6.711045705e-05 | K74: 0.002721333035 | L74: 1.505871314e-05 | M74: 0.0001415632798 | N74: 2.38610225e-07
A75: 34.44235 | B75: ='DF raw data'!J80 -> -6.3717021e-06 | C75: ='DF raw data'!K80 -> -1.2528402e-05 | D75: ='DF raw data'!L80 -> 3.9367851e-06 | F75: -6.380979298e-06 | G75: -1.25781963e-05 | H75: 3.942517059e-06 | J75: 6.391901026e-05 | K75: 0.002753302128 | L75: 8.767728262e-06 | M75: 0.0001459484591 | N75: 2.406921058e-07
A76: 34.9425 | B76: ='DF raw data'!J81 -> -7.0145766e-06 | C76: ='DF raw data'!K81 -> -5.0404692e-06 | D76: ='DF raw data'!L81 -> 5.7733387e-06 | F76: -7.024789824e-06 | G76: -5.060502611e-06 | H76: 5.781744681e-06 | J76: 6.040556163e-05 | K76: 0.00278351397 | L76: 6.236717882e-06 | M76: 0.0001490677535 | N76: 2.425365233e-07
A77: 35.44265 | B77: ='DF raw data'!J82 -> -7.0329993e-06 | C77: ='DF raw data'!K82 -> 2.9923806e-06 | D77: ='DF raw data'!L82 -> 5.3690283e-06 | F77: -7.043239347e-06 | G77: 3.004273856e-06 | H77: 5.376845605e-06 | J77: 5.688288547e-05 | K77: 0.002811963945 | L77: 7.739305451e-06 | M77: 0.0001529385671 | N77: 2.441847974e-07
A78: 35.9428 | B78: ='DF raw data'!J83 -> -5.5393325e-06 | C78: ='DF raw data'!K83 -> -3.1128461e-06 | D78: ='DF raw data'!L83 -> 6.5196191e-06 | F78: -5.547397768e-06 | G78: -3.125218148e-06 | H78: 6.529111665e-06 | J78: 5.410835447e-05 | K78: 0.002839026238 | L78: 6.176227594e-06 | M78: 0.0001560276074 | N78: 2.456681721e-07
A79: 36.44295 | B79: ='DF raw data'!J84 -> -7.1357795e-06 | C79: ='DF raw data'!K84 -> -3.3778329e-06 | D79: ='DF raw data'!L84 -> 9.3916869e-06 | F79: -7.146169195e-06 | G79: -3.391258141e-06 | H79: 9.405361196e-06 | J79: 5.053419795e-05 | K79: 0.002864300917 | L79: 4.480089835e-06 | M79: 0.0001582683243 | N79: 2.469554464e-07
A80: 36.9431 | B80: ='DF raw data'!J85 -> -4.0633026e-06 | C80: ='DF raw data'!K85 -> -6.8257245e-06 | D80: ='DF raw data'!L85 -> 5.4992097e-06 | F80: -4.069218769e-06 | G80: -6.852853432e-06 | H80: 5.507216549e-06 | J80: 4.849897818e-05 | K80: 0.002888557681 | L80: 1.052635191e-06 | M80: 0.0001587947998 | N80: 2.481324288e-07
A81: 37.44325 | B81: ='DF raw data'!J86 -> 1.3584789e-06 | C81: ='DF raw data'!K86 -> -7.0352048e-06 | D81: ='DF raw data'!L86 -> 4.0585846e-06 | F81: 1.360456845e-06 | G81: -7.063166314e-06 | H81: 4.064493899e-06 | J81: 4.917941068e-05 | K81: 0.002913154764 | L81: -2.480007441e-06 | M81: 0.0001575544241 | N81: 2.49345175e-07
A82: 37.9434 | B82: ='DF raw data'!J87 -> 1.8281274e-06 | C82: ='DF raw data'!K87 -> 2.0265013e-06 | D82: ='DF raw data'!L87 -> 6.7858318e-06 | F82: 1.830789153e-06 | G82: 2.034555656e-06 | H82: 6.795711971e-06 | J82: 5.009507987e-05 | K82: 0.002938209818 | L82: -1.462424429e-06 | M82: 0.0001568229925 | N82: 2.506013796e-07
A83: 38.44355 | B83: ='DF raw data'!J88 -> -3.3867989e-06 | C83: ='DF raw data'!K88 -> 4.3914979e-06 | D83: ='DF raw data'!L88 -> 5.5663668e-06 | F83: -3.391730079e-06 | G83: 4.408951966e-06 | H83: 5.57447143e-06 | J83: 4.839870607e-05 | K83: 0.002962416431 | L83: 7.427128964e-07 | M83: 0.0001571944603 | N83: 2.517732242e-07
A84: 38.9437 | B84: ='DF raw data'!J89 -> -4.8146471e-06 | C84: ='DF raw data'!K89 -> 2.4281171e-06 | D84: ='DF raw data'!L89 -> -6.644288e-07 | F84: -4.821657226e-06 | G84: 2.437767683e-06 | H84: -6.653962083e-07 | J84: 4.598715421e-05 | K84: 0.002985416906 | L84: 1.961962403e-06 | M84: 0.0001581757358 | N84: 2.528328759e-07
A85: 39.44385 | B85: ='DF raw data'!J90 -> -2.1560124e-06 | C85: ='DF raw data'!K90 -> -4.2020044e-08 | D85: ='DF raw data'!L90 -> -3.1074335e-06 | F85: -2.159151554e-06 | G85: -4.218705322e-08 | H85: -3.111957923e-06 | J85: 4.490725456e-05 | K85: 0.003007877269 | L85: 1.940862548e-06 | M85: 0.0001591464582 | N85: 2.538433931e-07
A86: 39.944 | B86: ='DF raw data'!J91 -> 1.5287654e-06 | C86: ='DF raw data'!K91 -> -2.3815804e-07 | D86: ='DF raw data'!L91 -> 7.3107077e-07 | F86: 1.530991282e-06 | G86: -2.391046023e-07 | H86: 7.32135209e-07 | J86: 4.567297985e-05 | K86: 0.00303072061 | L86: 1.821274382e-06 | M86: 0.0001600573686 | N86: 2.548883756e-07
A87: 40.44415 | B87: ='DF raw data'!J92 -> 6.7416981e-06 | C87: ='DF raw data'!K92 -> 4.5996444e-06 | D87: ='DF raw data'!L92 -> 6.8829368e-06 | F87: =(1-$G$1*($B$2-$G$2))*B87 -> 6.751514012e-06 | G87: 4.617925747e-06 | H87: 6.892958356e-06 | J87: 4.904974958e-05 | K87: 0.003055252842 | L87: 4.130929944e-06 | M87: 0.0001621234532 | N87: 2.561002103e-07
A88: 40.9443 | B88: ='DF raw data'!J93 -> 8.5164347e-06 | C88: ='DF raw data'!K93 -> -9.6650547e-06 | D88: ='DF raw data'!L93 -> 7.6688711e-06 | F88: 8.528834629e-06 | G88: -9.703468587e-06 | H88: 7.680036976e-06 | J88: 5.331544622e-05 | K88: 0.003081918563 | L88: -7.222598696e-07 | M88: 0.000161762215 | N88: 2.57522166e-07
A89: 41.44445 | B89: ='DF raw data'!J94 -> 4.3718896e-06 | C89: ='DF raw data'!K94 -> 3.9238357e-06 | D89: ='DF raw data'!L94 -> 3.7160905e-06 | F89: 4.378255071e-06 | G89: 3.939431036e-06 | H89: 3.721501128e-06 | J89: 5.55052305e-05 | K89: 0.003109679504 | L89: 1.248046563e-06 | M89: 0.0001623864255 | N89: 2.590638225e-07
A90: 41.9446 | B90: ='DF raw data'!J95 -> 3.7576531e-06 | C90: ='DF raw data'!K95 -> 2.9083214e-06 | D90: ='DF raw data'!L95 -> -1.518376e-07 | F90: 3.763124243e-06 | G90: 2.919880562e-06 | H90: -1.520586755e-07 | J90: 5.738735709e-05 | K90: 0.00313838179 | L90: 2.708424826e-06 | M90: 0.0001637410441 | N90: 2.607146397e-07
A91: 42.44475 | B91: ='DF raw data'!J96 -> 4.0783921e-06 | C91: ='DF raw data'!K96 -> -1.6901344e-05 | D91: ='DF raw data'!L96 -> -2.0791661e-06 | F91: 4.084330239e-06 | G91: -1.696851861e-05 | H91: -2.082193366e-06 | J91: 5.943013486e-05 | K91: 0.003168105772 | L91: -5.778379758e-06 | M91: 0.0001608509875 | N91: 2.624978398e-07
A92: 42.9449 | B92: ='DF raw data'!J97 -> 2.8020143e-06 | C92: ='DF raw data'!K97 -> -7.7898694e-06 | D92: ='DF raw data'!L97 -> -2.9196847e-06 | F92: 2.806094033e-06 | G92: -7.820830338e-06 | H92: -2.923935761e-06 | J92: 6.083360279e-05 | K92: 0.003198531699 | L92: -9.689968052e-06 | M92: 0.00015600455 | N92: 2.643957204e-07
A93: 43.44505 | B93: ='DF raw data'!J98 -> 6.2328613e-06 | C93: ='DF raw data'!K98 -> -1.8547621e-06 | D93: ='DF raw data'!L98 -> -5.4412112e-06 | F93: 6.241936346e-06 | G93: -1.862133876e-06 | H93: -5.449133604e-06 | J93: 6.395550725e-05 | K93: 0.003230519046 | L93: -1.062131431e-05 | M93: 0.0001506922996 | N93: 2.664979105e-07
A94: 43.9452 | B94: ='DF raw data'!J99 -> 9.8576265e-06 | C94: ='DF raw data'!K99 -> -4.0387479e-07 | D94: ='DF raw data'!L99 -> -3.3181452e-06 | F94: 9.871979204e-06 | G94: -4.054799956e-07 | H94: -3.322976419e-06 | J94: 6.889297765e-05 | K94: 0.003264975868 | L94: -1.082411513e-05 | M94: 0.0001452786184 | N94: 2.689303419e-07
A95: 44.44535 | B95: ='DF raw data'!J100 -> 7.5689163e-06 | C95: ='DF raw data'!K100 -> 8.4099238e-06 | D95: ='DF raw data'!L100 -> -3.0923286e-06 | F95: 7.579936642e-06 | G95: 8.443349152e-06 | H95: -3.09683103e-06 | J95: 7.268408296e-05 | K95: 0.003301328813 | L95: -6.601174051e-06 | M95: 0.0001419770412 | N95: 2.715944166e-07
A96: 44.9455 | B96: ='DF raw data'!J101 -> 3.8874855e-06 | C96: ='DF raw data'!K101 -> -1.8669039e-06 | D96: ='DF raw data'!L101 -> -2.2535417e-06 | F96: 3.893145679e-06 | G96: -1.874323934e-06 | H96: -2.256822857e-06 | J96: 7.463123977e-05 | K96: 0.003338655627 | L96: -7.538617167e-06 | M96: 0.0001382066019 | N96: 2.744085869e-07
A97: 45.44565 | B97: ='DF raw data'!J102 -> 3.8633823e-07 | C97: ='DF raw data'!K102 -> -1.7294738e-06 | D97: ='DF raw data'!L102 -> 8.7955851e-07 | F97: 3.869007385e-07 | G97: -1.736347616e-06 | H97: 8.808391472e-07 | J97: 7.482474818e-05 | K97: 0.003376079225 | L97: -8.407051427e-06 | M97: 0.0001340018151 | N97: 2.772441481e-07
A98: 45.9458 | B98: ='DF raw data'!J103 -> 1.2194447e-07 | C98: ='DF raw data'!K103 -> 8.2532806e-06 | D98: ='DF raw data'!L103 -> -1.4448481e-06 | F98: 1.221220211e-07 | G98: 8.286083372e-06 | H98: -1.446951799e-06 | J98: 7.488582751e-05 | K98: 0.003413533372 | L98: -4.262766829e-06 | M98: 0.0001318697923 | N98: 2.800580211e-07
A99: 46.44595 | B99: ='DF raw data'!J104 -> -3.3268645e-07 | C99: ='DF raw data'!K104 -> -7.4331319e-07 | D99: ='DF raw data'!L104 -> 2.6327295e-06 | F99: -3.331708415e-07 | G99: -7.46267498e-07 | H99: 2.636562754e-06 | J99: 7.471919211e-05 | K99: 0.003450904175 | L99: -4.636012518e-06 | M99: 0.0001295510906 | N99: 2.82861087e-07
A100: 46.9461 | B100: ='DF raw data'!J105 -> -4.668866e-06 | C100: ='DF raw data'!K105 -> -3.7251434e-06 | D100: ='DF raw data'!L105 -> 2.3072032e-06 | F100: -4.675663869e-06 | G100: -3.739949031e-06 | H100: 2.310562488e-06 | J100: 7.238065882e-05 | K100: 0.003487105362 | L100: -6.506548026e-06 | M100: 0.0001262968406 | N100: 2.855025266e-07
A101: 47.44625 | B101: ='DF raw data'!J106 -> -6.8938248e-06 | C101: ='DF raw data'!K106 -> -9.893216e-06 | D101: ='DF raw data'!L106 -> -2.7377275e-06 | F101: -6.903862209e-06 | G101: -9.932536717e-06 | H101: -2.741713631e-06 | J101: 6.892769214e-05 | K101: 0.003521579547 | L101: -1.147430626e-05 | M101: 0.0001205579663 | N101: 2.879446022e-07
A102: 47.9464 | B102: ='DF raw data'!J107 -> -3.6595454e-06 | C102: ='DF raw data'!K107 -> -1.1394004e-05 | D102: ='DF raw data'!L107 -> -5.9466283e-06 | F102: -3.664873698e-06 | G102: -1.143928962e-05 | H102: -5.955286591e-06 | J102: 6.709470556e-05 | K102: 0.003555136964 | L102: -1.719566697e-05 | M102: 0.0001119575535 | N102: 2.903440171e-07
A103: 48.44655 | B103: ='DF raw data'!J108 -> -1.0199298e-06 | C103: ='DF raw data'!K108 -> -2.9775515e-06 | D103: ='DF raw data'!L108 -> -6.8158288e-06 | F103: -1.021414818e-06 | G103: -2.989385817e-06 | H103: -6.825752647e-06 | J103: 6.658384494e-05 | K103: 0.003588438874 | L103: -1.869080828e-05 | M103: 0.0001026093457 | N103: 2.927361119e-07
A104: 48.9467 | B104: ='DF raw data'!J109 -> 1.3590173e-06 | C104: ='DF raw data'!K109 -> -8.6893024e-06 | D104: ='DF raw data'!L109 -> -5.3545517e-07 | F104: 1.360996029e-06 | G104: -8.723838146e-06 | H104: -5.362347927e-07 | J104: 6.72645471e-05 | K104: 0.003622081238 | L104: -2.305403593e-05 | M104: 9.107886966e-05 | N104: 2.952648742e-07
A105: 49.44685 | B105: ='DF raw data'!J110 -> 5.638663e-06 | C105: ='DF raw data'!K110 -> -6.7200504e-06 | D105: ='DF raw data'!L110 -> 4.2079309e-06 | F105: 5.646872893e-06 | G105: -6.746759328e-06 | H105: 4.214057647e-06 | J105: 7.008883058e-05 | K105: 0.003657136166 | L105: -2.642842761e-05 | M105: 7.786069159e-05 | N105: 2.980711688e-07
A106: 49.947 | B106: ='DF raw data'!J111 -> 5.8473229e-06 | C106: ='DF raw data'!K111 -> 2.6518744e-06 | D106: ='DF raw data'!L111 -> 1.3293291e-06 | F106: 5.855836602e-06 | G106: 2.66241431e-06 | H106: 1.331264603e-06 | J106: 7.301762726e-05 | K106: 0.003693655932 | L106: -2.509682109e-05 | M106: 6.530851652e-05 | N106: 3.010527752e-07
A107: 50.44715 | B107: ='DF raw data'!J112 -> 3.8500434e-06 | C107: ='DF raw data'!K112 -> 4.7537524e-06 | D107: ='DF raw data'!L112 -> 4.8608928e-07 | F107: 3.855649063e-06 | G107: 4.772646251e-06 | H107: 4.86797026e-07 | J107: 7.494603014e-05 | K107: 0.003731140189 | L107: -2.270978207e-05 | M107: 5.395021902e-05 | N107: 3.041200159e-07
A108: 50.9473 | B108: ='DF raw data'!J113 -> 3.5351834e-06 | C108: ='DF raw data'!K113 -> 7.6561937e-06 | D108: ='DF raw data'!L113 -> -3.4988363e-06 | F108: 3.540330627e-06 | G108: 7.686623342e-06 | H108: -3.503930606e-06 | J108: 7.67167265e-05 | K108: 0.00376951006 | L108: -1.886531741e-05 | M108: 4.451473052e-05 | N108: 3.072416303e-07
A109: 51.44745 | B109: ='DF raw data'!J114 -> 3.618886e-06 | C109: ='DF raw data'!K114 -> 2.8269308e-06 | D109: ='DF raw data'!L114 -> -5.9794429e-06 | F109: 3.624155098e-06 | G109: 2.838166474e-06 | H109: -5.988148969e-06 | J109: 7.852934767e-05 | K109: 0.003808786513 | L109: -1.744580845e-05 | M109: 3.578920942e-05 | N109: 3.104782083e-07
A110: 51.9476 | B110: ='DF raw data'!J115 -> 1.3108214e-06 | C110: ='DF raw data'!K115 -> 1.0575047e-05 | D110: ='DF raw data'!L115 -> -2.7409144e-06 | F110: 1.312729956e-06 | G110: 1.061707766e-05 | H110: -2.744905171e-06 | J110: 7.918590956e-05 | K110: 0.003848391346 | L110: -1.213567705e-05 | M110: 2.971955054e-05 | N110: 3.136880124e-07
A111: 52.44775 | B111: ='DF raw data'!J116 -> 2.9987125e-06 | C111: ='DF raw data'!K116 -> 7.1984914e-07 | D111: ='DF raw data'!L116 -> 5.4518869e-06 | F111: 3.003078625e-06 | G111: 7.227101898e-07 | H111: 5.459824847e-06 | J111: 8.068789933e-05 | K111: 0.003888747399 | L111: -1.177421355e-05 | M111: 2.383067764e-05 | N111: 3.170135944e-07
A112: 52.9479 | B112: ='DF raw data'!J117 -> 3.9695874e-06 | C112: ='DF raw data'!K117 -> -8.2483257e-06 | D112: ='DF raw data'!L117 -> 4.0190471e-06 | F112: 3.975367119e-06 | G112: -8.281108779e-06 | H112: 4.024898833e-06 | J112: 8.26761792e-05 | K112: 0.00393009789 | L112: -1.591601011e-05 | M112: 1.587028518e-05 | N112: 3.205589927e-07
A113: 53.44805 | B113: ='DF raw data'!J118 -> 3.3385434e-06 | C113: ='DF raw data'!K118 -> -2.8163718e-06 | D113: ='DF raw data'!L118 -> -2.3082539e-07 | F113: 3.343404319e-06 | G113: -2.827565507e-06 | H113: -2.311614718e-07 | J113: 8.434838287e-05 | K113: 0.003972284734 | L113: -1.733021699e-05 | M113: 7.202577153e-06 | N113: 3.24267598e-07
A114: 53.9482 | B114: ='DF raw data'!J119 -> 3.9680594e-06 | C114: ='DF raw data'!K119 -> 6.0051633e-08 | D114: ='DF raw data'!L119 -> -1.0729448e-06 | F114: 3.973836894e-06 | G114: 6.0290309e-08 | H114: -1.074507008e-06 | J114: 8.633589739e-05 | K114: 0.004015465633 | L114: -1.73000628e-05 | M114: -1.450049254e-06 | N114: 3.281453506e-07
A115: 54.44835 | B115: ='DF raw data'!J120 -> 2.9368377e-06 | C115: ='DF raw data'!K120 -> -5.0590156e-06 | D115: ='DF raw data'!L120 -> -2.2867491e-06 | F115: 2.941113736e-06 | G115: -5.079122724e-06 | H115: -2.290078607e-06 | J115: 8.780689543e-05 | K115: 0.004059382251 | L115: -1.984038603e-05 | M115: -1.137321833e-05 | N115: 3.321984121e-07
A116: 54.9485 | B116: ='DF raw data'!J121 -> 1.9788561e-06 | C116: ='DF raw data'!K121 -> 1.20499e-06 | D116: ='DF raw data'!L121 -> -3.1451666e-06 | F116: 1.981737314e-06 | G116: 1.209779249e-06 | H116: -3.149745963e-06 | J116: 8.879806134e-05 | K116: 0.004103794602 | L116: -1.923531494e-05 | M116: -2.099376109e-05 | N116: 3.363271969e-07
A117: 55.44865 | B117: ='DF raw data'!J122 -> 2.6676419e-06 | C117: ='DF raw data'!K122 -> -1.3319941e-06 | D117: ='DF raw data'!L122 -> 2.9368385e-07 | F117: 2.671525987e-06 | G117: -1.337288128e-06 | H117: 2.941114537e-07 | J117: 9.013422507e-05 | K117: 0.004148875234 | L117: -1.990415959e-05 | M117: -3.094882651e-05 | N117: 3.40588652e-07
A118: 55.9488 | B118: ='DF raw data'!J123 -> 1.4812389e-06 | C118: ='DF raw data'!K123 -> -8.0233676e-06 | D118: ='DF raw data'!L123 -> 5.2411169e-06 | F118: 1.483395584e-06 | G118: -8.05525658e-06 | H118: 5.248747966e-06 | J118: 9.087614537e-05 | K118: 0.004194326939 | L118: -2.393299617e-05 | M118: -4.291891455e-05 | N118: 3.450056077e-07
A119: 56.44895 | B119: ='DF raw data'!J124 -> -2.4556509e-06 | C119: ='DF raw data'!K124 -> 3.49887e-06 | D119: ='DF raw data'!L124 -> 1.4486548e-06 | F119: -2.459226328e-06 | G119: 3.512776305e-06 | H119: 1.450764041e-06 | J119: 8.964616332e-05 | K119: 0.004239163467 | L119: -2.21760811e-05 | M119: -5.401028151e-05 | N119: 3.492709935e-07
A120: 56.9491 | B120: ='DF raw data'!J125 -> -4.1902681e-06 | C120: ='DF raw data'!K125 -> 5.8010223e-06 | D120: ='DF raw data'!L125 -> -4.9921682e-06 | F120: -4.19636913e-06 | G120: 5.824078539e-06 | H120: -4.999436797e-06 | J120: 8.75473493e-05 | K120: 0.004282950274 | L120: -1.926316822e-05 | M120: -6.364475509e-05 | N120: 3.532900029e-07
A121: 57.44925 | B121: ='DF raw data'!J126 -> -2.3774198e-06 | C121: ='DF raw data'!K126 -> 8.5194188e-07 | D121: ='DF raw data'!L126 -> -2.9199466e-06 | F121: -2.380881323e-06 | G121: 8.553279342e-07 | H121: -2.924198042e-06 | J121: 8.635655151e-05 | K121: 0.004326141503 | L121: -1.883537595e-05 | M121: -7.306526838e-05 | N121: 3.571972874e-07
A122: 57.9494 | B122: ='DF raw data'!J127 -> 5.7865634e-07 | C122: ='DF raw data'!K127 -> 1.2022744e-07 | D122: ='DF raw data'!L127 -> 3.0851631e-06 | F122: 5.794988636e-07 | G122: 1.207052855e-07 | H122: 3.089655097e-06 | J122: 8.664638786e-05 | K122: 0.004369477694 | L122: -1.877500521e-05 | M122: -8.245558723e-05 | N122: 3.611285151e-07
A123: 58.44955 | B123: ='DF raw data'!J128 -> 1.7535e-07 | C123: ='DF raw data'!K128 -> 9.6973627e-06 | D123: ='DF raw data'!L128 -> -1.6992155e-06 | F123: 1.756053096e-07 | G123: 9.735904995e-06 | H123: -1.701689558e-06 | J123: 8.673421686e-05 | K123: 0.004412857813 | L123: -1.390559232e-05 | M123: -8.941046923e-05 | N123: 3.649877675e-07
A124: 58.9497 | B124: ='DF raw data'!J129 -> -3.4666307e-06 | C124: ='DF raw data'!K129 -> 1.5147863e-05 | D124: ='DF raw data'!L129 -> -2.862452e-06 | F124: -3.471678114e-06 | G124: 1.520806838e-05 | H124: -2.86661973e-06 | J124: 8.499785705e-05 | K124: 0.004455369491 | L124: -6.299276922e-06 | M124: -9.256105258e-05 | N124: 3.686210154e-07
A125: 59.44985 | B125: ='DF raw data'!J130 -> -5.6377908e-06 | C125: ='DF raw data'!K130 -> 2.5644797e-06 | D125: ='DF raw data'!L130 -> -1.7266314e-06 | F125: -5.645999423e-06 | G125: 2.574672258e-06 | H125: -1.729145375e-06 | J125: 8.217401044e-05 | K125: 0.004496468822 | L125: -5.011554592e-06 | M125: -9.506758161e-05 | N125: 3.720108739e-07
A126: 59.95 | B126: ='DF raw data'!J131 -> -3.0820236e-06 | C126: ='DF raw data'!K131 -> 5.5371033e-06 | D126: ='DF raw data'!L131 -> 9.9895692e-07 | F126: -3.086511026e-06 | G126: 5.55911059e-06 | H126: 1.000411401e-06 | J126: 8.063029195e-05 | K126: 0.004536796063 | L126: -2.231165431e-06 | M126: -9.6183499e-05 | N126: 3.752649609e-07
A127: 60.45015 | B127: ='DF raw data'!J132 -> 1.437976e-06 | C127: ='DF raw data'!K132 -> 4.5956413e-06 | D127: ='DF raw data'!L132 -> 3.6318671e-08 | F127: 1.440069693e-06 | G127: 4.613906737e-06 | H127: 3.637155098e-08 | J127: 8.13505428e-05 | K127: 0.004577483537 | L127: 7.648002332e-08 | M127: -9.614524752e-05 | N127: 3.785749119e-07
A128: 60.9503 | B128: ='DF raw data'!J133 -> 5.4428233e-06 | C128: ='DF raw data'!K133 -> -4.1577146e-06 | D128: ='DF raw data'!L133 -> -5.9015028e-06 | F128: 5.450748051e-06 | G128: -4.174239491e-06 | H128: -5.910095388e-06 | J128: 8.407673444e-05 | K128: 0.004619534515 | L128: -2.011265858e-06 | M128: -9.715118214e-05 | N128: 3.821124441e-07
A129: 61.45045 | B129: ='DF raw data'!J134 -> 8.4081539e-06 | C129: ='DF raw data'!K134 -> 7.1637987e-07 | D129: ='DF raw data'!L134 -> -2.7954986e-06 | F129: 8.420396172e-06 | G129: 7.192271312e-07 | H129: -2.799568846e-06 | J129: 8.828819559e-05 | K129: 0.004663691856 | L129: -1.651544409e-06 | M129: -9.797720208e-05 | N129: 3.860123802e-07
A130: 61.9506 | B130: ='DF raw data'!J135 -> 5.1860984e-06 | C130: ='DF raw data'!K135 -> 6.2720205e-06 | D130: ='DF raw data'!L135 -> 4.4198359e-06 | F130: 5.193649359e-06 | G130: 6.296948728e-06 | H130: 4.426271181e-06 | J130: 9.088579932e-05 | K130: 0.004709148389 | L130: 1.497874498e-06 | M130: -9.722804015e-05 | N130: 3.901448557e-07
A131: 62.45075 | B131: ='DF raw data'!J136 -> -6.7603889e-07 | C131: ='DF raw data'!K136 -> -2.8137024e-06 | D131: ='DF raw data'!L136 -> 3.6902027e-06 | F131: -6.770232026e-07 | G131: -2.824885497e-06 | H131: 3.695575635e-06 | J131: 9.054718616e-05 | K131: 0.004754435564 | L131: 8.500801627e-08 | M131: -9.718552339e-05 | N131: 3.942454856e-07
A132: 62.9509 | B132: ='DF raw data'!J137 -> -1.4887197e-06 | C132: ='DF raw data'!K137 -> 6.5873928e-07 | D132: ='DF raw data'!L137 -> -6.474339e-06 | F132: -1.490887276e-06 | G132: 6.613574479e-07 | H132: -6.483765638e-06 | J132: 8.980151889e-05 | K132: 0.004799349794 | L132: 4.157859438e-07 | M132: -9.697756805e-05 | N132: 3.982789381e-07
A133: 63.45105 | B133: ='DF raw data'!J138 -> 2.222688e-06 | C133: ='DF raw data'!K138 -> 5.6861418e-06 | D133: ='DF raw data'!L138 -> -1.2825595e-05 | F133: 2.225924234e-06 | G133: 5.708741445e-06 | H133: -1.284426907e-05 | J133: 9.091481489e-05 | K133: 0.004844820838 | L133: 3.271012978e-06 | M133: -9.534157091e-05 | N133: 4.024182811e-07
A134: 63.9512 | B134: ='DF raw data'!J139 -> 3.7406419e-06 | C134: ='DF raw data'!K139 -> -1.7711027e-06 | D134: ='DF raw data'!L139 -> -9.9508497e-06 | F134: 3.746088275e-06 | G134: -1.778141971e-06 | H134: -9.965338137e-06 | J134: 9.278842095e-05 | K134: 0.004891228967 | L134: 2.381675271e-06 | M134: -9.415037602e-05 | N134: 4.067272551e-07
A135: 64.45135 | B135: ='DF raw data'!J140 -> 7.843424e-08 | C135: ='DF raw data'!K140 -> -4.0749896e-06 | D135: ='DF raw data'!L140 -> -9.6167523e-06 | F135: 7.854844025e-08 | G135: =(1-$G$1*($B$2-$G$2))*C135*$M$2/$M$1 -> -4.0911857e-06 | H135: -9.630754291e-06 | J135: 9.282770695e-05 | K135: 0.004937656745 | L135: 3.354687432e-07 | M135: -9.398259133e-05 | N135: 4.110370955e-07
A136: =A135+$B$1 -> 64.9515 | B136: ='DF raw data'!J141 -> -8.8108993e-07 | C136: ='DF raw data'!K141 -> 6.7161996e-06 | D136: ='DF raw data'!L141 -> -1.2211228e-05 | F136: -8.823727969e-07 | G136: 6.742893223e-06 | H136: -1.222900755e-05 | J136: =F136*$B$1+J135 -> 9.238638819e-05 | K136: =J136*$B$1+K135 -> 0.004983863797 | L136: =G136*$B$1+L135 -> 3.707926789e-06 | M136: =L136*$B$1+M135 -> -9.212807174e-05 | N136: =(J136^2+L136^2)*$B$1+N135 -> 4.153128746e-07
A137: 65.45165 | B137: ='DF raw data'!J142 -> 5.3559722e-07 | C137: ='DF raw data'!K142 -> 1.2069964e-05 | D137: ='DF raw data'!L142 -> -4.6519444e-06 | F137: 5.363770496e-07 | G137: 1.211793623e-05 | H137: -4.658717631e-06 | J137: 9.265465717e-05 | K137: 0.005030205024 | L137: 9.768712594e-06 | M137: -8.724225014e-05 | N137: 4.196543332e-07
A138: 65.9518 | B138: ='DF raw data'!J143 -> -2.3916371e-06 | C138: ='DF raw data'!K143 -> 4.2267152e-06 | D138: ='DF raw data'!L143 -> 1.8129183e-06 | F138: -2.395119324e-06 | G138: 4.243514335e-06 | H138: 1.815557909e-06 | J138: 9.145673824e-05 | K138: 0.005075947111 | L138: 1.189110629e-05 | M138: -8.129491333e-05 | N138: 4.239084758e-07
A139: 66.45195 | B139: ='DF raw data'!J144 -> -4.687347e-06 | C139: ='DF raw data'!K144 -> -1.4119169e-06 | D139: ='DF raw data'!L144 -> -1.9715226e-07 | F139: -4.694171777e-06 | G139: -1.417528582e-06 | H139: -1.974393137e-07 | J139: 8.910894823e-05 | K139: 0.005120514952 | L139: 1.118212937e-05 | M139: -7.570217133e-05 | N139: 4.279424079e-07
A140: 66.9521 | B140: ='DF raw data'!J145 -> -2.1234307e-06 | C140: ='DF raw data'!K145 -> -1.2679709e-05 | D140: ='DF raw data'!L145 -> 7.3604579e-06 | F140: -2.126522415e-06 | G140: -1.273010467e-05 | H140: 7.371174727e-06 | J140: 8.804536804e-05 | K140: 0.005164550843 | L140: 4.815167518e-06 | M140: -7.329386529e-05 | N140: 4.318311606e-07
A141: 67.45225 | B141: ='DF raw data'!J146 -> -1.7090503e-06 | C141: ='DF raw data'!K146 -> -9.2192749e-06 | D141: ='DF raw data'!L146 -> 1.1287088e-05 | F141: -1.711538677e-06 | G141: -9.255917029e-06 | H141: 1.1303522e-05 | J141: 8.718934198e-05 | K141: 0.005208158592 | L141: 1.858206161e-07 | M141: -7.320092711e-05 | N141: 4.356333088e-07
A142: 67.9524 | B142: ='DF raw data'!J147 -> -3.7905709e-06 | C142: ='DF raw data'!K147 -> -2.6151633e-06 | D142: ='DF raw data'!L147 -> 6.5777831e-06 | F142: -3.796089971e-06 | G142: -2.625557301e-06 | H142: 6.587360352e-06 | J142: 8.529072758e-05 | K142: 0.005250816749 | L142: -1.127351868e-06 | M142: -7.376477215e-05 | N142: 4.392722897e-07
A143: 68.45255 | B143: ='DF raw data'!J148 -> -4.715112e-06 | C143: ='DF raw data'!K148 -> -1.4740092e-05 | D143: ='DF raw data'!L148 -> 6.500166e-07 | F143: -4.721977203e-06 | G143: -1.479867669e-05 | H143: 6.509630242e-07 | J143: 8.292903068e-05 | K143: 0.005292293704 | L143: -8.528910014e-06 | M143: -7.803050649e-05 | N143: 4.427483154e-07
A144: 68.9527 | B144: ='DF raw data'!J149 -> -4.0160526e-06 | C144: ='DF raw data'!K149 -> -5.5593669e-06 | D144: ='DF raw data'!L149 -> -8.4700905e-06 | F144: -4.021899973e-06 | G144: -5.581462677e-06 | H144: -8.482422952e-06 | J144: 8.091747741e-05 | K144: 0.00533276458 | L144: -1.132047857e-05 | M144: -8.369244385e-05 | N144: 4.460872125e-07
A145: 69.45285 | B145: ='DF raw data'!J150 -> -2.2585307e-06 | C145: ='DF raw data'!K150 -> 1.0779057e-05 | D145: ='DF raw data'!L150 -> 3.7500984e-06 | F145: -2.261819121e-06 | G145: 1.08218985e-05 | H145: 3.755558543e-06 | J145: 7.978622857e-05 | K145: 0.005372669663 | L145: -5.907906035e-06 | M145: -8.664728305e-05 | N145: 4.492885454e-07
A146: 69.953 | B146: ='DF raw data'!J151 -> 7.6141384e-07 | C146: ='DF raw data'!K151 -> 9.9440695e-06 | D146: ='DF raw data'!L151 -> 1.4461385e-05 | F146: 7.625224586e-07 | G146: 9.983592335e-06 | H146: 1.448244078e-05 | J146: 8.016760418e-05 | K146: 0.00541276549 | L146: -9.14612329e-07 | M146: -8.710472641e-05 | N146: 4.525033502e-07
A147: 70.45315 | B147: ='DF raw data'!J152 -> 1.3769744e-06 | C147: ='DF raw data'!K152 -> -2.4686601e-06 | D147: ='DF raw data'!L152 -> 5.3170488e-06 | F147: 1.378979275e-06 | G147: -2.478471822e-06 | H147: 5.324790423e-06 | J147: 8.085730067e-05 | K147: 0.005453206269 | L147: -2.154220011e-06 | M147: -8.818215955e-05 | N147: 4.557756035e-07
A148: 70.9533 | B148: ='DF raw data'!J153 -> -1.6956334e-06 | C148: ='DF raw data'!K153 -> -2.3089474e-06 | D148: ='DF raw data'!L153 -> -3.3772375e-07 | F148: -1.698102242e-06 | G148: -2.318124342e-06 | H148: -3.382154758e-07 | J148: 8.000799483e-05 | K148: 0.005493222267 | L148: -3.3136299e-06 | M148: -8.983947154e-05 | N148: 4.58982695e-07
A149: 71.45345 | B149: ='DF raw data'!J154 -> -2.0607556e-06 | C149: ='DF raw data'!K154 -> -2.3270936e-06 | D149: ='DF raw data'!L154 -> -1.7685234e-07 | F149: -2.06375606e-06 | G149: -2.336342664e-06 | H149: -1.77109837e-07 | J149: 7.897580724e-05 | K149: 0.005532722017 | L149: -4.482151684e-06 | M149: -9.20812197e-05 | N149: 4.621122675e-07
A150: 71.9536 | B150: ='DF raw data'!J155 -> -7.3917965e-07 | C150: ='DF raw data'!K155 -> -8.4169769e-06 | D150: ='DF raw data'!L155 -> 8.8165953e-06 | F150: -7.402558956e-07 | G150: -8.450430285e-06 | H150: 8.829432263e-06 | J150: 7.860556825e-05 | K150: 0.005572036592 | L150: -8.708634391e-06 | M150: -9.64368432e-05 | N150: 4.652405435e-07
A151: 72.45375 | B151: ='DF raw data'!J156 -> -2.8761722e-06 | C151: ='DF raw data'!K156 -> -1.3068782e-05 | D151: ='DF raw data'!L156 -> 8.8130737e-06 | F151: =(1-$G$1*($B$2-$G$2))*B151 -> -2.880359907e-06 | G151: -1.312072405e-05 | H151: 8.825905535e-06 | J151: 7.716495624e-05 | K151: 0.005610630645 | L151: -1.527096452e-05 | M151: -0.0001040746161 | N151: 4.683352881e-07
A152: 72.9539 | B152: ='DF raw data'!J157 -> -4.0948803e-06 | C152: ='DF raw data'!K157 -> -1.1988823e-05 | D152: ='DF raw data'!L157 -> -2.4985231e-06 | F152: -4.100842446e-06 | G152: -1.203647273e-05 | H152: -2.50216095e-06 | J152: 7.511391989e-05 | K152: 0.005648198872 | L152: -2.129100636e-05 | M152: -0.0001147233129 | N152: 4.713839064e-07
A153: 73.45405 | B153: ='DF raw data'!J158 -> -2.9562659e-06 | C153: ='DF raw data'!K158 -> -6.4439896e-06 | D153: ='DF raw data'!L158 -> -5.8609758e-06 | F153: -2.960570223e-06 | G153: -6.469601321e-06 | H153: -5.869509381e-06 | J153: 7.36331907e-05 | K153: 0.005685026513 | L153: -2.452677746e-05 | M153: -0.0001269903807 | N153: 4.743965147e-07
A154: 73.9542 | B154: ='DF raw data'!J159 -> -1.0061782e-06 | C154: ='DF raw data'!K159 -> -3.1109789e-06 | D154: ='DF raw data'!L159 -> 1.544028e-06 | F154: -1.007643195e-06 | G154: -3.123343526e-06 | H154: 1.546276105e-06 | J154: 7.312921795e-05 | K154: 0.005721602091 | L154: -2.608891773e-05 | M154: -0.0001400387529 | N154: 4.77411676e-07
A155: 74.45435 | B155: ='DF raw data'!J160 -> -5.6476566e-08 | C155: ='DF raw data'!K160 -> 2.7590165e-06 | D155: ='DF raw data'!L160 -> 8.6273185e-06 | F155: -5.655879588e-08 | G155: 2.769982247e-06 | H155: 8.639879876e-06 | J155: 7.310093007e-05 | K155: 0.005758163521 | L155: -2.47035111e-05 | M155: -0.000152394214 | N155: 4.803895738e-07
A156: 74.9545 | B156: ='DF raw data'!J161 -> -6.6855921e-07 | C156: ='DF raw data'!K161 -> -3.9213322e-07 | D156: ='DF raw data'!L161 -> 4.5575407e-06 | F156: -6.695326322e-07 | G156: -3.936917586e-07 | H156: 4.564176479e-06 | J156: 7.276606332e-05 | K156: 0.005794557468 | L156: -2.490041604e-05 | M156: -0.000164848157 | N156: 4.833479264e-07
A157: 75.45465 | B157: ='DF raw data'!J162 -> 1.5179045e-07 | C157: ='DF raw data'!K162 -> -4.3236982e-06 | D157: ='DF raw data'!L162 -> 4.0278364e-06 | F157: 1.520114569e-07 | G157: -4.340882795e-06 | H157: 4.03370093e-06 | J157: 7.284209185e-05 | K157: 0.00583098944 | L157: -2.707150857e-05 | M157: -0.000178387972 | N157: 4.863682507e-07
A158: 75.9548 | B158: ='DF raw data'!J163 -> -1.0305725e-07 | C158: ='DF raw data'!K163 -> 1.3970745e-07 | D158: ='DF raw data'!L163 -> 4.4347371e-06 | F158: -1.032073014e-07 | G158: 1.402627191e-07 | H158: 4.441194077e-06 | J158: 7.279047272e-05 | K158: 0.005867395595 | L158: -2.700135617e-05 | M158: -0.0001918927003 | N158: 4.893829179e-07
A159: 76.45495 | B159: ='DF raw data'!J164 -> -5.9721117e-07 | C159: ='DF raw data'!K164 -> 4.3696159e-06 | D159: ='DF raw data'!L164 -> 2.4043809e-06 | F159: -5.980807095e-07 | G159: 4.386982996e-06 | H159: 2.407881679e-06 | J159: 7.249134266e-05 | K159: 0.00590365214 | L159: -2.480720662e-05 | M159: -0.0002043000247 | N159: 4.923189946e-07
A160: 76.9551 | B160: ='DF raw data'!J165 -> -2.3288943e-07 | C160: ='DF raw data'!K165 -> 3.4362927e-06 | D160: ='DF raw data'!L165 -> 4.8964985e-06 | F160: -2.33228517e-07 | G160: 3.44995029e-06 | H160: 4.903627802e-06 | J160: 7.237469341e-05 | K160: 0.005939850343 | L160: -2.308171399e-05 | M160: -0.000215844344 | N160: 4.952052911e-07
A161: 77.45525 | B161: ='DF raw data'!J166 -> -2.329966e-06 | C161: ='DF raw data'!K166 -> 4.8927836e-06 | D161: ='DF raw data'!L166 -> 2.5940506e-06 | F161: -2.33335843e-06 | G161: 4.912230033e-06 | H161: 2.597827538e-06 | J161: 7.120766419e-05 | K161: 0.005975464856 | L161: -2.062486213e-05 | M161: -0.0002261598688 | N161: 4.979540737e-07
A162: 77.9554 | B162: ='DF raw data'!J167 -> -2.06857e-06 | C162: ='DF raw data'!K167 -> 4.6738296e-06 | D162: ='DF raw data'!L167 -> 5.2841033e-06 | F162: -2.071581838e-06 | G162: 4.692405797e-06 | H162: 5.291796954e-06 | J162: 7.017156254e-05 | K162: 0.006010561163 | L162: -1.827795538e-05 | M162: -0.0002353015882 | N162: 5.005839283e-07
A163: 78.45555 | B163: ='DF raw data'!J168 -> 3.8808789e-06 | C163: ='DF raw data'!K168 -> -2.1339046e-08 | D163: ='DF raw data'!L168 -> 1.1633962e-05 | F163: 3.88652946e-06 | G163: -2.142385832e-08 | H163: 1.165090105e-05 | J163: 7.211541025e-05 | K163: 0.006046629685 | L163: -1.828867052e-05 | M163: -0.0002444486667 | N163: 5.033523125e-07
A164: 78.9557 | B164: ='DF raw data'!J169 -> 9.3328408e-06 | C164: ='DF raw data'!K169 -> -5.0072454e-06 | D164: ='DF raw data'!L169 -> 9.9673753e-06 | F164: 9.346429416e-06 | G164: -5.027146762e-06 | H164: 9.981887798e-06 | J164: 7.679002692e-05 | K164: 0.006085036217 | L164: -2.080299797e-05 | M164: -0.0002548532862 | N164: 5.065179984e-07
A165: 79.45585 | B165: ='DF raw data'!J170 -> 1.0123083e-05 | C165: ='DF raw data'!K170 -> 5.5776654e-06 | D165: ='DF raw data'!L170 -> 3.124497e-06 | F165: 1.013782221e-05 | G165: 5.599833904e-06 | H165: 3.129046268e-06 | J165: 8.18604587e-05 | K165: 0.006125978726 | L165: -1.800224104e-05 | M165: -0.000263857107 | N165: 5.100316599e-07
A166: 79.956 | B166: ='DF raw data'!J171 -> 5.5914711e-06 | C166: ='DF raw data'!K171 -> 1.3899117e-05 | D166: ='DF raw data'!L171 -> -8.5923529e-07 | F166: 5.599612282e-06 | G166: 1.395435922e-05 | H166: -8.604863366e-07 | J166: 8.466110478e-05 | K166: 0.006168321977 | L166: -1.102296828e-05 | M166: -0.0002693702446 | N166: 5.136772575e-07
A167: 80.45615 | B167: ='DF raw data'!J172 -> 2.1981971e-06 | C167: ='DF raw data'!K172 -> 1.1545996e-05 | D167: ='DF raw data'!L172 -> 6.9249918e-06 | F167: 2.201397675e-06 | G167: 1.159188571e-05 | H167: 6.935074588e-06 | J167: 8.576213383e-05 | K167: 0.006211215909 | L167: -5.22528664e-06 | M167: -0.0002719836717 | N167: 5.173695885e-07
A168: 80.9563 | B168: ='DF raw data'!J173 -> 2.1371809e-06 | C168: ='DF raw data'!K173 -> 3.0119943e-06 | D168: ='DF raw data'!L173 -> 1.3464462e-05 | F168: 2.140292635e-06 | G168: 3.023965511e-06 | H168: 1.348406626e-05 | J168: 8.683260119e-05 | K168: 0.006254645234 | L168: -3.71285029e-06 | M168: -0.0002738406538 | N168: 5.211475645e-07
A169: 81.45645 | B169: ='DF raw data'!J174 -> 5.9680258e-07 | C169: ='DF raw data'!K174 -> -3.2114988e-07 | D169: ='DF raw data'!L174 -> 9.5592668e-06 | F169: 5.976715246e-07 | G169: -3.224262944e-07 | H169: 9.573185092e-06 | J169: 8.71315266e-05 | K169: 0.006298224067 | L169: -3.874111801e-06 | M169: -0.0002757782908 | N169: 5.249521613e-07
A170: 81.9566 | B170: ='DF raw data'!J175 -> 1.3172388e-06 | C170: ='DF raw data'!K175 -> 5.5148212e-06 | D170: ='DF raw data'!L175 -> 5.40138e-08 | F170: 1.3191567e-06 | G170: 5.536739929e-06 | H170: 5.409244409e-08 | J170: 8.779130282e-05 | K170: 0.006342132887 | L170: -1.104911325e-06 | M170: -0.0002763309122 | N170: 5.288075845e-07
A171: 82.45675 | B171: ='DF raw data'!J176 -> 4.2054157e-06 | C171: ='DF raw data'!K176 -> 1.3508261e-06 | D171: ='DF raw data'!L176 -> -3.1555421e-06 | F171: 4.211538785e-06 | G171: 1.356194976e-06 | H171: -3.160136569e-06 | J171: 8.989770395e-05 | K171: 0.006387095224 | L171: -4.26610408e-07 | M171: -0.0002765442814 | N171: 5.328496863e-07
A172: 82.9569 | B172: ='DF raw data'!J177 -> 3.399676e-06 | C172: ='DF raw data'!K177 -> -2.3157522e-06 | D172: ='DF raw data'!L177 -> -4.917968e-06 | F172: 3.404625928e-06 | G172: -2.324956187e-06 | H172: -4.925128561e-06 | J172: 9.160052761e-05 | K172: 0.006432909228 | L172: -1.589437245e-06 | M172: -0.0002773392384 | N172: 5.370475368e-07
A173: 83.45705 | B173: ='DF raw data'!J178 -> 7.0260955e-07 | C173: ='DF raw data'!K178 -> 6.7797109e-06 | D173: ='DF raw data'!L178 -> -8.2390789e-06 | F173: 7.036325495e-07 | G173: 6.80665695e-06 | H173: -8.251074999e-06 | J173: 9.195244943e-05 | K173: 0.006478899245 | L173: 1.814912228e-06 | M173: -0.0002764315101 | N173: 5.41278079e-07
A174: 83.9572 | B174: ='DF raw data'!J179 -> -1.2008246e-06 | C174: ='DF raw data'!K179 -> 8.0177815e-06 | D174: ='DF raw data'!L179 -> -5.1816487e-06 | F174: -1.202573001e-06 | G174: 8.049648278e-06 | H174: -5.189193181e-06 | J174: 9.135098254e-05 | K174: 0.006524588439 | L174: 5.840943814e-06 | M174: -0.000273510162 | N174: 5.454688952e-07
A175: 84.45735 | B175: ='DF raw data'!J180 -> -3.3522235e-06 | C175: ='DF raw data'!K180 -> -1.1849575e-06 | D175: ='DF raw data'!L180 -> 1.6225065e-06 | F175: -3.357104337e-06 | G175: -1.189667129e-06 | H175: 1.624868869e-06 | J175: 8.967192681e-05 | K175: 0.006569437853 | L175: 5.2459318e-06 | M175: -0.0002708864092 | N175: 5.495043926e-07
A176: 84.9575 | B176: ='DF raw data'!J181 -> -4.8801162e-06 | C176: ='DF raw data'!K181 -> 7.8501971e-06 | D176: ='DF raw data'!L181 -> -2.0512118e-06 | F176: -4.887221649e-06 | G176: 7.881397811e-06 | H176: -2.054198364e-06 | J176: 8.72275829e-05 | K176: 0.006613064729 | L176: 9.187812915e-06 | M176: -0.0002662911246 | N176: 5.533520801e-07
A177: 85.45765 | B177: ='DF raw data'!J182 -> -2.5936904e-06 | C177: ='DF raw data'!K182 -> 1.0599731e-05 | D177: ='DF raw data'!L182 -> -2.9226824e-06 | F177: -2.597466813e-06 | G177: 1.064185977e-05 | H177: -2.926937826e-06 | J177: 8.592845987e-05 | K177: 0.006656041848 | L177: 1.451033908e-05 | M177: -0.0002590337785 | N177: 5.571503443e-07
A178: 85.9578 | B178: ='DF raw data'!J183 -> 8.9930779e-07 | C178: ='DF raw data'!K183 -> 1.4650395e-06 | D178: ='DF raw data'!L183 -> 1.2163655e-07 | F178: 9.006171821e-07 | G178: 1.470862319e-06 | H178: 1.218136528e-07 | J178: 8.637890355e-05 | K178: 0.006699244257 | L178: 1.524599087e-05 | M178: -0.0002514084962 | N178: 5.60998376e-07
A179: 86.45795 | B179: ='DF raw data'!J184 -> -1.4712045e-07 | C179: ='DF raw data'!K184 -> 2.0194295e-06 | D179: ='DF raw data'!L184 -> -6.0602351e-06 | F179: -1.473346574e-07 | G179: 2.027455749e-06 | H179: -6.069058802e-06 | J179: 8.630521413e-05 | K179: 0.00674240981 | L179: 1.626002286e-05 | M179: -0.0002432760458 | N179: 5.648560221e-07
A180: 86.9581 | B180: ='DF raw data'!J185 -> -4.3834448e-06 | C180: ='DF raw data'!K185 -> 8.4603589e-06 | D180: ='DF raw data'!L185 -> -4.9687542e-06 | F180: -4.389827096e-06 | G180: 8.493984707e-06 | H180: -4.975988706e-06 | J180: 8.41096421e-05 | K180: 0.006784477247 | L180: 2.050828931e-05 | M180: -0.0002330188249 | N180: 5.686046573e-07
A181: 87.45825 | B181: ='DF raw data'!J186 -> -4.9021478e-06 | C181: ='DF raw data'!K186 -> 7.531306e-06 | D181: ='DF raw data'!L186 -> -6.0565098e-06 | F181: -4.909285327e-06 | G181: 7.561239274e-06 | H181: -6.065328078e-06 | J181: 8.165426305e-05 | K181: 0.006825316627 | L181: 2.429004313e-05 | M181: -0.0002208701598 | N181: 5.722344583e-07
A182: 87.9584 | B182: ='DF raw data'!J187 -> 1.1036312e-06 | C182: ='DF raw data'!K187 -> 1.3342727e-05 | D182: ='DF raw data'!L187 -> -1.7294253e-06 | F182: 1.105238087e-06 | G182: 1.339575784e-05 | H182: -1.731943343e-06 | J182: 8.220704788e-05 | K182: 0.006866432482 | L182: 3.098993142e-05 | M182: -0.0002053705456 | N182: 5.760948034e-07
A183: 88.45855 | B183: ='DF raw data'!J188 -> 7.8635485e-06 | C183: ='DF raw data'!K188 -> 4.1956268e-06 | D183: ='DF raw data'!L188 -> 7.0030628e-06 | F183: 7.874997827e-06 | G183: 4.212302374e-06 | H183: 7.013259259e-06 | J183: 8.614572804e-05 | K183: 0.006909518268 | L183: 3.309671445e-05 | M183: -0.0001888172238 | N183: 5.803543203e-07
A184: 88.9587 | B184: ='DF raw data'!J189 -> 6.0822053e-06 | C184: ='DF raw data'!K189 -> 1.0877259e-05 | D184: ='DF raw data'!L189 -> 5.004852e-06 | F184: 6.091060991e-06 | G184: 1.092049081e-05 | H184: 5.012139065e-06 | J184: 8.919217219e-05 | K184: 0.006954127733 | L184: 3.855859793e-05 | M184: -0.0001695321411 | N184: 5.850767411e-07
A185: 89.45885 | B185: ='DF raw data'!J190 -> 6.9332543e-07 | C185: ='DF raw data'!K190 -> 1.6458251e-05 | D185: ='DF raw data'!L190 -> 4.9425553e-06 | F185: 6.943349118e-07 | G185: 1.652366453e-05 | H185: 4.949751661e-06 | J185: 8.95394438e-05 | K185: 0.006998910885 | L185: 4.682290875e-05 | M185: -0.0001461136633 | N185: 5.90183121e-07
A186: 89.959 | B186: ='DF raw data'!J191 -> 4.4659245e-08 | C186: ='DF raw data'!K191 -> -2.6936182e-06 | D186: ='DF raw data'!L191 -> -2.7225499e-06 | F186: 4.472426886e-08 | G186: -2.704324021e-06 | H186: -2.726513933e-06 | J186: 8.956181264e-05 | K186: 0.007043705226 | L186: 4.547034109e-05 | M186: -0.0001233716722 | N186: 5.952290694e-07
A187: 90.45915 | B187: ='DF raw data'!J192 -> 4.1213057e-06 | C187: ='DF raw data'!K192 -> -5.650098e-06 | D187: ='DF raw data'!L192 -> -1.095515e-05 | F187: 4.127306321e-06 | G187: -5.672554389e-06 | H187: -1.09711007e-05 | J187: 9.16260849e-05 | K187: 0.007089532012 | L187: 4.263321301e-05 | M187: -0.0001020486707 | N187: 6.003370665e-07
A188: 90.9593 | B188: ='DF raw data'!J193 -> 7.9784213e-06 | C188: ='DF raw data'!K193 -> 4.5536117e-06 | D188: ='DF raw data'!L193 -> -9.466271e-06 | F188: 7.990037881e-06 | G188: 4.571710089e-06 | H188: -9.480053891e-06 | J188: 9.562230235e-05 | K188: 0.007137357507 | L188: 4.491975381e-05 | M188: -7.958205583e-05 | N188: 6.059194452e-07
A189: 91.45945 | B189: ='DF raw data'!J194 -> 7.029244e-06 | C189: ='DF raw data'!K194 -> 7.7308641e-07 | D189: ='DF raw data'!L194 -> -2.5935035e-06 | F189: 7.039478579e-06 | G189: 7.761590521e-07 | H189: -2.597279641e-06 | J189: 9.914309756e-05 | K189: 0.007186943927 | L189: 4.530794976e-05 | M189: -5.692128476e-05 | N189: 6.118623096e-07
A190: 91.9596 | B190: ='DF raw data'!J195 -> 5.4754632e-06 | C190: ='DF raw data'!K195 -> 2.7491428e-06 | D190: ='DF raw data'!L195 -> 1.0667688e-06 | F190: 5.483435474e-06 | G190: 2.760069304e-06 | H190: 1.068322015e-06 | J190: 0.0001018856378 | K190: 0.007237902029 | L190: 4.668839842e-05 | M190: -3.357008229e-05 | N190: 6.181444385e-07
A191: 92.45975 | B191: ='DF raw data'!J196 -> 6.8066433e-06 | C191: ='DF raw data'!K196 -> 8.2632878e-06 | D191: ='DF raw data'!L196 -> 3.7616089e-06 | F191: 6.816553773e-06 | G191: 8.296130346e-06 | H191: 3.767085803e-06 | J191: 0.0001052949372 | K191: 0.007290565292 | L191: 5.083770802e-05 | M191: -8.143602623e-06 | N191: 6.249822374e-07
A192: 92.9599 | B192: ='DF raw data'!J197 -> 7.2545367e-06 | C192: ='DF raw data'!K197 -> 2.0766699e-06 | D192: ='DF raw data'!L197 -> 6.9189382e-06 | F192: 7.265099305e-06 | G192: 2.084923652e-06 | H192: 6.929012174e-06 | J192: 0.0001089285766 | K192: 0.007345045919 | L192: 5.188048258e-05 | M192: 1.780442074e-05 | N192: 6.322629306e-07
A193: 93.46005 | B193: ='DF raw data'!J198 -> 8.0712043e-06 | C193: ='DF raw data'!K198 -> -1.9236099e-06 | D193: ='DF raw data'!L198 -> 9.3215467e-06 | F193: 8.082955973e-06 | G193: -1.931255313e-06 | H193: 9.335118872e-06 | J193: 0.000112971267 | K193: 0.007401548499 | L193: 5.091456524e-05 | M193: 4.326934054e-05 | N193: 6.399426339e-07
A194: 93.9602 | B194: ='DF raw data'!J199 -> 5.6171698e-06 | C194: ='DF raw data'!K199 -> -5.4384823e-06 | D194: ='DF raw data'!L199 -> 6.644198e-06 | F194: 5.625348399e-06 | G194: -5.460097619e-06 | H194: 6.653871952e-06 | J194: 0.000115784785 | K194: 0.007459458259 | L194: 4.818369741e-05 | M194: 6.73684168e-05 | N194: 6.478088856e-07
A195: 94.46035 | B195: ='DF raw data'!J200 -> -1.9384759e-06 | C195: ='DF raw data'!K200 -> -6.4251758e-06 | D195: ='DF raw data'!L200 -> 4.5852184e-06 | F195: -1.941298321e-06 | G195: -6.450712745e-06 | H195: 4.591894478e-06 | J195: 0.0001148138447 | K195: 0.007516882403 | L195: 4.495737343e-05 | M195: 8.985384713e-05 | N195: 6.554128583e-07
A196: 94.9605 | B196: ='DF raw data'!J201 -> -4.9771775e-06 | C196: ='DF raw data'!K201 -> 6.4941764e-06 | D196: ='DF raw data'!L201 -> 1.3492943e-06 | F196: -4.98442427e-06 | G196: 6.519987589e-06 | H196: 1.351258873e-06 | J196: 0.0001123208849 | K196: 0.007573059694 | L196: 4.821834523e-05 | M196: 0.0001139702525 | N196: 6.628855945e-07
A197: 95.46065 | B197: ='DF raw data'!J202 -> -1.9243896e-06 | C197: ='DF raw data'!K202 -> 7.1898658e-06 | D197: ='DF raw data'!L202 -> -4.0668119e-06 | F197: -1.927191511e-06 | G197: 7.218442016e-06 | H197: -4.072733178e-06 | J197: 0.000111357 | K197: 0.007628754897 | L197: 5.1828649e-05 | M197: 0.0001398923513 | N197: 6.704311526e-07
A198: 95.9608 | B198: ='DF raw data'!J203 -> 4.6597847e-06 | C198: ='DF raw data'!K203 -> 6.5032496e-06 | D198: ='DF raw data'!L203 -> 4.3339069e-06 | F198: 4.666569347e-06 | G198: 6.529096851e-06 | H198: 4.340217068e-06 | J198: 0.0001136909847 | K198: 0.007685617443 | L198: 5.509417679e-05 | M198: 0.0001674477038 | N198: 6.784140509e-07
A199: 96.46095 | B199: ='DF raw data'!J204 -> 9.5275454e-06 | C199: ='DF raw data'!K204 -> 4.8958527e-06 | D199: ='DF raw data'!L204 -> 1.2375048e-05 | F199: 9.541417506e-06 | G199: =(1-$G$1*($B$2-$G$2))*C199*$M$2/$M$1 -> 4.915311331e-06 | H199: 1.239306607e-05 | J199: 0.0001184631247 | K199: 0.007744866775 | L199: 5.755256975e-05 | M199: 0.0001962326216 | N199: 6.870895579e-07
A200: =A199+$B$1 -> 96.9611 | B200: ='DF raw data'!J205 -> 7.1309037e-06 | C200: ='DF raw data'!K205 -> -1.8136715e-08 | D200: ='DF raw data'!L205 -> 1.2716465e-05 | F200: 7.141286296e-06 | G200: -1.820879961e-08 | H200: 1.273498017e-05 | J200: =F200*$B$1+J199 -> 0.000122034839 | K200: =J200*$B$1+K199 -> 0.0078059025 | L200: =G200*$B$1+L199 -> 5.754346262e-05 | M200: =L200*$B$1+M199 -> 0.0002250129844 | N200: =(J200^2+L200^2)*$B$1+N199 -> 6.961941645e-07
A201: 97.46125 | B201: ='DF raw data'!J206 -> 4.8910001e-06 | C201: ='DF raw data'!K206 -> 4.3477339e-06 | D201: ='DF raw data'!L206 -> 1.338514e-05 | F201: 4.898121396e-06 | G201: 4.365014025e-06 | H201: 1.340462876e-05 | J201: 0.0001244846344 | K201: 0.00786816349 | L201: 5.972662439e-05 | M201: 0.0002548852556 | N201: 7.05728871e-07
... 1002 more rows

Sheet 30 mm
A1: dz | B1: ='DF raw data'!N7 -> 0.50015 | C1: mm | F1: T_coeff | G1: -0.0008 | H1: /degC | L1: Hallref | M1: ='[1]PI vs x'!B50 -> 0.505 | N1: T | P1: IBy total | Q1: =L1203*1000 -> 2.302620412 | R1: muTm | X1: DF ref | Y1: 22
A2: Tref | B2: ='DF raw data'!N8 -> 21.81 | C2: degC | F2: Tcorr | G2: 20 | H2: degC | L2: NMRref | M2: ='[1]PI vs x'!B51 -> 0.50627 | N2: T | P2: JBy total | Q2: =M1203 -> 0.5635904021 | R2: muTm^2
A3: Encoder | B3: ='DF raw data'!N9 -> 3052940 | P3: PI total | Q3: =N1203 -> 66.66078067 | R3: T^2mm^3
A5: z [mm] | B5: Bx | C5: By | D5: Bz | F5: Bx_corr | G5: By_corr | H5: Bz_corr | J5: Ix | K5: Jx | L5: Iy | M5: Jy | N5: PI
A6: ='[1]PI vs x'!B53 -> -0.068 | B6: ='DF raw data'!M11 -> -2.1341941e-07 | C6: ='DF raw data'!N11 -> 2.4885767e-06 | D6: ='DF raw data'!O11 -> -3.7641037e-06 | F6: =(1-$G$1*($B$2-$G$2))*B6 -> -2.137284413e-07 | G6: =(1-$G$1*($B$2-$G$2))*C6*$M$2/$M$1 -> 2.498447622e-06 | H6: =(1-$G$1*($B$2-$G$2))*D6 -> -3.769554122e-06 | J6: =F6*$B$1 -> -1.068962799e-07 | K6: =J6*$B$1 -> -5.34641744e-08 | L6: =G6*$B$1 -> 1.249598578e-06 | M6: =L6*$B$1 -> 6.249867289e-07 | N6: =(J6^2+L6)^2*$B$1 -> 7.80982542e-13
A7: =A6+$B$1 -> 0.43215 | B7: ='DF raw data'!M12 -> 9.6469011e-09 | C7: ='DF raw data'!N12 -> -3.6409338e-06 | D7: ='DF raw data'!O12 -> -4.2532806e-06 | F7: =(1-$G$1*($B$2-$G$2))*B7 -> 9.660869813e-09 | G7: =(1-$G$1*($B$2-$G$2))*C7*$M$2/$M$1 -> -3.655375538e-06 | H7: -4.25943935e-06 | J7: =F7*$B$1+J6 -> -1.020643959e-07 | K7: =J7*$B$1+K6 -> -1.04511682e-07 | L7: =G7*$B$1+L6 -> -5.786374974e-07 | M7: =L7*$B$1+M6 -> 3.355811846e-07 | N7: =(J7^2+L7^2)*$B$1+N6 -> 9.53653575e-13
A8: =A7+$B$1 -> 0.9323 | B8: ='DF raw data'!M13 -> -3.3524805e-07 | C8: ='DF raw data'!N13 -> 6.5079371e-06 | D8: ='DF raw data'!O13 -> 4.2779284e-08 | F8: -3.357334892e-07 | G8: 6.533750787e-06 | H8: 4.28412284e-08 | J8: =F8*$B$1+J7 -> -2.699815005e-07 | K8: =J8*$B$1+K7 -> -2.395429295e-07 | L8: =G8*$B$1+L7 -> 2.689217959e-06 | M8: =L8*$B$1+M7 -> 1.680593547e-06 | N8: =(J8^2+L8^2)*$B$1+N7 -> 4.607140912e-12
A9: 1.43245 | B9: ='DF raw data'!M14 -> -3.4686047e-07 | C9: ='DF raw data'!N14 -> 6.9393072e-06 | D9: ='DF raw data'!O14 -> 9.9437273e-07 | F9: -3.47362724e-07 | G9: 6.966831913e-06 | H9: 9.958125817e-07 | J9: -4.437149669e-07 | K9: -4.614669702e-07 | L9: 6.17367894e-06 | M9: 4.768359069e-06 | N9: 2.376848491e-11
A10: 1.9326 | B10: ='DF raw data'!M15 -> -6.3578334e-08 | C10: ='DF raw data'!N15 -> -1.1669272e-06 | D10: ='DF raw data'!O15 -> -1.3742862e-06 | F10: -6.367039543e-08 | G10: -1.171555809e-06 | H10: -1.376276166e-06 | J10: -4.755597152e-07 | K10: -6.993181617e-07 | L10: 5.587725303e-06 | M10: 7.563059879e-06 | N10: 3.949761778e-11
A11: 2.43275 | B11: ='DF raw data'!M16 -> -1.7884406e-07 | C11: ='DF raw data'!N16 -> 1.4683928e-06 | D11: ='DF raw data'!O16 -> -4.774603e-06 | F11: -1.791030262e-07 | G11: 1.47421717e-06 | H11: -4.781516625e-06 | J11: -5.651380937e-07 | K11: -9.819719793e-07 | L11: 6.32505502e-06 | M11: 1.072653615e-05 | N11: 5.966651767e-11
A12: 2.9329 | B12: ='DF raw data'!M17 -> -5.9002298e-07 | C12: ='DF raw data'!N17 -> 1.2935791e-05 | D12: ='DF raw data'!O17 -> -2.9395048e-06 | F12: -5.908773333e-07 | G12: 1.298710072e-05 | H12: -2.943761203e-06 | J12: -8.606653919e-07 | K12: -1.412433775e-06 | L12: 1.282055345e-05 | M12: 1.713873595e-05 | N12: 1.422449516e-10
A13: 3.43305 | B13: ='DF raw data'!M18 -> -3.36776e-07 | C13: ='DF raw data'!N18 -> 6.5362237e-06 | D13: ='DF raw data'!O18 -> 7.6622774e-07 | F13: -3.372636516e-07 | G13: 6.562149585e-06 | H13: 7.673372378e-07 | J13: -1.029347807e-06 | K13: -1.927262081e-06 | L13: 1.610261256e-05 | M13: 2.519245763e-05 | N13: 2.724608488e-10
A14: 3.9332 | B14: ='DF raw data'!M19 -> 1.4128891e-08 | C14: ='DF raw data'!N19 -> -2.7066772e-06 | D14: ='DF raw data'!O19 -> 2.7302997e-06 | F14: 1.414934963e-08 | G14: -2.717413216e-06 | H14: 2.734253174e-06 | J14: -1.02227101e-06 | K14: -2.438550927e-06 | L14: 1.474349834e-05 | M14: 3.256641832e-05 | N14: 3.817015018e-10
A15: 4.43335 | B15: ='DF raw data'!M20 -> -6.5237252e-08 | C15: ='DF raw data'!N20 -> -6.52165e-07 | D15: ='DF raw data'!O20 -> 1.4653746e-06 | F15: -6.533171554e-08 | G15: -6.547518079e-07 | H15: 1.467496462e-06 | J15: -1.054946668e-06 | K15: -2.966182502e-06 | L15: 1.441602423e-05 | M15: 3.977659284e-05 | N15: 4.862001755e-10
A16: 4.9335 | B16: ='DF raw data'!M21 -> -1.0288306e-07 | C16: ='DF raw data'!N21 -> -3.6422989e-07 | D16: ='DF raw data'!O21 -> -3.3834838e-06 | F16: -1.030320347e-07 | G16: -3.656746053e-07 | H16: -3.388383085e-06 | J16: -1.10647814e-06 | K16: -3.519587544e-06 | L16: 1.423313207e-05 | M16: 4.689529384e-05 | N16: 5.881339177e-10
A17: 5.43365 | B17: ='DF raw data'!M22 -> -3.2637138e-07 | C17: ='DF raw data'!N22 -> 5.3140307e-06 | D17: ='DF raw data'!O22 -> -5.7407628e-06 | F17: -3.268439658e-07 | G17: 5.335108766e-06 | H17: -5.749075425e-06 | J17: -1.269949149e-06 | K17: -4.154752611e-06 | L17: 1.690148672e-05 | M17: 5.534857243e-05 | N17: 7.318135207e-10
A18: 5.9338 | B18: ='DF raw data'!M23 -> -4.1474516e-07 | C18: ='DF raw data'!N23 -> 7.8646244e-06 | D18: ='DF raw data'!O23 -> -4.4210642e-06 | F18: -4.15345711e-07 | G18: 7.895819378e-06 | H18: -4.427465901e-06 | J18: -1.477684307e-06 | K18: -4.893816417e-06 | L18: 2.085058078e-05 | M18: 6.577699041e-05 | N18: 9.503441952e-10
A19: 6.43395 | B19: ='DF raw data'!M24 -> -9.9812603e-08 | C19: ='DF raw data'!N24 -> -2.2373115e-07 | D19: ='DF raw data'!O24 -> -1.1572444e-06 | F19: -9.995713165e-08 | G19: -2.24618578e-07 | H19: -1.15892009e-06 | J19: -1.527677866e-06 | K19: -5.657884502e-06 | L19: 2.07382378e-05 | M19: 7.614922004e-05 | N19: 1.16661321e-09
A20: 6.9341 | B20: ='DF raw data'!M25 -> -1.1897747e-07 | C20: ='DF raw data'!N25 -> 1.7441562e-07 | D20: ='DF raw data'!O25 -> -1.9567703e-06 | F20: -1.191497494e-07 | G20: 1.751074383e-07 | H20: -1.959603703e-06 | J20: -1.587270613e-06 | K20: -6.451757899e-06 | L20: 2.082581779e-05 | M20: 8.656525281e-05 | N20: 1.384795702e-09
A21: 7.43425 | B21: ='DF raw data'!M26 -> -1.3972851e-07 | C21: ='DF raw data'!N26 -> 1.3091903e-07 | D21: ='DF raw data'!O26 -> -5.6793392e-06 | F21: -1.399308369e-07 | G21: 1.314383194e-07 | H21: -5.687562883e-06 | J21: -1.657257021e-06 | K21: -7.280634998e-06 | L21: 2.089155666e-05 | M21: 9.701416487e-05 | N21: 1.604463403e-09
A22: 7.9344 | B22: ='DF raw data'!M27 -> -1.4761565e-07 | C22: ='DF raw data'!N27 -> -3.7543468e-06 | D22: ='DF raw data'!O27 -> -5.3462313e-06 | F22: -1.478293975e-07 | G22: -3.76923839e-06 | H22: -5.353972643e-06 | J22: -1.731193894e-06 | K22: -8.146491624e-06 | L22: 1.900637208e-05 | M22: 0.0001065202019 | N22: 1.786637645e-09
A23: 8.43455 | B23: ='DF raw data'!M28 -> 1.0183329e-07 | C23: ='DF raw data'!N28 -> -4.6811319e-06 | D23: ='DF raw data'!O28 -> -1.107404e-06 | F23: =(1-$G$1*($B$2-$G$2))*B23 -> 1.019807446e-07 | G23: -4.699699577e-06 | H23: -1.109007521e-06 | J23: -1.680188225e-06 | K23: -8.986837765e-06 | L23: 1.665581734e-05 | M23: 0.0001148506089 | N23: 1.926799323e-09
A24: 8.9347 | B24: ='DF raw data'!M29 -> 7.2541195e-07 | C24: ='DF raw data'!N29 -> 2.1884989e-06 | D24: ='DF raw data'!O29 -> 2.0355476e-06 | F24: 7.264623465e-07 | G24: 2.197179566e-06 | H24: 2.038495073e-06 | J24: -1.316848082e-06 | K24: -9.645459333e-06 | L24: 1.77547367e-05 | M24: 0.0001237306405 | N24: 2.085329249e-09
A25: 9.43485 | B25: ='DF raw data'!M30 -> 2.0522464e-07 | C25: ='DF raw data'!N30 -> -8.163078e-08 | D25: ='DF raw data'!O30 -> 2.8989564e-06 | F25: 2.055218053e-07 | G25: -8.195456792e-08 | H25: 2.903154089e-06 | J25: -1.214056351e-06 | K25: -1.025266962e-05 | L25: 1.771374712e-05 | M25: 0.0001325901711 | N25: 2.243001922e-09
A26: 9.935 | B26: ='DF raw data'!M31 -> -1.3249384e-06 | C26: ='DF raw data'!N31 -> 9.0798794e-06 | D26: ='DF raw data'!O31 -> 2.0884584e-06 | F26: -1.326856911e-06 | G26: 9.115894678e-06 | H26: 2.091482488e-06 | J26: -1.877683835e-06 | K26: -1.119179319e-05 | L26: 2.227306184e-05 | M26: 0.000143730043 | N26: 2.492884354e-09
A27: 10.43515 | B27: ='DF raw data'!M32 -> -4.8289178e-07 | C27: ='DF raw data'!N32 -> 4.7652447e-06 | D27: ='DF raw data'!O32 -> -1.4417634e-06 | F27: -4.835910073e-07 | G27: 4.78414601e-06 | H27: -1.443851073e-06 | J27: -2.119551878e-06 | K27: -1.225188706e-05 | L27: 2.466585247e-05 | M27: 0.0001560666691 | N27: 2.799424678e-09
A28: 10.9353 | B28: ='DF raw data'!M33 -> 8.8487184e-07 | C28: ='DF raw data'!N33 -> 7.7657296e-07 | D28: ='DF raw data'!O33 -> 2.0890394e-07 | F28: 8.861531344e-07 | G28: 7.796532312e-07 | H28: 2.092064329e-07 | J28: -1.676342387e-06 | K28: -1.30903097e-05 | L28: 2.505579603e-05 | M28: 0.0001685983255 | N28: 3.114820788e-09
A29: 11.43545 | B29: ='DF raw data'!M34 -> 7.4795828e-08 | C29: ='DF raw data'!N34 -> 5.6206463e-06 | D29: ='DF raw data'!O34 -> 1.4187939e-06 | F29: 7.490413236e-08 | G29: 5.642940554e-06 | H29: 1.420848314e-06 | J29: -1.638879086e-06 | K29: -1.390999508e-05 | L29: 2.787811275e-05 | M29: 0.0001825415636 | N29: 3.504875317e-09
A30: 11.9356 | B30: ='DF raw data'!M35 -> -1.9379668e-06 | C30: ='DF raw data'!N35 -> 3.7896252e-06 | D30: ='DF raw data'!O35 -> 3.4374199e-07 | F30: -1.940772976e-06 | G30: 3.804656722e-06 | H30: 3.442397284e-07 | J30: -2.60955669e-06 | K30: -1.521516486e-05 | L30: 2.978101181e-05 | M30: 0.0001974365366 | N30: 3.9518686e-09
A31: 12.43575 | B31: ='DF raw data'!M36 -> -2.2848553e-06 | C31: ='DF raw data'!N36 -> -4.9832397e-07 | D31: ='DF raw data'!O36 -> -5.867219e-06 | F31: -2.28816377e-06 | G31: -5.003005685e-07 | H31: -5.875714733e-06 | J31: -3.753981799e-06 | K31: -1.709271885e-05 | L31: 2.953078648e-05 | M31: 0.0002122063595 | N31: 4.395081388e-09
A32: 12.9359 | B32: ='DF raw data'!M37 -> -2.9679077e-06 | C32: ='DF raw data'!N37 -> 6.2737722e-06 | D32: ='DF raw data'!O37 -> -1.1189873e-05 | F32: -2.97220523e-06 | G32: 6.298657073e-06 | H32: -1.120607594e-05 | J32: -5.240530245e-06 | K32: -1.971377006e-05 | L32: 3.268105982e-05 | M32: 0.0002285517915 | N32: 4.94300313e-09
A33: 13.43605 | B33: ='DF raw data'!M38 -> -4.1847534e-06 | C33: ='DF raw data'!N38 -> 6.0693619e-06 | D33: ='DF raw data'!O38 -> -9.6448239e-06 | F33: -4.190812923e-06 | G33: 6.093435981e-06 | H33: -9.658789605e-06 | J33: -7.336565329e-06 | K33: -2.338315321e-05 | L33: 3.572869182e-05 | M33: 0.0002464214968 | N33: 5.608384989e-09
A34: 13.9362 | B34: ='DF raw data'!M39 -> -3.0151723e-06 | C34: ='DF raw data'!N39 -> 4.8678503e-06 | D34: ='DF raw data'!O39 -> -5.4999723e-06 | F34: -3.019538269e-06 | G34: 4.887158594e-06 | H34: -5.50793626e-06 | J34: -8.846787394e-06 | K34: -2.780787392e-05 | L34: 3.817300419e-05 | M34: 0.0002655137248 | N34: 6.376337254e-09
A35: 14.43635 | B35: ='DF raw data'!M40 -> 4.375338e-06 | C35: ='DF raw data'!N40 -> -8.5578586e-06 | D35: ='DF raw data'!O40 -> -2.0108744e-06 | F35: 4.381673489e-06 | G35: -8.591803286e-06 | H35: -2.013786146e-06 | J35: -6.655293398e-06 | K35: -3.113651891e-05 | L35: 3.387581378e-05 | M35: 0.0002824567131 | N35: 6.972447879e-09
A36: 14.9365 | B36: ='DF raw data'!M41 -> 1.1763898e-05 | C36: ='DF raw data'!N41 -> -8.8846218e-06 | D36: ='DF raw data'!O41 -> 1.4694088e-08 | F36: 1.178093212e-05 | G36: -8.91986259e-06 | H36: 1.471536504e-08 | J36: -7.630601965e-07 | K36: -3.151816347e-05 | L36: 2.941454451e-05 | M36: 0.0002971683975 | N36: 7.405476593e-09
A37: 15.43665 | B37: ='DF raw data'!M42 -> 1.4658827e-05 | C37: ='DF raw data'!N42 -> -1.8686205e-06 | D37: ='DF raw data'!O42 -> 2.4147123e-06 | F37: 1.468005298e-05 | G37: -1.87603237e-06 | H37: 2.418208803e-06 | J37: 6.579168302e-06 | K37: -2.822759245e-05 | L37: 2.847624692e-05 | M37: 0.0003114107924 | N37: 7.832695767e-09
A38: 15.9368 | B38: ='DF raw data'!M43 -> 1.4623248e-05 | C38: ='DF raw data'!N43 -> -1.2460069e-05 | D38: ='DF raw data'!O43 -> 4.9345076e-06 | F38: 1.464442246e-05 | G38: -1.250949178e-05 | H38: 4.941652767e-06 | J38: 1.39035762e-05 | K38: -2.127371881e-05 | L38: 2.22196246e-05 | M38: 0.0003225239376 | N38: 8.176309395e-09
A39: 16.43695 | B39: ='DF raw data'!M44 -> 1.1717507e-05 | C39: ='DF raw data'!N44 -> 7.0158694e-07 | D39: ='DF raw data'!O44 -> 4.3148289e-06 | F39: 1.173447395e-05 | G39: 7.043697797e-07 | H39: 4.321076772e-06 | J39: 1.977257334e-05 | K39: -1.138446625e-05 | L39: 2.257191515e-05 | M39: 0.000333813281 | N39: 8.626667467e-09
A40: 16.9371 | B40: ='DF raw data'!M45 -> 6.0075536e-06 | C40: ='DF raw data'!N45 -> 3.6858187e-06 | D40: ='DF raw data'!O45 -> -1.1648405e-06 | F40: 6.016252538e-06 | G40: 3.700438474e-06 | H40: -1.166527189e-06 | J40: 2.278160205e-05 | K40: 9.752012716e-09 | L40: 2.442268945e-05 | M40: 0.0003460282891 | N40: 9.184569363e-09
A41: 17.43725 | B41: ='DF raw data'!M46 -> -1.1459789e-06 | C41: ='DF raw data'!N46 -> -8.5497504e-07 | D41: ='DF raw data'!O46 -> -8.6423279e-06 | F41: -1.147638277e-06 | G41: -8.583662925e-07 | H41: -8.654841991e-06 | J41: 2.220761077e-05 | K41: 1.111688854e-05 | L41: 2.399337755e-05 | M41: 0.0003580285769 | N41: 9.719159763e-09
A42: 17.9374 | B42: ='DF raw data'!M47 -> -6.1960463e-06 | C42: ='DF raw data'!N47 -> 6.0073185e-06 | D42: ='DF raw data'!O47 -> -8.4299427e-06 | F42: -6.205018175e-06 | G42: 6.031146487e-06 | H42: -8.442149257e-06 | J42: 1.910417093e-05 | K42: 2.067183963e-05 | L42: 2.700985547e-05 | M42: 0.0003715375561 | N42: 1.026657476e-08
A43: 18.43755 | B43: ='DF raw data'!M48 -> -7.6654696e-06 | C43: ='DF raw data'!N48 -> 7.1597287e-06 | D43: ='DF raw data'!O48 -> -2.3516948e-06 | F43: -7.6765692e-06 | G43: 7.188127714e-06 | H43: -2.355100054e-06 | J43: 1.526473484e-05 | K43: 2.830649676e-05 | L43: 3.060499754e-05 | M43: 0.0003868446457 | N43: 1.085158921e-08
A44: 18.9377 | B44: ='DF raw data'!M49 -> -6.1619367e-06 | C44: ='DF raw data'!N49 -> -6.1264154e-06 | D44: ='DF raw data'!O49 -> -4.9722775e-07 | F44: -6.170859184e-06 | G44: -6.150715784e-06 | H44: -4.979477358e-07 | J44: 1.217837962e-05 | K44: 3.439751332e-05 | L44: 2.752871704e-05 | M44: 0.0004006131335 | N44: 1.130479673e-08
A45: 19.43785 | B45: ='DF raw data'!M50 -> -4.2515612e-06 | C45: ='DF raw data'!N50 -> -4.694075e-06 | D45: ='DF raw data'!O50 -> 2.2666175e-06 | F45: -4.257717461e-06 | G45: -4.712694016e-06 | H45: 2.269899562e-06 | J45: 1.004888223e-05 | K45: 3.942346177e-05 | L45: 2.517166313e-05 | M45: 0.0004132027408 | N45: 1.167220325e-08
A46: 19.938 | B46: ='DF raw data'!M51 -> -5.1243123e-06 | C46: ='DF raw data'!N51 -> 1.1524132e-05 | D46: ='DF raw data'!O51 -> 5.2551009e-06 | F46: -5.131732304e-06 | G46: 1.156984239e-05 | H46: 5.262710286e-06 | J46: 7.482246319e-06 | K46: 4.316570727e-05 | L46: 3.09583198e-05 | M46: 0.0004286865444 | N46: 1.21795562e-08
A47: 20.43815 | B47: ='DF raw data'!M52 -> -5.4050624e-06 | C47: ='DF raw data'!N52 -> 2.1455357e-06 | D47: ='DF raw data'!O52 -> 5.9386043e-06 | F47: -5.41288893e-06 | G47: 2.154045952e-06 | H47: 5.947203399e-06 | J47: 4.77498992e-06 | K47: 4.555391847e-05 | L47: 3.203566588e-05 | M47: 0.0004447091827 | N47: 1.270425577e-08
A48: 20.9383 | B48: ='DF raw data'!M53 -> -2.1483584e-06 | C48: ='DF raw data'!N53 -> 4.3861783e-06 | D48: ='DF raw data'!O53 -> 8.9306814e-06 | F48: -2.151469223e-06 | G48: 4.403576045e-06 | H48: 8.943613027e-06 | J48: 3.698932589e-06 | K48: 4.740393961e-05 | L48: 3.423811444e-05 | M48: 0.0004618333757 | N48: 1.329739895e-08
A49: 21.43845 | B49: ='DF raw data'!M54 -> 2.1516453e-06 | C49: ='DF raw data'!N54 -> 5.4816151e-06 | D49: ='DF raw data'!O54 -> 1.0612635e-05 | F49: 2.154760882e-06 | G49: 5.503357888e-06 | H49: 1.06280021e-05 | J49: 4.776636244e-06 | K49: 4.979297423e-05 | L49: 3.699061889e-05 | M49: 0.0004803342337 | N49: 1.399316869e-08
A50: 21.9386 | B50: ='DF raw data'!M55 -> 1.7725096e-06 | C50: ='DF raw data'!N55 -> -2.1214655e-06 | D50: ='DF raw data'!O55 -> 8.0562277e-06 | F50: 1.775076194e-06 | G50: -2.129880278e-06 | H50: 8.067893118e-06 | J50: 5.664440602e-06 | K50: 5.262604419e-05 | L50: 3.592535927e-05 | M50: 0.0004983023022 | N50: 1.465472576e-08
A51: 22.43875 | B51: ='DF raw data'!M56 -> -1.8519942e-06 | C51: ='DF raw data'!N56 -> 1.4639895e-06 | D51: ='DF raw data'!O56 -> 7.191888e-06 | F51: -1.854675888e-06 | G51: 1.469796404e-06 | H51: 7.202301854e-06 | J51: 4.736824457e-06 | K51: 5.499516695e-05 | L51: 3.666047794e-05 | M51: 0.0005166380402 | N51: 1.53381448e-08
A52: 22.9389 | B52: ='DF raw data'!M57 -> -3.2302351e-06 | C52: ='DF raw data'!N57 -> -1.0607434e-05 | D52: ='DF raw data'!O57 -> 6.5065801e-06 | F52: -3.23491248e-06 | G52: -1.064950831e-05 | H52: 6.516001628e-06 | J52: 3.11888298e-06 | K52: 5.655507627e-05 | L52: 3.133412636e-05 | M52: 0.0005323098035 | N52: 1.583407098e-08
A53: 23.43905 | B53: ='DF raw data'!M58 -> -3.1690297e-06 | C53: ='DF raw data'!N58 -> -8.0265518e-06 | D53: ='DF raw data'!O58 -> 5.4109664e-06 | F53: -3.173618455e-06 | G53: -8.058389061e-06 | H53: 5.418801479e-06 | J53: 1.53159771e-06 | K53: 5.732110486e-05 | L53: 2.730372307e-05 | M53: 0.0005459657606 | N53: 1.62081027e-08
A54: 23.9392 | B54: ='DF raw data'!M59 -> -2.323578e-06 | C54: ='DF raw data'!N59 -> -4.0665964e-07 | D54: ='DF raw data'!O59 -> 5.4815869e-06 | F54: -2.326942541e-06 | G54: -4.082726526e-07 | H54: 5.489524238e-06 | J54: 3.677773979e-07 | K54: 5.750504873e-05 | L54: 2.70995255e-05 | M54: 0.0005595195883 | N54: 1.657547265e-08
A55: 24.43935 | B55: ='DF raw data'!M60 -> -5.0559277e-07 | C55: ='DF raw data'!N60 -> -4.1089961e-06 | D55: ='DF raw data'!O60 -> 8.5764732e-06 | F55: -5.063248683e-07 | G55: -4.125294404e-06 | H55: 8.588891933e-06 | J55: 1.14539015e-07 | K55: 5.756233542e-05 | L55: 2.503625951e-05 | M55: 0.0005720414735 | N55: 1.688898038e-08
A56: 24.9395 | B56: ='DF raw data'!M61 -> 3.4099401e-07 | C56: ='DF raw data'!N61 -> -1.1438442e-06 | D56: ='DF raw data'!O61 -> 9.8282289e-06 | F56: 3.414877693e-07 | G56: -1.14838125e-06 | H56: 9.842460175e-06 | J56: 2.853341228e-07 | K56: 5.770504528e-05 | L56: 2.446189662e-05 | M56: 0.0005842760911 | N56: 1.718830305e-08
A57: 25.43965 | B57: ='DF raw data'!M62 -> 2.2800659e-06 | C57: ='DF raw data'!N62 -> -5.4187176e-06 | D57: ='DF raw data'!O62 -> 4.0630516e-06 | F57: 2.283367435e-06 | G57: -5.440210905e-06 | H57: 4.068934899e-06 | J57: 1.427360346e-06 | K57: 5.841893955e-05 | L57: 2.174097514e-05 | M57: 0.0005951498398 | N57: 1.742572793e-08
A58: 25.9398 | B58: ='DF raw data'!M63 -> 4.2676684e-06 | C58: ='DF raw data'!N63 -> -5.0021581e-06 | D58: ='DF raw data'!O63 -> -4.166624e-06 | F58: 4.273847984e-06 | G58: -5.021999125e-06 | H58: -4.172657272e-06 | J58: 3.564925415e-06 | K58: 6.0201937e-05 | L58: 1.922922228e-05 | M58: 0.0006047673353 | N58: 1.761702115e-08
A59: 26.43995 | B59: ='DF raw data'!M64 -> 2.9669891e-06 | C59: ='DF raw data'!N64 -> 1.1671141e-06 | D59: ='DF raw data'!O64 -> -6.6532843e-06 | F59: 2.9712853e-06 | G59: 1.17174345e-06 | H59: -6.662918256e-06 | J59: 5.051013758e-06 | K59: 6.272820153e-05 | L59: 1.981526976e-05 | M59: 0.0006146779425 | N59: 1.78261627e-08
A60: 26.9401 | B60: ='DF raw data'!M65 -> -1.1437816e-06 | C60: ='DF raw data'!N65 -> -7.0713759e-07 | D60: ='DF raw data'!O65 -> -6.3734219e-06 | F60: -1.145437796e-06 | G60: -7.099424463e-07 | H60: -6.382650615e-06 | J60: 4.478123044e-06 | K60: 6.496793477e-05 | L60: 1.946019205e-05 | M60: 0.0006244109575 | N60: 1.802559884e-08
A61: 27.44025 | B61: ='DF raw data'!M66 -> -4.0337045e-06 | C61: ='DF raw data'!N66 -> -2.7216211e-06 | D61: ='DF raw data'!O66 -> -8.4824605e-06 | F61: -4.039545304e-06 | G61: -2.732416391e-06 | H61: -8.494743103e-06 | J61: 2.45774446e-06 | K61: 6.619717566e-05 | L61: 1.809357399e-05 | M61: 0.0006334604586 | N61: 1.819235782e-08
A62: 27.9404 | B62: ='DF raw data'!M67 -> -4.2856709e-06 | C62: ='DF raw data'!N67 -> 6.1104574e-06 | D62: ='DF raw data'!O67 -> -7.8385528e-06 | F62: -4.291876551e-06 | G62: 6.134694486e-06 | H62: -7.849903024e-06 | J62: 3.11162403e-07 | K62: 6.635280354e-05 | L62: 2.116184144e-05 | M62: 0.0006440445536 | N62: 1.841638518e-08
A63: 28.44055 | B63: ='DF raw data'!M68 -> -6.6628281e-06 | C63: ='DF raw data'!N68 -> 5.0498447e-06 | D63: ='DF raw data'!O68 -> -3.4793954e-06 | F63: -6.672475875e-06 | G63: 5.069874874e-06 | H63: -3.484433565e-06 | J63: -3.026076406e-06 | K63: 6.483931143e-05 | L63: 2.369753936e-05 | M63: 0.0006558968779 | N63: 1.870183605e-08
A64: 28.9407 | B64: ='DF raw data'!M69 -> -9.0496478e-06 | C64: ='DF raw data'!N69 -> -3.7265945e-06 | D64: ='DF raw data'!O69 -> -1.1137923e-06 | F64: -9.06275169e-06 | G64: -3.741376011e-06 | H64: -1.115405071e-06 | J64: -7.558811664e-06 | K64: 6.105877177e-05 | L64: 2.182629015e-05 | M64: 0.0006668132969 | N64: 1.896867736e-08
A65: 29.44085 | B65: ='DF raw data'!M70 -> -9.2139971e-06 | C65: ='DF raw data'!N70 -> -2.1939159e-06 | D65: ='DF raw data'!O70 -> -1.4990688e-06 | F65: -9.227338968e-06 | G65: -2.202618052e-06 | H65: -1.501239452e-06 | J65: -1.217386525e-05 | K65: 5.497001307e-05 | L65: 2.072465073e-05 | M65: 0.0006771787309 | N65: 1.925762109e-08
A66: 29.941 | B66: ='DF raw data'!M71 -> -9.2405544e-06 | C66: ='DF raw data'!N71 -> -2.7983415e-06 | D66: ='DF raw data'!O71 -> -5.5732716e-07 | F66: -9.253934723e-06 | G66: -2.809441102e-06 | H66: -5.581341697e-07 | J66: -1.68022207e-05 | K66: 4.656638239e-05 | L66: 1.931950876e-05 | M66: 0.0006868413832 | N66: 1.958549845e-08
A67: 30.44115 | B67: ='DF raw data'!M72 -> -6.7179653e-06 | C67: ='DF raw data'!N72 -> -2.3780458e-06 | D67: ='DF raw data'!O72 -> 2.5351731e-06 | F67: -6.727692914e-06 | G67: -2.387478302e-06 | H67: 2.538844031e-06 | J67: -2.016707631e-05 | K67: 3.647981917e-05 | L67: 1.812541149e-05 | M67: 0.0006959068078 | N67: 1.995322949e-08
A68: 30.9413 | B68: ='DF raw data'!M73 -> -7.0143244e-07 | C68: ='DF raw data'!N73 -> -3.8771304e-07 | D68: ='DF raw data'!O73 -> 5.9413401e-06 | F68: -7.024481142e-07 | G68: -3.892509011e-07 | H68: 5.94994316e-06 | J68: -2.051840574e-05 | K68: 2.621753854e-05 | L68: 1.793072765e-05 | M68: 0.0007048748612 | N68: 2.032459885e-08
A69: 31.44145 | B69: ='DF raw data'!M74 -> 1.6403345e-06 | C69: ='DF raw data'!N74 -> 1.8327823e-06 | D69: ='DF raw data'!O74 -> 6.6603939e-06 | F69: 1.642709704e-06 | G69: 1.840052018e-06 | H69: 6.67003815e-06 | J69: -1.969680448e-05 | K69: 1.636618178e-05 | L69: 1.885102967e-05 | M69: 0.0007143032037 | N69: 2.069637306e-08
A70: 31.9416 | B70: ='DF raw data'!M75 -> 8.0423968e-07 | C70: ='DF raw data'!N75 -> 2.2818676e-07 | D70: ='DF raw data'!O75 -> -1.4261346e-06 | F70: 8.054042191e-07 | G70: 2.290918612e-07 | H70: -1.428199643e-06 | J70: -1.929398156e-05 | K70: 6.716296905e-06 | L70: 1.896560996e-05 | M70: 0.0007237888535 | N70: 2.106245889e-08
A71: 32.44175 | B71: ='DF raw data'!M76 -> -4.7267633e-07 | C71: ='DF raw data'!N76 -> -3.65908e-06 | D71: ='DF raw data'!O76 -> -7.4497398e-06 | F71: -4.733607653e-07 | G71: =(1-$G$1*($B$2-$G$2))*C71*$M$2/$M$1 -> -3.673593715e-06 | H71: -7.460527023e-06 | J71: -1.953073294e-05 | K71: -3.051999176e-06 | L71: 1.712826206e-05 | M71: 0.0007323555538 | N71: 2.139997356e-08
A72: =A71+$B$1 -> 32.9419 | B72: ='DF raw data'!M77 -> -5.5405064e-07 | C72: ='DF raw data'!N77 -> -2.241416e-06 | D72: ='DF raw data'!O77 -> -3.9907932e-06 | F72: -5.548529053e-07 | G72: -2.250306561e-06 | H72: -3.996571869e-06 | J72: =F72*$B$1+J71 -> -1.980824262e-05 | K72: =J72*$B$1+K71 -> -1.295909172e-05 | L72: =G72*$B$1+L71 -> 1.600277124e-05 | M72: =L72*$B$1+M71 -> 0.0007403593398 | N72: =(J72^2+L72^2)*$B$1+N71 -> 2.172429841e-08
A73: 33.44205 | B73: ='DF raw data'!M78 -> 1.1026704e-06 | C73: ='DF raw data'!N78 -> 3.5263733e-06 | D73: ='DF raw data'!O78 -> 2.899422e-06 | F73: 1.104267067e-06 | G73: 3.540360635e-06 | H73: 2.903620363e-06 | J73: -1.925594345e-05 | K73: -2.258995184e-05 | L73: 1.777348261e-05 | M73: 0.0007492487472 | N73: 2.206774544e-08
A74: 33.9422 | B74: ='DF raw data'!M79 -> 1.9711433e-06 | C74: ='DF raw data'!N79 -> -2.2378135e-06 | D74: ='DF raw data'!O79 -> 1.937846e-06 | F74: 1.973997515e-06 | G74: -2.246689772e-06 | H74: 1.940652001e-06 | J74: -1.826864859e-05 | K74: -3.172701643e-05 | L74: 1.664980072e-05 | M74: 0.000757576145 | N74: 2.237331677e-08
A75: 34.44235 | B75: ='DF raw data'!M80 -> 2.1792066e-06 | C75: ='DF raw data'!N80 -> -4.4609778e-06 | D75: ='DF raw data'!O80 -> -1.8764291e-06 | F75: 2.182362091e-06 | G75: -4.478672237e-06 | H75: -1.879146169e-06 | J75: -1.717714019e-05 | K75: -4.03181631e-05 | L75: 1.44097928e-05 | M75: 0.0007647832029 | N75: 2.262474032e-08
A76: 34.9425 | B76: ='DF raw data'!M81 -> 3.9277793e-06 | C76: ='DF raw data'!N81 -> 5.5818191e-06 | D76: ='DF raw data'!O81 -> -2.3192149e-06 | F76: 3.933466724e-06 | G76: 5.603959346e-06 | H76: -2.322573123e-06 | J76: -1.520981681e-05 | K76: -4.792535298e-05 | L76: 1.721261307e-05 | M76: 0.0007733920913 | N76: 2.288862575e-08
A77: 35.44265 | B77: ='DF raw data'!M82 -> 5.7853458e-06 | C77: ='DF raw data'!N82 -> 9.3155113e-06 | D77: ='DF raw data'!O82 -> -1.1667759e-06 | F77: 5.793722981e-06 | G77: 9.35246121e-06 | H77: -1.168465392e-06 | J77: -1.231208626e-05 | K77: -5.408324292e-05 | L77: 2.189024654e-05 | M77: 0.0007843404981 | N77: 2.320410554e-08
A78: 35.9428 | B78: ='DF raw data'!M83 -> 5.4179536e-06 | C78: ='DF raw data'!N83 -> 3.6207066e-06 | D78: ='DF raw data'!O83 -> 3.2858336e-06 | F78: 5.425798797e-06 | G78: 3.635068107e-06 | H78: 3.290591487e-06 | J78: -9.598372994e-06 | K78: -5.888386918e-05 | L78: 2.370832586e-05 | M78: 0.0007961982173 | N78: 2.353131041e-08
A79: 36.44295 | B79: ='DF raw data'!M84 -> 2.2460872e-06 | C79: ='DF raw data'!N84 -> 1.2555765e-06 | D79: ='DF raw data'!O84 -> 3.8984549e-06 | F79: 2.249339534e-06 | G79: 1.260556735e-06 | H79: 3.904099863e-06 | J79: -8.473365826e-06 | K79: -6.312182309e-05 | L79: 2.433879331e-05 | M79: 0.0008083712648 | N79: 2.386349743e-08
A80: 36.9431 | B80: ='DF raw data'!M85 -> -7.155769e-07 | C80: ='DF raw data'!N85 -> 6.3725083e-06 | D80: ='DF raw data'!O85 -> -8.1835941e-07 | F80: -7.166130554e-07 | G80: 6.39778481e-06 | H80: -8.195443944e-07 | J80: -8.831779845e-06 | K80: -6.753903778e-05 | L80: 2.753864538e-05 | M80: 0.0008221447182 | N80: 2.428181155e-08
A81: 37.44325 | B81: ='DF raw data'!M86 -> 6.8134875e-07 | C81: ='DF raw data'!N86 -> 2.7395536e-06 | D81: ='DF raw data'!O86 -> -3.4395232e-06 | F81: 6.82335343e-07 | G81: 2.75042002e-06 | H81: -3.44450363e-06 | J81: -8.490509824e-06 | K81: -7.178556627e-05 | L81: 2.891426795e-05 | M81: 0.0008366061894 | N81: 2.47360096e-08
A82: 37.9434 | B82: ='DF raw data'!M87 -> 3.7093696e-06 | C82: ='DF raw data'!N87 -> -7.616017e-08 | D82: ='DF raw data'!O87 -> -1.0781576e-05 | F82: 3.714740767e-06 | G82: -7.646225878e-08 | H82: -1.079718772e-05 | J82: -6.632582229e-06 | K82: -7.510285227e-05 | L82: 2.887602535e-05 | M82: 0.0008510485334 | N82: 2.517504926e-08
A83: 38.44355 | B83: ='DF raw data'!M88 -> 3.8084245e-06 | C83: ='DF raw data'!N88 -> -8.2833985e-06 | D83: ='DF raw data'!O88 -> -2.2487893e-05 | F83: 3.813939099e-06 | G83: -8.316254542e-06 | H83: -2.252045547e-05 | J83: -4.725040589e-06 | K83: -7.746608132e-05 | L83: 2.471665064e-05 | M83: 0.0008634105663 | N83: 2.549176366e-08
A84: 38.9437 | B84: ='DF raw data'!M89 -> 2.8125205e-06 | C84: ='DF raw data'!N89 -> -1.0397152e-05 | D84: ='DF raw data'!O89 -> -2.026845e-05 | F84: 2.81659303e-06 | G84: -1.043839223e-05 | H84: -2.029779872e-05 | J84: -3.316321585e-06 | K84: -7.912473957e-05 | L84: 1.949588877e-05 | M84: 0.000873161435 | N84: 2.568736616e-08
A85: 39.44385 | B85: ='DF raw data'!M90 -> 2.1248115e-06 | C85: ='DF raw data'!N90 -> 1.4338352e-06 | D85: ='DF raw data'!O90 -> -7.9198835e-06 | F85: 2.127888227e-06 | G85: 1.439522497e-06 | H85: -7.931351491e-06 | J85: -2.252058288e-06 | K85: -8.025110652e-05 | L85: 2.021586595e-05 | M85: 0.0008832724004 | N85: 2.589430472e-08
A86: 39.944 | B86: ='DF raw data'!M91 -> 2.1294827e-06 | C86: ='DF raw data'!N91 -> 2.7015267e-06 | D86: ='DF raw data'!O91 -> -2.3492355e-06 | F86: 2.132566191e-06 | G86: 2.712242287e-06 | H86: -2.352637193e-06 | J86: -1.185455308e-06 | K86: -8.084401199e-05 | L86: 2.157239393e-05 | M86: 0.0008940618332 | N86: 2.612776148e-08
